Workbook

Sheet 0. Contents
B3: Contents:
B5: I. Readme, sources
B6: II. Headline series | N6: This spreadsheet contains underlying data to the Bank of England Staff Working Paper No. 845, "Eight centuries of global real interest rates, R-G, and the 'suprasecular' decline, 1311-2018", by Paul Schmelzing. If you spot errors or have comments, contact the author at schmelzing[at]fas.harvard.edu
B7: III. GDP shares, 1310-2018
B8: IV. Country level: nominal yields and inflation, 1310-2018
B9: V. Standard deviation, 1329-2018
B10: VI. R-G variations, 1317-2018
B11: VII. Negative real rate frequency, 1313-2018 | Q11: This version: 1.2 January 2020
B12: VIII. Personal sovereign loans, 1312-2018
B13: IX. War frequency, 1495-2018

Sheet I. Readme, sources
A1: back to contents
J2: All nominal datapoints refer to long-term yields. Real rates are reported ex-post (on the basis of realized inflation). Observations are arithmetically weighted on the country-level across consolidated debt and personal loan datapoints (both interpolated) until the following years: France to 1709; Germany to 1618; Holland to 1671; Italy to 1691; U.K. personal/non-marketable debt 100% to 1702. Afterwards, personal/non-marketable loan data (Sheet VIII) only included arithmetically "at occurence". Forced loans and intra-governmental loans are excluded. For details, see also notes in the accompanying SWP 845.
B3: Compare also all archival primary sources listed in the accompanying Schmelzing SWP 845 (2020, pp.75-77, 99-107).
T9: Used where | V9: when (first and last datapoint) | X9: Notes
B10: I. Archival funds used
B12: Bank of England Archive (BoEA): “Average Prices of Funds, 1705-1880” (10A 270/1); “Report of the Proceedings of the Commissioners for the Reduction of the National Debt” (14A 156/1): Funded Debt for Terminable Annuities – Great Britain – 1693-1836. | F12: | | T12: British nominal yields, 1700- | V12: 1734-1820
B13: Geheimes Staatsarchiv Preussischer Kulturbesitz (GStAPK): I. HA Rep. 78 (Kurmaerkische Lehnskanzlei), Nr. 10: Altmaerkisches Register, 96-131; VII. HA Nichtmaerkische Urkunden, Pommern Nr. 69, Polen Nr. 28; VII. Haussachen der Landesherren Nr. 76; VII. HA Maerkische Ortschaften Salzwedel Nr. 77. | I13: | | T13: German personal/non-marketable loans | V13: 1426-1636
B14: Hauptstaatsarchiv Dresden (HStAD): Bestand 10036, Loc. 33698, Rep. 11, Sect. 2, Lit. F, Nr. 0013; Bestand 10690, Reichskammergericht No. 12. | F14: | | T14: German municipal yields; 'Carolingian' private R; German personal/non-marketable loans | V14: 1545-1549; 1549
B15: Hessisches Hauptstaatsarchiv, Marburg (HHStaM): Fonds Urk. 15 No 484; Fonds Urk. 37 No 3440; ; Fonds Urk. 49 No 3289; Fonds Urk. 56 No 1398. | H15: | | T15: Carolingian' private R | V15: 1507-1818
B16: Hessisches Hauptstaatsarchiv, Wiesbaden (HHStaW): Bestand 130 I/U 76, 77; 130 II/258 and 260; 6/95; Bestand 3001 Nr. 13, fols. 37, 82, 132 and Nr. 7, fol.1b; Bestand 171/G 717, fols. 119-122. | H16: | | T16: German personal/non-marketable loans; 'Carolingian' private R | V16: 1393-1578
B17: Historisches Archiv der Stadt Koeln (HStAK): Best. 1 – U1/17139; U1/452; Best. 3 – U1/1181, U1/1198, U1/1225, U1/1234, U1/1284, U1/1287, U2/461, U2/234, U2/1096, U2/1131, U2/1148, U2/1157, U2/1164, U2/1165, U2/1168, U2/1170-1; Best. 135 – U2/7; U2/8; Best. 210 (Domstift) – U3/1652; Best. 223 (Jesuiten) – A 1401, A 2057, A 2213, A 2221, A 2242, U2/544; Best. 227 (Johann und Cordula) – U2/224A, U3/261A; Best. 228 (Karmeliter) – U1/214; Best. 246 (Maria in Bethlehem) – U2/4; Best. 254 (Michael) – U2/19, U2/160; Best. 310L – A 73; Best. 310W – A 71: Klaeger: Adolph von Opperfeld; Best. 1037 – Nachlaesse R, Raitz von Frentz, Gutsarchiv Listringhausen/Badinghagen, Kasten 23, 63, 72; Best. 1037 – Hausarchiv Schlenderhan. Kasten 11, 14, 16, 32, 37. | G17: | | T17: German municipal yields; 'Carolingian' private R; German personal/non-marketable loans | V17: 1417-1672; 1450-1795; 1486
B18: Institut fuer Stadtgeschichte Frankfurt (ISG) | T18: German municipal yields; 'Carolingian' private R | V18: 1355-1822
B19: Oesterreichisches Staatsarchiv (OeStA): FHKA: SUS RA 75.6 and 238.44; NL Beer 01/3a-1 (“Münzkurse (Wert von Reichstaler, Gulden, Dukat und Geldgulden) von 1400 bzw. 1582 bis 1690 (erstellt nach 1767))”, 02/79 (“Philipp Graf von Sinzendorf aus Amsterdam, Berichte zum Wechselkurs des holländischen Gulden und Gutachten über eine Anleihe in Holland, Rekognitionen und Instruktionen, Johann Graf von Choteck, Ministerial-Bankodeputation, an Maria Theresia zur Beauftragung Sinzendorfs mit der Aufnahme einer Anleihe auf Kredit des Banko”); HHStA: RHR Judicialia Antiqua 104-8; MEA Muenzsachen 8, “Vom Einfluss der Muenzerhoehungen auf die Preise der vornehmsten Beduerfnissen”; Hausarchiv – Lothringisches Hausarchiv Este, Box 14; Nachlaesse der Kabinettskanzlei – Leopold Kolowrat, Box 21, 1355-1446. | G19: | | T19: German personal/non-marketable loans; German inflation (robustness) | V19: 1517-1796
B20: Stadsarchief Amsterdam (StAAm): Archief 735 - Archief van de Company Hope & Co. met verwante archiefvormers: No. 1518 (“Stukken betreffende vorderingen van Hope & Co te Amsterdam op diverse Europese schuldenaren”). | F20: | | T20: U.S. personal/non-marketable loans | V20: 1793-1844
B21: Stadtarchiv Bamberg (StABb): A 21; D 3001, Rep 1+1508; D 4017. | E21: | | T21: German municipal yields; 'Carolingian' private R | V21: 1503-1626
B22: Stadtarchiv Mainz (StdAMz): Urkunden: (chronologically) U/1407 November 20/II; U/1412 Januar 14; U/1420 Maerz 24; U/1421 September 22; U/1545 April 21; U/1559 Maerz 15; U/1587 Dezember 2; U/1590 Mai 23; U/1609 Mai 18; U/1612 September 8; U/1615 Juni 24 (see also notes to Figure VIII). | E22: | | T22: German municipal yields; 'Carolingian' private R | V22: 1393-1720
B23: Stadtarchiv Nuernberg (NStA): B 17/II: Zinsmeisteramt Akten: 6. Depositen, Obligationen, Darlehen, Schuldendienst, Steuern (1671-1809): Nr. 140: Aufstellungen und Berechnungen von Zinsen und Tilgungen for Depositengelder bzw. Aufgenommene Kapitalien (ab 1427); Nr. 144: Schuldendienst fuer aufgenommene Kapitalien (Zinsen und Tilgung), 1702-1808; Nr. 147: “Schulden des Zinsmeisteramtes und deren Verzinsung gegenüber Nürnberger Bürgern und privaten Wohltätigkeitsstiftungen”; Herrschaft Schwarzenberg Urkunden 1440. | F23: | | T23: German municipal yields; 'Carolingian' private R; German personal/non-marketable loans | V23: 1427-1720; 1591
B24: Stadtarchiv Muenster (StdAMs): Ratsarchiv (Altes Archiv) bis 1802, Stadtschulden A IX: 717: “Rechnungsbuch des Gruthauses 1669”; 721: “Rentenregister renovatum 1732”; 724: “Schuldenregister und Uebersicht der Kapitalanlagen, 1790-1809”; 725 a+b: “Verzeichnis der Stadtschulden von 1802”; 726: “Rechnung der Stadtschulden-Casse zu Muenster vom 1. September 1804 bis 31. Mai 1805”. | F24: | | T24: German municipal yields | V24: 1350-1620
B25: Stadtarchiv Worms (StAWs): 001AI/0149 (Urkunde, 17 Dezember 1346). | E25: | | T25: German municipal yields | V25: 1346
B26: The National Archives, Kew (TNA): E 30/1186/3; SP 36/107/1/45; T 29/627: “Minute Book containing extracts relative to the rate of interest or discount on loans or tallies, compiled in the beginning of Queen Anne's reign”; E 30/1736: “Joint obligation by Maximilian, King of the Romans, and Charles, Prince of Spain, to repay the loan of 100,000 gold crowns which Henry VII. has promised to pay the Prince. November 1508”; SP 78/223/ fols. 40-42: “Waldegrave to Harrington, June 1740”. | F26: | | T26: British personal/non-marketable loans | V26: 1642-1740 | X26: For 1692-1700 all loans in T 29/627, fols. 5-36 are averaged.
B27: Yale University, Beinecke Rare Book and Manuscript Library (Yale BL): American Historical Financial Documents Collection (GEN MSS 1081), Box 2, fols. 57. | J27: | | T27: U.S. personal/non-marketable loans, 1778-1780 | V27: 1778-1780
B29: II. Printed primary sources used
B31: Aspetti dell'Amministrazione Finanziaria del Comune di Milano dal XIV al XVIII secolo, Caterina Santoro (ed.) (Milano: Castello Sforzesco, 1963). | T31: Italian municipal yields | V31: 1398-1704
B32: Calendar of State Papers, Domestic Series, (London: Longman, PRO, 1858-): James I: Vol. 3; Charles I: Vols. 7, 20-22; Charles II: Vols. 4, 10, 12, 13; James II: Vol. 1; William III and Mary II: vol. 6; Anne I: Vol. 4; Commonwealth: Vol. 3; Venetian: Vol.37. | T32: British personal/non-marketable loans | V32: 1622-1731
B33: Calendar of Treasury Books and Papers, Vols. 2 (1731-1734), 5 (1742-1745). | T33: British personal/non-marketable loans | V33: 1741
B34: Calendar of Virginia State Papers and other Manuscripts, Vol. X, January 1, 1808-December 31, 1835, Henry W. Flournoy (ed.) (Richmond: J.E. Goode, 1892). | T34: U.S. personal/non-marketable loans, 1778-1780 | V34: 1813-1815 | X34: The Virginia war loans between 1813-1815 included here were partly extended by the Bank of Virginia. One-third of the latter’s stock was owned by the state government (Gruchy 1937, 167f.). The loans are included here since this does not represent a majority stake and the loan terms show no evidence of financial repression features, but it may be seen as a borderline case.
B35: Course of the exchange (John Castaing ed.) via ESFDB, accessed November 19, 2018. | T35: British consolidated debt | V35: 1703-1733 | X35: Tape via Inter-University Consortium for Political and Social Research, Ann Arbor, USA. (ESFDB =https://www.esfdb.org/table.aspx?resourceid=11346)
B36: Codex diplomaticus et epistolares. Moraviae Vol.13 (Bruenn: Verlag des Maehrischen Landes-Ausschusses, 1897): Regesten Wenzel. | T36: German personal/non-marketable loans | V36: 1400
B37: Danzinger Inventar, 1531-1591, Paul Simson (ed.) (Muenchen: Duncker & Humblot, 1913) | T37: Other' personal/non-marketable loans | V37: 1561
B38: Deutsche Reichstagsakten (RTA), Aeltere Reihe, Vol. 5, Unter Koenig Ruprecht 1401-1405, 2/2, Julius Weizsaecker (ed.) (Gotha: Friedrich Perthes, 1885). | T38: German personal/non-marketable loans | V38: 1401 | X38: The 1401 Amadi/Rommel loan appears to have been originally conceived as a short-term loan, but an actual repayment in the short-term is not recorded. In RTA (Older series, Vol. 5, No. 173, Nov. 6, 1401) we only learn that the Imperial chamber forwards the 1,200 ducats to Nikolaus Wispriger as a salary.
B39: Der Besitz des Mainzer Domkapitels im Spaetmittelalter, Irmtraut Liebeherr (ed.) (Mainz: Sebstverlag der Gesellschaft fuer Mittelrheinische Kirchengeschichte, 1971). | T39: Carolingian' private R | V39: 1325-1516
B40: Die Protokolle des Mainzer Domkapitels, 4 vols., Fritz Herrmann, Hans Knies (eds.) (Darmstadt: Hessische Historische Kommission, 1976-). | T40: Carolingian' private R | V40: 1460-1543
B41: Documents inedits concernant la ville et le siege du bailliage d’Amiens, 3 Vols., Eduard Maugis (ed.) (Amiens/Paris: Yvert et Tellier/Auguste Picard, 1908-1921). | T41: Carolingian' private R | V41: 1439
B42: GPO: Anglo-American Financial and Commercial Agreements (Washington: 1945) | T42: U.S. personal/non-marketable loans | V42: 1945 | X42: Digitized via FRASER.
B43: Kernkamp, J.H., Vijftiende-Eeuwse Rentenbrieven van Noordnederlandse Steden (Groningen: J.B. Wolters, 1961). | T43: Dutch municipal yields (Leiden, Haarlem, Utrecht, Schiedam, Amsterdam) | V43: 1402-1486
B44: La Gascogne dans les Registres du Tresor des Chartes, Charles Samaran (ed.) (Paris: Bibliotheque Nationale, 1966). | T44: French municipal yields; 'Carolingian' private R | V44: 1327; 1354
B45: Lettres de Charles VIII, roi de France, publiées d'après les originaux pour la Société de l'histoire de France, 5 vols., Paul Pelicier (ed.) (Paris: Librairie Renouard, H. Laurens, successeur, 1898-1905). | T45: French personal/non-marketable loans | V45: 1465
B46: Paris pendant la domination anglaise (1420-1436). Documents: extraits des registres de la chancellerie de France, Auguste Longnon (ed.) (Paris: H. Champion, 1878). | T46: Carolingian' private R | V46: 1424
B47: Quellen zur Geschichte des Koelner Handels und Verkehrs im Mittelalter, Dritter Band: Besondere Quellengruppen des spaeten Mittelalters, Bruno Kuske (ed.) (Droste: Duesseldorf, 1978 [reprint of 1923 ed.]. | T47: German municipal yields | V47: 1477-1500
B48: Quellen und Regesten zu den Augsburger Handelshaeusern Paler und Rehlinger 1539-1642, 2 Vols., Reinhard Hildebrandt (ed.) (Stuttgart: Franz Steiner, 1996 and 2004). | T48: German personal/non-marketable loans | V48: 1539-1622
B49: Regesta Imperii (Reg Imperii), Vol. VI (Heinrich VII): 4/2; Vol VII (Ludwig der Bayer); Vol. VIII (Karl IV); Vol. XI (Sigmund); Neubearb. 1; Neubearb. 2; Vol. XIV (Maximilian I): Vol. 2/1: 1496-1498; Vols. 4/1-2: 1502-1504. - Hermann Wiesflecker (ed.) – (Cologne: Boehlau Verlag, 1993, 2002-2004); RI Plus Margraves of Baden and Hachberg, Vol. 1/1, Richard Fester (ed.) (Innsbruck: Wagnersche U.Buchhandlung, 1892). | T49: German personal/non-marketable loans | V49: 1329-1504
B50: Regesten van Oorkonden betreffende De Bisschoppen van Utrecht uit de Jaren 1301-1340, J.W. Berkelback van der Sprenkel (ed.) (Utrecht: Broekhoff, 1937). | T50: Carolingian' private R | V50: 1326-1338
B51: Regesten der Erzbischhoefe von Mainz, 1289-1396 (Reg EB Mainz), 5 Vols., W. Kreimes, Heinrich Otto, Fritz Vigener, Ernst Vogt (eds.) (Darmstadt/Leipzig: Veit & Comp., 1913-1958). | T51: German personal/non-marketable loans; 'Carolingian' private R | V51: 1315; 1295-1368
B52: Regesten der Pfalzgrafen am Rhein, 1214-1508 (Reg Pfalz), Eduard Winkelmann (ed.) (Innsbruck: Wagner’sche Universitaetsbuchhandlung, 1894): Vol. 1, Ruprecht I, Ruprecht III. | T52: German personal/non-marketable loans | V52: 1402-1408
B53: Statistisches Handbuch von Deutschland 1928-1944 (Laenderrat ed.) (Muenchen: Franz Ehrenwirth, 1949). | T53: Carolingian' private R | V53: 1928-1944 | X53: Averaging Pfandbriefe - "HAB" and "OERK" (p.527)
B56: III. Secondary source material used
B58: III.I Nominal interest rate data, consolidated public (incl. municipal debt) and private
B60: Alvarez-Nogal, Carlos, “La Demanda de Juros en Castilla durante la edad moderna: los juros de alcabalas de Murcia”, Studia Historica: Historia moderna, 32 (2010), 47-82. | T60: Spanish consolidated yields | V60: 1688-1730 | X60: On the basis of Alvarez-Nogal (2010, 61), the following weights are applied for the Murcia Juros, which serve as the proxy for Spanish consolidated assets: 1688-1730, 95%*5%, 5%*10%.
B61: Arnold, Wilhelm, Zur Geschichte des Eigentums in den deutschen Staedten. Mit Urkunden (Basel: H.Georg, 1861). | T61: Carolingian' private R | V61: 1273-1516
B62: Beyer, Otto, Das Schuldenwesen der Stadt Breslau im 14. und 15. Jahrhundert mit besonderer Beruecksichtigung der Verschuldung durch Rentenverkauf (Inauguraldissertation, I. Teil) (Breslau: R.Rischkowsky, 1900). | T62: German municipal yields (Breslau) | V62: 1331-1410
B63: Blendinger, Friedrich, “Muenchner Buerger, Kloester, und Stiftungen als Glaeubiger der Reichsstadt Augsburg im 14. und 15. Jahrhundert”, in: Horst Heldmann (ed.), Studien zur fraenkischen und bayerischen Geschichte, Friedolin Solleder zum 80. Geburtstag dargebracht (Neustadt: Ph.C.W. Schmidt, 1966), 80-109. | T63: German municipal yields (Augsburg) | V63: 1378-1485
B64: Bos-Rops, Jeanette A.M.Y., “Guerres du comte et argent des villes. Les relations financieres entre les comtes de Hollande et Zelande et leurs villes (1389-1433)”, in: Jean-Marie Cauchies (ed.), Finances et Financiers des princes et des villes a l’epoque Bourguignonne (Turnhout: Brepols, 2004), 29-40. | T64: Dutch consolidated yields | V64: 1405-1433
B65: Bundesbank (2018, online statistics) | T65: Carolingian' private R | V65: 1955-2018 | X65: Pfandbrief' basis, series BBK01.WU0018. Averaging monthly rates Jan-Dec.
B66: Cipolla, Carlo M., “Note sulla storia del saggio d’interesse, corso dividend e sconto dei dividend del Banco di S. Giorgio nel Sec. XVI”, Economia Internazionale, 5 (1952), 255-274. | T66: Italian municipal yields | V66: 1522-1625
B67: Conti, Elio, L’imposta Diretta A Firenze Nel Quattrocento (1427-1494) (Rome: Nella Sede Dell’Istituto Palazzo Borromini, 1984). | T67: Italian municipal yields (Florence) | V67: 1418-1475
B68: Däbritz, Walther, Die Staatsschulden Sachsens in der Zeit von 1763 bis 1837 (Leipzig: B.T. Teubner, 1906). | T68: German consolidated yields | V68: 1764-1836 | X68: For Däbritz (1906, 83, 113, 127), the 3% “Landschaftliche Obligationen” of 1763 between 1764-1801, the 5% “Landschaftliche (Reichenbachsche) Obligationen” for 1815-1821, and the 4% emission of 1821 for 1822-1836 are used.
B69: Day, John, Les Douanes de Genes, 1376-1377 (Paris: S.E.V.P.E.N., 1963). | T69: Italian municipal yields (Genoa) | V69: 1343-1407
B70: De Luca, Giuseppe, “Debito pubblico, mercato finanziario ed economia reale nel Ducato di Milano e nella Repubblica di Venezia tra XVI e XVII secolo”, in: Giuseppe De Luca and Angelo Moioli (eds.), Debito Pubblico e mercati finanziari in Italia, secoli XIII-XX (Milano: FrancoAngeli, 2007), 119-146. | T70: Italian municipal yields (Milan) | V70: 1543-1694 | X70: Milan is included in Italian nominal rates between 1543-1694. I use De Luca (2007, 127), and also include the Zecca rates (ibid., 130, averaging the two) between 1537-1540, and for 1570-1616, as Zecca volumes between 1540-1570 are very low.
B71: Dimsdale, Nicolas, and Ryland Thomas, “A Millennium of U.K. macroeconomic data”, Bank of England OBRA dataset, Version 3.1 (April 2017). | T71: British consolidated yields | V71: 1821-2018
B72: Dormans, Eduard H.M., Het tekort. Staatsschuld in de tijd der Republiek (Amsterdam: NEHA, 1991). | T72: Dutch consolidated yields (Holland) | V72: 1515-1678
B73: Doucet, Roger, Finances Municipales et credit public a Lyon au XVI siècle (Paris: Marcel Riviere, 1937). | T73: French municipal yields (Lyon) | V73: 1537-1573
B74: Durand, David, and Willis J. Winn, “Basic Yields of Bonds, 1926-1947: Their Measurement and Patterns”, NBER Technical Paper No. 6 (1947). | T74: United States consolidated yields | V74: 1926-1947
B75: Espinas, Georges, Les Finances de la Commune de Douai des Origines au XVe Siecle (Paris: Picard et Fils, 1902). | T75: French municipal yields (Douai) | V75: 1391-1400
B76: Fuhrmann, Bernd, “Der rat aber war zu rat mer ewigs gelts zu verkauffen – Das kommunale Kreditwesen Nuernbergs im 15. Jahrhundert”, in: Harm von Seggern, Gerhard Fouquet, and Hans-Joerg Gilomen (eds.), Staedtische Finanzwirtschaft am Uebergang vom Mittelalter zur Fruehen Neuzeit (Frankfurt: Peter Lang, 2007), 139-168. | T76: German municipal yields (Nuremberg) | V76: 1427-1496
B77: Gobbers, Joseph, “Die Erbleihe und ihr Verhaeltniss zum Rentenkauf im Mittelalterlichen Koeln des XII. – XIV. Jahrhunderts”, Zeitschrift der Savigny-Stiftung fuer Rechtsgeschichte, 17 (1883), 130-214. | T77: Carolingian' private R | V77: 1251-1433
B78: Homer, Sidney, and Richard Sylla, A History of Interest Rates (New Brunswick: Rutgers University Press, 2005, 4th ed.; [1996, 1991]). | T78: United States consolidated yields | V78: 1854-1918 | X78: See tables 38 ('Federal government bonds - selected market yields'), and 46 ('consol 2s of 1930') (1991 ed.)
B79: Heers, Jacques, Genes au XVe siècle (Paris: S.E.V.P.E.N., 1961). | T79: Italian municipal yields (Genoa) | V79: 1445-1466
B80: Humbert, Francoise, Les finances municipales de Dijon du milieu du XIV siècle a 1477 (Paris: Les Belles Lettres, 1961). | T80: French municipal yields (Dijon) | V80: 1475-1477
B81: Kahn, Julius, Geschichte des Zinsfusses in Deutschland seit 1815 und die Ursachen seiner Veraenderung (Stuttgart: J.G. Cotta’sche Buchhandlung, 1884). | T81: Carolingian' private R | V81: 1815-1883 | X81: Averaging yields from Karlsruhe, Berlin, Muenchen, Hamburg, Dresden, and Kempten.
B82: Kedar, Benjamin Z., Merchants in Crisis: Genoese and Venetian Men of Affairs and the Fourteenth Century Depression (New Haven and London: Yale University Press, 1976). | T82: Italian municipal yields (Genoa) | V82: 1313-1332
B83: Luzzatto, Gino, I Prestiti della Repubblica di Venezia, Sec. XIII – XV (Padua: R. Accademia Dei Lincei, Libreria Editrice A. Draghi, 1929). | T83: Italian municipal yields (Venice) | V83: 1311-1481 | X83: Luzzatto (1929) provides secondary market prices (% of par). Venetian yields are obtained with reference to official gross interest: between 1262 and 1381, a gross rate of interest of 5% per annum was paid; in 1382, the rate was reduced to 4% (Mueller 1997, 471). Where multiple Venetian prices are provided for individual years, I average datapoints recorded.
B84: Marsilje, Jannis W., Het financiele beleid van Leiden in de laat-Beierse en Bourgondische periode, 1390-1477 (Hilversum: Verloren, 1985). | T84: Dutch consolidated yields (Holland) | V84: 1425-1463
B85: Maugis, M. Eduard, Essai sur le regime financier de la ville d’Amiens du XIV a la fin de XVI siècle (1356-1588) (Amiens: Imprimerie Yvert et Tellier, 1898). | T85: French municipal yields (Amiens); 'Carolingian' private R | V85: 1388-1536; 1361
B86: Mueller, Reinhold C., The Venetian Money Market: Banks, Panics, and the Public Debt: 1200-1500 (Baltimore: Johns Hopkins University Press, 1997). | T86: Italian municipal yields (Venice) | V86: 1418-1508
B87: NBER Macrohistory database | T87: United States consolidated yields | V87: 1919-1967 | X87: Series m13033a-b. Identical to Federal Reserve Board (1943, 468) and Federal Reserve Board (1976, 720). 11.5 year maturity 1943-1947, 10-year from 1948.
B88: Neumann, Max, Geschichte des Wuchers in Deutschland bis zur Begruendung der heutigen Zinsengesetze (1654) (Halle: Verlag des Waisenhauses, 1865). | T88: German municipal yields (numerous) | V88: 1313-1620
B89: Nieuwenhuysen, A. van, Les Finances du Duc de Bourgogne Philippe Le Hardi (1384-1404). Economie et Politique (Bruxelles: Editions de L’Universite de Bruxelles, 1984). | T89: Dutch consolidated yields | V89: 1397-1402
B90: Reincke, Heinrich, “Die alte Hamburger Stadtschuld der Hansezeit (1300-1563)”, in: Ahasver von Brandt, and Wilhelm Koppe (eds.), Gedaechtnisschrift fuer Fritz Roerig (Luebeck: Schmidt-Roemhild, 1953), 489-512. | T90: German municipal yields (Hamburg) | V90: 1313-1324
B91: Sander, Paul, Die reichsstaedtische Haushaltung Nuernbergs, dargestellt auf Grund ihres Zustandes von 1431 bis 1440 (Leipzig: B.G. Teubner, 1902). | T91: German municipal yields (Nuremberg) | V91: 1431-1440
B92: Schnapper, Bernard, Les Rentes au XVIe siècle. Histoire d’un instrument de credit (Paris: S.E.V.P.E.N., 1957). | T92: French municipal yields (Paris) | V92: 1483-1612 | X92: The Schnapper (1957, 111) reference weighs his six Paris interest rate brackets between 1483-1612: for >10% bracket (“inferieur denier 10”), I have taken 15%; for <6.6% (“au-dela du denier 15”), I have taken 5%.
B93: Shakespeare, Howard, France – the royal loans. Les emprunts royales, 1689-1789 (Shrewsbury: Squirrel, 1986). | T93: French consolidated yields | V93: 1689-1744
B94: Sieveking, Heinrich, “Genueser Finanzwesen mit besonderer Beruecksichtigung der Casa di S. Giorgio”, in: Carl Johannes Fuchs et al. (eds.), Volkswirtschaftliche Abhandlungen der Badischen Hochschulen, Vol. 3/1 (Freiburg i. Br.: J.C.B. Mohr, 1898). In Italian as: Studio sulle finanze genovesi nel Medioevo e in particolare sulla Casa di S. Giorgio, Atti della Società Ligure di Storia Patria, Vol. XXXV (Parte Seconda) (Genova: Tipografia della Gioventù, 1906). | T94: Italian municipal yields; Italian personal/non-marketable loans | V94: 1428-1440; 1313-1327 | X94: consolidated in 1906 ed.; personal/non-marketable in 1898 ed.
B95: Sylla, Richard E., Jack W. Wilson, and Robert E. Wright, “Price Quotations in Early United States Securities Markets, 1790-1860”, 2005, EH.NET database, accessed March 11, 2018. | T95: United States consolidated yields | V95: 1790-1853 | X95: Access link here (working as of December 7, 2019). For the U.S., I rely on Sylla, Wilson, and Wright’s (2005) New York prices, beginning with the December 1790 listing in “U.S. 3s” (their code: “US-0010”), to 1832; between 1833-1842 on Pennsylvania 5s (their code: “S-2240”); between 1843-1853 taking “U.S. loan 6s 1862” (their code “US-0825”).
B96: Tracy, James D., A Financial Revolution in the Habsburg Netherlands. Renten and Rentiers in the County of Holland, 1515-1565 (Berkeley: University of California Press, 1985). | T96: Dutch consolidated yields | V96: 1543-1559
B97: Ucendo, Jose I.A., and Ramon Lanza Garcia, “Data on Spanish Crown Finance: Interest Rate on Consolidated Public Debt (‘Juros’) from 1500-1714”, in: Richard Bonney (ed.): “European State Finance Database”, 2007, accessed September 11, 2018. | T97: Spanish consolidated yields | V97: 1504-1687
B98: Velde, Francois R., and David R. Weir, “The Financial Market and Government Debt Policy in France, 1746-1793”, Journal of Economic History, 52/1 (1992), 1-39. | T98: French consolidated yields | V98: 1746-1793 | X98: The average of rentes, “October loans”, and direct loans in Velde and Weir (1992, 14, 20) is taken, in combination with Vuehrer's (1886, 212-290) data between 1746-1793.
B99: Voye, Ernst, Ueber die Hoehe der verschiedenen Zinsarten und ihre wechselseitige Abhaengigkeit (Jena: Fischer, 1902). | T99: Carolingian' private R | V99: 1807-1900 | X99: Voye (1902, 24, 29-30, 35-36, 45, 90-91, 94) data takes the 3.5% “Pfandbriefe” datapoints for all Prussian regions covered (Ostpreussische, Westpreussische, Pommernsche, Kur- und neumaerkische, Schlesische).
B100: Vuehrer, A., Histoire de la Dette Publique en France (Nancy: Berger-Levrault et Cie, 1886). | T100: French consolidated yields | V100: 1522-1793 | X100: Between 1757 and 1793 used in combination with Velde and Weir (1992, 14, 20), arithmetically-weighted with rentes, October loans, and direct loans. See above.
B101: Weeveringh, J.J., Handleiding tot de Geschiedenis der Staatsschulden (Haarlem: A.C. Vruseman, 1852). | T101: Dutch consolidated yields | V101: 1796-1811 | X101: Prices of the 3% Generaliteit Obligationen are taken, averaging Jan+Jul.
B102: Zuijderduijn, Jaco, Medieval Capital Markets: Markets for ‘Renten’, State Formation, and Private Investment in Holland, (1300-1500) (Leiden and Boston: Brill, 2009). | T102: Dutch municipal and provincial yields (Holland) | V102: 1387-1570
B106: III.II Nominal interest rate data, unconsolidated public (personal loans, non-marketable debt)
B108: Arens, Franz, “Analekten zur Geschichte des spaetmittelalterlichen Geldhandels im Dauphiné”, Vierteljahrschrift fuer Sozial- und Wirtschaftsgeschichte, 21/3 (1928), 299-318. | T108: French personal/non-marketable loans (Dauphine) | V108: 1329-1348
B109: Ashton, Robert, The Crown and the Money Market, 1603-1640 (Oxford: Oxford University Press, 1960). | T109: British personal/non-marketable loans | V109: 1610-1617 | X109: Denoted 'Ashton 1960b' in accompanying paper. For Ashton (1960), I include rolled-over loans (the 1610 and 1617 loans; ibid., 118ff.) and exclude the loans actually repaid in the short-term (such as the 1626 Alderman loan; ibid., 130).
B110: Bell, Adrian R., Chris Brooks, and Tony K. Moore, “Interest in Medieval Accounts: Examples from England, 1272-1340”, History, 94/4 (2009), 411-433. | T110: British personal/non-marketable loans | V110: 1338 | X110: Adjusting the interest rate reported in Fryde (1967).
B111: Bigwood, Georges, Le Regime juridique et economique commerce de l’argent dans la Belgique du Moyen Age, Tomes I-II (Bruxelles: Lamertin/Hayez, 1921). | T111: Dutch personal/non-marketable loans | V111: 1411-1418
B112: Bittmann, Markus, Kreditwirtschaft und Finanzierungsmethoden. Studien zu den wirtschaftlichen Verhaeltnissen des Adels im westlichen Bodenseeraum 1300-1500 (Wiesbaden: Franz Steiner, 1991). | T112: German personal/non-marketable loans | V112: 1359-1400
B113: Bonney, Richard, The King’s Debts. Finance and Politics in France, 1589-1661 (Oxford: Clarendon Press, 1981). | T113: French personal/non-marketable loans (Dauphine) | V113: 1656-1661
B114: Boyajian, James C., The Portuguese Bankers and the international payments mechanism, 1626-1647, Dissertation University of California Berkeley (1978). | T114: Spanish personal/non-marketable loans | V114: 1626-1647 | X114: The “official” interest rate and the “adehala” interest rate components charged by the Portuguese bankers recorded in Boyajian (1978, table III, 137) are summed here. While classical asientos were marketable to a degree, the contracts debated here were all separately negotiated with the Crown and in years did not change hands (cf. constant liabilities in books, ibid., table IV, 145).
B115: Bruscoli, Francesco Guidi, Papal Banking in Renaissance Rome (Aldershot: Ashgate, 2007). | T115: Papal States personal/non-marketable loans [papal states not included in aggregate figures] | V115: 1539 | X115: The Papal States are not included in the Italian aggregates. Papal loans only feature for illustrative purposes in the personal loan overview.
B116: Bullard, Melissa Meriam, Filippo Strozzi and the Medici: favour and finance in sixteenth-century Florence and Rome (Cambridge: Cambridge University Press, 1980). | T116: Italian personal/non-marketable loans | V116: 1513-1527
B117: De Roover, Raymond, The Rise and Decline of the Medici Bank, 1397-1494 (Cambridge: Harvard University Press, 1963). | T117: Italian personal/non-marketable loans | V117: 1459 | X117: The Duke of Milan’s 218,072 Milanese Pound loan from the Medici outstanding in 1459 is imputed here at 15.4%. De Roover (1963, 269) states that the interest rate recorded in the Medici balance sheet represents the net return after expenses on deposits are paid out. These are imputed at 10.5%, the midpoint between the data for borrowing “from friends” and via time deposits stated by Roover (ibid., 268-269).
B118: Dietz, Alexander, Frankfurter Handelsgeschichte, 5vols. (Frankfurt: Hermann Minjon, 1910-1925). | T118: German personal/non-marketable loans | V118: 1547-1810
B119: Ehrenberg, Richard, Das Zeitalter der Fugger: Geldkapital und Creditverkehr im 16. Jahrhundert, 2 Vols. (Jena: Gustav Fischer, 1922, 3rd edition). | T119: French, German, Dutch, English, Spanish personal/non-marketable loans | V119: 1511-1572 | X119: All references to "Ehrenberg (1928)" refer to the English translation (transl. H.M. Lucas, New York: Harcourt, Brace & Co., 1928).
B120: Felisini, Daniela, Alessandro Torlonia: the Pope’s Banker (London: Palgrave, 2016). | T120: Papal States personal/non-marketable loans [papal states not included in aggregate figures] | V120: 1845 | X120: The Papal States are not included in the Italian aggregates. Papal loans only feature for illustrative purposes in the personal loan overview.
B121: Fryde, Edmund B., and M.M. Fryde, “Public credit, with special reference to northwestern Europe”, in: M.M. Postan, E.E. Rich, and E. Miller (eds.), Cambridge Economic History of Europe, Vol. III: Economic Organization and Policies in the Middle Ages (Cambridge: Cambridge University Press, 1963), 430-553. | T121: French, German, Dutch, English personal/non-marketable loans | V121: 1312-1496
B122: Fryde, Edmund B., "Financial Resources of Edward III in the Netherlands, 1338-40", Revue Belge de Philologie et d'Histoire, 4/LXV (1967), 1142-1216. | T122: British personal/non-marketable loans | V122: 1338 | X122: Compare Bell, Brooks, and Moore (2009) comment above.
B123: Fryde, Edmund B., Studies in Medieval Trade and Finance (London: Hambledon Press, 1983). | T123: British (English) personal/non-marketable loans | V123: 1328-1331
B124: Fuhrmann, Bernd, Konrad von Weinsberg – ein adliger Oikos zwischen Territorium und Reich (Stuttgart: Franz Steiner, 2004). | T124: German personal/non-marketable loans | V124: 1430-1446 | X124: Konrad von Weinsberg’s credit activities have only been included to the extent that Fuhrmann (2004) describes them as Reich-related, not for his extensive personal business. For instance, I include Weinsberg’s 4000fl loan on Reich income in Basel in 1435-1436, but exclude his borrowing in 1441-1442 from the city of Heilbronn (ibid., 278, 297).
B125: Grose, Clyde L., “Louis XIV’s financial relations with Charles II and the English Parliament”, The Journal of Modern History, 1/2 (1929), 177-204. | T125: British personal/non-marketable loans | V125: 1662
B126: Hamon, Philippe, "L-Italie Finance-t-elle les guerres l'Italie?", in: Jean Balsamo (ed.), Passer les monts. Francais en Italie - L'Italie en France (1494-1525) (Paris: Honore Champion Editeur, 1998), 25-37. | T126: French personal/non-marketable loans | V126: 1494
B127: Hansen, Joseph, “Der englische Staatskredit unter Koenig Eduard III. (1327-1377) und die hansischen Kaufleute”, Hansische Geschichtsblaetter, 16 (1910), 323-416. | T127: British personal/non-marketable loans | V127: 1339 | X127: Intentional delays in repayment to realize interest payments. See Hansen (1910, 398ff.).
B128: Hartmann, Peter C., Geld als Instrument europaeischer Machtpolitik im Zeitalter des Merkantilismus (Muenchen: Kommission fuer Bayerische Landesgeschichte, 1978). | T128: German personal/non-marketable loans | V128: 1692-1722
B129: Hoefler, Constantin, Ritter Ludwig von Eyb. Denkwuerdikeiten Brandenburgischer (Hohenzollerischer) Fuersten (Bayreuth: R. Buchnersche Buchhandlung, 1849). | T129: German personal/non-marketable loans | V129: 1446-1450 | X129: Cf. note to Stromer (1970): Stromer (1970, 286) suggests that Duke Albrecht inherited debt contracts in the 10-16.67% range from his father Friedrich. After some digging, one arrives at the original reference in Hoefler (1849, 124f.) who reports that after Albrecht’s marriage with Margaret of Baden in 1446, but before the Bavarian Wars starting in 1459, he attempted a renegotiation of the existing debt – only partially successful. I have here assumed the mid-point of the range for 1446-1450.
B130: Krag, Wilhelm, Die Paumgartner von Nuernberg und Augsburg: Ein Beitrag zur Handelsgeschichte des XV. und XVI. Jahrhunderts (Leipzig: K.B. Hofbuchdruckerei, 1914). | T130: German personal/non-marketable loans | V130: 1439
B131: Lambert, Bart, The City, the Duke and their Banker. The Rapondi Family and the Formation of the Burgundian State (1384-1430) (Turnhout: Brepols, 2006). | T131: Dutch personal/non-marketable loans | V131: 1369-1398 | X131: Mollat (1958) does not provide maturities for the Burgundian loans during the capture of John sans Peur at Nicopolis in 1396-1397. Lambert (2006, 116f.) reports on a fictitious 7% annuity sale by Dino Rapondi for the same purpose. Since these transactions took several years to complete, they are all treated as long-term (with the latter not involving an actual new annuity issuance, hence treated as a loan). For the 1430s-1450s, I have only included Mollat’s “long-term” 15-month loan priced at 13.2% p.a., taken for the year 1434 (ibid., 318).
B132: Mirot, Leon, and Eugenio Lazzareschi, “Lettere di mercanti Lucchesi da Bruges e da Parigi, 1407-1421”, Bollettino Storico Lucchese, I/3 (1929), 165-199. | T132: Dutch personal/non-marketable loans | V132: 1397 | X132: Mirot and Lazzareschi (1929, 170) imply a loan duration of 10.5-17.5 months, and an interest rate range of 23-38% for Filippo Rapondi’s 1397 loans: I have chosen the longest duration consistent with their reporting.
B133: Mollat, Michel, “Recherches sur les Finances des Ducs Valois de Bourgogne”, Revue Historique, CCLXIX (1958), 285-321. | T133: Dutch personal/non-marketable loans | V133: 1397-1434 | X133: Mollat (1958) does not provide maturities for the Burgundian loans during the capture of John sans Peur at Nicopolis in 1396-1397. Lambert (2006, 116f.) reports on a fictitious 7% annuity sale by Dino Rapondi for the same purpose. Since these transactions took several years to complete, they are all treated as long-term (with the latter not involving an actual new annuity issuance, hence treated as a loan). For the 1430s-1450s, I have only included Mollat’s “long-term” 15-month loan priced at 13.2% p.a., taken for the year 1434 (ibid., 318).
B134: Mueller, Johannes, “Die Verdienste Zacharias Geizkoflers um die Beschaffung der Geldmittel fuer den Tuerkenkrieg Kaiser Rudolfs II.”, Mitteilungen des Instituts fuer Oesterreichische Geschichte, 21 (1900), 251-304. | T134: German personal/non-marketable loans | V134: 1595-1598
B135: Puff, Alexander, Die Finanzen Albrechts des Beherzten (Leipzig: Quelle & Meyer, 1911). | T135: German personal/non-marketable loans | V135: 1487-1493
B136: Rowlands, Guy, The financial decline of a great power: war, influence, and money in Louis XIV’s France (Oxford: Oxford University Press, 2012). | T136: French personal/non-marketable loans | V136: 1707-1709
B137: Rowlands, Guy, Dangerous and dishonest men: the international bankers of Louis XIV’s France (Basingstoke: Palgrave, 2015). | T137: French personal/non-marketable loans | V137: 1705-1706
B138: Schirmer, Uwe, Kursaechsische Staatsfinanzen (1456-1656). Strukturen - Verfassung - Funktionseliten (Stuttgart: Franz Steiner, 2006). | T138: German personal/non-marketable loans | V138: 1483
B139: Schrohe, Heinrich, Das Mainzer Geschlecht zum Jungen in Diensten des Deutschen Koenigtums und der Stadt Mainz (1353-1437) (Mainz: L. Wickens, 1933). | T139: German personal/non-marketable loans | V139: 1345-1376
B140: Schulte, Aloys, Die Fugger in Rom 1495-1523, Vol. 1 (Leipzig: Duncker & Humblot, 1904). | T140: Papal States personal/non-marketable loans | V140: 1501-1519 | X140: The Papal States are not included in the Italian aggregates. Papal loans only feature for illustrative purposes in the personal loan overview.
B141: Sieveking, Heinrich, “Genueser Finanzwesen mit besonderer Beruecksichtigung der Casa di S. Giorgio”, in: Carl Johannes Fuchs et al. (eds.), Volkswirtschaftliche Abhandlungen der Badischen Hochschulen, Vol. 3/1 (Freiburg i. Br.: J.C.B. Mohr, 1898). | T141: Italian personal/non-marketable loans (Genoa) | V141: 1313-1327
B142: Stromer, Manfred von, Oberdeutsche Hochfinanz 1350-1450, 3 Vols. (Wiesbaden: Franz Steiner, 1970). | T142: German personal/non-marketable loans | V142: 1422-1450 | X142: Stromer (1970, 286) suggests that Duke Albrecht inherited debt contracts in the 10-16.67% range from his father Friedrich. After some digging, one arrives at the original reference in Hoefler (1849, 124f.) who reports that after Albrecht’s marriage with Margaret of Baden in 1446, but before the Bavarian Wars starting in 1459, he attempted a renegotiation of the existing debt – only partially successful. I have here assumed the mid-point of the range for 1446-1450.
B143: Tewes, Goetz-Ruediger, Kampf um Florenz: Die Medici im Exil, 1494-1512 (Koeln: Boehlau, 2011). | T143: French personal/non-marketable loans | V143: 1494
B144: Travers, Anita P., The Practice of Usury in mid-Sixteenth century England. University of Edinburgh Dissertation (1975). | T144: British personal/non-marketable loans | V144: 1560-1568 | X144: Averaging all instances for 'exchequer debts' 12m+ maturities (pp.641-643).
B145: Van der Wee, Herman, The Growth of the Antwerp Market and the European Economy (Fourteenth-Sixteenth centuries), III vols. (The Hague: Martinus Nijhoff, 1963). | T145: Dutch personal/non-marketable loans | V145: 1425-1671 | X145: Van der Wee (1963, I, appendix 45) does not specify which maturities he considers “short-term”. It appears that he treats at least some multi-year loans as short-term, such as the 1425 loan for the voyage of Duke Philip to Hainaut (ibid., II, 57), which must refer to a war loan for the 1425-1428 campaign against Jacqueline of Bavaria. Apart from this instance, and the 1554 loan to Carlos V (ibid., II, 213) I still exclude the data for the series.
B146: Vigne, Marcel, La Banque a Lyon du XVe au XVIIIe siècle (Lyon: A. Rey, 1903). | T146: French personal/non-marketable loans | V146: 1537-1560
B149: IV. Growth, inflation, and war frequency data
B151: Abel, Wilhelm, Agrarkrisen und Agrarkonjunktur (Hamburg: Paul Parey, 1978). | T151: German inflation | V151: 1341-1801 | X151: Interpolating decadal rye price index ("Mittel der Preisreihen", 309)
B152: Allen, Robert, “The Great Divergence in European Wages and Prices from the Middle Ages to the First World War”, Explorations in Economic History, 38/4 (2001), 411-447. | T152: European-wide municipal inflation | V152: 1311-1914 | X152: Between 1311-1325 for Northern Italy, Florence silver wheat prices on Allen's basis are used; afterwards his aggregated silver CPI values.
B153: Allen, Robert, “Economic Structure and agricultural productivity in Europe, 1300-1800”, European Review of Economic History, 3/1 (2000), 1-25. | T153: Spanish population | V153: 1418-1730 | X153: Interpolated figures to adjust real p.c. GDP in Alvarez-Nogal and Escosura (2013).
B154: Alvarez-Nogal, Carlos, and Leandro Prados De La Escosura, “The rise and fall of Spain (1270-1850)”, Economic History Review, 66/1 (2013), 1-37. | T154: Spanish real GDP growth | V154: 1418-1730 | X154: Interpolated decadal real per capita GDP, estimate 1 (Table A.2). Adjusted by interpolated Spanish population in Allen (2000, 9).
B155: Broadberry, Steve, Bruce M.S. Campbell, Alexander Klein, Mark Overton and Bas van Leeuwen, British Economic Growth, 1270-1870 (Cambridge: Cambridge University Press, 2015). | T155: English/British real GDP growth | V155: 1311-1870 | X155: Sourced via Dimsdale and Thomas, "A Millennium of Macroeconomic Data", Tab A.8 'preferred GDP at factor cost'.
B156: Bauernfeind, Walter, Materielle Grundstrukturen im Spaetmittelalter und der fruehen Neuzeit: Preisentwicklung und Agrarkonjunktur am Nürnberger Getreidemarkt von 1339 bis 1670 (Nuremberg: Schriften des Stadtarchivs Nuernberg, 1993). | T156: German inflation | V156: 1428-1671
B157: Baulant, Micheline, “Le prix des grains à Paris de 1431 à 1788”, Annales. Economies, societies, civilizations, 23 (1968), 520-540. | T157: French inflation | V157: 1431-1788 | X157: Used for robustness series. Allen (2001, 439) relies on a combination of Baulant (ibid.) and other sources.
B158: Bundesbank (2018, online statistics). | T158: German real GDP growth | V158: 1950-2018 | X158: Lange Reihen', series BBNZ1.A.DE.N.H.0000.L
B159: Carreras, Albert, and Xavier Tafunell (eds.), Estadisticas Historicas de Espana: siglos XIX-XX (Bilbao: Fundacion BBVA, 2005, 2nd ed.). | T159: Spanish inflation | V159: 1962-2000 | X159: See 'Cuadro 17.16, consume privado', pp. 1359-1361
B160: Clark, Gregory, “The Macroeconomic Aggregates for England, 1209-1869”, Research in Economic History, 27 (2010), 51-140. | T160: English/British inflation | V160: 1310-1660 | X160: Sourced via Dimsdale and Thomas, "A Millennium of Macroeconomic Data", Tab A.47, "Consumer Price Index - preferred measure" (spliced index from multiple sources, switches basis from 1661).
B161: David, Paul A., and Peter Solar, “A Bicentenary Contribution to the History of the Cost of Living in America”, Research in Economic History, 2/1 (1977), 1-80. | T161: United States inflation | V161: 1786-1820 | X161: 1786-1789 y-o-y inflation is set as =1790 y-o-y inflation
B162: ECB Statistical Data Warehouse (SDW). | T162: Dutch inflation, French inflation, Spanish inflation, Italian inflation, German inflation | V162: 1986-2018 (Dutch, Germany); 1988-2018 (Italy); 1991-2018 (France); 2000-2018 (Spain)
B163: Elsas, Moritz John, Umriss einer Geschichte der Preise und Löhne in Deutschland, Vol. I (Leiden: A.W. Sijthoff’s Uitgeversmaatschappij, 1936). | T163: German inflation | V163: 1495-1799 | X163: Wuerzburg basis: averaged are prices for 'Roggen', 'Hafer', 'Weizen', 'Stroh', 'Butter', 'Fleisch/Rindfleisch' (equal weights). Missing years are interpolated. Nominal prices in 'denar' are transformed into silver prices on the basis of Elasas silver g/denar values.
B164: Federal Reserve Economic Data (FRED). | T164: United States real GDP; United States consolidated yields; United States inflation | V164: 1947-2018; 1962-2018; 1948-2018 | X164: Series GDPC1; GS10; CPIAUCSL
B165: International Statistical Yearbook/Annuaire Statistique de la Societe de Nations, League of Nations, Economic and Financial Section (issues 1-17) (Geneva: 1927-1945). | T165: Japanese inflation | V165: 1927-1944 | X165: For 1927-1930, 'price of foodstuff, Tokyo', from 1931-1944 'Cost of living, Tokyo' index which excludes rent. Digitized yearbooks available https://wayback.archiveit.org/6321/20160901163315/http://digital.library.northwestern.edu/league/stat.html#1939
B166: Jacks, David, and Peter Lindert, “Japan Prices, Wages, and exchange rates, 1885-1926”, UC Davis GPIH Project, 2006, http://gpih.ucdavis.edu/files/Japan_1885-1926.xls, accessed September 17, 2018. | T166: Japanese inflation | V166: 1888-1926 | X166: Arithmetic weights for all components - in GBP, converted to silver basis via Jastram series in same source. 1915 and 1916 are interpolated.
B167: Levy, Jack S., War in the Great Modern Power System, 1495-1975 (Lexington: University Press of Kentucky, 1983). | T167: Full sample war frequency | V167: 1495-1975 | X167: Table 4.1 is used. Note that in the original Levy (1983) version, the “severity” column in fact counts absolute battle deaths. His “intensity” column in fact counts battle deaths/million European population.
B168: Maddison, Angus, "Statistics on World Population, GDP, and per capita GDP, 1-2008 AD". University of Groningen (2010). | T168: Full sample real GDP growth, GDP shares | V168: 1311-2018 | X168: Horizontal file used via: http://www.ggdc.net/maddison/Historical_Statistics/horizontal-file_02-2010.xls. Note: the final 2008 GDP weights are kept static for 2008-2018.
B169: Malanima, Paolo, “The long decline of a leading economy: GDP in central and northern Italy, 1300-1913”, European Review of Economic History, 15/2 (2011), 169-219. | T169: (North) Italian real GDP growth; North Italian inflation (robustness) | V169: 1311-1913 | X169: For inflation, taking 'column 1', price index in 1420-40=1; For real GDP, taking 'column 6', GDP index in 1420-1440 prices' (pp. 205-217).
B170: Mitchell, Brian R., European Historical Statistics, 1750-1970 (New York: Columbia University Press, 1975). | T170: Dutch inflation, French inflation, Spanish inflation, Italian inflation, German inflation; German real GDP | V170: 1911-1969 (Dutch); 1870-1969 (France); 1914-1969 (Spain); 1861-1969 (Italy); 1820-1969 (Germany)
B171: Mitchell, Brian R., International Historical Statistics: The Americas and Australasia (Detroit: Gale Research, 1983). | T171: United States inflation | V171: 1800-1947
B172: Pfister, Ulrich, “German economic growth: 1500-1850”, University of Muenster Historical seminar working paper (2008), 1-54. | T172: German real GDP growth | V172: 1500-1850 | X172: Heavily interpolated (see table 6, in 1913 Mark).
B173: Phelps Brown, E.H., and Sheila V. Hopkins, “Seven Centuries of the Prices of Consumables, Compared with Builders’ Wage-Rates”, Economica (New Series), 23 (1956), 296-314. | T173: British inflation | V173: 1311-1800 | X173: Used for robustness series
B174: Van Zanden, Jan Luiten, and Bas van Leeuwen, “Persistent but not consistent: the growth of national income in Holland, 1347-1807”, Explorations in Economic History, 49/2 (2012), 119-130. | T174: Dutch real GDP growth (Holland) | V174: 1511-1807 | X174: Appendix table 2: interpolated decadal real GDP, constant 1800 prices.
B175: Van Zanden, Jan Luiten, “The prices of the most important consumer goods, and indices of wages and the cost of living in the western part of the Netherlands, 1450-1800”, database available at authors homepage, http://www.iisg.nl/hpw/brenv.php. Accessed September 9, 2018. | T175: Dutch inflation ('Western Netherlands') | V175: 1450-1800 | X175: Used for robustness series

Sheet II. Headline series
A1: back to contents | C1: 7-year averaged | K1: Not averaged
A2: Year | C2: Global sovereign nominal | D2: Global inflation | E2: Global R | F2: Safe asset provider nominal | G2: Safe asset provider inflation | H2: Safe asset provider real | K2: Global sovereign nominal | L2: Global inflation | M2: Global R | N2: Safe asset provider nominal | O2: Safe asset provider inflation | P2: Safe asset provider real | V2: Private nominal | W2: Private inflation | X2: Private R | Y2: Non-marketable loans
B4: Source | C4: Cf Sheet I, and Schmelzing SWP 845 (2020, Data appendix) | K4: Cf Sheet I, and Schmelzing SWP 845 (2020, Data appendix) | V4: Cf Sheet I, and Schmelzing SWP 845 (2020, Data appendix) | Y4: Cf sheet VIII.
B6: Unit | C6: Nominal | E6: Real | F6: Nominal | H6: Real | K6: Nominal | M6: Real | N6: Nominal | P6: Real | V6: Nominal | X6: Real | Y6: Nominal
A8: 1310 | V8: 6.903
A9: 1311 | L9: =SUM('IV. Country level, 1310-2018'!AY5:BF5) -> 47.9719 | V9: 6.666
A10: 1312 | L10: =SUM('IV. Country level, 1310-2018'!AY6:BF6) -> -13.6761 | V10: 10.000 | Y10: ='VIII. Pers. sov. loans, 1312-'!C5 -> 15.917
A11: 1313 | L11: =SUM('IV. Country level, 1310-2018'!AY7:BF7) -> -0.5020 | V11: 9.063 | Y11: ='VIII. Pers. sov. loans, 1312-'!C6 -> 14.278
A12: 1314 | D12: =AVERAGE(L9:L15) -> 7.122 | K12: =SUM('IV. Country level, 1310-2018'!AO8:AV8) -> 10.700 | L12: =SUM('IV. Country level, 1310-2018'!AY8:BF8) -> -9.6357 | M12: =K12-L12 -> 20.336 | N12: =P12+O12 -> 7.813 | O12: ='IV. Country level, 1310-2018'!U8 -> -14.286 | P12: ='IV. Country level, 1310-2018'!C8 -> 22.099 | V12: 8.125 | Y12: ='VIII. Pers. sov. loans, 1312-'!C7 -> 15.000
A13: 1315 | D13: -0.476 | K13: =SUM('IV. Country level, 1310-2018'!AO9:AV9) -> 10.798 | L13: =SUM('IV. Country level, 1310-2018'!AY9:BF9) -> -18.5066 | M13: =K13-L13 -> 29.305 | N13: =P13+O13 -> 7.937 | O13: ='IV. Country level, 1310-2018'!U9 -> -25.000 | P13: ='IV. Country level, 1310-2018'!C9 -> 32.937 | V13: 5.263 | Y13: ='VIII. Pers. sov. loans, 1312-'!C8 -> 15.917
A14: 1316 | D14: -0.997 | K14: =SUM('IV. Country level, 1310-2018'!AO10:AV10) -> 10.907 | L14: =SUM('IV. Country level, 1310-2018'!AY10:BF10) -> 8.4607 | M14: 2.446 | N14: 8.074 | O14: ='IV. Country level, 1310-2018'!U10 -> 0.000 | P14: ='IV. Country level, 1310-2018'!C10 -> 8.074 | V14: 9.625 | Y14: ='VIII. Pers. sov. loans, 1312-'!C9 -> 14.278
A15: 1317 | C15: =AVERAGE(K12:K18) -> 10.718 | D15: -2.631 | E15: 13.349 | F15: 7.836 | G15: -4.058 | H15: 11.894 | K15: =SUM('IV. Country level, 1310-2018'!AO11:AV11) -> 10.818 | L15: =SUM('IV. Country level, 1310-2018'!AY11:BF11) -> 35.7402 | M15: -24.923 | N15: 7.961 | O15: ='IV. Country level, 1310-2018'!U11 -> 44.444 | P15: ='IV. Country level, 1310-2018'!C11 -> -36.483 | V15: 7.710 | Y15: ='VIII. Pers. sov. loans, 1312-'!C10 -> 15.000
A16: 1318 | C16: =AVERAGE(K13:K19) -> 10.663 | D16: =AVERAGE(L13:L19) -> -2.314 | E16: =AVERAGE(M13:M19) -> 12.977 | F16: =AVERAGE(N13:N19) -> 7.767 | G16: =AVERAGE(O13:O19) -> -3.605 | H16: =AVERAGE(P13:P19) -> 11.372 | K16: =SUM('IV. Country level, 1310-2018'!AO12:AV12) -> 10.728 | L16: =SUM('IV. Country level, 1310-2018'!AY12:BF12) -> -5.2132 | M16: 15.941 | N16: 7.849 | O16: ='IV. Country level, 1310-2018'!U12 -> 0.000 | P16: ='IV. Country level, 1310-2018'!C12 -> 7.849 | V16: 2.083 | Y16: ='VIII. Pers. sov. loans, 1312-'!C11 -> 15.000
A17: 1319 | C17: 10.577 | D17: 9.877 | E17: 0.699 | F17: 7.659 | G17: 10.681 | H17: -3.022 | K17: =SUM('IV. Country level, 1310-2018'!AO13:AV13) -> 10.639 | L17: =SUM('IV. Country level, 1310-2018'!AY13:BF13) -> -17.3228 | M17: 27.961 | N17: 7.737 | O17: ='IV. Country level, 1310-2018'!U13 -> -15.385 | P17: ='IV. Country level, 1310-2018'!C13 -> 23.121 | V17: 6.500 | Y17: ='VIII. Pers. sov. loans, 1312-'!C12 -> 20.000
A18: 1320 | C18: 10.457 | D18: 12.328 | E18: -1.871 | F18: 7.509 | G18: 15.783 | H18: -8.274 | K18: =SUM('IV. Country level, 1310-2018'!AO14:AV14) -> 10.436 | L18: =SUM('IV. Country level, 1310-2018'!AY14:BF14) -> -11.9407 | M18: 22.377 | N18: 7.483 | O18: ='IV. Country level, 1310-2018'!U14 -> -18.182 | P18: ='IV. Country level, 1310-2018'!C14 -> 25.664 | V18: 7.140 | Y18: ='VIII. Pers. sov. loans, 1312-'!C13 -> 20.000
A19: 1321 | C19: 10.364 | D19: 4.403 | E19: 5.961 | F19: 7.392 | G19: 6.426 | H19: 0.966 | K19: =SUM('IV. Country level, 1310-2018'!AO15:AV15) -> 10.315 | L19: =SUM('IV. Country level, 1310-2018'!AY15:BF15) -> -7.4164 | M19: 17.731 | N19: 7.330 | O19: ='IV. Country level, 1310-2018'!U15 -> -11.111 | P19: ='IV. Country level, 1310-2018'!C15 -> 18.441 | V19: 10.000 | Y19: ='VIII. Pers. sov. loans, 1312-'!C14 -> 20.000
A20: 1322 | C20: 10.303 | D20: 2.338 | E20: 7.965 | F20: 7.316 | G20: =AVERAGE(O17:O23) -> 2.617 | H20: 4.699 | K20: =SUM('IV. Country level, 1310-2018'!AO16:AV16) -> 10.194 | L20: =SUM('IV. Country level, 1310-2018'!AY16:BF16) -> 66.8318 | M20: -56.638 | N20: 7.178 | O20: ='IV. Country level, 1310-2018'!U16 -> 75.000 | P20: ='IV. Country level, 1310-2018'!C16 -> -67.822 | V20: 9.047 | Y20: ='VIII. Pers. sov. loans, 1312-'!C15 -> 20.000
A21: 1323 | C21: 10.184 | D21: 3.887 | E21: 6.297 | F21: 7.258 | G21: 3.516 | H21: 3.742 | K21: =SUM('IV. Country level, 1310-2018'!AO17:AV17) -> 10.072 | L21: =SUM('IV. Country level, 1310-2018'!AY17:BF17) -> 25.6188 | M21: -15.547 | N21: 7.026 | O21: ='IV. Country level, 1310-2018'!U17 -> 35.714 | P21: ='IV. Country level, 1310-2018'!C17 -> -28.689 | V21: 10.000 | Y21: ='VIII. Pers. sov. loans, 1312-'!C16 -> 20.000
A22: 1324 | C22: 10.105 | D22: 6.033 | E22: 4.072 | F22: 7.221 | G22: 7.445 | H22: -0.224 | K22: =SUM('IV. Country level, 1310-2018'!AO18:AV18) -> 10.166 | L22: =SUM('IV. Country level, 1310-2018'!AY18:BF18) -> -19.7355 | M22: 29.901 | N22: 7.143 | O22: ='IV. Country level, 1310-2018'!U18 -> -21.053 | P22: ='IV. Country level, 1310-2018'!C18 -> 28.195 | V22: 7.140 | Y22: ='VIII. Pers. sov. loans, 1312-'!C17 -> 15.000
A23: 1325 | C23: 10.062 | D23: 8.100 | E23: 1.962 | F23: 7.190 | G23: 10.656 | H23: -3.467 | K23: =SUM('IV. Country level, 1310-2018'!AO19:AV19) -> 10.303 | L23: =SUM('IV. Country level, 1310-2018'!AY19:BF19) -> -19.6663 | M23: 29.969 | N23: =P23+O23 -> 7.315 | O23: ='IV. Country level, 1310-2018'!U19 -> -26.667 | P23: ='IV. Country level, 1310-2018'!C19 -> 33.982 | V23: 9.167 | Y23: ='VIII. Pers. sov. loans, 1312-'!C18 -> 17.000
A24: 1326 | C24: 10.051 | D24: 1.109 | E24: 8.942 | F24: 7.164 | G24: 4.584 | H24: 2.581 | K24: =SUM('IV. Country level, 1310-2018'!AO20:AV20) -> 9.806 | L24: =SUM('IV. Country level, 1310-2018'!AY20:BF20) -> -6.4818 | M24: 16.288 | N24: 7.333 | O24: ='IV. Country level, 1310-2018'!U20 -> -9.091 | P24: ='IV. Country level, 1310-2018'!C20 -> 16.423 | V24: 7.692 | W24: 1.152 | X24: =V24-W24 -> 6.541 | Y24: ='VIII. Pers. sov. loans, 1312-'!C19 -> 15.861
A25: 1327 | C25: 10.169 | D25: -2.864 | E25: 13.034 | F25: 7.145 | G25: -1.182 | H25: 8.328 | K25: =SUM('IV. Country level, 1310-2018'!AO21:AV21) -> 9.882 | L25: =SUM('IV. Country level, 1310-2018'!AY21:BF21) -> 3.0837 | M25: 6.799 | N25: 7.222 | O25: ='IV. Country level, 1310-2018'!U21 -> 9.323 | P25: ='IV. Country level, 1310-2018'!C21 -> -2.101 | V25: 7.688 | W25: 1.145 | X25: =V25-W25 -> 6.542 | Y25: ='VIII. Pers. sov. loans, 1312-'!C20 -> 16.829
A26: 1328 | C26: 10.358 | D26: -1.807 | E26: 12.165 | F26: 7.094 | G26: -1.962 | H26: 9.055 | K26: =SUM('IV. Country level, 1310-2018'!AO22:AV22) -> 10.012 | L26: =SUM('IV. Country level, 1310-2018'!AY22:BF22) -> 7.0468 | M26: 2.965 | N26: =P26+O26 -> 7.112 | O26: ='IV. Country level, 1310-2018'!U22 -> 11.367 | P26: ='IV. Country level, 1310-2018'!C22 -> -4.256 | V26: 7.557 | W26: 1.138 | X26: 6.419 | Y26: ='VIII. Pers. sov. loans, 1312-'!C21 -> 18.100
A27: 1329 | C27: 10.313 | D27: 0.350 | E27: 9.963 | F27: 6.998 | G27: 0.462 | H27: 6.536 | K27: =SUM('IV. Country level, 1310-2018'!AO23:AV23) -> 10.120 | L27: =SUM('IV. Country level, 1310-2018'!AY23:BF23) -> 17.8972 | M27: -7.778 | N27: 7.002 | O27: ='IV. Country level, 1310-2018'!U23 -> 32.492 | P27: ='IV. Country level, 1310-2018'!C23 -> -25.490 | V27: 9.992 | W27: 1.132 | X27: 8.860 | Y27: ='VIII. Pers. sov. loans, 1312-'!C22 -> 17.290
A28: 1330 | C28: 10.453 | D28: 2.397 | E28: 8.056 | F28: 6.885 | G28: 4.593 | H28: 2.292 | K28: =SUM('IV. Country level, 1310-2018'!AO24:AV24) -> 10.898 | L28: =SUM('IV. Country level, 1310-2018'!AY24:BF24) -> -2.1928 | M28: 13.091 | N28: 6.891 | O28: ='IV. Country level, 1310-2018'!U24 -> -4.647 | P28: ='IV. Country level, 1310-2018'!C24 -> 11.539 | V28: 11.667 | W28: 1.126 | X28: 10.541 | Y28: ='VIII. Pers. sov. loans, 1312-'!C23 -> 17.290
A29: 1331 | C29: 10.575 | D29: 2.273 | E29: 8.302 | F29: 6.786 | G29: 4.073 | H29: 2.713 | K29: =SUM('IV. Country level, 1310-2018'!AO25:AV25) -> 11.488 | L29: =SUM('IV. Country level, 1310-2018'!AY25:BF25) -> -12.3326 | M29: 23.820 | N29: 6.781 | O29: ='IV. Country level, 1310-2018'!U25 -> -26.509 | P29: ='IV. Country level, 1310-2018'!C25 -> 33.290 | V29: 17.500 | W29: 1.119 | X29: 16.381 | Y29: ='VIII. Pers. sov. loans, 1312-'!C24 -> 16.989
A30: 1332 | C30: 10.720 | D30: 1.513 | E30: 9.207 | F30: 6.713 | G30: 2.421 | H30: 4.292 | K30: =SUM('IV. Country level, 1310-2018'!AO26:AV26) -> 9.988 | L30: =SUM('IV. Country level, 1310-2018'!AY26:BF26) -> -4.5676 | M30: 14.556 | N30: 6.646 | O30: ='IV. Country level, 1310-2018'!U26 -> -9.703 | P30: ='IV. Country level, 1310-2018'!C26 -> 16.348 | V30: 8.864 | W30: 1.113 | X30: 7.750 | Y30: ='VIII. Pers. sov. loans, 1312-'!C25 -> 16.487
A31: 1333 | C31: 10.916 | D31: -0.769 | E31: 11.686 | F31: 6.716 | G31: -2.362 | H31: 9.078 | K31: =SUM('IV. Country level, 1310-2018'!AO27:AV27) -> 10.784 | L31: =SUM('IV. Country level, 1310-2018'!AY27:BF27) -> 7.8468 | M31: 2.937 | N31: 6.542 | O31: ='IV. Country level, 1310-2018'!U27 -> 19.827 | P31: ='IV. Country level, 1310-2018'!C27 -> -13.285 | V31: 7.140 | W31: 1.107 | X31: 6.033 | Y31: ='VIII. Pers. sov. loans, 1312-'!C26 -> 17.265
A32: 1334 | C32: 11.039 | D32: -0.301 | E32: 11.340 | F32: 6.699 | G32: -1.712 | H32: 8.411 | K32: =SUM('IV. Country level, 1310-2018'!AO28:AV28) -> 10.737 | L32: =SUM('IV. Country level, 1310-2018'!AY28:BF28) -> 2.2160 | M32: 8.521 | N32: 6.530 | O32: ='IV. Country level, 1310-2018'!U28 -> 5.686 | P32: ='IV. Country level, 1310-2018'!C28 -> 0.844 | V32: 8.598 | W32: 1.101 | X32: 7.498 | Y32: ='VIII. Pers. sov. loans, 1312-'!C27 -> 16.273
A33: 1335 | C33: 11.072 | D33: 1.510 | E33: 9.562 | F33: 6.688 | G33: 1.999 | H33: 4.689 | K33: =SUM('IV. Country level, 1310-2018'!AO29:AV29) -> 11.028 | L33: =SUM('IV. Country level, 1310-2018'!AY29:BF29) -> 1.7243 | M33: 9.304 | N33: 6.603 | O33: ='IV. Country level, 1310-2018'!U29 -> -0.195 | P33: ='IV. Country level, 1310-2018'!C29 -> 6.798 | V33: 10.714 | W33: 11.324 | X33: -0.610 | Y33: ='VIII. Pers. sov. loans, 1312-'!C28 -> 20.467
A34: 1336 | C34: 10.913 | D34: 2.948 | E34: 7.965 | F34: 6.687 | G34: 3.773 | H34: 2.913 | K34: =SUM('IV. Country level, 1310-2018'!AO30:AV30) -> 11.491 | L34: =SUM('IV. Country level, 1310-2018'!AY30:BF30) -> 1.9206 | M34: 9.571 | N34: 7.019 | O34: ='IV. Country level, 1310-2018'!U30 -> -0.991 | P34: ='IV. Country level, 1310-2018'!C30 -> 8.010 | V34: 8.485 | W34: 4.184 | X34: 4.300 | Y34: ='VIII. Pers. sov. loans, 1312-'!C29 -> 24.258
A35: 1337 | C35: 10.710 | D35: 1.411 | E35: 9.299 | F35: 6.699 | G35: 0.888 | H35: 5.811 | K35: =SUM('IV. Country level, 1310-2018'!AO31:AV31) -> 11.758 | L35: =SUM('IV. Country level, 1310-2018'!AY31:BF31) -> 1.0872 | M35: 10.671 | N35: 6.773 | O35: ='IV. Country level, 1310-2018'!U31 -> -0.100 | P35: ='IV. Country level, 1310-2018'!C31 -> 6.872 | V35: 5.556 | W35: 4.054 | X35: 1.502 | Y35: ='VIII. Pers. sov. loans, 1312-'!C30 -> 20.246
A36: 1338 | C36: 10.473 | D36: -0.255 | E36: 10.728 | F36: 6.717 | G36: 0.222 | H36: 6.495 | K36: =SUM('IV. Country level, 1310-2018'!AO32:AV32) -> 11.716 | L36: =SUM('IV. Country level, 1310-2018'!AY32:BF32) -> 0.3434 | M36: 11.373 | N36: 6.705 | O36: ='IV. Country level, 1310-2018'!U32 -> -0.530 | P36: ='IV. Country level, 1310-2018'!C32 -> 7.235 | V36: 6.924 | W36: 3.933 | X36: 2.992 | Y36: ='VIII. Pers. sov. loans, 1312-'!C31 -> 22.071
A37: 1339 | C37: 10.493 | D37: -1.325 | E37: 11.818 | F37: 6.720 | G37: -0.226 | H37: 6.946 | K37: =SUM('IV. Country level, 1310-2018'!AO33:AV33) -> 8.878 | L37: =SUM('IV. Country level, 1310-2018'!AY33:BF33) -> 5.4992 | M37: 3.378 | N37: =P37+O37 -> 6.637 | O37: ='IV. Country level, 1310-2018'!U33 -> 2.718 | P37: ='IV. Country level, 1310-2018'!C33 -> 3.919 | V37: 6.625 | W37: 14.902 | X37: -8.276 | Y37: ='VIII. Pers. sov. loans, 1312-'!C32 -> 24.226
A38: 1340 | C38: 10.458 | D38: -1.214 | E38: 11.672 | F38: 6.667 | G38: 0.474 | H38: 6.193 | K38: =SUM('IV. Country level, 1310-2018'!AO34:AV34) -> 9.360 | L38: =SUM('IV. Country level, 1310-2018'!AY34:BF34) -> -2.9164 | M38: 12.276 | N38: =P38+O38 -> 6.625 | O38: ='IV. Country level, 1310-2018'!U34 -> -0.374 | P38: ='IV. Country level, 1310-2018'!C34 -> 6.999 | V38: 10.000 | W38: -17.461 | X38: 27.461 | Y38: ='VIII. Pers. sov. loans, 1312-'!C33 -> 22.194
A39: 1341 | C39: 10.292 | D39: -0.855 | E39: 11.147 | F39: 6.520 | G39: 0.797 | H39: 5.723 | K39: =SUM('IV. Country level, 1310-2018'!AO35:AV35) -> 9.081 | L39: =SUM('IV. Country level, 1310-2018'!AY35:BF35) -> -9.4424 | M39: 18.523 | N39: 6.655 | O39: ='IV. Country level, 1310-2018'!U35 -> 1.024 | P39: ='IV. Country level, 1310-2018'!C35 -> 5.631 | V39: 10.000 | W39: -21.388 | X39: 31.388 | Y39: ='VIII. Pers. sov. loans, 1312-'!C34 -> 22.194
A40: 1342 | C40: 10.082 | D40: -1.004 | E40: 11.086 | F40: 6.339 | G40: 0.821 | H40: 5.518 | K40: =SUM('IV. Country level, 1310-2018'!AO36:AV36) -> 11.165 | L40: =SUM('IV. Country level, 1310-2018'!AY36:BF36) -> -5.7659 | M40: 16.931 | N40: 6.629 | O40: ='IV. Country level, 1310-2018'!U36 -> -3.326 | P40: ='IV. Country level, 1310-2018'!C36 -> 9.955 | V40: 10.504 | W40: -27.502 | X40: 38.006 | Y40: ='VIII. Pers. sov. loans, 1312-'!C35 -> 17.378
A41: 1343 | C41: 10.469 | D41: -1.521 | E41: 11.990 | F41: 6.249 | G41: 0.508 | H41: 5.740 | K41: =SUM('IV. Country level, 1310-2018'!AO37:AV37) -> 11.249 | L41: =SUM('IV. Country level, 1310-2018'!AY37:BF37) -> 2.6953 | M41: 8.554 | N41: 6.645 | O41: ='IV. Country level, 1310-2018'!U37 -> 3.903 | P41: ='IV. Country level, 1310-2018'!C37 -> 2.742 | V41: 10.000 | W41: 3.795 | X41: 6.205 | Y41: ='VIII. Pers. sov. loans, 1312-'!C36 -> 16.225
A42: 1344 | C42: 10.736 | D42: 0.095 | E42: 10.640 | F42: 6.195 | G42: 1.740 | H42: 4.455 | K42: =SUM('IV. Country level, 1310-2018'!AO38:AV38) -> 10.596 | L42: =SUM('IV. Country level, 1310-2018'!AY38:BF38) -> 3.6026 | M42: 6.994 | N42: 5.741 | O42: ='IV. Country level, 1310-2018'!U38 -> 2.161 | P42: ='IV. Country level, 1310-2018'!C38 -> 3.580 | V42: 11.000 | W42: 3.689 | X42: 7.311 | Y42: ='VIII. Pers. sov. loans, 1312-'!C37 -> 15.112
A43: 1345 | C43: 10.997 | D43: 1.406 | E43: 9.591 | F43: 6.080 | G43: 1.149 | H43: 4.931 | K43: =SUM('IV. Country level, 1310-2018'!AO39:AV39) -> 10.248 | L43: =SUM('IV. Country level, 1310-2018'!AY39:BF39) -> -0.6997 | M43: 10.947 | N43: 5.443 | O43: ='IV. Country level, 1310-2018'!U39 -> -0.358 | P43: ='IV. Country level, 1310-2018'!C39 -> 5.800 | V43: 10.000 | W43: 3.590 | X43: 6.410 | Y43: ='VIII. Pers. sov. loans, 1312-'!C38 -> 13.808
A44: 1346 | C44: 10.937 | D44: 2.549 | E44: 8.388 | F44: 5.921 | G44: 2.929 | H44: 2.992 | K44: =SUM('IV. Country level, 1310-2018'!AO40:AV40) -> 11.581 | L44: =SUM('IV. Country level, 1310-2018'!AY40:BF40) -> 1.8762 | M44: 9.705 | N44: 6.004 | O44: ='IV. Country level, 1310-2018'!U40 -> 0.528 | P44: ='IV. Country level, 1310-2018'!C40 -> 5.476 | V44: 7.481 | W44: 3.496 | X44: 3.986 | Y44: ='VIII. Pers. sov. loans, 1312-'!C39 -> 10.237
A45: 1347 | C45: 10.904 | D45: 3.198 | E45: 7.705 | F45: 5.830 | G45: 3.644 | H45: 2.186 | K45: =SUM('IV. Country level, 1310-2018'!AO41:AV41) -> 11.230 | L45: =SUM('IV. Country level, 1310-2018'!AY41:BF41) -> 8.4021 | M45: 2.828 | N45: 6.246 | O45: ='IV. Country level, 1310-2018'!U41 -> 8.245 | P45: ='IV. Country level, 1310-2018'!C41 -> -1.999 | V45: 8.330 | W45: 5.854 | X45: 2.476 | Y45: ='VIII. Pers. sov. loans, 1312-'!C40 -> 10.237
A46: 1348 | C46: 10.890 | D46: 3.622 | E46: 7.267 | F46: 5.821 | G46: 4.439 | H46: 1.383 | K46: =SUM('IV. Country level, 1310-2018'!AO42:AV42) -> 10.910 | L46: =SUM('IV. Country level, 1310-2018'!AY42:BF42) -> -0.2693 | M46: 11.179 | N46: 5.852 | O46: ='IV. Country level, 1310-2018'!U42 -> -3.109 | P46: ='IV. Country level, 1310-2018'!C42 -> 8.961 | V46: 8.710 | W46: 5.582 | X46: 3.128 | Y46: ='VIII. Pers. sov. loans, 1312-'!C41 -> 10.237
A47: 1349 | C47: 10.992 | D47: 4.047 | E47: 6.945 | F47: 5.996 | G47: 4.570 | H47: 1.426 | K47: =SUM('IV. Country level, 1310-2018'!AO43:AV43) -> 10.743 | L47: =SUM('IV. Country level, 1310-2018'!AY43:BF43) -> 2.2362 | M47: 8.507 | N47: 5.515 | O47: ='IV. Country level, 1310-2018'!U43 -> 9.130 | P47: ='IV. Country level, 1310-2018'!C43 -> -3.615 | V47: 9.090 | W47: -0.025 | X47: 9.115 | Y47: ='VIII. Pers. sov. loans, 1312-'!C42 -> 10.661
A48: 1350 | C48: 10.900 | D48: 4.173 | E48: 6.727 | F48: 6.090 | G48: 5.994 | H48: 0.095 | K48: =SUM('IV. Country level, 1310-2018'!AO44:AV44) -> 11.016 | L48: =SUM('IV. Country level, 1310-2018'!AY44:BF44) -> 7.2407 | M48: 3.776 | N48: 6.012 | O48: ='IV. Country level, 1310-2018'!U44 -> 8.914 | P48: ='IV. Country level, 1310-2018'!C44 -> -2.902 | V48: 5.906 | W48: -0.030 | X48: 5.936 | Y48: ='VIII. Pers. sov. loans, 1312-'!C43 -> 10.111
A49: 1351 | C49: 10.871 | D49: 2.738 | E49: 8.133 | F49: 6.179 | G49: 4.494 | H49: 1.686 | K49: =SUM('IV. Country level, 1310-2018'!AO45:AV45) -> 10.499 | L49: =SUM('IV. Country level, 1310-2018'!AY45:BF45) -> 6.5705 | M49: 3.929 | N49: 5.677 | O49: ='IV. Country level, 1310-2018'!U45 -> 7.720 | P49: ='IV. Country level, 1310-2018'!C45 -> -2.042 | V49: 7.140 | W49: -0.036 | X49: 7.176 | Y49: ='VIII. Pers. sov. loans, 1312-'!C44 -> 10.000
A50: 1352 | C50: 10.969 | D50: 2.613 | E50: 8.356 | F50: 6.363 | G50: 4.416 | H50: 1.947 | K50: =SUM('IV. Country level, 1310-2018'!AO46:AV46) -> 10.967 | L50: =SUM('IV. Country level, 1310-2018'!AY46:BF46) -> 2.2755 | M50: 8.691 | N50: 6.667 | O50: ='IV. Country level, 1310-2018'!U46 -> 0.561 | P50: ='IV. Country level, 1310-2018'!C46 -> 6.106 | V50: 8.570 | W50: -1.812 | X50: 10.382 | Y50: ='VIII. Pers. sov. loans, 1312-'!C45 -> 10.000
A51: 1353 | C51: 11.082 | D51: 2.354 | E51: 8.727 | F51: 6.581 | G51: 3.025 | H51: 3.556 | K51: =SUM('IV. Country level, 1310-2018'!AO47:AV47) -> 10.934 | L51: =SUM('IV. Country level, 1310-2018'!AY47:BF47) -> 2.7574 | M51: 8.176 | N51: 6.658 | O51: ='IV. Country level, 1310-2018'!U47 -> 10.501 | P51: ='IV. Country level, 1310-2018'!C47 -> -3.843 | V51: 10.000 | W51: -1.869 | X51: 11.869 | Y51: ='VIII. Pers. sov. loans, 1312-'!C46 -> 10.029
A52: 1354 | C52: 11.189 | D52: 1.205 | E52: 9.984 | F52: 6.769 | G52: 1.377 | H52: 5.391 | K52: =SUM('IV. Country level, 1310-2018'!AO48:AV48) -> 11.032 | L52: =SUM('IV. Country level, 1310-2018'!AY48:BF48) -> -1.6435 | M52: 12.675 | N52: 6.873 | O52: ='IV. Country level, 1310-2018'!U48 -> -2.261 | P52: ='IV. Country level, 1310-2018'!C48 -> 9.134 | V52: 9.375 | W52: -1.928 | X52: 11.303 | Y52: ='VIII. Pers. sov. loans, 1312-'!C47 -> 10.029
A53: 1355 | C53: 11.327 | D53: 0.189 | E53: 11.138 | F53: 7.019 | G53: -0.124 | H53: 7.142 | K53: =SUM('IV. Country level, 1310-2018'!AO49:AV49) -> 11.589 | L53: =SUM('IV. Country level, 1310-2018'!AY49:BF49) -> -1.1459 | M53: 12.735 | N53: 7.138 | O53: ='IV. Country level, 1310-2018'!U49 -> -3.649 | P53: ='IV. Country level, 1310-2018'!C49 -> 10.787 | V53: 7.365 | W53: -1.991 | X53: 9.356 | Y53: ='VIII. Pers. sov. loans, 1312-'!C48 -> 11.020
A54: 1356 | C54: 11.215 | D54: -0.265 | E54: 11.479 | F54: 7.073 | G54: -0.461 | H54: 7.534 | K54: =SUM('IV. Country level, 1310-2018'!AO50:AV50) -> 11.537 | L54: =SUM('IV. Country level, 1310-2018'!AY50:BF50) -> 0.4267 | M54: 11.110 | N54: 7.041 | O54: ='IV. Country level, 1310-2018'!U50 -> -0.614 | P54: ='IV. Country level, 1310-2018'!C50 -> 7.655 | V54: 7.000 | W54: -2.056 | X54: 9.056 | Y54: ='VIII. Pers. sov. loans, 1312-'!C49 -> 10.268
A55: 1357 | C55: 11.141 | D55: -0.205 | E55: 11.346 | F55: 7.147 | G55: -1.277 | H55: 8.424 | K55: =SUM('IV. Country level, 1310-2018'!AO51:AV51) -> 11.769 | L55: =SUM('IV. Country level, 1310-2018'!AY51:BF51) -> -0.8057 | M55: 12.575 | N55: 7.326 | O55: ='IV. Country level, 1310-2018'!U51 -> -2.617 | P55: ='IV. Country level, 1310-2018'!C51 -> 9.943 | V55: 7.900 | W55: -2.125 | X55: 10.025 | Y55: ='VIII. Pers. sov. loans, 1312-'!C50 -> 10.306
A56: 1358 | C56: 11.092 | D56: -0.694 | E56: 11.787 | F56: 7.182 | G56: -2.575 | H56: 9.757 | K56: =SUM('IV. Country level, 1310-2018'!AO52:AV52) -> 11.462 | L56: =SUM('IV. Country level, 1310-2018'!AY52:BF52) -> -0.5431 | M56: 12.005 | N56: 7.426 | O56: ='IV. Country level, 1310-2018'!U52 -> -2.788 | P56: ='IV. Country level, 1310-2018'!C52 -> 10.214 | V56: 6.250 | W56: 1.437 | X56: 4.813 | Y56: ='VIII. Pers. sov. loans, 1312-'!C51 -> 10.306
A57: 1359 | C57: 10.911 | D57: -1.011 | E57: 11.922 | F57: 7.116 | G57: -2.769 | H57: 9.885 | K57: =SUM('IV. Country level, 1310-2018'!AO53:AV53) -> 10.182 | L57: =SUM('IV. Country level, 1310-2018'!AY53:BF53) -> -0.8975 | M57: 11.080 | N57: 7.051 | O57: ='IV. Country level, 1310-2018'!U53 -> -1.799 | P57: ='IV. Country level, 1310-2018'!C53 -> 8.850 | V57: 6.660 | W57: 1.426 | X57: 5.234 | Y57: ='VIII. Pers. sov. loans, 1312-'!C52 -> 10.357
A58: 1360 | C58: 10.728 | D58: -0.516 | E58: 11.244 | F58: 7.010 | G58: -2.047 | H58: 9.057 | K58: =SUM('IV. Country level, 1310-2018'!AO54:AV54) -> 10.415 | L58: =SUM('IV. Country level, 1310-2018'!AY54:BF54) -> 3.1749 | M58: 7.240 | N58: 7.174 | O58: ='IV. Country level, 1310-2018'!U54 -> 4.790 | P58: ='IV. Country level, 1310-2018'!C54 -> 2.384 | V58: 5.500 | W58: 1.415 | X58: 4.085 | Y58: ='VIII. Pers. sov. loans, 1312-'!C53 -> 10.500
A59: 1361 | C59: 10.563 | D59: -0.120 | E59: 10.683 | F59: 6.965 | G59: -1.262 | H59: 8.227 | K59: =SUM('IV. Country level, 1310-2018'!AO55:AV55) -> 10.693 | L59: =SUM('IV. Country level, 1310-2018'!AY55:BF55) -> -5.0706 | M59: 15.764 | N59: 7.120 | O59: ='IV. Country level, 1310-2018'!U55 -> -11.347 | P59: ='IV. Country level, 1310-2018'!C55 -> 18.467 | V59: 7.500 | W59: 1.404 | X59: 6.096 | Y59: ='VIII. Pers. sov. loans, 1312-'!C54 -> 10.667
A60: 1362 | C60: 10.404 | D60: -0.637 | E60: 11.041 | F60: 6.895 | G60: -1.631 | H60: 8.526 | K60: =SUM('IV. Country level, 1310-2018'!AO56:AV56) -> 10.319 | L60: =SUM('IV. Country level, 1310-2018'!AY56:BF56) -> -3.3603 | M60: 13.679 | N60: 6.676 | O60: ='IV. Country level, 1310-2018'!U56 -> -5.009 | P60: ='IV. Country level, 1310-2018'!C56 -> 11.685 | V60: 10.000 | W60: 1.393 | X60: 8.607 | Y60: ='VIII. Pers. sov. loans, 1312-'!C55 -> 7.500
A61: 1363 | C61: 10.439 | D61: -3.152 | E61: 13.591 | F61: 6.767 | G61: -6.278 | H61: 13.045 | K61: =SUM('IV. Country level, 1310-2018'!AO57:AV57) -> 10.258 | L61: =SUM('IV. Country level, 1310-2018'!AY57:BF57) -> 3.8897 | M61: 6.369 | N61: 6.296 | O61: ='IV. Country level, 1310-2018'!U57 -> 4.439 | P61: ='IV. Country level, 1310-2018'!C57 -> 1.856 | V61: 10.000 | W61: 1.382 | X61: 8.618 | Y61: ='VIII. Pers. sov. loans, 1312-'!C56 -> 10.000
A62: 1364 | C62: 10.402 | D62: -1.920 | E62: 12.322 | F62: 6.652 | G62: -3.536 | H62: 10.188 | K62: =SUM('IV. Country level, 1310-2018'!AO58:AV58) -> 10.610 | L62: =SUM('IV. Country level, 1310-2018'!AY58:BF58) -> 1.9680 | M62: 8.642 | N62: 7.010 | O62: ='IV. Country level, 1310-2018'!U58 -> 2.877 | P62: ='IV. Country level, 1310-2018'!C58 -> 4.133 | V62: 7.717 | W62: 1.372 | X62: 6.345 | Y62: ='VIII. Pers. sov. loans, 1312-'!C57 -> 10.000
A63: 1365 | C63: 10.390 | D63: -0.103 | E63: 10.493 | F63: 6.619 | G63: 0.059 | H63: 6.561 | K63: =SUM('IV. Country level, 1310-2018'!AO59:AV59) -> 10.352 | L63: =SUM('IV. Country level, 1310-2018'!AY59:BF59) -> -4.1610 | M63: 14.513 | N63: 6.942 | O63: ='IV. Country level, 1310-2018'!U59 -> -5.367 | P63: ='IV. Country level, 1310-2018'!C59 -> 12.309 | V63: 8.065 | W63: 1.362 | X63: 6.703 | Y63: ='VIII. Pers. sov. loans, 1312-'!C58 -> 10.000
A64: 1366 | C64: 10.459 | D64: 0.046 | E64: 10.413 | F64: 6.664 | G64: 0.233 | H64: 6.431 | K64: =SUM('IV. Country level, 1310-2018'!AO60:AV60) -> 10.426 | L64: =SUM('IV. Country level, 1310-2018'!AY60:BF60) -> -18.5065 | M64: 28.932 | N64: 6.151 | O64: ='IV. Country level, 1310-2018'!U60 -> -34.330 | P64: ='IV. Country level, 1310-2018'!C60 -> 40.481 | V64: 5.000 | W64: 1.352 | X64: 3.648 | Y64: ='VIII. Pers. sov. loans, 1312-'!C59 -> 10.000
A65: 1367 | C65: 10.539 | D65: 1.308 | E65: 9.231 | F65: 6.753 | G65: 1.945 | H65: 4.808 | K65: =SUM('IV. Country level, 1310-2018'!AO61:AV61) -> 10.155 | L65: =SUM('IV. Country level, 1310-2018'!AY61:BF61) -> 11.7981 | M65: -1.643 | N65: 6.370 | O65: ='IV. Country level, 1310-2018'!U61 -> 23.983 | P65: ='IV. Country level, 1310-2018'!C61 -> -17.613 | V65: 6.545 | W65: 1.342 | X65: 5.203 | Y65: ='VIII. Pers. sov. loans, 1312-'!C60 -> 10.000
A66: 1368 | C66: 10.630 | D66: -0.302 | E66: 10.932 | F66: 6.792 | G66: -0.063 | H66: 6.855 | K66: =SUM('IV. Country level, 1310-2018'!AO62:AV62) -> 10.611 | L66: =SUM('IV. Country level, 1310-2018'!AY62:BF62) -> 7.6527 | M66: 2.958 | N66: 6.893 | O66: ='IV. Country level, 1310-2018'!U62 -> 13.817 | P66: ='IV. Country level, 1310-2018'!C62 -> -6.924 | V66: 10.000 | W66: 1.542 | X66: 8.458 | Y66: ='VIII. Pers. sov. loans, 1312-'!C61 -> 9.571
A67: 1369 | C67: 10.899 | D67: -2.288 | E67: 13.187 | F67: 6.815 | G67: -4.190 | H67: 11.005 | K67: =SUM('IV. Country level, 1310-2018'!AO63:AV63) -> 10.803 | L67: =SUM('IV. Country level, 1310-2018'!AY63:BF63) -> -2.3188 | M67: 13.121 | N67: 6.984 | O67: ='IV. Country level, 1310-2018'!U63 -> -3.789 | P67: ='IV. Country level, 1310-2018'!C63 -> 10.773 | V67: 5.555 | W67: 1.530 | X67: 4.025 | Y67: ='VIII. Pers. sov. loans, 1312-'!C62 -> 13.325
A68: 1370 | C68: 11.161 | D68: 0.027 | E68: 11.134 | F68: 6.891 | G68: -0.320 | H68: 7.211 | K68: =SUM('IV. Country level, 1310-2018'!AO64:AV64) -> 10.820 | L68: =SUM('IV. Country level, 1310-2018'!AY64:BF64) -> 12.7245 | M68: -1.905 | N68: 6.920 | O68: ='IV. Country level, 1310-2018'!U64 -> 16.426 | P68: ='IV. Country level, 1310-2018'!C64 -> -9.506 | V68: 8.500 | W68: 1.517 | X68: 6.983 | Y68: ='VIII. Pers. sov. loans, 1312-'!C63 -> 13.325
A69: 1371 | C69: 11.405 | D69: 3.372 | E69: 8.033 | F69: 7.051 | G69: 6.842 | H69: 0.209 | K69: =SUM('IV. Country level, 1310-2018'!AO65:AV65) -> 11.243 | L69: =SUM('IV. Country level, 1310-2018'!AY65:BF65) -> -9.3058 | M69: 20.549 | N69: 7.285 | O69: ='IV. Country level, 1310-2018'!U65 -> -11.177 | P69: ='IV. Country level, 1310-2018'!C65 -> 18.462 | V69: 7.000 | W69: 1.505 | X69: 5.495 | Y69: ='VIII. Pers. sov. loans, 1312-'!C64 -> 13.325
A70: 1372 | C70: 11.493 | D70: 5.130 | E70: 6.363 | F70: 7.037 | G70: 9.669 | H70: -2.632 | K70: =SUM('IV. Country level, 1310-2018'!AO66:AV66) -> 12.235 | L70: =SUM('IV. Country level, 1310-2018'!AY66:BF66) -> -18.0638 | M70: 30.298 | N70: 7.101 | O70: ='IV. Country level, 1310-2018'!U66 -> -34.261 | P70: ='IV. Country level, 1310-2018'!C66 -> 41.362 | V70: 5.500 | W70: 1.494 | X70: 4.006 | Y70: ='VIII. Pers. sov. loans, 1312-'!C65 -> 13.325
A71: 1373 | C71: 11.608 | D71: 1.987 | E71: 9.621 | F71: 7.186 | G71: 3.742 | H71: 3.444 | K71: =SUM('IV. Country level, 1310-2018'!AO67:AV67) -> 12.261 | L71: =SUM('IV. Country level, 1310-2018'!AY67:BF67) -> -2.3009 | M71: 14.562 | N71: 6.683 | O71: ='IV. Country level, 1310-2018'!U67 -> -7.237 | P71: ='IV. Country level, 1310-2018'!C67 -> 13.920 | V71: 4.000 | W71: 1.482 | X71: 2.518 | Y71: ='VIII. Pers. sov. loans, 1312-'!C66 -> 12.494
A72: 1374 | C72: 12.040 | D72: -1.227 | E72: 13.266 | F72: 7.483 | G72: -0.355 | H72: 7.838 | K72: =SUM('IV. Country level, 1310-2018'!AO68:AV68) -> 11.864 | L72: =SUM('IV. Country level, 1310-2018'!AY68:BF68) -> 35.2184 | M72: -23.355 | N72: 7.491 | O72: ='IV. Country level, 1310-2018'!U68 -> 74.117 | P72: ='IV. Country level, 1310-2018'!C68 -> -66.626 | V72: 6.440 | W72: 1.471 | X72: 4.969 | Y72: ='VIII. Pers. sov. loans, 1312-'!C67 -> 13.995
A73: 1375 | C73: 12.465 | D73: 0.028 | E73: 12.437 | F73: 7.869 | G73: 1.468 | H73: 6.400 | K73: =SUM('IV. Country level, 1310-2018'!AO69:AV69) -> 11.225 | L73: =SUM('IV. Country level, 1310-2018'!AY69:BF69) -> 19.9577 | M73: -8.732 | N73: 6.793 | O73: ='IV. Country level, 1310-2018'!U69 -> 33.606 | P73: ='IV. Country level, 1310-2018'!C69 -> -26.813 | V73: 7.303 | W73: 1.459 | X73: 5.844 | Y73: ='VIII. Pers. sov. loans, 1312-'!C68 -> 15.208
A74: 1376 | C74: 12.881 | D74: 1.545 | E74: 11.336 | F74: 8.475 | G74: 4.636 | H74: 3.840 | K74: =SUM('IV. Country level, 1310-2018'!AO70:AV70) -> 11.606 | L74: =SUM('IV. Country level, 1310-2018'!AY70:BF70) -> -24.3241 | M74: 35.930 | N74: 8.032 | O74: ='IV. Country level, 1310-2018'!U70 -> -45.275 | P74: ='IV. Country level, 1310-2018'!C70 -> 53.307 | V74: 8.167 | W74: -1.879 | X74: 10.046 | Y74: ='VIII. Pers. sov. loans, 1312-'!C69 -> 15.000
A75: 1377 | C75: 13.290 | D75: 1.570 | E75: 11.720 | F75: 9.290 | G75: 4.525 | H75: 4.765 | K75: =SUM('IV. Country level, 1310-2018'!AO71:AV71) -> 13.845 | L75: =SUM('IV. Country level, 1310-2018'!AY71:BF71) -> -9.7683 | M75: 23.613 | N75: 8.995 | O75: ='IV. Country level, 1310-2018'!U71 -> -12.257 | P75: ='IV. Country level, 1310-2018'!C71 -> 21.252 | V75: 9.798 | W75: -1.948 | X75: 11.746 | Y75: ='VIII. Pers. sov. loans, 1312-'!C70 -> 15.000
A76: 1378 | C76: 13.808 | D76: -0.676 | E76: 14.484 | F76: 10.018 | G76: -0.598 | H76: 10.616 | K76: =SUM('IV. Country level, 1310-2018'!AO72:AV72) -> 14.219 | L76: =SUM('IV. Country level, 1310-2018'!AY72:BF72) -> -0.5248 | M76: 14.744 | N76: 9.984 | O76: ='IV. Country level, 1310-2018'!U72 -> 1.586 | P76: ='IV. Country level, 1310-2018'!C72 -> 8.399 | V76: 11.430 | W76: -2.020 | X76: 13.450 | Y76: ='VIII. Pers. sov. loans, 1312-'!C71 -> 15.000
A77: 1379 | C77: 14.111 | D77: -3.977 | E77: 18.088 | F77: 10.308 | G77: -5.838 | H77: 16.146 | K77: =SUM('IV. Country level, 1310-2018'!AO73:AV73) -> 15.149 | L77: =SUM('IV. Country level, 1310-2018'!AY73:BF73) -> -7.4432 | M77: =K77-L77 -> 22.593 | N77: 11.348 | O77: ='IV. Country level, 1310-2018'!U73 -> -12.090 | P77: ='IV. Country level, 1310-2018'!C73 -> 23.438 | V77: 11.144 | W77: -2.096 | X77: 13.240 | Y77: ='VIII. Pers. sov. loans, 1312-'!C72 -> 15.000
A78: 1380 | C78: 14.354 | D78: 0.476 | E78: 13.878 | F78: 10.475 | G78: 2.699 | H78: 7.776 | K78: =SUM('IV. Country level, 1310-2018'!AO74:AV74) -> 15.120 | L78: =SUM('IV. Country level, 1310-2018'!AY74:BF74) -> -2.1234 | M78: 17.244 | N78: 12.387 | O78: ='IV. Country level, 1310-2018'!U74 -> -8.014 | P78: ='IV. Country level, 1310-2018'!C74 -> 20.401 | V78: 10.858 | W78: -2.175 | X78: 13.033 | Y78: ='VIII. Pers. sov. loans, 1312-'!C73 -> 20.000
A79: 1381 | C79: 14.249 | D79: 2.265 | E79: 11.984 | F79: 10.520 | G79: 5.331 | H79: 5.188 | K79: =SUM('IV. Country level, 1310-2018'!AO75:AV75) -> 15.491 | L79: =SUM('IV. Country level, 1310-2018'!AY75:BF75) -> 19.4921 | M79: -4.001 | N79: 12.587 | O79: ='IV. Country level, 1310-2018'!U75 -> 38.261 | P79: ='IV. Country level, 1310-2018'!C75 -> -25.674 | V79: 4.464 | W79: -2.259 | X79: 6.724 | Y79: ='VIII. Pers. sov. loans, 1312-'!C74 -> 16.000
A80: 1382 | C80: =AVERAGE(K77:K83) -> 14.120 | D80: =AVERAGE(L77:L83) -> 2.343 | E80: =AVERAGE(M77:M83) -> 11.777 | F80: =AVERAGE(N77:N83) -> 10.474 | G80: =AVERAGE(O77:O83) -> 5.409 | H80: =AVERAGE(P77:P83) -> 5.066 | K80: =SUM('IV. Country level, 1310-2018'!AO76:AV76) -> 13.348 | L80: =SUM('IV. Country level, 1310-2018'!AY76:BF76) -> -3.1490 | M80: 16.497 | N80: 8.821 | O80: ='IV. Country level, 1310-2018'!U76 -> -3.075 | P80: ='IV. Country level, 1310-2018'!C76 -> 11.896 | V80: 4.178 | W80: -2.348 | X80: 6.526 | Y80: ='VIII. Pers. sov. loans, 1312-'!C75 -> 16.000
A81: 1383 | C81: 13.777 | D81: 3.917 | E81: 9.860 | F81: 10.191 | G81: 7.573 | H81: 2.618 | K81: =SUM('IV. Country level, 1310-2018'!AO77:AV77) -> 13.308 | L81: =SUM('IV. Country level, 1310-2018'!AY77:BF77) -> 6.8510 | M81: 6.457 | N81: 9.203 | O81: ='IV. Country level, 1310-2018'!U77 -> 14.486 | P81: ='IV. Country level, 1310-2018'!C77 -> -5.283 | V81: 10.000 | W81: -2.441 | X81: 12.441 | Y81: ='VIII. Pers. sov. loans, 1312-'!C76 -> 16.000
A82: 1384 | C82: 13.701 | D82: 2.670 | E82: 11.031 | F82: 9.694 | G82: 4.467 | H82: 5.228 | K82: =SUM('IV. Country level, 1310-2018'!AO78:AV78) -> 13.107 | L82: =SUM('IV. Country level, 1310-2018'!AY78:BF78) -> 2.7540 | M82: 10.353 | N82: 9.309 | O82: ='IV. Country level, 1310-2018'!U78 -> 6.167 | P82: ='IV. Country level, 1310-2018'!C78 -> 3.142 | V82: 8.500 | W82: -2.540 | X82: 11.040 | Y82: ='VIII. Pers. sov. loans, 1312-'!C77 -> 16.000
A83: 1385 | C83: 13.550 | D83: 1.617 | E83: 11.933 | F83: 9.112 | G83: 3.172 | H83: 5.940 | K83: =SUM('IV. Country level, 1310-2018'!AO79:AV79) -> 13.316 | L83: =SUM('IV. Country level, 1310-2018'!AY79:BF79) -> 0.0182 | M83: 13.298 | N83: 9.666 | O83: ='IV. Country level, 1310-2018'!U79 -> 2.126 | P83: ='IV. Country level, 1310-2018'!C79 -> 7.539 | V83: 7.000 | W83: -2.646 | X83: 9.646 | Y83: ='VIII. Pers. sov. loans, 1312-'!C78 -> 16.000
A84: 1386 | C84: 13.622 | D84: 4.010 | E84: 9.612 | F84: 9.050 | G84: 9.578 | H84: -0.528 | K84: =SUM('IV. Country level, 1310-2018'!AO80:AV80) -> 12.751 | L84: =SUM('IV. Country level, 1310-2018'!AY80:BF80) -> 3.5779 | M84: 9.173 | N84: 9.362 | O84: ='IV. Country level, 1310-2018'!U80 -> 3.058 | P84: ='IV. Country level, 1310-2018'!C80 -> 6.303 | V84: 5.500 | W84: 3.249 | X84: 2.251 | Y84: ='VIII. Pers. sov. loans, 1312-'!C79 -> 16.000
A85: 1387 | C85: 13.763 | D85: 2.489 | E85: 11.274 | F85: 8.963 | G85: 4.738 | H85: 4.225 | K85: =SUM('IV. Country level, 1310-2018'!AO81:AV81) -> 14.585 | L85: =SUM('IV. Country level, 1310-2018'!AY81:BF81) -> -10.8554 | M85: 25.441 | N85: 8.912 | O85: ='IV. Country level, 1310-2018'!U81 -> -29.757 | P85: ='IV. Country level, 1310-2018'!C81 -> 38.669 | V85: 4.000 | W85: 7.163 | X85: -3.163 | Y85: ='VIII. Pers. sov. loans, 1312-'!C80 -> 12.000
A86: 1388 | C86: 13.723 | D86: 2.240 | E86: 11.483 | F86: 8.830 | G86: 3.555 | H86: 5.275 | K86: =SUM('IV. Country level, 1310-2018'!AO82:AV82) -> 14.434 | L86: =SUM('IV. Country level, 1310-2018'!AY82:BF82) -> 12.1227 | M86: 2.311 | N86: 8.511 | O86: ='IV. Country level, 1310-2018'!U82 -> 29.199 | P86: ='IV. Country level, 1310-2018'!C82 -> -20.687 | V86: 4.867 | W86: 3.435 | X86: 1.432 | Y86: ='VIII. Pers. sov. loans, 1312-'!C81 -> 8.000
A87: 1389 | C87: 13.665 | D87: 1.432 | E87: 12.233 | F87: 8.578 | G87: 1.415 | H87: 7.162 | K87: =SUM('IV. Country level, 1310-2018'!AO83:AV83) -> 13.854 | L87: =SUM('IV. Country level, 1310-2018'!AY83:BF83) -> 13.6019 | M87: 0.252 | N87: 8.386 | O87: ='IV. Country level, 1310-2018'!U83 -> 41.766 | P87: ='IV. Country level, 1310-2018'!C83 -> -33.380 | V87: 5.733 | W87: 3.353 | X87: 2.380 | Y87: ='VIII. Pers. sov. loans, 1312-'!C82 -> 8.000
A88: 1390 | C88: 13.712 | D88: 0.198 | E88: 13.514 | F88: 8.394 | G88: -0.519 | H88: 8.913 | K88: =SUM('IV. Country level, 1310-2018'!AO84:AV84) -> 14.295 | L88: =SUM('IV. Country level, 1310-2018'!AY84:BF84) -> -3.7939 | M88: 18.089 | N88: 8.595 | O88: ='IV. Country level, 1310-2018'!U84 -> -19.394 | P88: ='IV. Country level, 1310-2018'!C84 -> 27.989 | V88: 6.600 | W88: 3.275 | X88: 3.325 | Y88: ='VIII. Pers. sov. loans, 1312-'!C83 -> 6.500
A89: 1391 | C89: 13.581 | D89: 1.029 | E89: 12.552 | F89: 8.104 | G89: -0.235 | H89: 8.339 | K89: =SUM('IV. Country level, 1310-2018'!AO85:AV85) -> 12.828 | L89: =SUM('IV. Country level, 1310-2018'!AY85:BF85) -> 1.0068 | M89: 11.821 | N89: 8.376 | O89: ='IV. Country level, 1310-2018'!U85 -> -2.116 | P89: ='IV. Country level, 1310-2018'!C85 -> 10.492 | V89: 7.466 | W89: 3.201 | X89: =V89-W89 -> 4.265 | Y89: ='VIII. Pers. sov. loans, 1312-'!C84 -> 8.875
A90: 1392 | C90: 13.423 | D90: 0.122 | E90: 13.301 | F90: 7.817 | G90: -0.702 | H90: 8.519 | K90: =SUM('IV. Country level, 1310-2018'!AO86:AV86) -> 12.908 | L90: =SUM('IV. Country level, 1310-2018'!AY86:BF86) -> -5.6346 | M90: 18.542 | N90: 7.901 | O90: ='IV. Country level, 1310-2018'!U86 -> -12.850 | P90: ='IV. Country level, 1310-2018'!C86 -> 20.751 | V90: 8.333 | W90: 0.041 | X90: 8.292 | Y90: ='VIII. Pers. sov. loans, 1312-'!C85 -> 9.600
A91: 1393 | C91: 13.305 | D91: -1.645 | E91: 14.950 | F91: 7.530 | G91: -6.395 | H91: 13.925 | K91: =SUM('IV. Country level, 1310-2018'!AO87:AV87) -> 13.079 | L91: =SUM('IV. Country level, 1310-2018'!AY87:BF87) -> -5.0619 | M91: 18.141 | N91: 8.078 | O91: ='IV. Country level, 1310-2018'!U87 -> -10.483 | P91: ='IV. Country level, 1310-2018'!C87 -> 18.560 | V91: 8.750 | W91: 0.035 | X91: 8.715 | Y91: ='VIII. Pers. sov. loans, 1312-'!C86 -> 9.667
A92: 1394 | C92: 13.161 | D92: 0.341 | E92: 12.820 | F92: 7.259 | G92: 0.161 | H92: 7.099 | K92: =SUM('IV. Country level, 1310-2018'!AO88:AV88) -> 13.670 | L92: =SUM('IV. Country level, 1310-2018'!AY88:BF88) -> -5.0378 | M92: 18.707 | N92: 6.880 | O92: ='IV. Country level, 1310-2018'!U88 -> -27.768 | P92: ='IV. Country level, 1310-2018'!C88 -> 34.648 | V92: 5.263 | W92: 0.028 | X92: 5.235 | Y92: ='VIII. Pers. sov. loans, 1312-'!C87 -> 14.333
A93: 1395 | C93: 13.180 | D93: -0.470 | E93: 13.651 | F93: 7.041 | G93: -1.421 | H93: 8.461 | K93: =SUM('IV. Country level, 1310-2018'!AO89:AV89) -> 13.330 | L93: =SUM('IV. Country level, 1310-2018'!AY89:BF89) -> 5.7724 | M93: 7.557 | N93: 6.503 | O93: ='IV. Country level, 1310-2018'!U89 -> 25.932 | P93: ='IV. Country level, 1310-2018'!C89 -> -19.428 | V93: 6.666 | W93: 0.022 | X93: 6.644 | Y93: ='VIII. Pers. sov. loans, 1312-'!C88 -> 12.625
A94: 1396 | C94: 13.200 | D94: 0.474 | E94: 12.726 | F94: 6.814 | G94: 1.239 | H94: 5.574 | K94: =SUM('IV. Country level, 1310-2018'!AO90:AV90) -> 13.028 | L94: =SUM('IV. Country level, 1310-2018'!AY90:BF90) -> 1.2321 | M94: 11.796 | N94: 6.377 | O94: ='IV. Country level, 1310-2018'!U90 -> 1.914 | P94: ='IV. Country level, 1310-2018'!C90 -> 4.462 | V94: 5.000 | W94: 0.016 | X94: 4.984 | Y94: ='VIII. Pers. sov. loans, 1312-'!C89 -> 12.625
A95: 1397 | C95: 13.133 | D95: -0.046 | E95: 13.178 | F95: 6.541 | G95: -0.976 | H95: 7.518 | K95: =SUM('IV. Country level, 1310-2018'!AO91:AV91) -> 13.286 | L95: =SUM('IV. Country level, 1310-2018'!AY91:BF91) -> 10.1095 | M95: 3.176 | N95: 6.702 | O95: ='IV. Country level, 1310-2018'!U91 -> 26.496 | P95: ='IV. Country level, 1310-2018'!C91 -> -19.794 | V95: 6.417 | W95: 0.009 | X95: 6.407 | Y95: ='VIII. Pers. sov. loans, 1312-'!C90 -> 13.278
A96: 1398 | C96: 13.107 | D96: 1.739 | E96: 11.367 | F96: 6.417 | G96: 5.860 | H96: 0.557 | K96: =SUM('IV. Country level, 1310-2018'!AO92:AV92) -> 12.964 | L96: =SUM('IV. Country level, 1310-2018'!AY92:BF92) -> -4.6728 | M96: 17.637 | N96: 6.844 | O96: ='IV. Country level, 1310-2018'!U92 -> -13.186 | P96: ='IV. Country level, 1310-2018'!C92 -> 20.031 | V96: 6.667 | W96: 0.003 | X96: 6.663 | Y96: ='VIII. Pers. sov. loans, 1312-'!C91 -> 14.375
A97: 1399 | C97: 12.962 | D97: 0.694 | E97: 12.269 | F97: 6.348 | G97: 1.804 | H97: 4.544 | K97: =SUM('IV. Country level, 1310-2018'!AO93:AV93) -> 13.046 | L97: =SUM('IV. Country level, 1310-2018'!AY93:BF93) -> 0.9764 | M97: 12.069 | N97: 6.312 | O97: ='IV. Country level, 1310-2018'!U93 -> 5.772 | P97: ='IV. Country level, 1310-2018'!C93 -> 0.541 | V97: 5.833 | W97: -0.003 | X97: 5.836 | Y97: ='VIII. Pers. sov. loans, 1312-'!C92 -> 13.781
A98: 1400 | C98: 12.937 | D98: -0.070 | E98: 13.007 | F98: 6.291 | G98: 0.004 | H98: 6.287 | K98: =SUM('IV. Country level, 1310-2018'!AO94:AV94) -> 12.605 | L98: =SUM('IV. Country level, 1310-2018'!AY94:BF94) -> -8.7003 | M98: 21.305 | N98: 6.172 | O98: ='IV. Country level, 1310-2018'!U94 -> -25.992 | P98: ='IV. Country level, 1310-2018'!C94 -> 32.165 | V98: 5.000 | W98: -7.145 | X98: 12.145 | Y98: ='VIII. Pers. sov. loans, 1312-'!C93 -> 14.094
A99: 1401 | C99: 12.994 | D99: -1.694 | E99: 14.687 | F99: 6.284 | G99: -4.046 | H99: 10.330 | K99: =SUM('IV. Country level, 1310-2018'!AO95:AV95) -> 13.487 | L99: =SUM('IV. Country level, 1310-2018'!AY95:BF95) -> 7.4588 | M99: 6.029 | N99: 6.008 | O99: ='IV. Country level, 1310-2018'!U95 -> 20.088 | P99: ='IV. Country level, 1310-2018'!C95 -> -14.080 | V99: 6.666 | W99: 1.808 | X99: 4.858 | Y99: ='VIII. Pers. sov. loans, 1312-'!C94 -> 10.964
A100: 1402 | C100: 13.136 | D100: -0.487 | E100: 13.624 | F100: 6.385 | G100: 0.396 | H100: 5.990 | K100: =SUM('IV. Country level, 1310-2018'!AO96:AV96) -> 12.320 | L100: =SUM('IV. Country level, 1310-2018'!AY96:BF96) -> -1.5484 | M100: 13.869 | N100: 6.018 | O100: ='IV. Country level, 1310-2018'!U96 -> -2.463 | P100: ='IV. Country level, 1310-2018'!C96 -> 8.481 | V100: 6.667 | W100: 1.787 | X100: 4.879 | Y100: ='VIII. Pers. sov. loans, 1312-'!C95 -> 12.792
A101: 1403 | C101: 13.184 | D101: -0.976 | E101: 14.160 | F101: 6.608 | G101: -0.892 | H101: 7.500 | K101: =SUM('IV. Country level, 1310-2018'!AO97:AV97) -> 12.852 | L101: =SUM('IV. Country level, 1310-2018'!AY97:BF97) -> -4.1107 | M101: 16.962 | N101: 5.978 | O101: ='IV. Country level, 1310-2018'!U97 -> -10.686 | P101: ='IV. Country level, 1310-2018'!C97 -> 16.664 | V101: 5.000 | W101: 1.767 | X101: 3.233 | Y101: ='VIII. Pers. sov. loans, 1312-'!C96 -> 12.393
A102: 1404 | C102: 13.340 | D102: -0.000 | E102: 13.340 | F102: 6.871 | G102: 1.744 | H102: 5.127 | K102: =SUM('IV. Country level, 1310-2018'!AO98:AV98) -> 13.681 | L102: =SUM('IV. Country level, 1310-2018'!AY98:BF98) -> -1.2587 | M102: 14.940 | N102: =P102+O102 -> 6.654 | O102: ='IV. Country level, 1310-2018'!U98 -> -1.857 | P102: ='IV. Country level, 1310-2018'!C98 -> 8.511 | V102: 5.833 | W102: 4.375 | X102: 1.458 | Y102: ='VIII. Pers. sov. loans, 1312-'!C97 -> 11.875
A103: 1405 | C103: 13.267 | D103: 0.305 | E103: 12.962 | F103: 6.982 | G103: 2.470 | H103: 4.511 | K103: =SUM('IV. Country level, 1310-2018'!AO99:AV99) -> 13.963 | L103: =SUM('IV. Country level, 1310-2018'!AY99:BF99) -> 3.7729 | M103: 10.191 | N103: 7.555 | O103: ='IV. Country level, 1310-2018'!U99 -> 17.910 | P103: ='IV. Country level, 1310-2018'!C99 -> -10.354 | V103: 6.667 | W103: 4.269 | X103: 2.398 | Y103: ='VIII. Pers. sov. loans, 1312-'!C98 -> 10.620
A104: 1406 | C104: 13.430 | D104: 0.408 | E104: 13.022 | F104: 7.117 | G104: 2.566 | H104: 4.550 | K104: =SUM('IV. Country level, 1310-2018'!AO100:AV100) -> 13.380 | L104: =SUM('IV. Country level, 1310-2018'!AY100:BF100) -> -2.4431 | M104: 15.823 | N104: 7.871 | O104: ='IV. Country level, 1310-2018'!U100 -> -3.246 | P104: ='IV. Country level, 1310-2018'!C100 -> 11.117 | V104: 6.666 | W104: 4.168 | X104: 2.498 | Y104: ='VIII. Pers. sov. loans, 1312-'!C99 -> 11.193
A105: 1407 | C105: 13.533 | D105: 0.350 | E105: 13.183 | F105: 7.259 | G105: 2.245 | H105: 5.014 | K105: =SUM('IV. Country level, 1310-2018'!AO101:AV101) -> 13.694 | L105: =SUM('IV. Country level, 1310-2018'!AY101:BF101) -> -1.8720 | M105: 15.566 | N105: 8.011 | O105: ='IV. Country level, 1310-2018'!U101 -> -7.538 | P105: ='IV. Country level, 1310-2018'!C101 -> 15.550 | V105: 6.000 | W105: 4.072 | X105: 1.928 | Y105: ='VIII. Pers. sov. loans, 1312-'!C100 -> 10.867
A106: 1408 | C106: 13.442 | D106: 0.809 | E106: 12.633 | F106: 7.294 | G106: 4.113 | H106: 3.181 | K106: =SUM('IV. Country level, 1310-2018'!AO102:AV102) -> 12.975 | L106: =SUM('IV. Country level, 1310-2018'!AY102:BF102) -> 9.5940 | M106: 3.381 | N106: 6.785 | O106: ='IV. Country level, 1310-2018'!U102 -> 25.173 | P106: ='IV. Country level, 1310-2018'!C102 -> -18.388 | V106: 6.660 | W106: 3.981 | X106: 2.679 | Y106: ='VIII. Pers. sov. loans, 1312-'!C101 -> 11.551
A107: 1409 | C107: 13.368 | D107: -0.744 | E107: 14.112 | F107: 7.374 | G107: -1.156 | H107: 8.531 | K107: =SUM('IV. Country level, 1310-2018'!AO103:AV103) -> 13.463 | L107: =SUM('IV. Country level, 1310-2018'!AY103:BF103) -> -0.8253 | M107: 14.289 | N107: 6.962 | O107: ='IV. Country level, 1310-2018'!U103 -> -1.791 | P107: ='IV. Country level, 1310-2018'!C103 -> 8.753 | V107: 10.000 | W107: 3.894 | X107: 6.106 | Y107: ='VIII. Pers. sov. loans, 1312-'!C102 -> 11.173
A108: 1410 | C108: 13.332 | D108: -1.528 | E108: 14.861 | F108: 7.322 | G108: -4.055 | H108: 11.377 | K108: =SUM('IV. Country level, 1310-2018'!AO104:AV104) -> 13.570 | L108: =SUM('IV. Country level, 1310-2018'!AY104:BF104) -> -4.5211 | M108: 18.091 | N108: 6.977 | O108: ='IV. Country level, 1310-2018'!U104 -> -12.933 | P108: ='IV. Country level, 1310-2018'!C104 -> 19.911 | V108: 12.407 | W108: 3.811 | X108: 8.597 | Y108: ='VIII. Pers. sov. loans, 1312-'!C103 -> 11.887
A109: 1411 | C109: 13.227 | D109: -0.141 | E109: 13.369 | F109: 7.226 | G109: 0.484 | H109: 6.741 | K109: =SUM('IV. Country level, 1310-2018'!AO105:AV105) -> 13.047 | L109: =SUM('IV. Country level, 1310-2018'!AY105:BF105) -> 1.9586 | M109: 11.089 | N109: 6.899 | O109: ='IV. Country level, 1310-2018'!U105 -> 11.217 | P109: ='IV. Country level, 1310-2018'!C105 -> -4.318 | V109: 14.815 | W109: 3.732 | X109: 11.083 | Y109: ='VIII. Pers. sov. loans, 1312-'!C104 -> 12.665
A110: 1412 | C110: 13.206 | D110: -1.020 | E110: 14.226 | F110: 7.295 | G110: -1.841 | H110: 9.135 | K110: =SUM('IV. Country level, 1310-2018'!AO106:AV106) -> 13.447 | L110: =SUM('IV. Country level, 1310-2018'!AY106:BF106) -> -7.1002 | M110: 20.547 | N110: 8.115 | O110: ='IV. Country level, 1310-2018'!U106 -> -18.976 | P110: ='IV. Country level, 1310-2018'!C106 -> 27.091 | V110: 5.000 | W110: 2.453 | X110: 2.547 | Y110: ='VIII. Pers. sov. loans, 1312-'!C105 -> 14.191
A111: 1413 | C111: 13.104 | D111: 0.723 | E111: 12.381 | F111: 7.270 | G111: 2.956 | H111: 4.314 | K111: =SUM('IV. Country level, 1310-2018'!AO107:AV107) -> 13.129 | L111: =SUM('IV. Country level, 1310-2018'!AY107:BF107) -> -7.9326 | M111: 21.062 | N111: 7.505 | O111: ='IV. Country level, 1310-2018'!U107 -> -23.538 | P111: ='IV. Country level, 1310-2018'!C107 -> 31.043 | V111: 8.166 | W111: 2.396 | X111: 5.770 | Y111: ='VIII. Pers. sov. loans, 1312-'!C106 -> 15.736
A112: 1414 | C112: 12.981 | D112: 1.246 | E112: 11.735 | F112: 7.212 | G112: 3.402 | H112: 3.810 | K112: =SUM('IV. Country level, 1310-2018'!AO108:AV108) -> 12.959 | L112: =SUM('IV. Country level, 1310-2018'!AY108:BF108) -> 7.8363 | M112: 5.123 | N112: 7.337 | O112: ='IV. Country level, 1310-2018'!U108 -> 24.239 | P112: ='IV. Country level, 1310-2018'!C108 -> -16.902 | V112: 21.515 | W112: 2.342 | X112: 19.173 | Y112: ='VIII. Pers. sov. loans, 1312-'!C107 -> 16.894
A113: 1415 | C113: 12.838 | D113: -0.135 | E113: 12.973 | F113: 7.325 | G113: -0.580 | H113: 7.905 | K113: =SUM('IV. Country level, 1310-2018'!AO109:AV109) -> 12.825 | L113: =SUM('IV. Country level, 1310-2018'!AY109:BF109) -> 3.4469 | M113: 9.378 | N113: 7.266 | O113: ='IV. Country level, 1310-2018'!U109 -> 8.899 | P113: ='IV. Country level, 1310-2018'!C109 -> -1.632 | V113: 5.798 | W113: 2.290 | X113: 3.508 | Y113: ='VIII. Pers. sov. loans, 1312-'!C108 -> 16.358
A114: 1416 | C114: 12.667 | D114: 1.523 | E114: 11.144 | F114: 7.341 | G114: 4.753 | H114: 2.588 | K114: =SUM('IV. Country level, 1310-2018'!AO110:AV110) -> 12.751 | L114: =SUM('IV. Country level, 1310-2018'!AY110:BF110) -> 11.3764 | M114: 1.374 | N114: 6.791 | O114: ='IV. Country level, 1310-2018'!U110 -> 31.787 | P114: ='IV. Country level, 1310-2018'!C110 -> -24.996 | V114: 8.333 | W114: 2.241 | X114: 6.093 | Y114: ='VIII. Pers. sov. loans, 1312-'!C109 -> 17.763
A115: 1417 | C115: 12.473 | D115: 4.313 | E115: 8.159 | F115: 7.201 | G115: 13.520 | H115: -6.319 | K115: =SUM('IV. Country level, 1310-2018'!AO111:AV111) -> 12.708 | L115: =SUM('IV. Country level, 1310-2018'!AY111:BF111) -> -0.8609 | M115: 13.569 | N115: 6.572 | O115: ='IV. Country level, 1310-2018'!U111 -> -9.812 | P115: ='IV. Country level, 1310-2018'!C111 -> 16.384 | V115: 8.333 | W115: 2.193 | X115: 6.140 | Y115: ='VIII. Pers. sov. loans, 1312-'!C110 -> 17.234
A116: 1418 | C116: 12.242 | D116: 2.720 | E116: 9.522 | F116: 7.052 | G116: 7.438 | H116: -0.386 | K116: =SUM('IV. Country level, 1310-2018'!AO112:AV112) -> 12.045 | L116: =SUM('IV. Country level, 1310-2018'!AY112:BF112) -> -7.7130 | M116: 19.758 | N116: 7.690 | O116: ='IV. Country level, 1310-2018'!U112 -> -16.655 | P116: ='IV. Country level, 1310-2018'!C112 -> 24.345 | V116: 6.666 | W116: 2.148 | X116: 4.518 | Y116: ='VIII. Pers. sov. loans, 1312-'!C111 -> 15.962
A117: 1419 | C117: 11.984 | D117: 0.692 | E117: 11.292 | F117: 6.901 | G117: 1.443 | H117: 5.458 | K117: =SUM('IV. Country level, 1310-2018'!AO113:AV113) -> 12.255 | L117: =SUM('IV. Country level, 1310-2018'!AY113:BF113) -> 4.5103 | M117: 7.745 | N117: 8.227 | O117: ='IV. Country level, 1310-2018'!U113 -> 18.354 | P117: ='IV. Country level, 1310-2018'!C113 -> -10.127 | V117: 5.833 | W117: 2.104 | X117: 3.729 | Y117: ='VIII. Pers. sov. loans, 1312-'!C112 -> 14.074
A118: 1420 | C118: 11.777 | D118: -0.566 | E118: 12.343 | F118: 6.807 | G118: -1.334 | H118: 8.140 | K118: =SUM('IV. Country level, 1310-2018'!AO114:AV114) -> 11.767 | L118: =SUM('IV. Country level, 1310-2018'!AY114:BF114) -> 11.5980 | M118: 0.169 | N118: 6.525 | O118: ='IV. Country level, 1310-2018'!U114 -> 37.829 | P118: ='IV. Country level, 1310-2018'!C114 -> -31.305 | V118: 8.330 | W118: 2.062 | X118: 6.268 | Y118: ='VIII. Pers. sov. loans, 1312-'!C113 -> 11.047
A119: 1421 | C119: 11.552 | D119: -1.427 | E119: 12.979 | F119: 6.800 | G119: -3.331 | H119: 10.131 | K119: =SUM('IV. Country level, 1310-2018'!AO115:AV115) -> 11.346 | L119: =SUM('IV. Country level, 1310-2018'!AY115:BF115) -> -3.3164 | M119: 14.662 | N119: 6.292 | O119: ='IV. Country level, 1310-2018'!U115 -> -18.337 | P119: ='IV. Country level, 1310-2018'!C115 -> 24.628 | V119: 5.625 | W119: 2.022 | X119: 3.603 | Y119: ='VIII. Pers. sov. loans, 1312-'!C114 -> 7.714
A120: 1422 | C120: 11.497 | D120: 0.419 | E120: 11.079 | F120: 6.647 | G120: 1.099 | H120: 5.549 | K120: =SUM('IV. Country level, 1310-2018'!AO116:AV116) -> 11.016 | L120: =SUM('IV. Country level, 1310-2018'!AY116:BF116) -> -10.7522 | M120: 21.768 | N120: 6.210 | O120: ='IV. Country level, 1310-2018'!U116 -> -33.067 | P120: ='IV. Country level, 1310-2018'!C116 -> 39.277 | V120: 6.143 | W120: 1.983 | X120: 4.159 | Y120: ='VIII. Pers. sov. loans, 1312-'!C115 -> 10.326
A121: 1423 | C121: 11.453 | D121: -0.274 | E121: 11.728 | F121: 6.483 | G121: -0.825 | H121: 7.308 | K121: =SUM('IV. Country level, 1310-2018'!AO117:AV117) -> 11.303 | L121: =SUM('IV. Country level, 1310-2018'!AY117:BF117) -> 2.5742 | M121: 8.729 | N121: 6.131 | O121: ='IV. Country level, 1310-2018'!U117 -> 12.351 | P121: ='IV. Country level, 1310-2018'!C117 -> -6.220 | V121: 6.660 | W121: 1.946 | X121: 4.714 | Y121: ='VIII. Pers. sov. loans, 1312-'!C116 -> 10.286
A122: 1424 | C122: 11.389 | D122: -2.345 | E122: 13.734 | F122: 6.579 | G122: -6.986 | H122: 13.565 | K122: =SUM('IV. Country level, 1310-2018'!AO118:AV118) -> 11.134 | L122: =SUM('IV. Country level, 1310-2018'!AY118:BF118) -> -6.8899 | M122: 18.024 | N122: 6.528 | O122: ='IV. Country level, 1310-2018'!U118 -> -23.790 | P122: ='IV. Country level, 1310-2018'!C118 -> 30.318 | V122: 8.807 | W122: 1.911 | X122: 6.897 | Y122: ='VIII. Pers. sov. loans, 1312-'!C117 -> 10.147
A123: 1425 | C123: 11.423 | D123: -2.384 | E123: 13.807 | F123: 6.677 | G123: -6.748 | H123: 13.425 | K123: =SUM('IV. Country level, 1310-2018'!AO119:AV119) -> 11.661 | L123: =SUM('IV. Country level, 1310-2018'!AY119:BF119) -> 5.2066 | M123: 6.455 | N123: 6.618 | O123: ='IV. Country level, 1310-2018'!U119 -> 14.349 | P123: ='IV. Country level, 1310-2018'!C119 -> -7.731 | V123: 5.000 | W123: 1.876 | X123: 3.124 | Y123: ='VIII. Pers. sov. loans, 1312-'!C118 -> 10.406
A124: 1426 | C124: 11.462 | D124: -0.314 | E124: 11.776 | F124: 6.790 | G124: -2.615 | H124: 9.406 | K124: =SUM('IV. Country level, 1310-2018'!AO120:AV120) -> 11.946 | L124: =SUM('IV. Country level, 1310-2018'!AY120:BF120) -> -0.3409 | M124: 12.287 | N124: 7.078 | O124: ='IV. Country level, 1310-2018'!U120 -> 4.886 | P124: ='IV. Country level, 1310-2018'!C120 -> 2.192 | V124: 5.550 | W124: 1.843 | X124: 3.707 | Y124: ='VIII. Pers. sov. loans, 1312-'!C119 -> 11.307
A125: 1427 | C125: 11.478 | D125: 0.270 | E125: 11.208 | F125: 7.087 | G125: -1.772 | H125: 8.860 | K125: =SUM('IV. Country level, 1310-2018'!AO121:AV121) -> 11.320 | L125: =SUM('IV. Country level, 1310-2018'!AY121:BF121) -> -2.8964 | M125: 14.216 | N125: 7.199 | O125: ='IV. Country level, 1310-2018'!U121 -> -5.293 | P125: ='IV. Country level, 1310-2018'!C121 -> 12.492 | V125: 6.823 | W125: 1.811 | X125: 5.012 | Y125: ='VIII. Pers. sov. loans, 1312-'!C120 -> 12.477
A126: 1428 | C126: 11.587 | D126: 3.172 | E126: 8.414 | F126: 7.516 | G126: 9.308 | H126: -1.792 | K126: =SUM('IV. Country level, 1310-2018'!AO122:AV122) -> 11.580 | L126: =SUM('IV. Country level, 1310-2018'!AY122:BF122) -> -3.5888 | M126: 15.169 | N126: 6.974 | O126: ='IV. Country level, 1310-2018'!U122 -> -16.671 | P126: ='IV. Country level, 1310-2018'!C122 -> 23.645 | V126: 8.095 | W126: 1.780 | X126: 6.315 | Y126: ='VIII. Pers. sov. loans, 1312-'!C121 -> 12.248
A127: 1429 | C127: 11.661 | D127: 3.286 | E127: 8.375 | F127: 7.988 | G127: 9.057 | H127: -1.069 | K127: =SUM('IV. Country level, 1310-2018'!AO123:AV123) -> 11.292 | L127: =SUM('IV. Country level, 1310-2018'!AY123:BF123) -> 3.7367 | M127: 7.555 | N127: 7.005 | O127: ='IV. Country level, 1310-2018'!U123 -> -4.138 | P127: ='IV. Country level, 1310-2018'!C123 -> 11.144 | V127: 6.548 | W127: 0.000 | X127: 6.548 | Y127: ='VIII. Pers. sov. loans, 1312-'!C122 -> 10.330
A128: 1430 | C128: 11.719 | D128: 2.435 | E128: 9.284 | F128: 8.373 | G128: 3.538 | H128: 4.835 | K128: =SUM('IV. Country level, 1310-2018'!AO124:AV124) -> 11.413 | L128: =SUM('IV. Country level, 1310-2018'!AY124:BF124) -> 6.6662 | M128: 4.746 | N128: 8.209 | O128: ='IV. Country level, 1310-2018'!U124 -> 18.250 | P128: ='IV. Country level, 1310-2018'!C124 -> -10.041 | V128: 5.000 | W128: 0.000 | X128: 5.000 | Y128: ='VIII. Pers. sov. loans, 1312-'!C123 -> 10.396
A129: 1431 | C129: 11.897 | D129: 0.885 | E129: 11.012 | F129: 8.806 | G129: 3.723 | H129: 5.083 | K129: =SUM('IV. Country level, 1310-2018'!AO125:AV125) -> 11.894 | L129: =SUM('IV. Country level, 1310-2018'!AY125:BF125) -> 13.4226 | M129: -1.529 | N129: 9.531 | O129: ='IV. Country level, 1310-2018'!U125 -> 53.776 | P129: ='IV. Country level, 1310-2018'!C125 -> -44.245 | V129: 3.750 | W129: 0.000 | X129: 3.750 | Y129: ='VIII. Pers. sov. loans, 1312-'!C124 -> 11.036
A130: 1432 | C130: 12.066 | D130: 1.707 | E130: 10.359 | F130: 9.357 | G130: 7.986 | H130: 1.371 | K130: =SUM('IV. Country level, 1310-2018'!AO126:AV126) -> 12.179 | L130: =SUM('IV. Country level, 1310-2018'!AY126:BF126) -> 6.0008 | M130: 6.178 | N130: 9.924 | O130: ='IV. Country level, 1310-2018'!U126 -> 12.590 | P130: ='IV. Country level, 1310-2018'!C126 -> -2.667 | V130: 6.111 | W130: 0.780 | X130: 5.330 | Y130: ='VIII. Pers. sov. loans, 1312-'!C125 -> 11.036
A131: 1433 | C131: 12.310 | D131: 3.089 | E131: 9.221 | F131: 9.956 | G131: 13.093 | H131: -3.137 | K131: =SUM('IV. Country level, 1310-2018'!AO127:AV127) -> 12.356 | L131: =SUM('IV. Country level, 1310-2018'!AY127:BF127) -> -6.2960 | M131: 18.652 | N131: 9.768 | O131: ='IV. Country level, 1310-2018'!U127 -> -33.747 | P131: ='IV. Country level, 1310-2018'!C127 -> 43.514 | V131: 4.500 | W131: -2.407 | X131: 6.907 | Y131: ='VIII. Pers. sov. loans, 1312-'!C126 -> 11.761
A132: 1434 | C132: 12.389 | D132: 3.277 | E132: 9.112 | F132: 10.367 | G132: 7.436 | H132: 2.931 | K132: =SUM('IV. Country level, 1310-2018'!AO128:AV128) -> 12.565 | L132: =SUM('IV. Country level, 1310-2018'!AY128:BF128) -> -13.7493 | M132: 26.314 | N132: 10.232 | O132: ='IV. Country level, 1310-2018'!U128 -> -3.999 | P132: ='IV. Country level, 1310-2018'!C128 -> 14.231 | V132: 6.666 | W132: 2.279 | X132: 4.387 | Y132: ='VIII. Pers. sov. loans, 1312-'!C127 -> 10.213
A133: 1435 | C133: 12.424 | D133: 1.706 | E133: 10.718 | F133: 10.647 | G133: -1.657 | H133: 12.304 | K133: =SUM('IV. Country level, 1310-2018'!AO129:AV129) -> 12.762 | L133: =SUM('IV. Country level, 1310-2018'!AY129:BF129) -> 2.1651 | M133: 10.597 | N133: 10.831 | O133: ='IV. Country level, 1310-2018'!U129 -> 13.168 | P133: ='IV. Country level, 1310-2018'!C129 -> -2.337 | V133: 5.000 | W133: 1.946 | X133: 3.054 | Y133: ='VIII. Pers. sov. loans, 1312-'!C128 -> 10.566
A134: 1436 | C134: 12.589 | D134: 1.281 | E134: 11.308 | F134: 11.470 | G134: 1.324 | H134: 10.146 | K134: =SUM('IV. Country level, 1310-2018'!AO130:AV130) -> 13.000 | L134: =SUM('IV. Country level, 1310-2018'!AY130:BF130) -> 13.4112 | M134: -0.411 | N134: 11.199 | O134: ='IV. Country level, 1310-2018'!U130 -> 31.615 | P134: ='IV. Country level, 1310-2018'!C130 -> -20.416 | V134: 6.666 | W134: -1.102 | X134: 7.768 | Y134: ='VIII. Pers. sov. loans, 1312-'!C129 -> 11.351
A135: 1437 | C135: 12.786 | D135: 1.082 | E135: 11.704 | F135: 12.529 | G135: 7.765 | H135: 4.763 | K135: =SUM('IV. Country level, 1310-2018'!AO131:AV131) -> 11.966 | L135: =SUM('IV. Country level, 1310-2018'!AY131:BF131) -> 7.9824 | M135: 3.983 | N135: 11.087 | O135: ='IV. Country level, 1310-2018'!U131 -> -21.351 | P135: ='IV. Country level, 1310-2018'!C131 -> 32.438 | V135: 5.416 | W135: 1.292 | X135: 4.124 | Y135: ='VIII. Pers. sov. loans, 1312-'!C130 -> 12.475
A136: 1438 | C136: 12.974 | D136: 3.196 | E136: 9.778 | F136: 13.602 | G136: 9.791 | H136: 3.811 | K136: =SUM('IV. Country level, 1310-2018'!AO132:AV132) -> 12.141 | L136: =SUM('IV. Country level, 1310-2018'!AY132:BF132) -> 2.4300 | M136: 9.711 | N136: 11.488 | O136: ='IV. Country level, 1310-2018'!U132 -> -9.874 | P136: ='IV. Country level, 1310-2018'!C132 -> 21.362 | V136: 5.000 | W136: -1.241 | X136: 6.241 | Y136: ='VIII. Pers. sov. loans, 1312-'!C131 -> 11.769
A137: 1439 | C137: 13.145 | D137: 3.531 | E137: 9.614 | F137: 14.612 | G137: 8.354 | H137: 6.257 | K137: =SUM('IV. Country level, 1310-2018'!AO133:AV133) -> 13.332 | L137: =SUM('IV. Country level, 1310-2018'!AY133:BF133) -> 3.0233 | M137: 10.309 | N137: 15.684 | O137: ='IV. Country level, 1310-2018'!U133 -> 33.455 | P137: ='IV. Country level, 1310-2018'!C133 -> -17.771 | V137: 10.833 | W137: -0.158 | X137: 10.991 | Y137: ='VIII. Pers. sov. loans, 1312-'!C132 -> 11.276
A138: 1440 | C138: 13.162 | D138: -0.372 | E138: 13.534 | F138: 15.321 | G138: -3.283 | H138: 18.603 | K138: =SUM('IV. Country level, 1310-2018'!AO134:AV134) -> 13.737 | L138: =SUM('IV. Country level, 1310-2018'!AY134:BF134) -> -7.6852 | M138: 21.422 | N138: 17.179 | O138: ='IV. Country level, 1310-2018'!U134 -> 11.341 | P138: ='IV. Country level, 1310-2018'!C134 -> 5.838 | V138: 6.908 | W138: -0.227 | X138: 7.134 | Y138: ='VIII. Pers. sov. loans, 1312-'!C133 -> 10.421
A139: 1441 | C139: 13.319 | D139: -1.256 | E139: 14.575 | F139: 15.894 | G139: 2.580 | H139: 13.314 | K139: =SUM('IV. Country level, 1310-2018'!AO135:AV135) -> 13.878 | L139: =SUM('IV. Country level, 1310-2018'!AY135:BF135) -> 1.0454 | M139: 12.833 | N139: 17.743 | O139: ='IV. Country level, 1310-2018'!U135 -> 10.181 | P139: ='IV. Country level, 1310-2018'!C135 -> 7.562 | V139: 5.000 | W139: 2.816 | X139: 2.184 | Y139: ='VIII. Pers. sov. loans, 1312-'!C134 -> 10.819
A140: 1442 | C140: 13.347 | D140: -2.270 | E140: 15.617 | F140: 16.102 | G140: 1.790 | H140: 14.312 | K140: =SUM('IV. Country level, 1310-2018'!AO136:AV136) -> 13.964 | L140: =SUM('IV. Country level, 1310-2018'!AY136:BF136) -> 4.5132 | M140: 9.451 | N140: 17.903 | O140: ='IV. Country level, 1310-2018'!U136 -> 3.113 | P140: ='IV. Country level, 1310-2018'!C136 -> 14.789 | V140: 5.000 | W140: -0.140 | X140: 5.140 | Y140: ='VIII. Pers. sov. loans, 1312-'!C135 -> 10.819
A141: 1443 | C141: 13.557 | D141: -2.619 | E141: 16.176 | F141: 15.895 | G141: -4.101 | H141: 19.996 | K141: =SUM('IV. Country level, 1310-2018'!AO137:AV137) -> 13.114 | L141: =SUM('IV. Country level, 1310-2018'!AY137:BF137) -> -13.9123 | M141: =K141-L141 -> 27.027 | N141: 16.161 | O141: ='IV. Country level, 1310-2018'!U137 -> -49.844 | P141: ='IV. Country level, 1310-2018'!C137 -> 66.005 | V141: 5.000 | W141: 1.554 | X141: 3.446 | Y141: ='VIII. Pers. sov. loans, 1312-'!C136 -> 12.192
A142: 1444 | C142: 13.658 | D142: -0.260 | E142: 13.917 | F142: 15.625 | G142: -1.515 | H142: 17.139 | K142: =SUM('IV. Country level, 1310-2018'!AO138:AV138) -> 13.067 | L142: =SUM('IV. Country level, 1310-2018'!AY138:BF138) -> 1.7962 | M142: 11.271 | N142: 15.098 | O142: ='IV. Country level, 1310-2018'!U138 -> 19.689 | P142: ='IV. Country level, 1310-2018'!C138 -> -4.590 | V142: 5.000 | W142: -1.194 | X142: 6.194 | Y142: ='VIII. Pers. sov. loans, 1312-'!C137 -> 10.672
A143: 1445 | C143: 13.717 | D143: -1.448 | E143: 15.165 | F143: 15.221 | G143: -2.307 | H143: 17.528 | K143: =SUM('IV. Country level, 1310-2018'!AO139:AV139) -> 12.335 | L143: =SUM('IV. Country level, 1310-2018'!AY139:BF139) -> -4.6699 | M143: 17.005 | N143: 12.946 | O143: ='IV. Country level, 1310-2018'!U139 -> -15.406 | P143: ='IV. Country level, 1310-2018'!C139 -> 28.351 | V143: 4.583 | W143: 0.096 | X143: 4.487 | Y143: ='VIII. Pers. sov. loans, 1312-'!C138 -> 11.630
A144: 1446 | C144: =AVERAGE(K141:K147) -> 13.681 | D144: =AVERAGE(L141:L147) -> -1.502 | E144: =AVERAGE(M141:M147) -> 15.183 | F144: =AVERAGE(N141:N147) -> 14.726 | G144: =AVERAGE(O141:O147) -> -3.413 | H144: =AVERAGE(P141:P147) -> 18.140 | K144: =SUM('IV. Country level, 1310-2018'!AO140:AV140) -> 14.803 | L144: =SUM('IV. Country level, 1310-2018'!AY140:BF140) -> 0.5793 | M144: 14.224 | N144: 14.236 | O144: ='IV. Country level, 1310-2018'!U140 -> -7.779 | P144: ='IV. Country level, 1310-2018'!C140 -> 22.015 | V144: 5.000 | W144: -1.330 | X144: 6.330 | Y144: ='VIII. Pers. sov. loans, 1312-'!C139 -> 13.227
A145: 1447 | C145: 13.714 | D145: 0.022 | E145: 13.691 | F145: 14.474 | G145: 2.871 | H145: 11.603 | K145: =SUM('IV. Country level, 1310-2018'!AO141:AV141) -> 14.441 | L145: =SUM('IV. Country level, 1310-2018'!AY141:BF141) -> 8.8312 | M145: 5.610 | N145: 15.285 | O145: ='IV. Country level, 1310-2018'!U141 -> 29.442 | P145: ='IV. Country level, 1310-2018'!C141 -> -14.158 | V145: 5.000 | W145: -0.191 | X145: 5.191 | Y145: ='VIII. Pers. sov. loans, 1312-'!C140 -> 15.918
A146: 1448 | C146: 13.763 | D146: 0.303 | E146: 13.460 | F146: 14.546 | G146: 1.522 | H146: 13.024 | K146: =SUM('IV. Country level, 1310-2018'!AO142:AV142) -> 14.291 | L146: =SUM('IV. Country level, 1310-2018'!AY142:BF142) -> -7.2765 | M146: 21.568 | N146: 14.920 | O146: ='IV. Country level, 1310-2018'!U142 -> 4.638 | P146: ='IV. Country level, 1310-2018'!C142 -> 10.282 | V146: 5.000 | W146: -3.324 | X146: 8.324 | Y146: ='VIII. Pers. sov. loans, 1312-'!C141 -> 15.401
A147: 1449 | C147: 13.952 | D147: 1.144 | E147: 12.808 | F147: 14.931 | G147: 4.756 | H147: 10.175 | K147: =SUM('IV. Country level, 1310-2018'!AO143:AV143) -> 13.714 | L147: =SUM('IV. Country level, 1310-2018'!AY143:BF143) -> 4.1352 | M147: 9.579 | N147: 14.438 | O147: ='IV. Country level, 1310-2018'!U143 -> -4.635 | P147: ='IV. Country level, 1310-2018'!C143 -> 19.073 | V147: 5.000 | W147: -1.544 | X147: 6.544 | Y147: ='VIII. Pers. sov. loans, 1312-'!C142 -> 15.583
A148: 1450 | C148: 13.811 | D148: 1.102 | E148: 12.709 | F148: 15.152 | G148: 5.903 | H148: 9.249 | K148: =SUM('IV. Country level, 1310-2018'!AO144:AV144) -> 13.342 | L148: =SUM('IV. Country level, 1310-2018'!AY144:BF144) -> -3.2388 | M148: 16.581 | N148: 14.396 | O148: ='IV. Country level, 1310-2018'!U144 -> -5.851 | P148: ='IV. Country level, 1310-2018'!C144 -> 20.247 | V148: 7.333 | W148: 0.565 | X148: 6.768 | Y148: ='VIII. Pers. sov. loans, 1312-'!C143 -> 12.976
A149: 1451 | C149: 13.692 | D149: -0.739 | E149: 14.430 | F149: 15.256 | G149: 0.730 | H149: 14.525 | K149: =SUM('IV. Country level, 1310-2018'!AO145:AV145) -> 13.416 | L149: =SUM('IV. Country level, 1310-2018'!AY145:BF145) -> 3.7608 | M149: 9.655 | N149: 15.599 | O149: ='IV. Country level, 1310-2018'!U145 -> 10.242 | P149: ='IV. Country level, 1310-2018'!C145 -> 5.357 | V149: 5.833 | W149: 0.274 | X149: 5.559 | Y149: ='VIII. Pers. sov. loans, 1312-'!C144 -> 12.976
A150: 1452 | C150: 13.602 | D150: 1.273 | E150: 12.329 | F150: 15.409 | G150: 1.123 | H150: 14.286 | K150: =SUM('IV. Country level, 1310-2018'!AO146:AV146) -> 13.657 | L150: =SUM('IV. Country level, 1310-2018'!AY146:BF146) -> 1.2177 | M150: 12.440 | N150: 15.644 | O150: ='IV. Country level, 1310-2018'!U146 -> 7.236 | P150: ='IV. Country level, 1310-2018'!C146 -> 8.408 | V150: 4.333 | W150: 6.567 | X150: -2.235 | Y150: ='VIII. Pers. sov. loans, 1312-'!C145 -> 12.976
A151: 1453 | C151: 13.593 | D151: 2.901 | E151: 10.692 | F151: 15.639 | G151: 7.148 | H151: 8.492 | K151: =SUM('IV. Country level, 1310-2018'!AO147:AV147) -> 13.815 | L151: =SUM('IV. Country level, 1310-2018'!AY147:BF147) -> 0.2841 | M151: 13.531 | N151: 15.783 | O151: ='IV. Country level, 1310-2018'!U147 -> 0.248 | P151: ='IV. Country level, 1310-2018'!C147 -> 15.535 | V151: 4.555 | W151: 2.381 | X151: 2.174 | Y151: ='VIII. Pers. sov. loans, 1312-'!C146 -> 12.976
A152: 1454 | C152: 13.640 | D152: 2.838 | E152: 10.802 | F152: 15.954 | G152: 7.148 | H152: 8.806 | K152: =SUM('IV. Country level, 1310-2018'!AO148:AV148) -> 13.605 | L152: =SUM('IV. Country level, 1310-2018'!AY148:BF148) -> -4.0531 | M152: 17.658 | N152: 16.010 | O152: ='IV. Country level, 1310-2018'!U148 -> -6.765 | P152: ='IV. Country level, 1310-2018'!C148 -> 22.775 | V152: 5.556 | W152: -5.807 | X152: 11.362 | Y152: ='VIII. Pers. sov. loans, 1312-'!C147 -> 12.000
A153: 1455 | C153: 13.601 | D153: 0.536 | E153: 13.065 | F153: 15.863 | G153: 1.750 | H153: 14.113 | K153: =SUM('IV. Country level, 1310-2018'!AO149:AV149) -> 13.661 | L153: =SUM('IV. Country level, 1310-2018'!AY149:BF149) -> 6.8041 | M153: 6.857 | N153: =P153+O153 -> 15.994 | O153: ='IV. Country level, 1310-2018'!U149 -> 7.384 | P153: ='IV. Country level, 1310-2018'!C149 -> 8.610 | V153: 5.000 | W153: 2.272 | X153: =V153-W153 -> 2.728 | Y153: ='VIII. Pers. sov. loans, 1312-'!C148 -> 11.667
A154: 1456 | C154: 13.474 | D154: -0.369 | E154: 13.843 | F154: 15.561 | G154: -2.891 | H154: 18.452 | K154: =SUM('IV. Country level, 1310-2018'!AO150:AV150) -> 13.657 | L154: =SUM('IV. Country level, 1310-2018'!AY150:BF150) -> 15.5346 | M154: -1.878 | N154: =P154+O154 -> 16.050 | O154: ='IV. Country level, 1310-2018'!U150 -> 37.542 | P154: ='IV. Country level, 1310-2018'!C150 -> -21.492 | V154: 5.000 | W154: 1.675 | X154: 3.325 | Y154: ='VIII. Pers. sov. loans, 1312-'!C149 -> 12.914
A155: 1457 | C155: 13.238 | D155: -0.892 | E155: 14.130 | F155: 15.002 | G155: -3.835 | H155: 18.837 | K155: =SUM('IV. Country level, 1310-2018'!AO151:AV151) -> 13.668 | L155: =SUM('IV. Country level, 1310-2018'!AY151:BF151) -> -3.6815 | M155: 17.349 | N155: 16.599 | O155: ='IV. Country level, 1310-2018'!U151 -> -5.852 | P155: ='IV. Country level, 1310-2018'!C151 -> 22.451 | V155: 5.824 | W155: 1.034 | X155: 4.790 | Y155: ='VIII. Pers. sov. loans, 1312-'!C150 -> 15.410
A156: 1458 | C156: 13.059 | D156: -0.328 | E156: 13.387 | F156: 14.523 | G156: -2.914 | H156: 17.436 | K156: =SUM('IV. Country level, 1310-2018'!AO152:AV152) -> 13.146 | L156: =SUM('IV. Country level, 1310-2018'!AY152:BF152) -> -12.3533 | M156: 25.500 | N156: 14.960 | O156: ='IV. Country level, 1310-2018'!U152 -> -27.543 | P156: ='IV. Country level, 1310-2018'!C152 -> 42.503 | V156: 7.500 | W156: 5.651 | X156: 1.849 | Y156: ='VIII. Pers. sov. loans, 1312-'!C151 -> 15.410
A157: 1459 | C157: 12.867 | D157: -1.291 | E157: 14.158 | F157: 14.082 | G157: -3.459 | H157: 17.540 | K157: =SUM('IV. Country level, 1310-2018'!AO153:AV153) -> 12.768 | L157: =SUM('IV. Country level, 1310-2018'!AY153:BF153) -> -5.1163 | M157: 17.885 | N157: 13.531 | O157: ='IV. Country level, 1310-2018'!U153 -> -25.248 | P157: ='IV. Country level, 1310-2018'!C153 -> 38.779 | V157: 5.000 | W157: -1.313 | X157: 6.313 | Y157: ='VIII. Pers. sov. loans, 1312-'!C152 -> 15.410
A158: 1460 | C158: 12.704 | D158: -2.698 | E158: 15.402 | F158: 13.668 | G158: -3.591 | H158: 17.259 | K158: =SUM('IV. Country level, 1310-2018'!AO154:AV154) -> 12.160 | L158: =SUM('IV. Country level, 1310-2018'!AY154:BF154) -> -3.3814 | M158: 15.542 | N158: 11.874 | O158: ='IV. Country level, 1310-2018'!U154 -> -6.360 | P158: ='IV. Country level, 1310-2018'!C154 -> 18.234 | V158: 2.500 | W158: -1.467 | X158: 3.967 | Y158: ='VIII. Pers. sov. loans, 1312-'!C153 -> 15.410
A159: 1461 | C159: 12.524 | D159: -1.305 | E159: 13.829 | F159: 13.182 | G159: 1.083 | H159: 12.098 | K159: =SUM('IV. Country level, 1310-2018'!AO155:AV155) -> 12.353 | L159: =SUM('IV. Country level, 1310-2018'!AY155:BF155) -> -0.1006 | M159: 12.454 | N159: 12.652 | O159: ='IV. Country level, 1310-2018'!U155 -> -0.318 | P159: ='IV. Country level, 1310-2018'!C155 -> 12.970 | V159: 5.000 | W159: -2.433 | X159: 7.433 | Y159: ='VIII. Pers. sov. loans, 1312-'!C154 -> 15.410
A160: 1462 | C160: 12.417 | D160: 0.915 | E160: 11.501 | F160: 12.902 | G160: 6.063 | H160: 6.839 | K160: =SUM('IV. Country level, 1310-2018'!AO156:AV156) -> 12.313 | L160: =SUM('IV. Country level, 1310-2018'!AY156:BF156) -> 0.0586 | M160: 12.255 | N160: 12.905 | O160: ='IV. Country level, 1310-2018'!U156 -> 3.566 | P160: ='IV. Country level, 1310-2018'!C156 -> 9.338 | V160: 8.500 | W160: -3.717 | X160: 12.217 | Y160: ='VIII. Pers. sov. loans, 1312-'!C155 -> 15.410
A161: 1463 | C161: 12.450 | D161: 1.101 | E161: 11.349 | F161: 13.130 | G161: 7.171 | H161: 5.959 | K161: =SUM('IV. Country level, 1310-2018'!AO157:AV157) -> 12.522 | L161: =SUM('IV. Country level, 1310-2018'!AY157:BF157) -> 5.6905 | M161: 6.832 | N161: 13.153 | O161: ='IV. Country level, 1310-2018'!U157 -> 36.616 | P161: ='IV. Country level, 1310-2018'!C157 -> -23.464 | V161: 5.000 | W161: -3.414 | X161: 8.414 | Y161: ='VIII. Pers. sov. loans, 1312-'!C156 -> 15.109
A162: 1464 | C162: 12.592 | D162: 1.809 | E162: 10.783 | F162: 13.686 | G162: 7.082 | H162: 6.604 | K162: =SUM('IV. Country level, 1310-2018'!AO158:AV158) -> 12.403 | L162: =SUM('IV. Country level, 1310-2018'!AY158:BF158) -> 6.0670 | M162: 6.336 | N162: 13.198 | O162: ='IV. Country level, 1310-2018'!U158 -> 26.869 | P162: ='IV. Country level, 1310-2018'!C158 -> -13.671 | V162: 5.167 | W162: -3.508 | X162: 8.674 | Y162: ='VIII. Pers. sov. loans, 1312-'!C157 -> 14.809
A163: 1465 | C163: 12.713 | D163: 1.862 | E163: 10.851 | F163: 14.188 | G163: 6.752 | H163: 7.437 | K163: =SUM('IV. Country level, 1310-2018'!AO159:AV159) -> 12.397 | L163: =SUM('IV. Country level, 1310-2018'!AY159:BF159) -> 3.1900 | M163: 9.207 | N163: 13.004 | O163: ='IV. Country level, 1310-2018'!U159 -> 7.314 | P163: ='IV. Country level, 1310-2018'!C159 -> 5.690 | V163: 5.333 | W163: 2.074 | X163: 3.259 | Y163: ='VIII. Pers. sov. loans, 1312-'!C158 -> 14.508
A164: 1466 | C164: 12.851 | D164: 2.204 | E164: 10.647 | F164: 14.713 | G164: 5.756 | H164: 8.957 | K164: =SUM('IV. Country level, 1310-2018'!AO160:AV160) -> 12.999 | L164: =SUM('IV. Country level, 1310-2018'!AY160:BF160) -> -3.8197 | M164: 16.819 | N164: 15.127 | O164: ='IV. Country level, 1310-2018'!U160 -> -17.490 | P164: ='IV. Country level, 1310-2018'!C160 -> 32.618 | V164: 5.833 | W164: 3.550 | X164: 2.283 | Y164: ='VIII. Pers. sov. loans, 1312-'!C159 -> 14.208
A165: 1467 | C165: 12.971 | D165: 0.455 | E165: 12.516 | F165: 15.261 | G165: -1.039 | H165: 16.300 | K165: =SUM('IV. Country level, 1310-2018'!AO161:AV161) -> 13.160 | L165: =SUM('IV. Country level, 1310-2018'!AY161:BF161) -> 1.5776 | M165: 11.582 | N165: 15.763 | O165: ='IV. Country level, 1310-2018'!U161 -> -6.985 | P165: ='IV. Country level, 1310-2018'!C161 -> 22.748 | V165: 4.722 | W165: 0.517 | X165: 4.205 | Y165: ='VIII. Pers. sov. loans, 1312-'!C160 -> 13.907
A166: 1468 | C166: 13.145 | D166: -0.304 | E166: 13.450 | F166: 15.952 | G166: -4.655 | H166: 20.607 | K166: =SUM('IV. Country level, 1310-2018'!AO162:AV162) -> 13.196 | L166: =SUM('IV. Country level, 1310-2018'!AY162:BF162) -> 0.2706 | M166: 12.925 | N166: 16.170 | O166: ='IV. Country level, 1310-2018'!U162 -> -2.628 | P166: ='IV. Country level, 1310-2018'!C162 -> 18.798 | V166: 6.167 | W166: -1.394 | X166: 7.561 | Y166: ='VIII. Pers. sov. loans, 1312-'!C161 -> 13.607
A167: 1469 | C167: 13.369 | D167: -0.821 | E167: 14.190 | F167: 16.823 | G167: -5.084 | H167: 21.907 | K167: =SUM('IV. Country level, 1310-2018'!AO163:AV163) -> 13.281 | L167: =SUM('IV. Country level, 1310-2018'!AY163:BF163) -> 2.4494 | M167: 10.832 | N167: 16.577 | O167: ='IV. Country level, 1310-2018'!U163 -> -3.404 | P167: ='IV. Country level, 1310-2018'!C163 -> 19.982 | V167: 7.708 | W167: 9.260 | X167: -1.551 | Y167: ='VIII. Pers. sov. loans, 1312-'!C162 -> 13.306
A168: 1470 | C168: 13.462 | D168: 1.635 | E168: 11.826 | F168: 17.390 | G168: 1.905 | H168: 15.485 | K168: =SUM('IV. Country level, 1310-2018'!AO164:AV164) -> 13.364 | L168: =SUM('IV. Country level, 1310-2018'!AY164:BF164) -> -6.5483 | M168: 19.912 | N168: 16.985 | O168: ='IV. Country level, 1310-2018'!U164 -> -10.953 | P168: ='IV. Country level, 1310-2018'!C164 -> 27.937 | V168: 3.391 | W168: -6.894 | X168: 10.285 | Y168: ='VIII. Pers. sov. loans, 1312-'!C163 -> 13.006
A169: 1471 | C169: 13.526 | D169: 2.452 | E169: 11.074 | F169: 17.866 | G169: 6.478 | H169: 11.388 | K169: =SUM('IV. Country level, 1310-2018'!AO165:AV165) -> 13.621 | L169: =SUM('IV. Country level, 1310-2018'!AY165:BF165) -> 0.7498 | M169: 12.871 | N169: 18.041 | O169: ='IV. Country level, 1310-2018'!U165 -> 1.562 | P169: ='IV. Country level, 1310-2018'!C165 -> 16.479 | V169: 3.000 | W169: -5.105 | X169: 8.105 | Y169: ='VIII. Pers. sov. loans, 1312-'!C164 -> 12.705
A170: 1472 | C170: 13.619 | D170: 1.874 | E170: 11.745 | F170: 18.299 | G170: 6.329 | H170: 11.970 | K170: =SUM('IV. Country level, 1310-2018'!AO166:AV166) -> 13.965 | L170: =SUM('IV. Country level, 1310-2018'!AY166:BF166) -> -0.4251 | M170: 14.390 | N170: 19.097 | O170: ='IV. Country level, 1310-2018'!U166 -> 4.309 | P170: ='IV. Country level, 1310-2018'!C166 -> 14.788 | V170: 5.000 | W170: -1.271 | X170: 6.271 | Y170: ='VIII. Pers. sov. loans, 1312-'!C165 -> 12.404
A171: 1473 | C171: 13.676 | D171: 1.274 | E171: 12.402 | F171: 18.673 | G171: 5.556 | H171: 13.117 | K171: =SUM('IV. Country level, 1310-2018'!AO167:AV167) -> 13.647 | L171: =SUM('IV. Country level, 1310-2018'!AY167:BF167) -> 13.3741 | M171: 0.273 | N171: 19.097 | O171: ='IV. Country level, 1310-2018'!U167 -> 31.435 | P171: ='IV. Country level, 1310-2018'!C167 -> -12.338 | V171: 6.444 | W171: -0.758 | X171: 7.202 | Y171: ='VIII. Pers. sov. loans, 1312-'!C166 -> 12.104
A172: 1474 | C172: 13.621 | D172: 3.006 | E172: 10.614 | F172: 18.705 | G172: 8.412 | H172: 10.293 | K172: =SUM('IV. Country level, 1310-2018'!AO168:AV168) -> 13.610 | L172: =SUM('IV. Country level, 1310-2018'!AY168:BF168) -> 7.2964 | M172: 6.313 | N172: 19.097 | O172: ='IV. Country level, 1310-2018'!U168 -> 25.024 | P172: ='IV. Country level, 1310-2018'!C168 -> -5.927 | V172: 3.654 | W172: -4.853 | X172: 8.506 | Y172: ='VIII. Pers. sov. loans, 1312-'!C167 -> 11.803
A173: 1475 | C173: 13.469 | D173: 2.521 | E173: 10.948 | F173: 18.301 | G173: 5.962 | H173: 12.339 | K173: =SUM('IV. Country level, 1310-2018'!AO169:AV169) -> 13.843 | L173: =SUM('IV. Country level, 1310-2018'!AY169:BF169) -> -3.7779 | M173: 17.621 | N173: 19.201 | O173: ='IV. Country level, 1310-2018'!U169 -> -3.670 | P173: ='IV. Country level, 1310-2018'!C169 -> 22.871 | V173: 5.000 | W173: 2.284 | X173: 2.716 | Y173: ='VIII. Pers. sov. loans, 1312-'!C168 -> 11.503
A174: 1476 | C174: 13.173 | D174: 1.510 | E174: 11.663 | F174: 17.463 | G174: 2.441 | H174: 15.022 | K174: =SUM('IV. Country level, 1310-2018'!AO170:AV170) -> 13.682 | L174: =SUM('IV. Country level, 1310-2018'!AY170:BF170) -> -1.7522 | M174: 15.434 | N174: 19.195 | O174: ='IV. Country level, 1310-2018'!U170 -> -8.815 | P174: ='IV. Country level, 1310-2018'!C170 -> 28.010 | V174: 5.000 | W174: -0.228 | X174: 5.228 | Y174: ='VIII. Pers. sov. loans, 1312-'!C169 -> 11.202
A175: 1477 | C175: 12.809 | D175: -1.312 | E175: 14.121 | F175: 16.340 | G175: -3.341 | H175: 19.681 | K175: =SUM('IV. Country level, 1310-2018'!AO171:AV171) -> 12.979 | L175: =SUM('IV. Country level, 1310-2018'!AY171:BF171) -> 5.5797 | M175: 7.399 | N175: 17.206 | O175: ='IV. Country level, 1310-2018'!U171 -> 9.036 | P175: ='IV. Country level, 1310-2018'!C171 -> 8.170 | V175: 5.000 | W175: 10.451 | X175: -5.451 | Y175: ='VIII. Pers. sov. loans, 1312-'!C170 -> 10.902
A176: 1478 | C176: 12.365 | D176: -0.729 | E176: 13.093 | F176: 14.933 | G176: -6.153 | H176: 21.086 | K176: =SUM('IV. Country level, 1310-2018'!AO172:AV172) -> 12.557 | L176: =SUM('IV. Country level, 1310-2018'!AY172:BF172) -> -2.6480 | M176: 15.205 | N176: 15.217 | O176: ='IV. Country level, 1310-2018'!U172 -> -15.582 | P176: ='IV. Country level, 1310-2018'!C172 -> 30.799 | V176: 5.000 | W176: -3.795 | X176: 8.795 | Y176: ='VIII. Pers. sov. loans, 1312-'!C171 -> 10.601
A177: 1479 | C177: 11.804 | D177: 1.739 | E177: 10.066 | F177: 13.228 | G177: -3.537 | H177: 16.764 | K177: =SUM('IV. Country level, 1310-2018'!AO173:AV173) -> 11.892 | L177: =SUM('IV. Country level, 1310-2018'!AY173:BF173) -> -7.5002 | M177: 19.392 | N177: 13.228 | O177: ='IV. Country level, 1310-2018'!U173 -> -20.338 | P177: ='IV. Country level, 1310-2018'!C173 -> 33.566 | V177: 7.500 | W177: 1.434 | X177: 6.066 | Y177: ='VIII. Pers. sov. loans, 1312-'!C172 -> 10.301
A178: 1480 | C178: 11.280 | D178: 3.254 | E178: 8.026 | F178: 11.653 | G178: 5.424 | H178: 6.229 | K178: =SUM('IV. Country level, 1310-2018'!AO174:AV174) -> 11.103 | L178: =SUM('IV. Country level, 1310-2018'!AY174:BF174) -> -6.3801 | M178: 17.483 | N178: 11.238 | O178: ='IV. Country level, 1310-2018'!U174 -> -9.043 | P178: ='IV. Country level, 1310-2018'!C174 -> 20.282 | V178: 5.000 | W178: -1.409 | X178: 6.409 | Y178: ='VIII. Pers. sov. loans, 1312-'!C173 -> 10.000
A179: 1481 | C179: 10.820 | D179: 2.131 | E179: 8.689 | F179: 10.364 | G179: 5.529 | H179: 4.835 | K179: =SUM('IV. Country level, 1310-2018'!AO175:AV175) -> 10.496 | L179: =SUM('IV. Country level, 1310-2018'!AY175:BF175) -> 11.3777 | M179: -0.881 | N179: 9.249 | O179: ='IV. Country level, 1310-2018'!U175 -> 5.345 | P179: ='IV. Country level, 1310-2018'!C175 -> 3.905 | V179: 6.250 | W179: 3.267 | X179: 2.983 | Y179: ='VIII. Pers. sov. loans, 1312-'!C174 -> 8.687
A180: 1482 | C180: 10.417 | D180: 0.932 | E180: 9.485 | F180: 9.358 | G180: 2.311 | H180: 7.047 | K180: =SUM('IV. Country level, 1310-2018'!AO176:AV176) -> 9.920 | L180: =SUM('IV. Country level, 1310-2018'!AY176:BF176) -> 13.4926 | M180: -3.573 | N180: 7.260 | O180: ='IV. Country level, 1310-2018'!U176 -> 14.639 | P180: ='IV. Country level, 1310-2018'!C176 -> -7.379 | V180: 4.946 | W180: 6.351 | X180: -1.405 | Y180: ='VIII. Pers. sov. loans, 1312-'!C175 -> 8.687
A181: 1483 | C181: 10.090 | D181: 2.473 | E181: 7.618 | F181: 8.636 | G181: 4.808 | H181: 3.829 | K181: =SUM('IV. Country level, 1310-2018'!AO177:AV177) -> 10.011 | L181: =SUM('IV. Country level, 1310-2018'!AY177:BF177) -> 8.8537 | M181: 1.158 | N181: 8.177 | O181: ='IV. Country level, 1310-2018'!U177 -> 53.912 | P181: ='IV. Country level, 1310-2018'!C177 -> -45.735 | V181: 26.281 | W181: -6.573 | X181: 32.854 | Y181: ='VIII. Pers. sov. loans, 1312-'!C176 -> 7.904
A182: 1484 | C182: 9.871 | D182: 3.945 | E182: 5.927 | F182: 8.199 | G182: 8.156 | H182: 0.043 | K182: =SUM('IV. Country level, 1310-2018'!AO178:AV178) -> 9.763 | L182: =SUM('IV. Country level, 1310-2018'!AY178:BF178) -> -2.2756 | M182: 12.039 | N182: 8.177 | O182: ='IV. Country level, 1310-2018'!U178 -> 9.770 | P182: ='IV. Country level, 1310-2018'!C178 -> -1.593 | V182: 6.867 | W182: -2.787 | X182: 9.654 | Y182: ='VIII. Pers. sov. loans, 1312-'!C177 -> 7.387
A183: 1485 | C183: 9.720 | D183: 2.036 | E183: 7.683 | F183: 8.046 | G183: 6.901 | H183: 1.144 | K183: =SUM('IV. Country level, 1310-2018'!AO179:AV179) -> 9.732 | L183: =SUM('IV. Country level, 1310-2018'!AY179:BF179) -> -11.0453 | M183: 20.777 | N183: 8.177 | O183: ='IV. Country level, 1310-2018'!U179 -> -38.106 | P183: ='IV. Country level, 1310-2018'!C179 -> 46.282 | V183: 14.758 | W183: 0.477 | X183: 14.281 | Y183: ='VIII. Pers. sov. loans, 1312-'!C178 -> 7.387
A184: 1486 | C184: 9.698 | D184: 0.426 | E184: 9.272 | F184: 8.308 | G184: 4.842 | H184: 3.465 | K184: =SUM('IV. Country level, 1310-2018'!AO180:AV180) -> 9.608 | L184: =SUM('IV. Country level, 1310-2018'!AY180:BF180) -> 3.2860 | M184: 6.322 | N184: 8.177 | O184: ='IV. Country level, 1310-2018'!U180 -> -2.863 | P184: ='IV. Country level, 1310-2018'!C180 -> 11.039 | V184: 5.000 | W184: 0.541 | X184: 4.459 | Y184: ='VIII. Pers. sov. loans, 1312-'!C179 -> 7.822
A185: 1487 | C185: 9.666 | D185: -0.987 | E185: 10.653 | F185: 8.439 | G185: -4.990 | H185: 13.429 | K185: =SUM('IV. Country level, 1310-2018'!AO181:AV181) -> 9.570 | L185: =SUM('IV. Country level, 1310-2018'!AY181:BF181) -> 3.9246 | M185: 5.645 | N185: 8.177 | O185: ='IV. Country level, 1310-2018'!U181 -> 14.392 | P185: ='IV. Country level, 1310-2018'!C181 -> -6.216 | V185: 5.000 | W185: 0.368 | X185: 4.632 | Y185: ='VIII. Pers. sov. loans, 1312-'!C180 -> 7.387
A186: 1488 | C186: 9.662 | D186: 0.025 | E186: 9.637 | F186: 8.570 | G186: -6.446 | H186: 15.015 | K186: =SUM('IV. Country level, 1310-2018'!AO182:AV182) -> 9.433 | L186: =SUM('IV. Country level, 1310-2018'!AY182:BF182) -> -1.9823 | M186: 11.416 | N186: 8.177 | O186: ='IV. Country level, 1310-2018'!U182 -> -3.435 | P186: ='IV. Country level, 1310-2018'!C182 -> 11.612 | V186: 5.000 | W186: -0.525 | X186: 5.525 | Y186: ='VIII. Pers. sov. loans, 1312-'!C181 -> 6.517
A187: 1489 | C187: 9.654 | D187: 0.635 | E187: 9.019 | F187: 8.700 | G187: -3.222 | H187: 11.923 | K187: =SUM('IV. Country level, 1310-2018'!AO183:AV183) -> 9.765 | L187: =SUM('IV. Country level, 1310-2018'!AY183:BF183) -> 2.2195 | M187: 7.546 | N187: 9.093 | O187: ='IV. Country level, 1310-2018'!U183 -> 0.227 | P187: ='IV. Country level, 1310-2018'!C183 -> 8.866 | V187: 5.000 | W187: 10.976 | X187: -5.976 | Y187: ='VIII. Pers. sov. loans, 1312-'!C182 -> 6.517
A188: 1490 | C188: 9.672 | D188: -0.626 | E188: 10.299 | F188: 8.878 | G188: -3.282 | H188: 12.160 | K188: =SUM('IV. Country level, 1310-2018'!AO184:AV184) -> 9.789 | L188: =SUM('IV. Country level, 1310-2018'!AY184:BF184) -> -1.0340 | M188: 10.823 | N188: 9.093 | O188: ='IV. Country level, 1310-2018'!U184 -> -14.918 | P188: ='IV. Country level, 1310-2018'!C184 -> 24.011 | V188: 10.606 | W188: 5.195 | X188: 5.411 | Y188: ='VIII. Pers. sov. loans, 1312-'!C183 -> 6.460
A189: 1491 | C189: 9.645 | D189: -0.049 | E189: 9.694 | F189: 9.056 | G189: -0.258 | H189: 9.314 | K189: =SUM('IV. Country level, 1310-2018'!AO185:AV185) -> 9.736 | L189: =SUM('IV. Country level, 1310-2018'!AY185:BF185) -> 4.8064 | M189: 4.930 | N189: 9.093 | O189: ='IV. Country level, 1310-2018'!U185 -> -0.418 | P189: ='IV. Country level, 1310-2018'!C185 -> 9.511 | V189: 5.000 | W189: 3.298 | X189: 1.702 | Y189: ='VIII. Pers. sov. loans, 1312-'!C184 -> 8.131
A190: 1492 | C190: 9.567 | D190: 0.517 | E190: 9.051 | F190: 9.023 | G190: 1.906 | H190: 7.117 | K190: =SUM('IV. Country level, 1310-2018'!AO186:AV186) -> 9.676 | L190: =SUM('IV. Country level, 1310-2018'!AY186:BF186) -> -6.7755 | M190: 16.451 | N190: 9.093 | O190: ='IV. Country level, 1310-2018'!U186 -> -15.541 | P190: ='IV. Country level, 1310-2018'!C186 -> 24.635 | V190: 5.808 | W190: -7.470 | X190: 13.278 | Y190: ='VIII. Pers. sov. loans, 1312-'!C185 -> 8.131
A191: 1493 | C191: 9.440 | D191: 1.449 | E191: 7.991 | F191: 8.903 | G191: 6.347 | H191: 2.556 | K191: =SUM('IV. Country level, 1310-2018'!AO187:AV187) -> 9.736 | L191: =SUM('IV. Country level, 1310-2018'!AY187:BF187) -> -5.5436 | M191: 15.279 | N191: 9.421 | O191: ='IV. Country level, 1310-2018'!U187 -> -3.280 | P191: ='IV. Country level, 1310-2018'!C187 -> 12.701 | V191: 5.000 | W191: 3.575 | X191: 1.425 | Y191: ='VIII. Pers. sov. loans, 1312-'!C186 -> 6.881
A192: 1494 | C192: 9.328 | D192: 4.483 | E192: 4.845 | F192: 8.827 | G192: 16.378 | H192: -7.551 | K192: =SUM('IV. Country level, 1310-2018'!AO188:AV188) -> 9.377 | L192: =SUM('IV. Country level, 1310-2018'!AY188:BF188) -> 7.9641 | M192: 1.413 | N192: 9.421 | O192: ='IV. Country level, 1310-2018'!U188 -> 35.562 | P192: ='IV. Country level, 1310-2018'!C188 -> -26.141 | V192: 5.000 | W192: -3.307 | X192: 8.307 | Y192: ='VIII. Pers. sov. loans, 1312-'!C187 -> 6.505
A193: 1495 | C193: 9.230 | D193: 1.625 | E193: 7.605 | F193: 8.794 | G193: 10.523 | H193: -1.729 | K193: =SUM('IV. Country level, 1310-2018'!AO189:AV189) -> 8.892 | L193: =SUM('IV. Country level, 1310-2018'!AY189:BF189) -> 1.9788 | M193: 6.913 | N193: 7.948 | O193: ='IV. Country level, 1310-2018'!U189 -> 11.709 | P193: ='IV. Country level, 1310-2018'!C189 -> -3.762 | V193: 6.364 | W193: -4.448 | X193: 10.811 | Y193: ='VIII. Pers. sov. loans, 1312-'!C188 -> 6.180
A194: 1496 | C194: 9.162 | D194: 1.369 | E194: 7.794 | F194: 8.805 | G194: 9.916 | H194: -1.111 | K194: =SUM('IV. Country level, 1310-2018'!AO190:AV190) -> 8.873 | L194: =SUM('IV. Country level, 1310-2018'!AY190:BF190) -> 8.7473 | M194: 0.126 | N194: 8.253 | O194: ='IV. Country level, 1310-2018'!U190 -> 31.314 | P194: ='IV. Country level, 1310-2018'!C190 -> -23.060 | V194: 5.000 | W194: 6.874 | X194: -1.874 | Y194: ='VIII. Pers. sov. loans, 1312-'!C189 -> 6.180
A195: 1497 | C195: 9.113 | D195: 2.787 | E195: 6.326 | F195: 8.860 | G195: 9.909 | H195: -1.049 | K195: =SUM('IV. Country level, 1310-2018'!AO191:AV191) -> 9.009 | L195: =SUM('IV. Country level, 1310-2018'!AY191:BF191) -> 20.2062 | M195: -11.198 | N195: 8.559 | O195: ='IV. Country level, 1310-2018'!U191 -> 55.299 | P195: ='IV. Country level, 1310-2018'!C191 -> -46.740 | V195: 6.200 | W195: 1.177 | X195: 5.023 | Y195: ='VIII. Pers. sov. loans, 1312-'!C190 -> 6.292
A196: 1498 | C196: 8.990 | D196: 4.545 | E196: 4.445 | F196: 8.577 | G196: 9.965 | H196: -1.388 | K196: =SUM('IV. Country level, 1310-2018'!AO192:AV192) -> 9.050 | L196: =SUM('IV. Country level, 1310-2018'!AY192:BF192) -> -15.1998 | M196: 24.250 | N196: 8.865 | O196: ='IV. Country level, 1310-2018'!U192 -> -41.399 | P196: ='IV. Country level, 1310-2018'!C192 -> 50.264 | V196: 5.000 | W196: -4.401 | X196: 9.401 | Y196: ='VIII. Pers. sov. loans, 1312-'!C191 -> 7.995
A197: 1499 | C197: 8.967 | D197: 5.049 | E197: 3.918 | F197: 8.617 | G197: 8.875 | H197: -0.258 | K197: =SUM('IV. Country level, 1310-2018'!AO193:AV193) -> 9.201 | L197: =SUM('IV. Country level, 1310-2018'!AY193:BF193) -> -8.5709 | M197: 17.772 | N197: 9.171 | O197: ='IV. Country level, 1310-2018'!U193 -> -19.790 | P197: ='IV. Country level, 1310-2018'!C193 -> 28.961 | V197: 5.000 | W197: -1.337 | X197: 6.337 | Y197: ='VIII. Pers. sov. loans, 1312-'!C192 -> 7.567
A198: 1500 | C198: 8.987 | D198: 3.580 | E198: 5.407 | F198: 8.468 | G198: 7.130 | H198: 1.338 | K198: =SUM('IV. Country level, 1310-2018'!AO194:AV194) -> 9.392 | L198: =SUM('IV. Country level, 1310-2018'!AY194:BF194) -> 4.3861 | M198: 5.006 | N198: 9.801 | O198: ='IV. Country level, 1310-2018'!U194 -> -3.332 | P198: ='IV. Country level, 1310-2018'!C194 -> 13.133 | V198: 4.667 | W198: 0.942 | X198: 3.725 | Y198: ='VIII. Pers. sov. loans, 1312-'!C193 -> 8.043
A199: 1501 | C199: 8.935 | D199: 0.279 | E199: 8.656 | F199: 8.274 | G199: -2.830 | H199: 11.104 | K199: =SUM('IV. Country level, 1310-2018'!AO195:AV195) -> 8.511 | L199: =SUM('IV. Country level, 1310-2018'!AY195:BF195) -> 20.2670 | M199: -11.756 | N199: 7.443 | O199: ='IV. Country level, 1310-2018'!U195 -> 35.953 | P199: ='IV. Country level, 1310-2018'!C195 -> -28.510 | V199: 4.333 | W199: 9.103 | X199: -4.770 | Y199: ='VIII. Pers. sov. loans, 1312-'!C194 -> 8.215
A200: 1502 | C200: 8.908 | D200: 3.681 | E200: 5.227 | F200: 8.037 | G200: 8.458 | H200: -0.421 | K200: =SUM('IV. Country level, 1310-2018'!AO196:AV196) -> 8.732 | L200: =SUM('IV. Country level, 1310-2018'!AY196:BF196) -> 5.5067 | M200: 3.225 | N200: 8.228 | O200: ='IV. Country level, 1310-2018'!U196 -> 4.082 | P200: ='IV. Country level, 1310-2018'!C196 -> 4.146 | V200: 4.000 | W200: 4.351 | X200: -0.351 | Y200: ='VIII. Pers. sov. loans, 1312-'!C195 -> 9.551
A201: 1503 | C201: 8.825 | D201: 2.168 | E201: 6.657 | F201: 7.756 | G201: 1.388 | H201: 6.368 | K201: =SUM('IV. Country level, 1310-2018'!AO197:AV197) -> 9.017 | L201: =SUM('IV. Country level, 1310-2018'!AY197:BF197) -> -1.5346 | M201: 10.552 | N201: 7.205 | O201: ='IV. Country level, 1310-2018'!U197 -> 19.094 | P201: ='IV. Country level, 1310-2018'!C197 -> -11.889 | V201: 5.000 | W201: -10.619 | X201: 15.619 | Y201: ='VIII. Pers. sov. loans, 1312-'!C196 -> 9.551
A202: 1504 | C202: 8.711 | D202: 2.554 | E202: 6.158 | F202: 7.385 | G202: 4.497 | H202: 2.888 | K202: =SUM('IV. Country level, 1310-2018'!AO198:AV198) -> 8.639 | L202: =SUM('IV. Country level, 1310-2018'!AY198:BF198) -> -2.9019 | M202: 11.541 | N202: 7.205 | O202: ='IV. Country level, 1310-2018'!U198 -> -14.420 | P202: ='IV. Country level, 1310-2018'!C198 -> 21.625 | V202: 16.000 | W202: 0.232 | X202: 15.768 | Y202: ='VIII. Pers. sov. loans, 1312-'!C197 -> 9.239
A203: 1505 | C203: 8.783 | D203: -0.227 | E203: 9.010 | F203: 7.490 | G203: 0.771 | H203: 6.719 | K203: =SUM('IV. Country level, 1310-2018'!AO199:AV199) -> 8.861 | L203: =SUM('IV. Country level, 1310-2018'!AY199:BF199) -> 8.6138 | M203: 0.247 | N203: 7.205 | O203: ='IV. Country level, 1310-2018'!U199 -> 37.616 | P203: ='IV. Country level, 1310-2018'!C199 -> -30.411 | V203: 5.000 | W203: -7.570 | X203: 12.570 | Y203: ='VIII. Pers. sov. loans, 1312-'!C198 -> 5.994
... 514 more rows

Sheet III. GDP shares, 1310-2018
A1: back to contents
A2: Year | C2: Italy | D2: UK | E2: Holland/NL | F2: Germany | G2: France | H2: United States | I2: Spain | J2: Japan | M2: Total real GDP covered, 1990 US$ M | N2: Total DM GDP (Maddison basis, 1990 US$ M) | O2: % of advanced economy real GDP covered
B4: Source | C4: Maddison (2010, horizontal file)
A6: ='II. Headline series'!A8 -> 1310 | C6: 0.7965421426 | D6: 0.2034578574 | E6: 0 | F6: 0 | G6: 0 | M6: 15820 | N6: 32677 | O6: =M6/N6 -> 0.4841325703
A7: ='II. Headline series'!A9 -> 1311 | C7: 0.7965421426 | D7: 0.2034578574 | E7: 0 | F7: 0 | G7: 0 | M7: 15820 | N7: 32677 | O7: =M7/N7 -> 0.4841325703
A8: ='II. Headline series'!A10 -> 1312 | C8: 0.7965421426 | D8: 0.2034578574 | E8: 0 | F8: 0 | G8: 0 | M8: 15820 | N8: 32677 | O8: 0.4841325703
A9: ='II. Headline series'!A11 -> 1313 | C9: 0.7965421426 | D9: 0.2034578574 | E9: 0 | F9: 0 | G9: 0 | M9: 15820 | N9: 32677 | O9: 0.4841325703
A10: ='II. Headline series'!A12 -> 1314 | C10: 0.7965421426 | D10: 0.2034578574 | E10: 0 | F10: 0 | G10: 0 | M10: 15827.41413 | N10: 32743.68254 | O10: 0.4833730632
A11: ='II. Headline series'!A13 -> 1315 | C11: 0.7965421426 | D11: 0.2034578574 | E11: 0 | F11: 0 | G11: 0 | M11: 15834.82826 | N11: 32810.36508 | O11: 0.4826166433
A12: ='II. Headline series'!A14 -> 1316 | C12: 0.7965421426 | D12: 0.2034578574 | E12: 0 | F12: 0 | G12: 0 | M12: 15842.24239 | N12: 32877.04762 | O12: 0.4818632918
A13: ='II. Headline series'!A15 -> 1317 | C13: 0.7965421426 | D13: 0.2034578574 | E13: 0 | F13: 0 | G13: 0 | M13: 15849.65652 | N13: 32943.73016 | O13: 0.4811129901
A14: ='II. Headline series'!A16 -> 1318 | C14: 0.7965421426 | D14: 0.2034578574 | E14: 0 | F14: 0 | G14: 0 | M14: 15857.07065 | N14: 33010.4127 | O14: 0.4803657197
A15: ='II. Headline series'!A17 -> 1319 | C15: 0.7965421426 | D15: 0.2034578574 | E15: 0 | F15: 0 | G15: 0 | M15: 15864.48478 | N15: 33077.09524 | O15: 0.4796214622
A16: ='II. Headline series'!A18 -> 1320 | C16: 0.7965421426 | D16: 0.2034578574 | E16: 0 | F16: 0 | G16: 0 | M16: 15871.89891 | N16: 33143.77778 | O16: 0.4788801995
A17: ='II. Headline series'!A19 -> 1321 | C17: 0.7965421426 | D17: 0.2034578574 | E17: 0 | F17: 0 | G17: 0 | M17: 15879.31304 | N17: 33210.46032 | O17: 0.4781419135
A18: ='II. Headline series'!A20 -> 1322 | C18: 0.7965421426 | D18: 0.2034578574 | E18: 0 | F18: 0 | G18: 0 | M18: 15886.72717 | N18: 33277.14286 | O18: 0.4774065863
A19: ='II. Headline series'!A21 -> 1323 | C19: 0.7965421426 | D19: 0.2034578574 | E19: 0 | F19: 0 | G19: 0 | M19: 15894.1413 | N19: 33343.8254 | O19: 0.4766742003
A20: ='II. Headline series'!A22 -> 1324 | C20: 0.7965421426 | D20: 0.2034578574 | E20: 0 | F20: 0 | G20: 0 | M20: 15901.55543 | N20: 33410.50794 | O20: 0.4759447377
A21: ='II. Headline series'!A23 -> 1325 | C21: 0.7965421426 | D21: 0.2034578574 | E21: 0 | F21: 0 | G21: 0 | M21: 15908.96957 | N21: 33477.19048 | O21: 0.4752181811
A22: ='II. Headline series'!A24 -> 1326 | C22: 0.5065535083 | D22: 0.129387117 | E22: 0 | F22: 0.3640593747 | G22: 0 | M22: 15916.3837 | N22: 33543.87302 | O22: 0.4744945131
A23: ='II. Headline series'!A25 -> 1327 | C23: 0.5063176566 | D23: 0.1293268743 | E23: 0 | F23: 0.3643554691 | G23: 0 | M23: 15923.79783 | N23: 33610.55556 | O23: 0.4737737167
A24: ='II. Headline series'!A26 -> 1328 | C24: 0.5060820245 | D24: 0.1292666877 | E24: 0 | F24: 0.3646512878 | G24: 0 | M24: 15931.21196 | N24: 33677.2381 | O24: 0.4730557747
A25: ='II. Headline series'!A27 -> 1329 | C25: 0.5058466116 | D25: 0.129206557 | E25: 0 | F25: 0.3649468314 | G25: 0 | M25: 15938.62609 | N25: 33743.92063 | O25: 0.4723406702
A26: ='II. Headline series'!A28 -> 1330 | C26: 0.5056114176 | D26: 0.1291464823 | E26: 0 | F26: 0.3652421001 | G26: 0 | M26: 15946.04022 | N26: 33810.60317 | O26: 0.4716283864
A27: ='II. Headline series'!A29 -> 1331 | C27: 0.5053764423 | D27: 0.1290864634 | E27: 0 | F27: 0.3655370944 | G27: 0 | M27: 15953.45435 | N27: 33877.28571 | O27: 0.4709189066
A28: ='II. Headline series'!A30 -> 1332 | C28: 0.5051416852 | D28: 0.1290265002 | E28: 0 | F28: 0.3658318146 | G28: 0 | M28: 15960.86848 | N28: 33943.96825 | O28: 0.4702122144
A29: ='II. Headline series'!A31 -> 1333 | C29: 0.5049071461 | D29: 0.1289665927 | E29: 0 | F29: 0.3661262612 | G29: 0 | M29: 15968.28261 | N29: 34010.65079 | O29: 0.4695082933
A30: ='II. Headline series'!A32 -> 1334 | C30: 0.5046728247 | D30: 0.1289067409 | E30: 0 | F30: 0.3664204344 | G30: 0 | M30: 15975.69674 | N30: 34077.33333 | O30: 0.4688071271
A31: ='II. Headline series'!A33 -> 1335 | C31: 0.5044387207 | D31: 0.1288469446 | E31: 0 | F31: 0.3667143347 | G31: 0 | M31: 15983.11087 | N31: 34144.01587 | O31: 0.4681086996
A32: ='II. Headline series'!A34 -> 1336 | C32: 0.5042048338 | D32: 0.1287872037 | E32: 0 | F32: 0.3670079625 | G32: 0 | M32: 15990.525 | N32: 34210.69841 | O32: 0.4674129948
A33: ='II. Headline series'!A35 -> 1337 | C33: 0.5039711637 | D33: 0.1287275182 | E33: 0 | F33: 0.3673013182 | G33: 0 | M33: 15997.93913 | N33: 34277.38095 | O33: 0.4667199969
A34: ='II. Headline series'!A36 -> 1338 | C34: 0.50373771 | D34: 0.128667888 | E34: 0 | F34: 0.367594402 | G34: 0 | M34: 16005.35326 | N34: 34344.06349 | O34: 0.46602969
A35: ='II. Headline series'!A37 -> 1339 | C35: 0.5035044726 | D35: 0.128608313 | E35: 0 | F35: 0.3678872145 | G35: 0 | M35: 16012.76739 | N35: 34410.74603 | O35: 0.4653420585
A36: ='II. Headline series'!A38 -> 1340 | C36: 0.503271451 | D36: 0.1285487931 | E36: 0 | F36: 0.3681797559 | G36: 0 | M36: 16020.18152 | N36: 34477.42857 | O36: 0.4646570868
A37: ='II. Headline series'!A39 -> 1341 | C37: 0.503038645 | D37: 0.1284893283 | E37: 0 | F37: 0.3684720266 | G37: 0 | M37: 16027.59565 | N37: 34544.11111 | O37: 0.4639747597
A38: ='II. Headline series'!A40 -> 1342 | C38: 0.5028060543 | D38: 0.1284299185 | E38: 0 | F38: 0.3687640271 | G38: 0 | M38: 16035.00978 | N38: 34610.79365 | O38: 0.4632950618
A39: ='II. Headline series'!A41 -> 1343 | C39: 0.5025736786 | D39: 0.1283705636 | E39: 0 | F39: 0.3690557577 | G39: 0 | M39: 16042.42391 | N39: 34677.47619 | O39: 0.4626179779
A40: ='II. Headline series'!A42 -> 1344 | C40: 0.5023415176 | D40: 0.1283112636 | E40: 0 | F40: 0.3693472188 | G40: 0 | M40: 16049.83804 | N40: 34744.15873 | O40: 0.461943493
A41: ='II. Headline series'!A43 -> 1345 | C41: 0.502109571 | D41: 0.1282520183 | E41: 0 | F41: 0.3696384107 | G41: 0 | M41: 16057.25217 | N41: 34810.84127 | O41: 0.4612715921
A42: ='II. Headline series'!A44 -> 1346 | C42: 0.5018778384 | D42: 0.1281928277 | E42: 0 | F42: 0.3699293338 | G42: 0 | M42: 16064.6663 | N42: 34877.52381 | O42: 0.4606022604
A43: ='II. Headline series'!A45 -> 1347 | C43: 0.5016463197 | D43: 0.1281336917 | E43: 0 | F43: 0.3702199886 | G43: 0 | M43: 16072.08043 | N43: 34944.20635 | O43: 0.4599354833
A44: ='II. Headline series'!A46 -> 1348 | C44: 0.5014150145 | D44: 0.1280746103 | E44: 0 | F44: 0.3705103753 | G44: 0 | M44: 16079.49457 | N44: 35010.88889 | O44: 0.459271246
A45: ='II. Headline series'!A47 -> 1349 | C45: 0.5011839224 | D45: 0.1280155833 | E45: 0 | F45: 0.3708004943 | G45: 0 | M45: 16086.9087 | N45: 35077.57143 | O45: 0.4586095343
A46: ='II. Headline series'!A48 -> 1350 | C46: 0.5009530433 | D46: 0.1279566107 | E46: 0 | F46: 0.371090346 | G46: 0 | M46: 16094.32283 | N46: 35144.25397 | O46: 0.4579503335
A47: ='II. Headline series'!A49 -> 1351 | C47: 0.5007223768 | D47: 0.1278976924 | E47: 0 | F47: 0.3713799308 | G47: 0 | M47: 16101.73696 | N47: 35210.93651 | O47: 0.4572936296
A48: ='II. Headline series'!A50 -> 1352 | C48: 0.5004919227 | D48: 0.1278388283 | E48: 0 | F48: 0.371669249 | G48: 0 | M48: 16109.15109 | N48: 35277.61905 | O48: 0.4566394083
A49: ='II. Headline series'!A51 -> 1353 | C49: 0.5002616805 | D49: 0.1277800184 | E49: 0 | F49: 0.3719583011 | G49: 0 | M49: 16116.56522 | N49: 35344.30159 | O49: 0.4559876555
A50: ='II. Headline series'!A52 -> 1354 | C50: 0.5000316501 | D50: 0.1277212626 | E50: 0 | F50: 0.3722470873 | G50: 0 | M50: 16123.97935 | N50: 35410.98413 | O50: 0.4553383574
A51: ='II. Headline series'!A53 -> 1355 | C51: 0.4998018312 | D51: 0.1276625608 | E51: 0 | F51: 0.3725356081 | G51: 0 | M51: 16131.39348 | N51: 35477.66667 | O51: 0.4546915001
A52: ='II. Headline series'!A54 -> 1356 | C52: 0.4995722234 | D52: 0.1276039129 | E52: 0 | F52: 0.3728238637 | G52: 0 | M52: 16138.80761 | N52: 35544.34921 | O52: 0.4540470699
A53: ='II. Headline series'!A55 -> 1357 | C53: 0.4993428265 | D53: 0.1275453189 | E53: 0 | F53: 0.3731118547 | G53: 0 | M53: 16146.22174 | N53: 35611.03175 | O53: 0.4534050531
A54: ='II. Headline series'!A56 -> 1358 | C54: 0.4991136401 | D54: 0.1274867786 | E54: 0 | F54: 0.3733995813 | G54: 0 | M54: 16153.63587 | N54: 35677.71429 | O54: 0.4527654362
A55: ='II. Headline series'!A57 -> 1359 | C55: 0.4988846641 | D55: 0.1274282921 | E55: 0 | F55: 0.3736870438 | G55: 0 | M55: 16161.05 | N55: 35744.39683 | O55: 0.4521282057
A56: ='II. Headline series'!A58 -> 1360 | C56: 0.498655898 | D56: 0.1273698592 | E56: 0 | F56: 0.3739742428 | G56: 0 | M56: 16168.46413 | N56: 35811.07937 | O56: 0.4514933483
A57: ='II. Headline series'!A59 -> 1361 | C57: 0.4984273416 | D57: 0.1273114799 | E57: 0 | F57: 0.3742611785 | G57: 0 | M57: 16175.87826 | N57: 35877.7619 | O57: 0.4508608509
A58: ='II. Headline series'!A60 -> 1362 | C58: 0.4981989947 | D58: 0.1272531541 | E58: 0 | F58: 0.3745478512 | G58: 0 | M58: 16183.29239 | N58: 35944.44444 | O58: 0.4502307002
A59: ='II. Headline series'!A61 -> 1363 | C59: 0.4979708569 | D59: 0.1271948817 | E59: 0 | F59: 0.3748342615 | G59: 0 | M59: 16190.70652 | N59: 36011.12698 | O59: 0.4496028833
A60: ='II. Headline series'!A62 -> 1364 | C60: 0.4977429279 | D60: 0.1271366626 | E60: 0 | F60: 0.3751204095 | G60: 0 | M60: 16198.12065 | N60: 36077.80952 | O60: 0.4489773871
A61: ='II. Headline series'!A63 -> 1365 | C61: 0.4975152075 | D61: 0.1270784968 | E61: 0 | F61: 0.3754062957 | G61: 0 | M61: 16205.53478 | N61: 36144.49206 | O61: 0.4483541989
A62: ='II. Headline series'!A64 -> 1366 | C62: 0.4972876954 | D62: 0.1270203842 | E62: 0 | F62: 0.3756919204 | G62: 0 | M62: 16212.94891 | N62: 36211.1746 | O62: 0.4477333058
A63: ='II. Headline series'!A65 -> 1367 | C63: 0.4970603912 | D63: 0.1269623247 | E63: 0 | F63: 0.3759772841 | G63: 0 | M63: 16220.36304 | N63: 36277.85714 | O63: 0.4471146953
A64: ='II. Headline series'!A66 -> 1368 | C64: 0.4968332948 | D64: 0.1269043183 | E64: 0 | F64: 0.3762623869 | G64: 0 | M64: 16227.77717 | N64: 36344.53968 | O64: 0.4464983548
A65: ='II. Headline series'!A67 -> 1369 | C65: 0.4966064057 | D65: 0.1268463649 | E65: 0 | F65: 0.3765472294 | G65: 0 | M65: 16235.1913 | N65: 36411.22222 | O65: 0.4458842718
A66: ='II. Headline series'!A68 -> 1370 | C66: 0.4963797238 | D66: 0.1267884643 | E66: 0 | F66: 0.3768318118 | G66: 0 | M66: 16242.60543 | N66: 36477.90476 | O66: 0.4452724338
A67: ='II. Headline series'!A69 -> 1371 | C67: 0.4961532488 | D67: 0.1267306166 | E67: 0 | F67: 0.3771161346 | G67: 0 | M67: 16250.01957 | N67: 36544.5873 | O67: 0.4446628288
A68: ='II. Headline series'!A70 -> 1372 | C68: 0.4959269803 | D68: 0.1266728217 | E68: 0 | F68: 0.377400198 | G68: 0 | M68: 16257.4337 | N68: 36611.26984 | O68: 0.4440554443
A69: ='II. Headline series'!A71 -> 1373 | C69: 0.4957009181 | D69: 0.1266150795 | E69: 0 | F69: 0.3776840024 | G69: 0 | M69: 16264.84783 | N69: 36677.95238 | O69: 0.4434502684
A70: ='II. Headline series'!A72 -> 1374 | C70: 0.4954750619 | D70: 0.1265573898 | E70: 0 | F70: 0.3779675483 | G70: 0 | M70: 16272.26196 | N70: 36744.63492 | O70: 0.4428472889
A71: ='II. Headline series'!A73 -> 1375 | C71: 0.5213616687 | D71: 0.130622998 | E71: 0 | F71: 0.3480153333 | G71: 0 | M71: 17694.05109 | N71: 36878 | O71: =M71/N71 -> 0.479799639
A72: ='II. Headline series'!A74 -> 1376 | C72: 0.5211433001 | D72: 0.1305682875 | E72: 0 | F72: 0.3482884124 | G72: 0 | M72: 17701.46522 | N72: 36944.68254 | O72: 0.4791343165
A73: ='II. Headline series'!A75 -> 1377 | C73: 0.5209251144 | D73: 0.1305136228 | E73: 0 | F73: 0.3485612628 | G73: 0 | M73: 17708.87935 | N73: 37011.36508 | O73: 0.4784713914
A74: ='II. Headline series'!A76 -> 1378 | C74: 0.5207071113 | D74: 0.1304590039 | E74: 0 | F74: 0.3488338848 | G74: 0 | M74: 17716.29348 | N74: 37078.04762 | O74: 0.4778108508
A75: ='II. Headline series'!A77 -> 1379 | C75: 0.5204892906 | D75: 0.1304044307 | E75: 0 | F75: 0.3491062787 | G75: 0 | M75: 17723.70761 | N75: 37144.73016 | O75: 0.4771526818
A76: ='II. Headline series'!A78 -> 1380 | C76: 0.5202716521 | D76: 0.1303499031 | E76: 0 | F76: 0.3493784449 | G76: 0 | M76: 17731.12174 | N76: 37211.4127 | O76: 0.4764968716
A77: ='II. Headline series'!A79 -> 1381 | C77: 0.5200541954 | D77: 0.1302954211 | E77: 0 | F77: 0.3496503835 | G77: 0 | M77: 17738.53587 | N77: 37278.09524 | O77: 0.4758434077
A78: ='II. Headline series'!A80 -> 1382 | C78: 0.5198369205 | D78: 0.1302409846 | E78: 0 | F78: 0.3499220949 | G78: 0 | M78: 17745.95 | N78: 37344.77778 | O78: 0.4751922774
A79: ='II. Headline series'!A81 -> 1383 | C79: 0.5196198271 | D79: 0.1301865935 | E79: 0 | F79: 0.3501935794 | G79: 0 | M79: 17753.36413 | N79: 37411.46032 | O79: 0.4745434682
A80: ='II. Headline series'!A82 -> 1384 | C80: 0.5194029149 | D80: 0.1301322479 | E80: 0 | F80: 0.3504648372 | G80: 0 | M80: 17760.77826 | N80: 37478.14286 | O80: 0.4738969679
A81: ='II. Headline series'!A83 -> 1385 | C81: 0.5191861838 | D81: 0.1300779477 | E81: 0 | F81: 0.3507358686 | G81: 0 | M81: 17768.19239 | N81: 37544.8254 | O81: 0.473252764
A82: ='II. Headline series'!A84 -> 1386 | C82: 0.5189696334 | D82: 0.1300236927 | E82: 0 | F82: 0.3510066739 | G82: 0 | M82: 17775.60652 | N82: 37611.50794 | O82: 0.4726108443
A83: ='II. Headline series'!A85 -> 1387 | C83: 0.3460529435 | D83: 0.08670079843 | E83: 0 | F83: 0.2343320728 | G83: 0.3329141854 | M83: 26657.77065 | N83: 37678.19048 | O83: 0.7075119669
A84: ='II. Headline series'!A86 -> 1388 | C84: 0.345956725 | D84: 0.08667669168 | E84: 0 | F84: 0.2345449632 | G84: 0.3328216201 | M84: 26665.18478 | N84: 37744.87302 | O84: 0.7064584579
A85: ='II. Headline series'!A87 -> 1389 | C85: 0.3458605601 | D85: 0.08665259833 | E85: 0 | F85: 0.2347577352 | G85: 0.3327291063 | M85: 26672.59891 | N85: 37811.55556 | O85: 0.7054086647
A86: ='II. Headline series'!A88 -> 1390 | C86: 0.3457644487 | D86: 0.08662851837 | E86: 0 | F86: 0.234970389 | G86: 0.332636644 | M86: 26680.01304 | N86: 37878.2381 | O86: 0.7043625677
A87: ='II. Headline series'!A89 -> 1391 | C87: 0.3456683906 | D87: 0.08660445179 | E87: 0 | F87: 0.2351829246 | G87: 0.332544233 | M87: 26687.42717 | N87: 37944.92063 | O87: 0.7033201474
A88: ='II. Headline series'!A90 -> 1392 | C88: 0.3455723859 | D88: 0.08658039857 | E88: 0 | F88: 0.2353953422 | G88: 0.3324518733 | M88: 26694.8413 | N88: 38011.60317 | O88: 0.7022813845
A89: ='II. Headline series'!A91 -> 1393 | C89: 0.3454764345 | D89: 0.08655635872 | E89: 0 | F89: 0.2356076418 | G89: 0.332359565 | M89: 26702.25543 | N89: 38078.28571 | O89: 0.7012462597
A90: ='II. Headline series'!A92 -> 1394 | C90: 0.3453805363 | D90: 0.08653233221 | E90: 0 | F90: 0.2358198236 | G90: 0.3322673079 | M90: 26709.66957 | N90: 38144.96825 | O90: 0.7002147541
A91: ='II. Headline series'!A93 -> 1395 | C91: 0.3452846914 | D91: 0.08650831903 | E91: 0 | F91: 0.2360318876 | G91: 0.3321751019 | M91: 26717.0837 | N91: 38211.65079 | O91: 0.6991868485
A92: ='II. Headline series'!A94 -> 1396 | C92: 0.3451888997 | D92: 0.08648431918 | E92: 0 | F92: 0.2362438339 | G92: 0.3320829472 | M92: 26724.49783 | N92: 38278.33333 | O92: 0.6981625243
A93: ='II. Headline series'!A95 -> 1397 | C93: 0.3450931611 | D93: 0.08646033265 | E93: 0 | F93: 0.2364556627 | G93: 0.3319908435 | M93: 26731.91196 | N93: 38345.01587 | O93: 0.6971417627
A94: ='II. Headline series'!A96 -> 1398 | C94: 0.3449974756 | D94: 0.08643635941 | E94: 0 | F94: 0.236667374 | G94: 0.331898791 | M94: 26739.32609 | N94: 38411.69841 | O94: 0.6961245452
A95: ='II. Headline series'!A97 -> 1399 | C95: 0.3449018432 | D95: 0.08641239946 | E95: 0 | F95: 0.2368789679 | G95: 0.3318067895 | M95: 26746.74022 | N95: 38478.38095 | O95: 0.6951108533
A96: ='II. Headline series'!A98 -> 1400 | C96: 0.3375624159 | D96: 0.08457356464 | E96: 0.02100845767 | F96: 0.23210954 | G96: 0.3247460218 | M96: 27328.27935 | N96: 38545.06349 | O96: 0.7089955722
A97: ='II. Headline series'!A99 -> 1401 | C97: 0.3374708605 | D97: 0.08455062616 | E97: 0.02100275965 | F97: 0.2323178113 | G97: 0.3246579424 | M97: 27335.69348 | N97: 38611.74603 | O97: 0.7079631534
A98: ='II. Headline series'!A100 -> 1402 | C98: 0.3373793547 | D98: 0.08452770011 | E98: 0.02099706472 | F98: 0.2325259696 | G98: 0.3245699109 | M98: 27343.10761 | N98: 38678.42857 | O98: 0.7069342943
A99: ='II. Headline series'!A101 -> 1403 | C99: 0.3372878985 | D99: 0.08450478649 | E99: 0.02099137287 | F99: 0.2327340151 | G99: 0.3244819271 | M99: 27350.52174 | N99: 38745.11111 | O99: 0.7059089768
A100: ='II. Headline series'!A102 -> 1404 | C100: 0.3371964919 | D100: 0.08448188529 | E100: 0.02098568411 | F100: 0.2329419478 | G100: 0.3243939909 | M100: 27357.93587 | N100: 38811.79365 | O100: 0.7048871824
A101: ='II. Headline series'!A103 -> 1405 | C101: 0.3371051348 | D101: 0.0844589965 | E101: 0.02097999843 | F101: 0.2331497679 | G101: 0.3243061024 | M101: 27365.35 | N101: 38878.47619 | O101: 0.7038688931
A102: ='II. Headline series'!A104 -> 1406 | C102: 0.3370138272 | D102: 0.08443612012 | E102: 0.02097431583 | F102: 0.2333574753 | G102: 0.3242182615 | M102: 27372.76413 | N102: 38945.15873 | O102: 0.7028540908
A103: ='II. Headline series'!A105 -> 1407 | C103: 0.336922569 | D103: 0.08441325611 | E103: 0.02096863631 | F103: 0.2335650703 | G103: 0.3241304682 | M103: 27380.17826 | N103: 39011.84127 | O103: 0.7018427577
A104: ='II. Headline series'!A106 -> 1408 | C104: 0.3368313603 | D104: 0.08439040449 | E104: 0.02096295986 | F104: 0.2337725529 | G104: 0.3240427225 | M104: 27387.59239 | N104: 39078.52381 | O104: 0.7008348761
A105: ='II. Headline series'!A107 -> 1409 | C105: 0.3367402009 | D105: 0.08436756524 | E105: 0.02095728649 | F105: 0.2339799232 | G105: 0.3239550242 | M105: 27395.00652 | N105: 39145.20635 | O105: 0.6998304282
A106: ='II. Headline series'!A108 -> 1410 | C106: 0.3366490909 | D106: 0.08434473835 | E106: 0.02095161618 | F106: 0.2341871813 | G106: 0.3238673733 | M106: 27402.42065 | N106: 39211.88889 | O106: 0.6988293966
A107: ='II. Headline series'!A109 -> 1411 | C107: 0.3365580301 | D107: 0.0843219238 | E107: 0.02094594895 | F107: 0.2343943272 | G107: 0.3237797699 | M107: 27409.83478 | N107: 39278.57143 | O107: 0.6978317639
A108: ='II. Headline series'!A110 -> 1412 | C108: 0.3364670186 | D108: 0.0842991216 | E108: 0.02094028478 | F108: 0.2346013611 | G108: 0.3236922139 | M108: 27417.24891 | N108: 39345.25397 | O108: 0.6968375127
A109: ='II. Headline series'!A111 -> 1413 | C109: 0.3363760563 | D109: 0.08427633172 | E109: 0.02093462367 | F109: 0.2348082831 | G109: 0.3236047052 | M109: 27424.66304 | N109: 39411.93651 | O109: 0.695846626
A110: ='II. Headline series'!A112 -> 1414 | C110: 0.3362851432 | D110: 0.08425355416 | E110: 0.02092896562 | F110: 0.2350150932 | G110: 0.3235172438 | M110: 27432.07717 | N110: 39478.61905 | O110: 0.6948590867
A111: ='II. Headline series'!A113 -> 1415 | C111: 0.3361942792 | D111: 0.08423078892 | E111: 0.02092331063 | F111: 0.2352217916 | G111: 0.3234298297 | M111: 27439.4913 | N111: 39545.30159 | O111: 0.6938748777
A112: ='II. Headline series'!A114 -> 1416 | C112: 0.3361034643 | D112: 0.08420803597 | E112: 0.02091765869 | F112: 0.2354283783 | G112: 0.3233424628 | M112: 27446.90543 | N112: 39611.98413 | O112: 0.6928939825
A113: ='II. Headline series'!A115 -> 1417 | C113: 0.3360126984 | D113: 0.08418529531 | E113: 0.02091200981 | F113: 0.2356348534 | G113: 0.3232551431 | M113: 27454.31957 | N113: 39678.66667 | O113: 0.6919163841
A114: ='II. Headline series'!A116 -> 1418 | C114: 0.2927371276 | D114: 0.07334294701 | E114: 0.01821872123 | F114: 0.205522366 | G114: 0.2816226367 | I114: 0.1285562015 | M114: 31512.91425 | N114: 39745.34921 | O114: 0.7928704837
A115: ='II. Headline series'!A117 -> 1419 | C115: 0.2926186298 | D115: 0.07331325834 | E115: 0.01821134643 | F115: 0.2056743496 | G115: 0.281508638 | I115: 0.1286737778 | M115: 31525.6756 | N115: 39812.03175 | O115: 0.7918630178
A116: ='II. Headline series'!A118 -> 1420 | C116: 0.292500228 | D116: 0.0732835937 | E116: 0.0182039776 | F116: 0.2058262103 | G116: 0.2813947315 | I116: 0.1287912589 | M116: 31538.43696 | N116: 39878.71429 | O116: 0.7908589211
A117: ='II. Headline series'!A119 -> 1421 | C117: 0.2923819219 | D117: 0.07325395306 | E117: 0.01819661473 | F117: 0.2059779481 | G117: 0.2812809172 | I117: 0.128908645 | M117: 31551.19831 | N117: 39945.39683 | O117: 0.7898581768
A118: ='II. Headline series'!A120 -> 1422 | C118: 0.2922637115 | D118: 0.07322433639 | E118: 0.01818925782 | F118: 0.2061295632 | G118: 0.281167195 | I118: 0.1290259362 | M118: 31563.95966 | N118: 40012.07937 | O118: 0.7888607681
A119: ='II. Headline series'!A121 -> 1423 | C119: 0.2921455966 | D119: 0.07319474365 | E119: 0.01818190685 | F119: 0.2062810557 | G119: 0.2810535646 | I119: 0.1291431325 | M119: 31576.72101 | N119: 40078.7619 | O119: 0.7878666784
A120: ='II. Headline series'!A122 -> 1424 | C120: 0.2920275772 | D120: 0.07316517482 | E120: 0.01817456182 | F120: 0.2064324259 | G120: 0.2809400261 | I120: 0.1292602342 | M120: 31589.48237 | N120: 40145.44444 | O120: 0.786875891
A121: ='II. Headline series'!A123 -> 1425 | C121: 0.2919096531 | D121: 0.07313562988 | E121: 0.01816722272 | F121: 0.2065836738 | G121: 0.2808265792 | I121: 0.1293772413 | M121: 31602.24372 | N121: 40212.12698 | O121: 0.7858883896
A122: ='II. Headline series'!A124 -> 1426 | C122: 0.2917918241 | D122: 0.07310610878 | E122: 0.01815988954 | F122: 0.2067347996 | G122: 0.280713224 | I122: 0.1294941539 | M122: 31615.00507 | N122: 40278.80952 | O122: 0.7849041579
A123: ='II. Headline series'!A125 -> 1427 | C123: 0.2916740903 | D123: 0.07307661151 | E123: 0.01815256229 | F123: 0.2068858035 | G123: 0.2805999602 | I123: 0.1296109722 | M123: 31627.76643 | N123: 40345.49206 | O123: 0.7839231797
A124: ='II. Headline series'!A126 -> 1428 | C124: 0.2915564514 | D124: 0.07304713803 | E124: 0.01814524094 | F124: 0.2070366855 | G124: 0.2804867878 | I124: 0.1297276963 | M124: 31640.52778 | N124: 40412.1746 | O124: 0.7829454388
A125: ='II. Headline series'!A127 -> 1429 | C125: 0.291507187 | D125: 0.07303479521 | E125: 0.01814217493 | F125: 0.2070017024 | G125: 0.2804393938 | I125: 0.1298747467 | M125: 31645.875 | N125: 40478.85714 | O125: 0.7817877587
A126: ='II. Headline series'!A128 -> 1430 | C126: 0.2914579391 | D126: 0.07302245657 | E126: 0.01813910995 | F126: 0.2069667311 | G126: 0.2803920158 | I126: 0.1300217474 | M126: 31651.22222 | N126: 40545.53968 | O126: 0.7806338865
A127: ='II. Headline series'!A129 -> 1431 | C127: 0.291408708 | D127: 0.07301012209 | E127: 0.01813604601 | F127: 0.2069317717 | G127: 0.2803446538 | I127: 0.1301686985 | M127: 31656.56944 | N127: 40612.22222 | O127: 0.7794838035
A128: ='II. Headline series'!A130 -> 1432 | C128: 0.2913594934 | D128: 0.07299779177 | E128: 0.01813298311 | F128: 0.206896824 | G128: 0.2802973078 | I128: 0.1303156 | M128: 31661.91667 | N128: 40678.90476 | O128: 0.7783374909
A129: ='II. Headline series'!A131 -> 1433 | C129: 0.2913102955 | D129: 0.07298546562 | E129: 0.01812992123 | F129: 0.2068618881 | G129: 0.2802499777 | I129: 0.1304624518 | M129: 31667.26389 | N129: 40745.5873 | O129: 0.7771949304
A130: ='II. Headline series'!A132 -> 1434 | C130: 0.2912611141 | D130: 0.07297314364 | E130: 0.0181268604 | F130: 0.2068269641 | G130: 0.2802026637 | I130: 0.1306092541 | M130: 31672.61111 | N130: 40812.26984 | O130: 0.7760561036
A131: ='II. Headline series'!A133 -> 1435 | C131: 0.2912119494 | D131: 0.07296082581 | E131: 0.01812380059 | F131: 0.2067920518 | G131: 0.2801553657 | I131: 0.1307560067 | M131: 31677.95833 | N131: 40878.95238 | O131: 0.7749209921
A132: ='II. Headline series'!A134 -> 1436 | C132: 0.2911628013 | D132: 0.07294851214 | E132: 0.01812074182 | F132: 0.2067571513 | G132: 0.2801080836 | I132: 0.1309027099 | M132: 31683.30556 | N132: 40945.63492 | O132: 0.7737895777
A133: ='II. Headline series'!A135 -> 1437 | C133: 0.2911136698 | D133: 0.07293620263 | E133: 0.01811768408 | F133: 0.2067222626 | G133: 0.2800608174 | I133: 0.1310493635 | M133: 31688.65278 | N133: 41012.31746 | O133: 0.7726618426
A134: ='II. Headline series'!A136 -> 1438 | C134: 0.2963279934 | D134: 0.07311919981 | E134: 0.0185017785 | F134: 0.2111987733 | G134: 0.2822319096 | I134: 0.1186203454 | M134: 35054.0625 | N134: 41079 | O134: 0.8533329073
A135: ='II. Headline series'!A137 -> 1439 | C135: 0.2962820689 | D135: 0.0731078679 | E135: 0.01849891113 | F135: 0.2111660421 | G135: 0.2821881698 | I135: 0.1187569402 | M135: 35059.49597 | N135: 41146.74194 | O135: =M135/N135 -> 0.8520600737
A136: ='II. Headline series'!A138 -> 1440 | C136: 0.2962361587 | D136: 0.07309653951 | E136: 0.01849604464 | F136: 0.2111333209 | G136: 0.2821444434 | I136: 0.1188934928 | M136: 35064.92944 | N136: 41214.48387 | O136: 0.8507914243
A137: ='II. Headline series'!A139 -> 1441 | C137: 0.2961902627 | D137: 0.07308521463 | E137: 0.01849317904 | F137: 0.2111006099 | G137: 0.2821007307 | I137: 0.119030003 | M137: 35070.3629 | N137: 41282.22581 | O137: 0.8495269385
A138: ='II. Headline series'!A140 -> 1442 | C138: 0.2961443809 | D138: 0.07307389326 | E138: 0.01849031432 | F138: 0.2110679091 | G138: 0.2820570314 | I138: 0.119166471 | M138: 35075.79637 | N138: 41349.96774 | O138: 0.8482665958
A139: ='II. Headline series'!A141 -> 1443 | C139: 0.2960985133 | D139: 0.07306257539 | E139: 0.0184874505 | F139: 0.2110352184 | G139: 0.2820133458 | I139: 0.1193028967 | M139: 35081.22984 | N139: 41417.70968 | O139: 0.8470103758
A140: ='II. Headline series'!A142 -> 1444 | C140: 0.2960526599 | D140: 0.07305126103 | E140: 0.01848458756 | F140: 0.2110025378 | G140: 0.2819696736 | I140: 0.1194392801 | M140: 35086.66331 | N140: 41485.45161 | O140: 0.8457582584
A141: ='II. Headline series'!A143 -> 1445 | C141: 0.2960068208 | D141: 0.07303995018 | E141: 0.01848172551 | F141: 0.2109698673 | G141: 0.281926015 | I141: 0.1195756213 | M141: 35092.09677 | N141: 41553.19355 | O141: 0.8445102236
A142: ='II. Headline series'!A144 -> 1446 | C142: 0.2959609958 | D142: 0.07302864282 | E142: 0.01847886434 | F142: 0.2109372069 | G142: 0.2818823698 | I142: 0.1197119203 | M142: 35097.53024 | N142: 41620.93548 | O142: 0.8432662513
A143: ='II. Headline series'!A145 -> 1447 | C143: 0.295915185 | D143: 0.07301733897 | E143: 0.01847600406 | F143: 0.2109045567 | G143: 0.2818387382 | I143: 0.1198481771 | M143: 35102.96371 | N143: 41688.67742 | O143: 0.8420263218
A144: ='II. Headline series'!A146 -> 1448 | C144: 0.2958693884 | D144: 0.07300603861 | E144: 0.01847314466 | F144: 0.2108719166 | G144: 0.2817951201 | I144: 0.1199843917 | M144: 35108.39718 | N144: 41756.41935 | O144: 0.8407904155
A145: ='II. Headline series'!A147 -> 1449 | C145: 0.2958236059 | D145: 0.07299474176 | E145: 0.01847028615 | F145: 0.2108392865 | G145: 0.2817515155 | I145: 0.1201205641 | M145: 35113.83065 | N145: 41824.16129 | O145: 0.8395585126
A146: ='II. Headline series'!A148 -> 1450 | C146: 0.2957778377 | D146: 0.07298344839 | E146: 0.01846742853 | F146: 0.2108066666 | G146: 0.2817079244 | I146: 0.1202566944 | M146: 35119.26411 | N146: 41891.90323 | O146: 0.8383305939
A147: ='II. Headline series'!A149 -> 1451 | C147: 0.2957320836 | D147: 0.07297215853 | E147: 0.01846457179 | F147: 0.2107740567 | G147: 0.2816643468 | I147: 0.1203927826 | M147: 35124.69758 | N147: 41959.64516 | O147: 0.8371066401
A148: ='II. Headline series'!A150 -> 1452 | C148: 0.2956863436 | D148: 0.07296087215 | E148: 0.01846171593 | F148: 0.210741457 | G148: 0.2816207826 | I148: 0.1205288287 | M148: 35130.13105 | N148: 42027.3871 | O148: 0.8358866319
A149: ='II. Headline series'!A151 -> 1453 | C149: 0.2956406178 | D149: 0.07294958926 | E149: 0.01845886096 | F149: 0.2107088673 | G149: 0.281577232 | I149: 0.1206648328 | M149: 35135.56452 | N149: 42095.12903 | O149: 0.8346705503
A150: ='II. Headline series'!A152 -> 1454 | C150: 0.2955949061 | D150: 0.07293830987 | E150: 0.01845600686 | F150: 0.2106762877 | G150: 0.2815336948 | I150: 0.1208007947 | M150: 35140.99798 | N150: 42162.87097 | O150: 0.8334583765
A151: ='II. Headline series'!A153 -> 1455 | C151: 0.2955492086 | D151: 0.07292703396 | E151: 0.01845315365 | F151: 0.2106437181 | G151: 0.281490171 | I151: 0.1209367147 | M151: 35146.43145 | N151: 42230.6129 | O151: 0.8322500915
A152: ='II. Headline series'!A154 -> 1456 | C152: 0.2955035252 | D152: 0.07291576154 | E152: 0.01845030133 | F152: 0.2106111587 | G152: 0.2814466607 | I152: 0.1210725926 | M152: 35151.86492 | N152: 42298.35484 | O152: 0.8310456767
A153: ='II. Headline series'!A155 -> 1457 | C153: 0.2954578559 | D153: 0.0729044926 | E153: 0.01844744988 | F153: 0.2105786093 | G153: 0.2814031639 | I153: 0.1212084285 | M153: 35157.29839 | N153: 42366.09677 | O153: 0.8298451135
A154: ='II. Headline series'!A156 -> 1458 | C154: 0.2954122007 | D154: 0.07289322714 | E154: 0.01844459932 | F154: 0.2105460699 | G154: 0.2813596805 | I154: 0.1213442224 | M154: 35162.73185 | N154: 42433.83871 | O154: 0.8286483836
A155: ='II. Headline series'!A157 -> 1459 | C155: 0.2953665596 | D155: 0.07288196517 | E155: 0.01844174963 | F155: 0.2105135406 | G155: 0.2813162105 | I155: 0.1214799744 | M155: 35168.16532 | N155: 42501.58065 | O155: 0.8274554684
A156: ='II. Headline series'!A158 -> 1460 | C156: 0.2953209327 | D156: 0.07287070667 | E156: 0.01843890083 | F156: 0.2104810214 | G156: 0.281272754 | I156: 0.1216156844 | M156: 35173.59879 | N156: 42569.32258 | O156: 0.82626635
A157: ='II. Headline series'!A159 -> 1461 | C157: 0.2952753198 | D157: 0.07285945165 | E157: 0.01843605291 | F157: 0.2104485122 | G157: 0.2812293109 | I157: 0.1217513525 | M157: 35179.03226 | N157: 42637.06452 | O157: 0.8250810101
A158: ='II. Headline series'!A160 -> 1462 | C158: 0.295229721 | D158: 0.07284820011 | E158: 0.01843320587 | F158: 0.2104160131 | G158: 0.2811858812 | I158: 0.1218869787 | M158: 35184.46573 | N158: 42704.80645 | O158: 0.8238994308
A159: ='II. Headline series'!A161 -> 1463 | C159: 0.2951841363 | D159: 0.07283695204 | E159: 0.0184303597 | F159: 0.210383524 | G159: 0.2811424649 | I159: 0.1220225631 | M159: 35189.89919 | N159: 42772.54839 | O159: 0.8227215941
A160: ='II. Headline series'!A162 -> 1464 | C160: 0.2951385657 | D160: 0.07282570745 | E160: 0.01842751442 | F160: 0.2103510449 | G160: 0.2810990621 | I160: 0.1221581055 | M160: 35195.33266 | N160: 42840.29032 | O160: 0.8215474824
A161: ='II. Headline series'!A163 -> 1465 | C161: 0.2950930091 | D161: 0.07281446633 | E161: 0.01842467001 | F161: 0.2103185758 | G161: 0.2810556726 | I161: 0.1222936061 | M161: 35200.76613 | N161: 42908.03226 | O161: 0.8203770781
A162: ='II. Headline series'!A164 -> 1466 | C162: 0.2950474666 | D162: 0.07280322867 | E162: 0.01842182648 | F162: 0.2102861168 | G162: 0.2810122965 | I162: 0.1224290649 | M162: 35206.1996 | N162: 42975.77419 | O162: 0.8192103635
A163: ='II. Headline series'!A165 -> 1467 | C163: 0.2950019382 | D163: 0.07279199449 | E163: 0.01841898383 | F163: 0.2102536678 | G163: 0.2809689338 | I163: 0.1225644819 | M163: 35211.63306 | N163: 43043.51613 | O163: 0.8180473212
A164: ='II. Headline series'!A166 -> 1468 | C164: 0.2949564238 | D164: 0.07278076377 | E164: 0.01841614205 | F164: 0.2102212288 | G164: 0.2809255845 | I164: 0.1226998571 | M164: 35217.06653 | N164: 43111.25806 | O164: 0.816887934
A165: ='II. Headline series'!A167 -> 1469 | C165: 0.2949109234 | D165: 0.07276953652 | E165: 0.01841330116 | F165: 0.2101887998 | G165: 0.2808822486 | I165: 0.1228351906 | M165: 35222.5 | N165: 43179 | O165: 0.8157321846
A166: ='II. Headline series'!A168 -> 1470 | C166: 0.2948654371 | D166: 0.07275831273 | E166: 0.01841046114 | F166: 0.2101563808 | G166: 0.280838926 | I166: 0.1229704823 | M166: 35227.93347 | N166: 43246.74194 | O166: 0.814580056
A167: ='II. Headline series'!A169 -> 1471 | C167: 0.2948199648 | D167: 0.0727470924 | E167: 0.01840762199 | F167: 0.2101239718 | G167: 0.2807956168 | I167: 0.1231057322 | M167: 35233.36694 | N167: 43314.48387 | O167: 0.8134315311
A168: ='II. Headline series'!A170 -> 1472 | C168: 0.2947745065 | D168: 0.07273587553 | E168: 0.01840478372 | F168: 0.2100915728 | G168: 0.2807523209 | I168: 0.1232409405 | M168: 35238.8004 | N168: 43382.22581 | O168: 0.8122865931
A169: ='II. Headline series'!A171 -> 1473 | C169: 0.2947290623 | D169: 0.07272466212 | E169: 0.01840194633 | F169: 0.2100591838 | G169: 0.2807090384 | I169: 0.1233761071 | M169: 35244.23387 | N169: 43449.96774 | O169: 0.8111452252
A170: ='II. Headline series'!A172 -> 1474 | C170: 0.2946836321 | D170: 0.07271345217 | E170: 0.01839910981 | F170: 0.2100268048 | G170: 0.2806657693 | I170: 0.1235112319 | M170: 35249.66734 | N170: 43517.70968 | O170: 0.8100074108
A171: ='II. Headline series'!A173 -> 1475 | C171: 0.2946382158 | D171: 0.07270224567 | E171: 0.01839627416 | F171: 0.2099944357 | G171: 0.2806225134 | I171: 0.1236463152 | M171: 35255.10081 | N171: 43585.45161 | O171: 0.8088731332
A172: ='II. Headline series'!A174 -> 1476 | C172: 0.2945928136 | D172: 0.07269104263 | E172: 0.01839343939 | F172: 0.2099620767 | G172: 0.280579271 | I172: 0.1237813568 | M172: 35260.53427 | N172: 43653.19355 | O172: 0.8077423759
A173: ='II. Headline series'!A175 -> 1477 | C173: 0.2945474253 | D173: 0.07267984304 | E173: 0.01839060549 | F173: 0.2099297276 | G173: 0.2805360418 | I173: 0.1239163568 | M173: 35265.96774 | N173: 43720.93548 | O173: 0.8066151227
A174: ='II. Headline series'!A176 -> 1478 | C174: 0.2945020511 | D174: 0.0726686469 | E174: 0.01838777247 | F174: 0.2098973884 | G174: 0.2804928259 | I174: 0.1240513152 | M174: 35271.40121 | N174: 43788.67742 | O174: 0.8054913573
A175: ='II. Headline series'!A177 -> 1479 | C175: 0.2944566908 | D175: 0.0726574542 | E175: 0.01838494031 | F175: 0.2098650593 | G175: 0.2804496234 | I175: 0.1241862321 | M175: 35276.83468 | N175: 43856.41935 | O175: 0.8043710635
A176: ='II. Headline series'!A178 -> 1480 | C176: 0.2944113445 | D176: 0.07264626496 | E176: 0.01838210903 | F176: 0.20983274 | G176: 0.2804064342 | I176: 0.1243211073 | M176: 35282.26815 | N176: 43924.16129 | O176: 0.8032542252
A177: ='II. Headline series'!A179 -> 1481 | C177: 0.2943660121 | D177: 0.07263507916 | E177: 0.01837927863 | F177: 0.2098004308 | G177: 0.2803632582 | I177: 0.1244559411 | M177: 35287.70161 | N177: 43991.90323 | O177: 0.8021408265
A178: ='II. Headline series'!A180 -> 1482 | C178: 0.2943206937 | D178: 0.0726238968 | E178: 0.01837644909 | F178: 0.2097681315 | G178: 0.2803200956 | I178: 0.1245907333 | M178: 35293.13508 | N178: 44059.64516 | O178: 0.8010308515
A179: ='II. Headline series'!A181 -> 1483 | C179: 0.2942753893 | D179: 0.07261271789 | E179: 0.01837362042 | F179: 0.2097358421 | G179: 0.2802769463 | I179: 0.124725484 | M179: 35298.56855 | N179: 44127.3871 | O179: 0.7999242845
A180: ='II. Headline series'!A182 -> 1484 | C180: 0.2942300988 | D180: 0.07260154242 | E180: 0.01837079263 | F180: 0.2097035627 | G180: 0.2802338102 | I180: 0.1248601933 | M180: 35304.00202 | N180: 44195.12903 | O180: 0.7988211097
A181: ='II. Headline series'!A183 -> 1485 | C181: 0.2941848222 | D181: 0.07259037039 | E181: 0.0183679657 | F181: 0.2096712932 | G181: 0.2801906874 | I181: 0.1249948611 | M181: 35309.43548 | N181: 44262.87097 | O181: 0.7977213116
A182: ='II. Headline series'!A184 -> 1486 | C182: 0.2941395596 | D182: 0.07257920179 | E182: 0.01836513965 | F182: 0.2096390336 | G182: 0.2801475779 | I182: 0.1251294875 | M182: 35314.86895 | N182: 44330.6129 | O182: 0.7966248747
A183: ='II. Headline series'!A185 -> 1487 | C183: 0.2940943109 | D183: 0.07256803664 | E183: 0.01836231446 | F183: 0.209606784 | G183: 0.2801044816 | I183: 0.1252640724 | M183: 35320.30242 | N183: 44398.35484 | O183: 0.7955317837
A184: ='II. Headline series'!A186 -> 1488 | C184: 0.2940490761 | D184: 0.07255687491 | E184: 0.01835949015 | F184: 0.2095745443 | G184: 0.2800613986 | I184: 0.1253986159 | M184: 35325.73589 | N184: 44466.09677 | O184: 0.7944420232
A185: ='II. Headline series'!A187 -> 1489 | C185: 0.2940038552 | D185: 0.07254571662 | E185: 0.0183566667 | F185: 0.2095423145 | G185: 0.2800183289 | I185: 0.1255331181 | M185: 35331.16935 | N185: 44533.83871 | O185: 0.7933555781
A186: ='II. Headline series'!A188 -> 1490 | C186: 0.2939586483 | D186: 0.07253456177 | E186: 0.01835384412 | F186: 0.2095100946 | G186: 0.2799752724 | I186: 0.1256675789 | M186: 35336.60282 | N186: 44601.58065 | O186: 0.7922724332
A187: ='II. Headline series'!A189 -> 1491 | C187: 0.2939134552 | D187: 0.07252341034 | E187: 0.01835102241 | F187: 0.2094778846 | G187: 0.2799322291 | I187: 0.1258019983 | M187: 35342.03629 | N187: 44669.32258 | O187: 0.7911925735
A188: ='II. Headline series'!A190 -> 1492 | C188: 0.293868276 | D188: 0.07251226234 | E188: 0.01834820157 | F188: 0.2094456845 | G188: 0.2798891991 | I188: 0.1259363765 | M188: 35347.46976 | N188: 44737.06452 | O188: 0.7901159841
A189: ='II. Headline series'!A191 -> 1493 | C189: 0.2938231108 | D189: 0.07250111776 | E189: 0.01834538159 | F189: 0.2094134944 | G189: 0.2798461823 | I189: 0.1260707133 | M189: 35352.90323 | N189: 44804.80645 | O189: 0.7890426502
A190: ='II. Headline series'!A192 -> 1494 | C190: 0.2937779594 | D190: 0.07248997661 | E190: 0.01834256248 | F190: 0.2093813141 | G190: 0.2798031787 | I190: 0.1262050088 | M190: 35358.33669 | N190: 44872.54839 | O190: 0.787972557
A191: ='II. Headline series'!A193 -> 1495 | C191: 0.2937328218 | D191: 0.07247883889 | E191: 0.01833974424 | F191: 0.2093491437 | G191: 0.2797601883 | I191: 0.1263392631 | M191: 35363.77016 | N191: 44940.29032 | O191: 0.7869056899
A192: ='II. Headline series'!A194 -> 1496 | C192: 0.2936876982 | D192: 0.07246770459 | E192: 0.01833692686 | F192: 0.2093169831 | G192: 0.2797172112 | I192: 0.1264734761 | M192: 35369.20363 | N192: 45008.03226 | O192: 0.7858420343
A193: ='II. Headline series'!A195 -> 1497 | C193: 0.2936425884 | D193: 0.0724565737 | E193: 0.01833411035 | F193: 0.2092848325 | G193: 0.2796742472 | I193: 0.1266076479 | M193: 35374.6371 | N193: 45075.77419 | O193: 0.7847815757
A194: ='II. Headline series'!A196 -> 1498 | C194: 0.2935974924 | D194: 0.07244544624 | E194: 0.0183312947 | F194: 0.2092526918 | G194: 0.2796312964 | I194: 0.1267417784 | M194: 35380.07056 | N194: 45143.51613 | O194: 0.7837242997
A195: ='II. Headline series'!A197 -> 1499 | C195: 0.2935524103 | D195: 0.07243432219 | E195: 0.01832847992 | F195: 0.2092205609 | G195: 0.2795883589 | I195: 0.1268758678 | M195: 35385.50403 | N195: 45211.25806 | O195: 0.7826701921
A196: ='II. Headline series'!A198 -> 1500 | C196: 0.2980568243 | D196: 0.07264328662 | E196: 0.01865758303 | F196: 0.2130525664 | G196: 0.2815927331 | I196: 0.1159970065 | M196: 38751 | N196: 45279 | O196: 0.8558272047
A197: ='II. Headline series'!A199 -> 1501 | C197: 0.2973383714 | D197: 0.07310888677 | E197: 0.01891305833 | F197: 0.2131439451 | G197: 0.2814134371 | I197: 0.1160823013 | M197: 38940.82 | N197: 45490.49 | O197: 0.8560211156
A198: ='II. Headline series'!A200 -> 1502 | C198: 0.2966268888 | D198: 0.07356996972 | E198: 0.01916605504 | F198: 0.2132344373 | G198: 0.2812358806 | I198: 0.1161667685 | M198: 39130.64 | N198: 45701.98 | O198: 0.8562132319
A199: ='II. Headline series'!A201 -> 1503 | C199: 0.2959222756 | D199: 0.07402660091 | E199: 0.01941660906 | F199: 0.2133240557 | G199: 0.2810600385 | I199: 0.1162504203 | M199: 39320.46 | N199: 45913.47 | O199: =M199/N199 -> 0.8564035783
A200: ='II. Headline series'!A202 -> 1504 | C200: 0.2952244327 | D200: 0.07447884449 | E200: 0.0196647556 | F200: 0.2134128131 | G200: 0.2808858859 | I200: 0.1163332682 | M200: 39510.28 | N200: 46124.96 | O200: 0.8565921792
A201: ='II. Headline series'!A203 -> 1505 | C201: 0.2945332631 | D201: 0.07492676341 | E201: 0.01991052919 | F201: 0.2135007217 | G201: 0.2807133987 | I201: 0.1164153239 | M201: 39700.1 | N201: 46336.45 | O201: 0.8567790584
A202: ='II. Headline series'!A204 -> 1506 | C202: 0.2938486715 | D202: 0.07537041939 | E202: 0.02015396371 | F202: 0.2135877936 | G202: 0.2805425531 | I202: 0.1164965986 | M202: 39889.92 | N202: 46547.94 | O202: 0.8569642394
... 513 more rows

Sheet IV. Country level, 1310-2018
A1: back to contents | C1: Real rates, not averaged | L1: Real rates, 7-Y averaged | U1: Inflation, not averaged | AE1: Nominal, not averaged | AO1: GDP-weighted nominal | AY1: GDP-weighted inflation | BI1: World nominal rate, GDP-weighted (%) | BJ1: World nominal rate, arithmetically-weighted (%) | BN1: Global inflation, GDP-weighted (7-Y centered avg, %) | BO1: Global inflation, arithmetically-weighted (7-Y centered avg, %)
A2: Year | C2: Italy | D2: UK | E2: Holland | F2: Germany | G2: France | H2: United States | I2: Spain | J2: Japan | L2: =C2 -> Italy | M2: =D2 -> UK | N2: Holland | O2: Germany | P2: France | Q2: United States | R2: Spain | S2: =J2 -> Japan | U2: =L2 -> Italy | V2: =M2 -> UK | W2: =N2 -> Holland | X2: =O2 -> Germany | Y2: =P2 -> France | Z2: =Q2 -> United States | AA2: =R2 -> Spain | AB2: =S2 -> Japan | AE2: =U2 -> Italy | AF2: =V2 -> UK | AG2: Holland | AH2: Germany | AI2: France | AJ2: United States | AK2: Spain | AL2: =AB2 -> Japan | AO2: =L2 -> Italy | AP2: UK | AQ2: Holland | AR2: Germany | AS2: France | AT2: United States | AU2: Spain | AV2: Japan | AY2: =AO2 -> Italy | AZ2: =AP2 -> UK | BA2: Holland | BB2: Germany | BC2: France | BD2: United States | BE2: Spain | BF2: =AV2 -> Japan
A4: ='[1]Nominal weighted'!B4 -> 1310 | V4: 5.412023698 | AE4: 7.813421053 | AF4: 22 | AP4: =AF4*'III. GDP shares, 1310-2018'!D6 -> 4.476072862 | AQ4: =AG4*'III. GDP shares, 1310-2018'!E6 -> 0 | AR4: =AH4*'III. GDP shares, 1310-2018'!F6 -> 0 | AS4: =AI4*'III. GDP shares, 1310-2018'!G6 -> 0 | AT4: =AJ4*'III. GDP shares, 1310-2018'!H6 -> 0 | AU4: =AK4*'III. GDP shares, 1310-2018'!I6 -> 0 | AV4: =AL4*'III. GDP shares, 1310-2018'!J6 -> 0 | AY4: =U4*'III. GDP shares, 1310-2018'!C6 -> 0 | AZ4: =V4*'III. GDP shares, 1310-2018'!D6 -> 1.101118746 | BA4: =W4*'III. GDP shares, 1310-2018'!E6 -> 0 | BB4: =X4*'III. GDP shares, 1310-2018'!F6 -> 0 | BC4: =Y4*'III. GDP shares, 1310-2018'!G6 -> 0 | BD4: =Z4*'III. GDP shares, 1310-2018'!H6 -> 0 | BE4: =AA4*'III. GDP shares, 1310-2018'!I6 -> 0 | BF4: =AB4*'III. GDP shares, 1310-2018'!J6 -> 0 | BI4: =AVERAGE(AE4:AL4) -> 14.90671053 | BJ4: =SUM(AO4:AV4) -> 4.476072862 | BL4: =SUM(AY4:BF4) -> 1.101118746 | BM4: =AVERAGE(U4:AB4) -> 5.412023698 | BR4: =((AO4+SUM(AQ4:AV4))-((AY4+(SUM(BA4:BF4))))) -> 0
A5: ='[1]Nominal weighted'!B5 -> 1311 | U5: 60 | V5: 0.8814871278 | AE5: 7.813421053 | AF5: 22 | AP5: =AF5*'III. GDP shares, 1310-2018'!D7 -> 4.476072862 | AQ5: =AG5*'III. GDP shares, 1310-2018'!E7 -> 0 | AR5: =AH5*'III. GDP shares, 1310-2018'!F7 -> 0 | AS5: =AI5*'III. GDP shares, 1310-2018'!G7 -> 0 | AT5: =AJ5*'III. GDP shares, 1310-2018'!H7 -> 0 | AU5: =AK5*'III. GDP shares, 1310-2018'!I7 -> 0 | AV5: =AL5*'III. GDP shares, 1310-2018'!J7 -> 0 | AY5: =U5*'III. GDP shares, 1310-2018'!C7 -> 47.79252856 | AZ5: =V5*'III. GDP shares, 1310-2018'!D7 -> 0.1793454823 | BA5: =W5*'III. GDP shares, 1310-2018'!E7 -> 0 | BB5: =X5*'III. GDP shares, 1310-2018'!F7 -> 0 | BC5: =Y5*'III. GDP shares, 1310-2018'!G7 -> 0 | BD5: =Z5*'III. GDP shares, 1310-2018'!H7 -> 0 | BE5: =AA5*'III. GDP shares, 1310-2018'!I7 -> 0 | BF5: =AB5*'III. GDP shares, 1310-2018'!J7 -> 0 | BI5: =AVERAGE(AE5:AL5) -> 14.90671053 | BJ5: =SUM(AO5:AV5) -> 4.476072862 | BL5: =SUM(AY5:BF5) -> 47.97187404 | BM5: =AVERAGE(U5:AB5) -> 30.44074356 | BR5: =((AO5+SUM(AQ5:AV5))-((AY5+(SUM(BA5:BF5))))) -> -47.79252856
A6: ='[1]Nominal weighted'!B6 -> 1312 | U6: -12.5 | V6: -18.28074213 | AE6: 7.813421053 | AF6: 22 | AP6: =AF6*'III. GDP shares, 1310-2018'!D8 -> 4.476072862 | AQ6: =AG6*'III. GDP shares, 1310-2018'!E8 -> 0 | AR6: =AH6*'III. GDP shares, 1310-2018'!F8 -> 0 | AS6: =AI6*'III. GDP shares, 1310-2018'!G8 -> 0 | AT6: =AJ6*'III. GDP shares, 1310-2018'!H8 -> 0 | AU6: =AK6*'III. GDP shares, 1310-2018'!I8 -> 0 | AV6: =AL6*'III. GDP shares, 1310-2018'!J8 -> 0 | AY6: =U6*'III. GDP shares, 1310-2018'!C8 -> -9.956776783 | AZ6: =V6*'III. GDP shares, 1310-2018'!D8 -> -3.719360625 | BA6: =W6*'III. GDP shares, 1310-2018'!E8 -> 0 | BB6: =X6*'III. GDP shares, 1310-2018'!F8 -> 0 | BC6: =Y6*'III. GDP shares, 1310-2018'!G8 -> 0 | BD6: =Z6*'III. GDP shares, 1310-2018'!H8 -> 0 | BE6: =AA6*'III. GDP shares, 1310-2018'!I8 -> 0 | BF6: =AB6*'III. GDP shares, 1310-2018'!J8 -> 0 | BI6: 14.90671053 | BJ6: 4.476072862 | BL6: -13.67613741 | BM6: -15.39037106 | BR6: 9.956776783
A7: ='[1]Nominal weighted'!B7 -> 1313 | U7: 0 | V7: -2.467516963 | AE7: 7.813421053 | AF7: 22 | AP7: =AF7*'III. GDP shares, 1310-2018'!D9 -> 4.476072862 | AQ7: =AG7*'III. GDP shares, 1310-2018'!E9 -> 0 | AR7: =AH7*'III. GDP shares, 1310-2018'!F9 -> 0 | AS7: =AI7*'III. GDP shares, 1310-2018'!G9 -> 0 | AT7: =AJ7*'III. GDP shares, 1310-2018'!H9 -> 0 | AU7: =AK7*'III. GDP shares, 1310-2018'!I9 -> 0 | AV7: =AL7*'III. GDP shares, 1310-2018'!J9 -> 0 | AY7: =U7*'III. GDP shares, 1310-2018'!C9 -> 0 | AZ7: =V7*'III. GDP shares, 1310-2018'!D9 -> -0.5020357144 | BA7: =W7*'III. GDP shares, 1310-2018'!E9 -> 0 | BB7: =X7*'III. GDP shares, 1310-2018'!F9 -> 0 | BC7: =Y7*'III. GDP shares, 1310-2018'!G9 -> 0 | BD7: =Z7*'III. GDP shares, 1310-2018'!H9 -> 0 | BE7: =AA7*'III. GDP shares, 1310-2018'!I9 -> 0 | BF7: =AB7*'III. GDP shares, 1310-2018'!J9 -> 0 | BI7: 14.90671053 | BJ7: 4.476072862 | BL7: -0.5020357144 | BM7: -1.233758482 | BN7: =AVERAGE(BL4:BL10) -> 2.173308864 | BO7: =AVERAGE(BM4:BM10) -> 4.0171594 | BR7: 0
A8: ='[1]Nominal weighted'!B8 -> 1314 | C8: =AE8-U8 -> 22.09913534 | D8: =AF8-V8 -> 13.43097534 | U8: -14.28571429 | V8: 8.569024659 | AE8: 7.813421053 | AF8: 22 | AO8: =AE8*'III. GDP shares, 1310-2018'!C10 -> 6.223719147 | AP8: =AF8*'III. GDP shares, 1310-2018'!D10 -> 4.476072862 | AQ8: =AG8*'III. GDP shares, 1310-2018'!E10 -> 0 | AR8: =AH8*'III. GDP shares, 1310-2018'!F10 -> 0 | AS8: =AI8*'III. GDP shares, 1310-2018'!G10 -> 0 | AT8: =AJ8*'III. GDP shares, 1310-2018'!H10 -> 0 | AU8: =AK8*'III. GDP shares, 1310-2018'!I10 -> 0 | AV8: =AL8*'III. GDP shares, 1310-2018'!J10 -> 0 | AY8: =U8*'III. GDP shares, 1310-2018'!C10 -> -11.37917347 | AZ8: =V8*'III. GDP shares, 1310-2018'!D10 -> 1.743435397 | BA8: =W8*'III. GDP shares, 1310-2018'!E10 -> 0 | BB8: =X8*'III. GDP shares, 1310-2018'!F10 -> 0 | BC8: =Y8*'III. GDP shares, 1310-2018'!G10 -> 0 | BD8: =Z8*'III. GDP shares, 1310-2018'!H10 -> 0 | BE8: =AA8*'III. GDP shares, 1310-2018'!I10 -> 0 | BF8: =AB8*'III. GDP shares, 1310-2018'!J10 -> 0 | BI8: 14.90671053 | BJ8: 10.69979201 | BL8: -9.635738069 | BM8: -2.858344813 | BN8: =AVERAGE(BL5:BL11) -> 7.121745201 | BO8: 6.537384383 | BR8: 17.60289261
A9: ='[1]Nominal weighted'!B9 -> 1315 | C9: =AE9-U9 -> 32.93712329 | D9: =AF9-V9 -> 15.0848535 | U9: -25 | V9: 6.915146496 | AE9: 7.937123288 | AF9: 22 | AO9: =AE9*'III. GDP shares, 1310-2018'!C11 -> 6.32225319 | AP9: =AF9*'III. GDP shares, 1310-2018'!D11 -> 4.476072862 | AQ9: =AG9*'III. GDP shares, 1310-2018'!E11 -> 0 | AR9: =AH9*'III. GDP shares, 1310-2018'!F11 -> 0 | AS9: =AI9*'III. GDP shares, 1310-2018'!G11 -> 0 | AT9: =AJ9*'III. GDP shares, 1310-2018'!H11 -> 0 | AU9: =AK9*'III. GDP shares, 1310-2018'!I11 -> 0 | AV9: =AL9*'III. GDP shares, 1310-2018'!J11 -> 0 | AY9: =U9*'III. GDP shares, 1310-2018'!C11 -> -19.91355357 | AZ9: =V9*'III. GDP shares, 1310-2018'!D11 -> 1.40694089 | BA9: =W9*'III. GDP shares, 1310-2018'!E11 -> 0 | BB9: =X9*'III. GDP shares, 1310-2018'!F11 -> 0 | BC9: =Y9*'III. GDP shares, 1310-2018'!G11 -> 0 | BD9: =Z9*'III. GDP shares, 1310-2018'!H11 -> 0 | BE9: =AA9*'III. GDP shares, 1310-2018'!I11 -> 0 | BF9: =AB9*'III. GDP shares, 1310-2018'!J11 -> 0 | BI9: 14.96856164 | BJ9: 10.79832605 | BL9: -18.50661268 | BM9: -9.042426752 | BN9: =AVERAGE(BL6:BL12) -> -0.4761172825 | BO9: 0.3585055517 | BR9: 26.23580676
A10: ='[1]Nominal weighted'!B10 -> 1316 | C10: 8.073571429 | D10: -19.5844993 | U10: 0 | V10: 41.5844993 | AE10: 8.073571429 | AF10: 22 | AO10: =AE10*'III. GDP shares, 1310-2018'!C12 -> 6.430939884 | AP10: =AF10*'III. GDP shares, 1310-2018'!D12 -> 4.476072862 | AQ10: =AG10*'III. GDP shares, 1310-2018'!E12 -> 0 | AR10: =AH10*'III. GDP shares, 1310-2018'!F12 -> 0 | AS10: =AI10*'III. GDP shares, 1310-2018'!G12 -> 0 | AT10: =AJ10*'III. GDP shares, 1310-2018'!H12 -> 0 | AU10: =AK10*'III. GDP shares, 1310-2018'!I12 -> 0 | AV10: =AL10*'III. GDP shares, 1310-2018'!J12 -> 0 | AY10: =U10*'III. GDP shares, 1310-2018'!C12 -> 0 | AZ10: =V10*'III. GDP shares, 1310-2018'!D12 -> 8.460693127 | BA10: =W10*'III. GDP shares, 1310-2018'!E12 -> 0 | BB10: =X10*'III. GDP shares, 1310-2018'!F12 -> 0 | BC10: =Y10*'III. GDP shares, 1310-2018'!G12 -> 0 | BD10: =Z10*'III. GDP shares, 1310-2018'!H12 -> 0 | BE10: =AA10*'III. GDP shares, 1310-2018'!I12 -> 0 | BF10: =AB10*'III. GDP shares, 1310-2018'!J12 -> 0 | BI10: 15.03678571 | BJ10: 10.90701275 | BL10: 8.460693127 | BM10: 20.79224965 | BN10: =AVERAGE(BL7:BL13) -> -0.9970640803 | BO10: -0.321104311 | BR10: 6.430939884
A11: ='[1]Nominal weighted'!B11 -> 1317 | C11: -36.4831746 | D11: 20.33724729 | L11: =AVERAGE(C8:C14) -> 11.89446056 | M11: =AVERAGE(D8:D14) -> 19.0440565 | U11: 44.44444444 | V11: 1.662752708 | AE11: 7.961269841 | AF11: 22 | AO11: =AE11*'III. GDP shares, 1310-2018'!C13 -> 6.341486937 | AP11: =AF11*'III. GDP shares, 1310-2018'!D13 -> 4.476072862 | AQ11: =AG11*'III. GDP shares, 1310-2018'!E13 -> 0 | AR11: =AH11*'III. GDP shares, 1310-2018'!F13 -> 0 | AS11: =AI11*'III. GDP shares, 1310-2018'!G13 -> 0 | AT11: =AJ11*'III. GDP shares, 1310-2018'!H13 -> 0 | AU11: =AK11*'III. GDP shares, 1310-2018'!I13 -> 0 | AV11: =AL11*'III. GDP shares, 1310-2018'!J13 -> 0 | AY11: =U11*'III. GDP shares, 1310-2018'!C13 -> 35.40187301 | AZ11: =V11*'III. GDP shares, 1310-2018'!D13 -> 0.3383001033 | BA11: =W11*'III. GDP shares, 1310-2018'!E13 -> 0 | BB11: =X11*'III. GDP shares, 1310-2018'!F13 -> 0 | BC11: =Y11*'III. GDP shares, 1310-2018'!G13 -> 0 | BD11: =Z11*'III. GDP shares, 1310-2018'!H13 -> 0 | BE11: =AA11*'III. GDP shares, 1310-2018'!I13 -> 0 | BF11: =AB11*'III. GDP shares, 1310-2018'!J13 -> 0 | BI11: 14.98063492 | BJ11: 10.8175598 | BL11: 35.74017311 | BM11: 23.05359858 | BN11: =AVERAGE(BL8:BL14) -> -2.631151918 | BO11: -0.5511499221 | BR11: -29.06038607
A12: ='[1]Nominal weighted'!B12 -> 1318 | C12: 7.848968254 | D12: 47.62281651 | L12: =AVERAGE(C9:C15) -> 11.37191213 | M12: 19.26127682 | U12: 0 | V12: -25.62281651 | AE12: 7.848968254 | AF12: 22 | AO12: =AE12*'III. GDP shares, 1310-2018'!C14 -> 6.252033991 | AP12: =AF12*'III. GDP shares, 1310-2018'!D14 -> 4.476072862 | AQ12: =AG12*'III. GDP shares, 1310-2018'!E14 -> 0 | AR12: =AH12*'III. GDP shares, 1310-2018'!F14 -> 0 | AS12: =AI12*'III. GDP shares, 1310-2018'!G14 -> 0 | AT12: =AJ12*'III. GDP shares, 1310-2018'!H14 -> 0 | AU12: =AK12*'III. GDP shares, 1310-2018'!I14 -> 0 | AV12: =AL12*'III. GDP shares, 1310-2018'!J14 -> 0 | AY12: =U12*'III. GDP shares, 1310-2018'!C14 -> 0 | AZ12: =V12*'III. GDP shares, 1310-2018'!D14 -> -5.213163346 | BA12: =W12*'III. GDP shares, 1310-2018'!E14 -> 0 | BB12: =X12*'III. GDP shares, 1310-2018'!F14 -> 0 | BC12: =Y12*'III. GDP shares, 1310-2018'!G14 -> 0 | BD12: =Z12*'III. GDP shares, 1310-2018'!H14 -> 0 | BE12: =AA12*'III. GDP shares, 1310-2018'!I14 -> 0 | BF12: =AB12*'III. GDP shares, 1310-2018'!J14 -> 0 | BI12: 14.92448413 | BJ12: 10.72810685 | BL12: -5.213163346 | BM12: -12.81140825 | BN12: =AVERAGE(BL9:BL15) -> -2.314103496 | BO12: -0.4330027123 | BR12: 6.252033991
A13: ='[1]Nominal weighted'!B13 -> 1319 | C13: 23.12128205 | D13: 46.91066482 | L13: =AVERAGE(C10:C16) -> -3.02226686 | M13: 15.27012896 | U13: -15.38461538 | V13: -24.91066482 | AE13: 7.736666667 | AF13: 22 | AO13: =AE13*'III. GDP shares, 1310-2018'!C15 -> 6.162581044 | AP13: =AF13*'III. GDP shares, 1310-2018'!D15 -> 4.476072862 | AQ13: =AG13*'III. GDP shares, 1310-2018'!E15 -> 0 | AR13: =AH13*'III. GDP shares, 1310-2018'!F15 -> 0 | AS13: =AI13*'III. GDP shares, 1310-2018'!G15 -> 0 | AT13: =AJ13*'III. GDP shares, 1310-2018'!H15 -> 0 | AU13: =AK13*'III. GDP shares, 1310-2018'!I15 -> 0 | AV13: =AL13*'III. GDP shares, 1310-2018'!J15 -> 0 | AY13: =U13*'III. GDP shares, 1310-2018'!C15 -> -12.2544945 | AZ13: =V13*'III. GDP shares, 1310-2018'!D15 -> -5.06827049 | BA13: =W13*'III. GDP shares, 1310-2018'!E15 -> 0 | BB13: =X13*'III. GDP shares, 1310-2018'!F15 -> 0 | BC13: =Y13*'III. GDP shares, 1310-2018'!G15 -> 0 | BD13: =Z13*'III. GDP shares, 1310-2018'!H15 -> 0 | BE13: =AA13*'III. GDP shares, 1310-2018'!I15 -> 0 | BF13: =AB13*'III. GDP shares, 1310-2018'!J15 -> 0 | BI13: 14.86833333 | BJ13: 10.63865391 | BL13: -17.32276499 | BM13: -20.1476401 | BN13: =AVERAGE(BL10:BL16) -> 9.877100361 | BO13: 8.705428359 | BR13: 18.41707555
A14: ='[1]Nominal weighted'!B14 -> 1320 | C14: 25.66431818 | D14: 9.506337336 | L14: =AVERAGE(C11:C17) -> -8.27402423 | M14: 23.19722038 | U14: -18.18181818 | V14: 12.49366266 | AE14: 7.4825 | AF14: 22 | AO14: =AE14*'III. GDP shares, 1310-2018'!C16 -> 5.960126582 | AP14: =AF14*'III. GDP shares, 1310-2018'!D16 -> 4.476072862 | AQ14: =AG14*'III. GDP shares, 1310-2018'!E16 -> 0 | AR14: =AH14*'III. GDP shares, 1310-2018'!F16 -> 0 | AS14: =AI14*'III. GDP shares, 1310-2018'!G16 -> 0 | AT14: =AJ14*'III. GDP shares, 1310-2018'!H16 -> 0 | AU14: =AK14*'III. GDP shares, 1310-2018'!I16 -> 0 | AV14: =AL14*'III. GDP shares, 1310-2018'!J16 -> 0 | AY14: =U14*'III. GDP shares, 1310-2018'!C16 -> -14.48258441 | AZ14: =V14*'III. GDP shares, 1310-2018'!D16 -> 2.541933836 | BA14: =W14*'III. GDP shares, 1310-2018'!E16 -> 0 | BB14: =X14*'III. GDP shares, 1310-2018'!F16 -> 0 | BC14: =Y14*'III. GDP shares, 1310-2018'!G16 -> 0 | BD14: =Z14*'III. GDP shares, 1310-2018'!H16 -> 0 | BE14: =AA14*'III. GDP shares, 1310-2018'!I16 -> 0 | BF14: =AB14*'III. GDP shares, 1310-2018'!J16 -> 0 | BI14: 14.74125 | BJ14: 10.43619944 | BL14: -11.94065058 | BM14: -2.844077759 | BN14: =AVERAGE(BL11:BL17) -> 12.32826185 | BO14: 7.292903059 | BR14: 20.44271099
A15: ='[1]Nominal weighted'!B15 -> 1321 | C15: 18.4412963 | D15: 14.95151758 | L15: =AVERAGE(C12:C18) -> 0.9657587132 | M15: 25.51747561 | U15: -11.11111111 | V15: 7.048482421 | AE15: 7.330185185 | AF15: 22 | AO15: =AE15*'III. GDP shares, 1310-2018'!C17 -> 5.838801413 | AP15: =AF15*'III. GDP shares, 1310-2018'!D17 -> 4.476072862 | AQ15: =AG15*'III. GDP shares, 1310-2018'!E17 -> 0 | AR15: =AH15*'III. GDP shares, 1310-2018'!F17 -> 0 | AS15: =AI15*'III. GDP shares, 1310-2018'!G17 -> 0 | AT15: =AJ15*'III. GDP shares, 1310-2018'!H17 -> 0 | AU15: =AK15*'III. GDP shares, 1310-2018'!I17 -> 0 | AV15: =AL15*'III. GDP shares, 1310-2018'!J17 -> 0 | AY15: =U15*'III. GDP shares, 1310-2018'!C17 -> -8.850468252 | AZ15: =V15*'III. GDP shares, 1310-2018'!D17 -> 1.434069131 | BA15: =W15*'III. GDP shares, 1310-2018'!E17 -> 0 | BB15: =X15*'III. GDP shares, 1310-2018'!F17 -> 0 | BC15: =Y15*'III. GDP shares, 1310-2018'!G17 -> 0 | BD15: =Z15*'III. GDP shares, 1310-2018'!H17 -> 0 | BE15: =AA15*'III. GDP shares, 1310-2018'!I17 -> 0 | BF15: =AB15*'III. GDP shares, 1310-2018'!J17 -> 0 | BI15: 14.66509259 | BJ15: 10.31487428 | BL15: -7.41639912 | BM15: -2.031314345 | BN15: =AVERAGE(BL12:BL18) -> 4.403161797 | BO15: 1.454412871 | BR15: 14.68926966
A16: ='[1]Nominal weighted'!B16 -> 1322 | C16: -67.82212963 | D16: -12.85318149 | L16: =AVERAGE(C13:C19) -> 4.699010162 | M16: 20.75133815 | U16: 75 | V16: 34.85318149 | AE16: 7.17787037 | AF16: 22 | AO16: =AE16*'III. GDP shares, 1310-2018'!C18 -> 5.717476244 | AP16: =AF16*'III. GDP shares, 1310-2018'!D18 -> 4.476072862 | AQ16: =AG16*'III. GDP shares, 1310-2018'!E18 -> 0 | AR16: =AH16*'III. GDP shares, 1310-2018'!F18 -> 0 | AS16: =AI16*'III. GDP shares, 1310-2018'!G18 -> 0 | AT16: =AJ16*'III. GDP shares, 1310-2018'!H18 -> 0 | AU16: =AK16*'III. GDP shares, 1310-2018'!I18 -> 0 | AV16: =AL16*'III. GDP shares, 1310-2018'!J18 -> 0 | AY16: =U16*'III. GDP shares, 1310-2018'!C18 -> 59.7406607 | AZ16: =V16*'III. GDP shares, 1310-2018'!D18 -> 7.091153629 | BA16: =W16*'III. GDP shares, 1310-2018'!E18 -> 0 | BB16: =X16*'III. GDP shares, 1310-2018'!F18 -> 0 | BC16: =Y16*'III. GDP shares, 1310-2018'!G18 -> 0 | BD16: =Z16*'III. GDP shares, 1310-2018'!H18 -> 0 | BE16: =AA16*'III. GDP shares, 1310-2018'!I18 -> 0 | BF16: =AB16*'III. GDP shares, 1310-2018'!J18 -> 0 | BI16: 14.58893519 | BJ16: 10.19354911 | BL16: 66.83181433 | BM16: 54.92659075 | BN16: =AVERAGE(BL13:BL19) -> 2.338423653 | BO16: 1.932719693 | BR16: -54.02318445
A17: ='[1]Nominal weighted'!B17 -> 1323 | C17: -28.68873016 | D17: 35.90514062 | L17: =AVERAGE(C14:C20) -> 3.742171168 | M17: 19.35990298 | U17: 35.71428571 | V17: -13.90514062 | AE17: 7.025555556 | AF17: 22 | AO17: =AE17*'III. GDP shares, 1310-2018'!C19 -> 5.596151075 | AP17: =AF17*'III. GDP shares, 1310-2018'!D19 -> 4.476072862 | AQ17: =AG17*'III. GDP shares, 1310-2018'!E19 -> 0 | AR17: =AH17*'III. GDP shares, 1310-2018'!F19 -> 0 | AS17: =AI17*'III. GDP shares, 1310-2018'!G19 -> 0 | AT17: =AJ17*'III. GDP shares, 1310-2018'!H19 -> 0 | AU17: =AK17*'III. GDP shares, 1310-2018'!I19 -> 0 | AV17: =AL17*'III. GDP shares, 1310-2018'!J19 -> 0 | AY17: =U17*'III. GDP shares, 1310-2018'!C19 -> 28.44793367 | AZ17: =V17*'III. GDP shares, 1310-2018'!D19 -> -2.829110116 | BA17: =W17*'III. GDP shares, 1310-2018'!E19 -> 0 | BB17: =X17*'III. GDP shares, 1310-2018'!F19 -> 0 | BC17: =Y17*'III. GDP shares, 1310-2018'!G19 -> 0 | BD17: =Z17*'III. GDP shares, 1310-2018'!H19 -> 0 | BE17: =AA17*'III. GDP shares, 1310-2018'!I19 -> 0 | BF17: =AB17*'III. GDP shares, 1310-2018'!J19 -> 0 | BI17: 14.51277778 | BJ17: 10.07222394 | BL17: 25.61882355 | BM17: 10.90457255 | BN17: =AVERAGE(BL14:BL20) -> 3.887129142 | BO17: 3.666903472 | BR17: -22.85178259
A18: ='[1]Nominal weighted'!B18 -> 1324 | C18: 28.195306 | D18: 36.57903389 | L18: =AVERAGE(C15:C21) -> -0.2242574924 | M18: 23.047361 | U18: -21.05263158 | V18: -14.57903389 | AE18: 7.142674419 | AF18: 22 | AO18: =AE18*'III. GDP shares, 1310-2018'!C20 -> 5.689441186 | AP18: =AF18*'III. GDP shares, 1310-2018'!D20 -> 4.476072862 | AQ18: =AG18*'III. GDP shares, 1310-2018'!E20 -> 0 | AR18: =AH18*'III. GDP shares, 1310-2018'!F20 -> 0 | AS18: =AI18*'III. GDP shares, 1310-2018'!G20 -> 0 | AT18: =AJ18*'III. GDP shares, 1310-2018'!H20 -> 0 | AU18: =AK18*'III. GDP shares, 1310-2018'!I20 -> 0 | AV18: =AL18*'III. GDP shares, 1310-2018'!J20 -> 0 | AY18: =U18*'III. GDP shares, 1310-2018'!C20 -> -16.76930827 | AZ18: =V18*'III. GDP shares, 1310-2018'!D20 -> -2.966218998 | BA18: =W18*'III. GDP shares, 1310-2018'!E20 -> 0 | BB18: =X18*'III. GDP shares, 1310-2018'!F20 -> 0 | BC18: =Y18*'III. GDP shares, 1310-2018'!G20 -> 0 | BD18: =Z18*'III. GDP shares, 1310-2018'!H20 -> 0 | BE18: =AA18*'III. GDP shares, 1310-2018'!I20 -> 0 | BF18: =AB18*'III. GDP shares, 1310-2018'!J20 -> 0 | BI18: 14.57133721 | BJ18: 10.16551405 | BL18: -19.73552726 | BM18: -17.81583273 | BN18: =AVERAGE(BL15:BL21) -> 6.033465689 | BO18: 3.8941462 | BR18: 22.45874945
A19: ='[1]Nominal weighted'!B19 -> 1325 | C19: 33.9817284 | D19: 14.25985433 | L19: =AVERAGE(C16:C22) -> -3.466663774 | M19: 22.57600252 | U19: -26.66666667 | V19: 7.740145669 | AE19: 7.315061728 | AF19: 22 | AO19: =AE19*'III. GDP shares, 1310-2018'!C21 -> 5.826754943 | AP19: =AF19*'III. GDP shares, 1310-2018'!D21 -> 4.476072862 | AQ19: =AG19*'III. GDP shares, 1310-2018'!E21 -> 0 | AR19: =AH19*'III. GDP shares, 1310-2018'!F21 -> 0 | AS19: =AI19*'III. GDP shares, 1310-2018'!G21 -> 0 | AT19: =AJ19*'III. GDP shares, 1310-2018'!H21 -> 0 | AU19: =AK19*'III. GDP shares, 1310-2018'!I21 -> 0 | AV19: =AL19*'III. GDP shares, 1310-2018'!J21 -> 0 | AY19: =U19*'III. GDP shares, 1310-2018'!C21 -> -21.2411238 | AZ19: =V19*'III. GDP shares, 1310-2018'!D21 -> 1.574793453 | BA19: =W19*'III. GDP shares, 1310-2018'!E21 -> 0 | BB19: =X19*'III. GDP shares, 1310-2018'!F21 -> 0 | BC19: =Y19*'III. GDP shares, 1310-2018'!G21 -> 0 | BD19: =Z19*'III. GDP shares, 1310-2018'!H21 -> 0 | BE19: =AA19*'III. GDP shares, 1310-2018'!I21 -> 0 | BF19: =AB19*'III. GDP shares, 1310-2018'!J21 -> 0 | BI19: 14.65753086 | BJ19: 10.3028278 | BL19: -19.66633035 | BM19: -9.463260499 | BN19: =AVERAGE(BL16:BL22) -> 8.099634151 | BO19: 5.181954364 | BR19: 27.06787875
A20: ='[1]Nominal weighted'!B20 -> 1326 | C20: 16.42340909 | D20: 37.17061857 | F20: =AH20-X20 -> 8.676699958 | L20: =AVERAGE(C17:C23) -> 2.580777275 | M20: 25.89067732 | O20: 9.495229479 | U20: -9.090909091 | V20: -15.17061857 | X20: 0.2364667086 | AE20: 7.3325 | AF20: 22 | AH20: 8.913166667 | AO20: =AE20*'III. GDP shares, 1310-2018'!C22 -> 3.714303599 | AP20: =AF20*'III. GDP shares, 1310-2018'!D22 -> 2.846516575 | AQ20: =AG20*'III. GDP shares, 1310-2018'!E22 -> 0 | AR20: =AH20*'III. GDP shares, 1310-2018'!F22 -> 3.244921883 | AS20: =AI20*'III. GDP shares, 1310-2018'!G22 -> 0 | AT20: =AJ20*'III. GDP shares, 1310-2018'!H22 -> 0 | AU20: =AK20*'III. GDP shares, 1310-2018'!I22 -> 0 | AV20: =AL20*'III. GDP shares, 1310-2018'!J22 -> 0 | AY20: =U20*'III. GDP shares, 1310-2018'!C22 -> -4.605031893 | AZ20: =V20*'III. GDP shares, 1310-2018'!D22 -> -1.962882601 | BA20: =W20*'III. GDP shares, 1310-2018'!E22 -> 0 | BB20: =X20*'III. GDP shares, 1310-2018'!F22 -> 0.08608792208 | BC20: =Y20*'III. GDP shares, 1310-2018'!G22 -> 0 | BD20: =Z20*'III. GDP shares, 1310-2018'!H22 -> 0 | BE20: =AA20*'III. GDP shares, 1310-2018'!I22 -> 0 | BF20: =AB20*'III. GDP shares, 1310-2018'!J22 -> 0 | BI20: 12.74855556 | BJ20: 9.805742057 | BL20: -6.481826572 | BM20: -8.008353651 | BN20: =AVERAGE(BL17:BL23) -> 1.108968847 | BO20: -0.5991891433 | BR20: 11.47816945
A21: ='[1]Nominal weighted'!B21 -> 1327 | C21: -2.100682438 | D21: 35.31854349 | F21: 9.041946931 | L21: =AVERAGE(C18:C24) -> 8.327545387 | M21: 24.39605066 | O21: 9.770774518 | U21: 9.322854424 | V21: -13.31854349 | X21: 0.2355530691 | AE21: 7.222171986 | AF21: 22 | AH21: 9.2775 | AO21: =AE21*'III. GDP shares, 1310-2018'!C23 -> 3.656713196 | AP21: =AF21*'III. GDP shares, 1310-2018'!D23 -> 2.845191235 | AQ21: =AG21*'III. GDP shares, 1310-2018'!E23 -> 0 | AR21: =AH21*'III. GDP shares, 1310-2018'!F23 -> 3.380307864 | AS21: =AI21*'III. GDP shares, 1310-2018'!G23 -> 0 | AT21: =AJ21*'III. GDP shares, 1310-2018'!H23 -> 0 | AU21: =AK21*'III. GDP shares, 1310-2018'!I23 -> 0 | AV21: =AL21*'III. GDP shares, 1310-2018'!J23 -> 0 | AY21: =U21*'III. GDP shares, 1310-2018'!C23 -> 4.720325805 | AZ21: =V21*'III. GDP shares, 1310-2018'!D23 -> -1.7224456 | BA21: =W21*'III. GDP shares, 1310-2018'!E23 -> 0 | BB21: =X21*'III. GDP shares, 1310-2018'!F23 -> 0.08582504897 | BC21: =Y21*'III. GDP shares, 1310-2018'!G23 -> 0 | BD21: =Z21*'III. GDP shares, 1310-2018'!H23 -> 0 | BE21: =AA21*'III. GDP shares, 1310-2018'!I23 -> 0 | BF21: =AB21*'III. GDP shares, 1310-2018'!J23 -> 0 | BI21: 12.833224 | BJ21: 9.882212295 | BL21: 3.083705254 | BM21: -1.253378666 | BN21: =AVERAGE(BL18:BL24) -> -2.864119788 | BO21: -2.340669383 | BR21: 2.230870206
A22: ='[1]Nominal weighted'!B22 -> 1328 | C22: -4.255547678 | D22: 11.65200824 | F22: 9.906775366 | L22: =AVERAGE(C19:C25) -> 9.055378785 | M22: 21.80049761 | O22: 10.24866225 | U22: 11.36739165 | V22: 9.34799176 | X22: 0.2346449954 | AE22: 7.111843972 | AF22: 21 | AH22: 10.14142036 | AO22: =AE22*'III. GDP shares, 1310-2018'!C24 -> 3.599176395 | AP22: =AF22*'III. GDP shares, 1310-2018'!D24 -> 2.714600441 | AQ22: =AG22*'III. GDP shares, 1310-2018'!E24 -> 0 | AR22: =AH22*'III. GDP shares, 1310-2018'!F24 -> 3.698081995 | AS22: =AI22*'III. GDP shares, 1310-2018'!G24 -> 0 | AT22: =AJ22*'III. GDP shares, 1310-2018'!H24 -> 0 | AU22: =AK22*'III. GDP shares, 1310-2018'!I24 -> 0 | AV22: =AL22*'III. GDP shares, 1310-2018'!J24 -> 0 | AY22: =U22*'III. GDP shares, 1310-2018'!C24 -> 5.752832579 | AZ22: =V22*'III. GDP shares, 1310-2018'!D24 -> 1.208383931 | BA22: =W22*'III. GDP shares, 1310-2018'!E24 -> 0 | BB22: =X22*'III. GDP shares, 1310-2018'!F24 -> 0.08556359975 | BC22: =Y22*'III. GDP shares, 1310-2018'!G24 -> 0 | BD22: =Z22*'III. GDP shares, 1310-2018'!H24 -> 0 | BE22: =AA22*'III. GDP shares, 1310-2018'!I24 -> 0 | BF22: =AB22*'III. GDP shares, 1310-2018'!J24 -> 0 | BI22: 12.75108811 | BJ22: 10.01185883 | BL22: 7.04678011 | BM22: 6.983342802 | BN22: =AVERAGE(BL19:BL25) -> -1.806563409 | BO22: -0.6854308367 | BR22: 1.458862211
A23: ='[1]Nominal weighted'!B23 -> 1329 | C23: -25.49004228 | D23: 10.34954208 | F23: 10.35549566 | L23: =AVERAGE(C20:C26) -> 6.536345221 | M23: 23.51593806 | O23: 9.920239664 | U23: 32.49155824 | V23: 10.65045792 | X23: 0.2337424329 | AE23: 7.001515957 | AF23: 21 | AH23: 10.5892381 | AO23: =AE23*'III. GDP shares, 1310-2018'!C25 -> 3.541693123 | AP23: =AF23*'III. GDP shares, 1310-2018'!D25 -> 2.713337697 | AQ23: =AG23*'III. GDP shares, 1310-2018'!E25 -> 0 | AR23: =AH23*'III. GDP shares, 1310-2018'!F25 -> 3.86450889 | AS23: =AI23*'III. GDP shares, 1310-2018'!G25 -> 0 | AT23: =AJ23*'III. GDP shares, 1310-2018'!H25 -> 0 | AU23: =AK23*'III. GDP shares, 1310-2018'!I25 -> 0 | AV23: =AL23*'III. GDP shares, 1310-2018'!J25 -> 0 | AY23: =U23*'III. GDP shares, 1310-2018'!C25 -> 16.43574464 | AZ23: =V23*'III. GDP shares, 1310-2018'!D25 -> 1.376108998 | BA23: =W23*'III. GDP shares, 1310-2018'!E25 -> 0 | BB23: =X23*'III. GDP shares, 1310-2018'!F25 -> 0.08530356025 | BC23: =Y23*'III. GDP shares, 1310-2018'!G25 -> 0 | BD23: =Z23*'III. GDP shares, 1310-2018'!H25 -> 0 | BE23: =AA23*'III. GDP shares, 1310-2018'!I25 -> 0 | BF23: =AB23*'III. GDP shares, 1310-2018'!J25 -> 0 | BI23: 12.86358468 | BJ23: 10.11953971 | BL23: 17.8971572 | BM23: 14.4585862 | BN23: =AVERAGE(BL20:BL26) -> 0.3504050249 | BO23: 0.3074239137 | BR23: -9.11484619
A24: ='[1]Nominal weighted'!B24 -> 1330 | C24: 11.53864662 | D24: 25.44275403 | F24: 10.87295467 | L24: =AVERAGE(C21:C27) -> 2.292342102 | M24: 25.03895472 | O24: 10.03698925 | U24: -4.647458679 | V24: 0.5572459685 | X24: 0.2328453277 | AE24: 6.891187943 | AF24: 26 | AH24: 11.1058 | AO24: =AE24*'III. GDP shares, 1310-2018'!C26 -> 3.484263305 | AP24: =AF24*'III. GDP shares, 1310-2018'!D26 -> 3.357808539 | AQ24: =AG24*'III. GDP shares, 1310-2018'!E26 -> 0 | AR24: =AH24*'III. GDP shares, 1310-2018'!F26 -> 4.056305715 | AS24: =AI24*'III. GDP shares, 1310-2018'!G26 -> 0 | AT24: =AJ24*'III. GDP shares, 1310-2018'!H26 -> 0 | AU24: =AK24*'III. GDP shares, 1310-2018'!I26 -> 0 | AV24: =AL24*'III. GDP shares, 1310-2018'!J26 -> 0 | AY24: =U24*'III. GDP shares, 1310-2018'!C26 -> -2.349808171 | AZ24: =V24*'III. GDP shares, 1310-2018'!D26 -> 0.07196635659 | BA24: =W24*'III. GDP shares, 1310-2018'!E26 -> 0 | BB24: =X24*'III. GDP shares, 1310-2018'!F26 -> 0.08504491648 | BC24: =Y24*'III. GDP shares, 1310-2018'!G26 -> 0 | BD24: =Z24*'III. GDP shares, 1310-2018'!H26 -> 0 | BE24: =AA24*'III. GDP shares, 1310-2018'!I26 -> 0 | BF24: =AB24*'III. GDP shares, 1310-2018'!J26 -> 0 | BI24: 14.66566265 | BJ24: 10.89837756 | BL24: -2.192796898 | BM24: -1.285789127 | BN24: =AVERAGE(BL21:BL27) -> 2.397348837 | BO24: 1.576478974 | BR24: 9.805332275
A25: ='[1]Nominal weighted'!B25 -> 1331 | C25: 33.29013979 | D25: 18.4101625 | F25: 12.63810092 | L25: =AVERAGE(C22:C28) -> 2.712944185 | M25: 25.46805862 | O25: 9.975633369 | U25: -26.50927986 | V25: 7.589837496 | X25: 0.2319536265 | AE25: 6.780859929 | AF25: 26 | AH25: 12.87005454 | AO25: =AE25*'III. GDP shares, 1310-2018'!C27 -> 3.426886866 | AP25: =AF25*'III. GDP shares, 1310-2018'!D27 -> 3.356248047 | AQ25: =AG25*'III. GDP shares, 1310-2018'!E27 -> 0 | AR25: =AH25*'III. GDP shares, 1310-2018'!F27 -> 4.704482342 | AS25: =AI25*'III. GDP shares, 1310-2018'!G27 -> 0 | AT25: =AJ25*'III. GDP shares, 1310-2018'!H27 -> 0 | AU25: =AK25*'III. GDP shares, 1310-2018'!I27 -> 0 | AV25: =AL25*'III. GDP shares, 1310-2018'!J27 -> 0 | AY25: =U25*'III. GDP shares, 1310-2018'!C27 -> -13.39716554 | AZ25: =V25*'III. GDP shares, 1310-2018'!D27 -> 0.9797452797 | BA25: =W25*'III. GDP shares, 1310-2018'!E27 -> 0 | BB25: =X25*'III. GDP shares, 1310-2018'!F27 -> 0.08478765466 | BC25: =Y25*'III. GDP shares, 1310-2018'!G27 -> 0 | BD25: =Z25*'III. GDP shares, 1310-2018'!H27 -> 0 | BE25: =AA25*'III. GDP shares, 1310-2018'!I27 -> 0 | BF25: =AB25*'III. GDP shares, 1310-2018'!J27 -> 0 | BI25: 15.21697149 | BJ25: 11.48761726 | BL25: -12.33263261 | BM25: -6.229162913 | BN25: =AVERAGE(BL22:BL28) -> 2.273389034 | BO25: 1.764728472 | BR25: 21.4437471
A26: ='[1]Nominal weighted'!B26 -> 1332 | C26: 16.34849345 | D26: 26.26793748 | F26: 7.949704145 | L26: =AVERAGE(C23:C29) -> 4.292035886 | M26: 28.89090024 | O26: 9.061336424 | U26: -9.702961532 | V26: 1.932062518 | X26: 0.2310672768 | AE26: 6.645531915 | AF26: 28.2 | AH26: 8.180771422 | AO26: =AE26*'III. GDP shares, 1310-2018'!C28 -> 3.35693519 | AP26: =AF26*'III. GDP shares, 1310-2018'!D28 -> 3.638547306 | AQ26: =AG26*'III. GDP shares, 1310-2018'!E28 -> 0 | AR26: =AH26*'III. GDP shares, 1310-2018'!F28 -> 2.992786454 | AS26: =AI26*'III. GDP shares, 1310-2018'!G28 -> 0 | AT26: =AJ26*'III. GDP shares, 1310-2018'!H28 -> 0 | AU26: =AK26*'III. GDP shares, 1310-2018'!I28 -> 0 | AV26: =AL26*'III. GDP shares, 1310-2018'!J28 -> 0 | AY26: =U26*'III. GDP shares, 1310-2018'!C28 -> -4.90137034 | AZ26: =V26*'III. GDP shares, 1310-2018'!D28 -> 0.2492872649 | BA26: =W26*'III. GDP shares, 1310-2018'!E28 -> 0 | BB26: =X26*'III. GDP shares, 1310-2018'!F28 -> 0.08453176116 | BC26: =Y26*'III. GDP shares, 1310-2018'!G28 -> 0 | BD26: =Z26*'III. GDP shares, 1310-2018'!H28 -> 0 | BE26: =AA26*'III. GDP shares, 1310-2018'!I28 -> 0 | BF26: =AB26*'III. GDP shares, 1310-2018'!J28 -> 0 | BI26: 14.34210111 | BJ26: 9.98826895 | BL26: -4.567551314 | BM26: -2.513277246 | BN26: =AVERAGE(BL23:BL29) -> 1.513041082 | BO26: 0.9694349754 | BR26: 11.16656022
A27: ='[1]Nominal weighted'!B27 -> 1333 | C27: -13.28461274 | D27: 47.83173519 | F27: 9.493947091 | L27: =AVERAGE(C24:C30) -> 9.077777278 | M27: 32.04238604 | O27: 8.110501351 | U27: 19.82664428 | V27: -17.43173519 | X27: 0.2301862267 | AE27: 6.54203154 | AF27: 30.4 | AH27: 9.724133318 | AO27: =AE27*'III. GDP shares, 1310-2018'!C29 -> 3.303118474 | AP27: =AF27*'III. GDP shares, 1310-2018'!D29 -> 3.920584419 | AQ27: =AG27*'III. GDP shares, 1310-2018'!E29 -> 0 | AR27: =AH27*'III. GDP shares, 1310-2018'!F29 -> 3.560260575 | AS27: =AI27*'III. GDP shares, 1310-2018'!G29 -> 0 | AT27: =AJ27*'III. GDP shares, 1310-2018'!H29 -> 0 | AU27: =AK27*'III. GDP shares, 1310-2018'!I29 -> 0 | AV27: =AL27*'III. GDP shares, 1310-2018'!J29 -> 0 | AY27: =U27*'III. GDP shares, 1310-2018'!C29 -> 10.01061438 | AZ27: =V27*'III. GDP shares, 1310-2018'!D29 -> -2.248111494 | BA27: =W27*'III. GDP shares, 1310-2018'!E29 -> 0 | BB27: =X27*'III. GDP shares, 1310-2018'!F29 -> 0.08427722255 | BC27: =Y27*'III. GDP shares, 1310-2018'!G29 -> 0 | BD27: =Z27*'III. GDP shares, 1310-2018'!H29 -> 0 | BE27: =AA27*'III. GDP shares, 1310-2018'!I29 -> 0 | BF27: =AB27*'III. GDP shares, 1310-2018'!J29 -> 0 | BI27: 15.55538829 | BJ27: 10.78396347 | BL27: 7.84678011 | BM27: 0.8750317715 | BN27: =AVERAGE(BL24:BL30) -> -0.7693267606 | BO27: -0.6873641194 | BR27: -3.231512554
A28: ='[1]Nominal weighted'!B28 -> 1334 | C28: 0.8435321389 | D28: 38.32227078 | F28: 8.612455727 | L28: =AVERAGE(C25:C31) -> 8.41116878 | M28: 34.91571235 | O28: 7.079717418 | U28: 5.686063821 | V28: -5.722270784 | X28: 0.2293104251 | AE28: 6.52959596 | AF28: 32.6 | AH28: 8.841766152 | AO28: =AE28*'III. GDP shares, 1310-2018'!C30 -> 3.295309637 | AP28: =AF28*'III. GDP shares, 1310-2018'!D30 -> 4.202359753 | AQ28: =AG28*'III. GDP shares, 1310-2018'!E30 -> 0 | AR28: =AH28*'III. GDP shares, 1310-2018'!F30 -> 3.239803794 | AS28: =AI28*'III. GDP shares, 1310-2018'!G30 -> 0 | AT28: =AJ28*'III. GDP shares, 1310-2018'!H30 -> 0 | AU28: =AK28*'III. GDP shares, 1310-2018'!I30 -> 0 | AV28: =AL28*'III. GDP shares, 1310-2018'!J30 -> 0 | AY28: =U28*'III. GDP shares, 1310-2018'!C30 -> 2.86960189 | AZ28: =V28*'III. GDP shares, 1310-2018'!D30 -> -0.7376392772 | BA28: =W28*'III. GDP shares, 1310-2018'!E30 -> 0 | BB28: =X28*'III. GDP shares, 1310-2018'!F30 -> 0.08402402559 | BC28: =Y28*'III. GDP shares, 1310-2018'!G30 -> 0 | BD28: =Z28*'III. GDP shares, 1310-2018'!H30 -> 0 | BE28: =AA28*'III. GDP shares, 1310-2018'!I30 -> 0 | BF28: =AB28*'III. GDP shares, 1310-2018'!J30 -> 0 | BI28: 15.99045404 | BJ28: 10.73747318 | BL28: 2.215986638 | BM28: 0.06436782056 | BN28: =AVERAGE(BL25:BL31) -> -0.300761553 | BO28: -0.5575575601 | BR28: 3.581487516
A29: ='[1]Nominal weighted'!B29 -> 1335 | C29: 6.798094229 | D29: 35.61189962 | F29: 3.506696755 | L29: =AVERAGE(C26:C32) -> 4.689053484 | M29: 39.58139704 | O29: 5.723898965 | U29: -0.1953154097 | V29: -0.8118996234 | X29: 5.256080007 | AE29: 6.602778819 | AF29: 34.8 | AH29: 8.762776761 | AO29: =AE29*'III. GDP shares, 1310-2018'!C31 -> 3.330697301 | AP29: =AF29*'III. GDP shares, 1310-2018'!D31 -> 4.48387367 | AQ29: =AG29*'III. GDP shares, 1310-2018'!E31 -> 0 | AR29: =AH29*'III. GDP shares, 1310-2018'!F31 -> 3.213435851 | AS29: =AI29*'III. GDP shares, 1310-2018'!G31 -> 0 | AT29: =AJ29*'III. GDP shares, 1310-2018'!H31 -> 0 | AU29: =AK29*'III. GDP shares, 1310-2018'!I31 -> 0 | AV29: =AL29*'III. GDP shares, 1310-2018'!J31 -> 0 | AY29: =U29*'III. GDP shares, 1310-2018'!C31 -> -0.09852465541 | AZ29: =V29*'III. GDP shares, 1310-2018'!D31 -> -0.1046107858 | BA29: =W29*'III. GDP shares, 1310-2018'!E31 -> 0 | BB29: =X29*'III. GDP shares, 1310-2018'!F31 -> 1.927479883 | BC29: =Y29*'III. GDP shares, 1310-2018'!G31 -> 0 | BD29: =Z29*'III. GDP shares, 1310-2018'!H31 -> 0 | BE29: =AA29*'III. GDP shares, 1310-2018'!I31 -> 0 | BF29: =AB29*'III. GDP shares, 1310-2018'!J31 -> 0 | BI29: 16.72185186 | BJ29: 11.02800682 | BL29: 1.724344442 | BM29: 1.416288325 | BN29: =AVERAGE(BL26:BL32) -> 1.510104428 | BO29: 0.08686877035 | BR29: 4.715177924
A30: ='[1]Nominal weighted'!B30 -> 1336 | C30: 8.010147459 | D30: 32.40994264 | F30: 3.699650153 | L30: =AVERAGE(C27:C33) -> 2.9134786 | M30: 39.76586877 | O30: 3.75747775 | U30: -0.991216978 | V30: 4.59005736 | X30: 4.984137217 | AE30: 7.018930481 | AF30: 37 | AH30: 8.683787371 | AO30: =AE30*'III. GDP shares, 1310-2018'!C32 -> 3.538978677 | AP30: =AF30*'III. GDP shares, 1310-2018'!D32 -> 4.765126536 | AQ30: =AG30*'III. GDP shares, 1310-2018'!E32 -> 0 | AR30: =AH30*'III. GDP shares, 1310-2018'!F32 -> 3.18701911 | AS30: =AI30*'III. GDP shares, 1310-2018'!G32 -> 0 | AT30: =AJ30*'III. GDP shares, 1310-2018'!H32 -> 0 | AU30: =AK30*'III. GDP shares, 1310-2018'!I32 -> 0 | AV30: =AL30*'III. GDP shares, 1310-2018'!J32 -> 0 | AY30: =U30*'III. GDP shares, 1310-2018'!C32 -> -0.4997763916 | AZ30: =V30*'III. GDP shares, 1310-2018'!D32 -> 0.5911406521 | BA30: =W30*'III. GDP shares, 1310-2018'!E32 -> 0 | BB30: =X30*'III. GDP shares, 1310-2018'!F32 -> 1.829218045 | BC30: =Y30*'III. GDP shares, 1310-2018'!G32 -> 0 | BD30: =Z30*'III. GDP shares, 1310-2018'!H32 -> 0 | BE30: =AA30*'III. GDP shares, 1310-2018'!I32 -> 0 | BF30: =AB30*'III. GDP shares, 1310-2018'!J32 -> 0 | BI30: 17.56757262 | BJ30: 11.49112432 | BL30: 1.920582306 | BM30: 2.860992533 | BN30: =AVERAGE(BL27:BL33) -> 2.9482114 | BO30: 0.8487508652 | BR30: 5.396556133
A31: ='[1]Nominal weighted'!B31 -> 1337 | C31: 6.872387139 | D31: 45.55603823 | F31: 3.657467138 | L31: =AVERAGE(C28:C34) -> 5.811078447 | M31: 31.34046377 | O31: 6.353847069 | U31: -0.09986871165 | V31: -6.356038232 | X31: 5.324477306 | AE31: 6.772518428 | AF31: 39.2 | AH31: 8.981944444 | AO31: =AE31*'III. GDP shares, 1310-2018'!C33 -> 3.413153993 | AP31: =AF31*'III. GDP shares, 1310-2018'!D33 -> 5.046118712 | AQ31: =AG31*'III. GDP shares, 1310-2018'!E33 -> 0 | AR31: =AH31*'III. GDP shares, 1310-2018'!F33 -> 3.299080034 | AS31: =AI31*'III. GDP shares, 1310-2018'!G33 -> 0 | AT31: =AJ31*'III. GDP shares, 1310-2018'!H33 -> 0 | AU31: =AK31*'III. GDP shares, 1310-2018'!I33 -> 0 | AV31: =AL31*'III. GDP shares, 1310-2018'!J33 -> 0 | AY31: =U31*'III. GDP shares, 1310-2018'!C33 -> -0.05033095082 | AZ31: =V31*'III. GDP shares, 1310-2018'!D33 -> -0.8181970269 | BA31: =W31*'III. GDP shares, 1310-2018'!E33 -> 0 | BB31: =X31*'III. GDP shares, 1310-2018'!F33 -> 1.955687533 | BC31: =Y31*'III. GDP shares, 1310-2018'!G33 -> 0 | BD31: =Z31*'III. GDP shares, 1310-2018'!H33 -> 0 | BE31: =AA31*'III. GDP shares, 1310-2018'!I33 -> 0 | BF31: =AB31*'III. GDP shares, 1310-2018'!J33 -> 0 | BI31: 18.31815429 | BJ31: 11.75835274 | BL31: 1.087159555 | BM31: -0.3771432123 | BN31: =AVERAGE(BL28:BL34) -> 1.410614289 | BO31: 1.291237639 | BR31: 4.806877445
A32: ='[1]Nominal weighted'!B32 -> 1338 | C32: 7.235332713 | D32: 51.06995529 | F32: 3.147371743 | L32: =AVERAGE(C29:C35) -> 6.495024678 | M32: 30.70566108 | O32: 9.519064389 | U32: -0.5303304568 | V32: -9.669955291 | X32: 5.04574995 | AE32: 6.705002256 | AF32: 41.4 | AH32: 8.193121693 | AO32: =AE32*'III. GDP shares, 1310-2018'!C34 -> 3.377562482 | AP32: =AF32*'III. GDP shares, 1310-2018'!D34 -> 5.326850561 | AQ32: =AG32*'III. GDP shares, 1310-2018'!E34 -> 0 | AR32: =AH32*'III. GDP shares, 1310-2018'!F34 -> 3.011745669 | AS32: =AI32*'III. GDP shares, 1310-2018'!G34 -> 0 | AT32: =AJ32*'III. GDP shares, 1310-2018'!H34 -> 0 | AU32: =AK32*'III. GDP shares, 1310-2018'!I34 -> 0 | AV32: =AL32*'III. GDP shares, 1310-2018'!J34 -> 0 | AY32: =U32*'III. GDP shares, 1310-2018'!C34 -> -0.2671474499 | AZ32: =V32*'III. GDP shares, 1310-2018'!D34 -> -1.244212724 | BA32: =W32*'III. GDP shares, 1310-2018'!E34 -> 0 | BB32: =X32*'III. GDP shares, 1310-2018'!F34 -> 1.854789436 | BC32: =Y32*'III. GDP shares, 1310-2018'!G34 -> 0 | BD32: =Z32*'III. GDP shares, 1310-2018'!H34 -> 0 | BE32: =AA32*'III. GDP shares, 1310-2018'!I34 -> 0 | BF32: =AB32*'III. GDP shares, 1310-2018'!J34 -> 0 | BI32: 18.76604132 | BJ32: 11.71615871 | BL32: 0.343429262 | BM32: -1.718178599 | BN32: =AVERAGE(BL29:BL35) -> -0.2548741464 | BO32: -0.4136446594 | BR32: 4.801666166
A33: ='[1]Nominal weighted'!B33 -> 1339 | C33: 3.919469264 | D33: 27.55923966 | F33: -5.815244355 | L33: =AVERAGE(C30:C36) -> 6.945999197 | M33: 29.94846188 | O33: 12.12997084 | U33: 2.718016821 | V33: -8.435239657 | X33: 14.17691509 | AE33: 6.637486085 | AF33: 19.124 | AH33: 8.361670737 | AO33: =AE33*'III. GDP shares, 1310-2018'!C35 -> 3.342003931 | AP33: =AF33*'III. GDP shares, 1310-2018'!D35 -> 2.459505377 | AQ33: =AG33*'III. GDP shares, 1310-2018'!E35 -> 0 | AR33: =AH33*'III. GDP shares, 1310-2018'!F35 -> 3.076151756 | AS33: =AI33*'III. GDP shares, 1310-2018'!G35 -> 0 | AT33: =AJ33*'III. GDP shares, 1310-2018'!H35 -> 0 | AU33: =AK33*'III. GDP shares, 1310-2018'!I35 -> 0 | AV33: =AL33*'III. GDP shares, 1310-2018'!J35 -> 0 | AY33: =U33*'III. GDP shares, 1310-2018'!C35 -> 1.368533626 | AZ33: =V33*'III. GDP shares, 1310-2018'!D35 -> -1.084841942 | BA33: =W33*'III. GDP shares, 1310-2018'!E35 -> 0 | BB33: =X33*'III. GDP shares, 1310-2018'!F35 -> 5.215505803 | BC33: =Y33*'III. GDP shares, 1310-2018'!G35 -> 0 | BD33: =Z33*'III. GDP shares, 1310-2018'!H35 -> 0 | BE33: =AA33*'III. GDP shares, 1310-2018'!I35 -> 0 | BF33: =AB33*'III. GDP shares, 1310-2018'!J35 -> 0 | BI33: 11.37438561 | BJ33: 8.877661063 | BL33: 5.499197487 | BM33: 2.819897418 | BN33: =AVERAGE(BL30:BL36) -> -1.324906836 | BO33: -1.157455903 | BR33: -0.1658837422
A34: ='[1]Nominal weighted'!B34 -> 1340 | C34: 6.998586186 | D34: -11.14609984 | F34: 27.66853232 | L34: =AVERAGE(C31:C37) -> 6.193434935 | M34: 30.63317874 | O34: 12.53041367 | U34: -0.3735356807 | V34: 30.27009984 | X34: -17.97924661 | AE34: 6.625050505 | AF34: 19.124 | AH34: 9.689285714 | AO34: =AE34*'III. GDP shares, 1310-2018'!C36 -> 3.334198781 | AP34: =AF34*'III. GDP shares, 1310-2018'!D36 -> 2.458367119 | AQ34: =AG34*'III. GDP shares, 1310-2018'!E36 -> 0 | AR34: =AH34*'III. GDP shares, 1310-2018'!F36 -> 3.567398849 | AS34: =AI34*'III. GDP shares, 1310-2018'!G36 -> 0 | AT34: =AJ34*'III. GDP shares, 1310-2018'!H36 -> 0 | AU34: =AK34*'III. GDP shares, 1310-2018'!I36 -> 0 | AV34: =AL34*'III. GDP shares, 1310-2018'!J36 -> 0 | AY34: =U34*'III. GDP shares, 1310-2018'!C36 -> -0.187989844 | AZ34: =V34*'III. GDP shares, 1310-2018'!D36 -> 3.891184802 | BA34: =W34*'III. GDP shares, 1310-2018'!E36 -> 0 | BB34: =X34*'III. GDP shares, 1310-2018'!F36 -> -6.619594626 | BC34: =Y34*'III. GDP shares, 1310-2018'!G36 -> 0 | BD34: =Z34*'III. GDP shares, 1310-2018'!H36 -> 0 | BE34: =AA34*'III. GDP shares, 1310-2018'!I36 -> 0 | BF34: =AB34*'III. GDP shares, 1310-2018'!J36 -> 0 | BI34: 11.81277874 | BJ34: 9.359964749 | BL34: -2.916399668 | BM34: 3.972439186 | BN34: =AVERAGE(BL31:BL37) -> -1.214237817 | BO34: -1.357090864 | BR34: 13.7091821
A35: ='[1]Nominal weighted'!B35 -> 1341 | C35: 5.631155758 | D35: 33.87865194 | F35: 30.76897697 | L35: =AVERAGE(C32:C38) -> 5.723036847 | M35: 27.40910906 | O35: 12.87664894 | U35: 1.023904233 | V35: -14.75465194 | X35: -21.87867709 | AE35: 6.655059991 | AF35: 19.124 | AH35: 8.890299872 | AO35: =AE35*'III. GDP shares, 1310-2018'!C37 -> 3.34775236 | AP35: =AF35*'III. GDP shares, 1310-2018'!D37 -> 2.457229915 | AQ35: =AG35*'III. GDP shares, 1310-2018'!E37 -> 0 | AR35: =AH35*'III. GDP shares, 1310-2018'!F37 -> 3.275826811 | AS35: =AI35*'III. GDP shares, 1310-2018'!G37 -> 0 | AT35: =AJ35*'III. GDP shares, 1310-2018'!H37 -> 0 | AU35: =AK35*'III. GDP shares, 1310-2018'!I37 -> 0 | AV35: =AL35*'III. GDP shares, 1310-2018'!J37 -> 0 | AY35: =U35*'III. GDP shares, 1310-2018'!C37 -> 0.5150633979 | AZ35: =V35*'III. GDP shares, 1310-2018'!D37 -> -1.895815317 | BA35: =W35*'III. GDP shares, 1310-2018'!E37 -> 0 | BB35: =X35*'III. GDP shares, 1310-2018'!F37 -> -8.061680489 | BC35: =Y35*'III. GDP shares, 1310-2018'!G37 -> 0 | BD35: =Z35*'III. GDP shares, 1310-2018'!H37 -> 0 | BE35: =AA35*'III. GDP shares, 1310-2018'!I37 -> 0 | BF35: =AB35*'III. GDP shares, 1310-2018'!J37 -> 0 | BI35: 11.55645329 | BJ35: 9.080809087 | BL35: -9.442432408 | BM35: -11.86980827 | BN35: =AVERAGE(BL32:BL38) -> -0.8548945264 | BO35: -0.5085882032 | BR35: 14.17019626
A36: ='[1]Nominal weighted'!B36 -> 1342 | C36: 9.954915857 | D36: 30.31150524 | F36: 21.78304188 | L36: 5.518043735 | M36: 26.73504193 | O36: 13.23488615 | U36: -3.325824947 | V36: 4.688494759 | X36: -12.73384095 | AE36: 6.629090909 | AF36: 35 | AH36: 9.049200935 | AO36: =AE36*'III. GDP shares, 1310-2018'!C38 -> 3.333147044 | AP36: =AF36*'III. GDP shares, 1310-2018'!D38 -> 4.495047149 | AQ36: =AG36*'III. GDP shares, 1310-2018'!E38 -> 0 | AR36: =AH36*'III. GDP shares, 1310-2018'!F38 -> 3.337019779 | AS36: =AI36*'III. GDP shares, 1310-2018'!G38 -> 0 | AT36: =AJ36*'III. GDP shares, 1310-2018'!H38 -> 0 | AU36: =AK36*'III. GDP shares, 1310-2018'!I38 -> 0 | AV36: =AL36*'III. GDP shares, 1310-2018'!J38 -> 0 | AY36: =U36*'III. GDP shares, 1310-2018'!C38 -> -1.672244919 | AZ36: =V36*'III. GDP shares, 1310-2018'!D38 -> 0.6021429999 | BA36: =W36*'III. GDP shares, 1310-2018'!E38 -> 0 | BB36: =X36*'III. GDP shares, 1310-2018'!F38 -> -4.695782468 | BC36: =Y36*'III. GDP shares, 1310-2018'!G38 -> 0 | BD36: =Z36*'III. GDP shares, 1310-2018'!H38 -> 0 | BE36: =AA36*'III. GDP shares, 1310-2018'!I38 -> 0 | BF36: =AB36*'III. GDP shares, 1310-2018'!J38 -> 0 | BI36: 16.89276395 | BJ36: 11.16521397 | BL36: -5.765884388 | BM36: -3.790390378 | BN36: =AVERAGE(BL33:BL39) -> -1.003907591 | BO36: -0.7092894397 | BR36: 13.03819421
A37: ='[1]Nominal weighted'!B37 -> 1343 | C37: 2.742197626 | D37: 37.20296068 | F37: 6.502750018 | L37: 5.740340629 | M37: 27.00322613 | O37: 15.29501264 | U37: 3.902802374 | V37: -2.300844278 | X37: 2.788685314 | AE37: 6.645 | AF37: 34.9021164 | AH37: 9.291435332 | AO37: =AE37*'III. GDP shares, 1310-2018'!C39 -> 3.339602094 | AP37: =AF37*'III. GDP shares, 1310-2018'!D39 -> 4.480404355 | AQ37: =AG37*'III. GDP shares, 1310-2018'!E39 -> 0 | AR37: =AH37*'III. GDP shares, 1310-2018'!F39 -> 3.429057707 | AS37: =AI37*'III. GDP shares, 1310-2018'!G39 -> 0 | AT37: =AJ37*'III. GDP shares, 1310-2018'!H39 -> 0 | AU37: =AK37*'III. GDP shares, 1310-2018'!I39 -> 0 | AV37: =AL37*'III. GDP shares, 1310-2018'!J39 -> 0 | AY37: =U37*'III. GDP shares, 1310-2018'!C39 -> 1.961445746 | AZ37: =V37*'III. GDP shares, 1310-2018'!D39 -> -0.2953606768 | BA37: =W37*'III. GDP shares, 1310-2018'!E39 -> 0 | BB37: =X37*'III. GDP shares, 1310-2018'!F39 -> 1.029180371 | BC37: =Y37*'III. GDP shares, 1310-2018'!G39 -> 0 | BD37: =Z37*'III. GDP shares, 1310-2018'!H39 -> 0 | BE37: =AA37*'III. GDP shares, 1310-2018'!I39 -> 0 | BF37: =AB37*'III. GDP shares, 1310-2018'!J39 -> 0 | BI37: 16.94618391 | BJ37: 11.24906416 | BL37: 2.695265441 | BM37: 1.463547803 | BN37: =AVERAGE(BL34:BL40) -> -1.521480663 | BO37: -0.7186593191 | BR37: 3.778033684
A38: ='[1]Nominal weighted'!B38 -> 1344 | C38: 3.579600526 | D38: 22.98755046 | F38: 6.081113991 | L38: 4.454964224 | M38: 30.30080186 | O38: 12.23040992 | U38: 2.161477906 | V38: 11.81668234 | X38: 2.708965993 | AE38: 5.741078431 | AF38: 34.8042328 | AH38: 8.790079984 | AO38: =AE38*'III. GDP shares, 1310-2018'!C40 -> 2.883982052 | AP38: =AF38*'III. GDP shares, 1310-2018'!D40 -> 4.46577509 | AQ38: =AG38*'III. GDP shares, 1310-2018'!E40 -> 0 | AR38: =AH38*'III. GDP shares, 1310-2018'!F40 -> 3.246591595 | AS38: =AI38*'III. GDP shares, 1310-2018'!G40 -> 0 | AT38: =AJ38*'III. GDP shares, 1310-2018'!H40 -> 0 | AU38: =AK38*'III. GDP shares, 1310-2018'!I40 -> 0 | AV38: =AL38*'III. GDP shares, 1310-2018'!J40 -> 0 | AY38: =U38*'III. GDP shares, 1310-2018'!C40 -> 1.085800091 | AZ38: =V38*'III. GDP shares, 1310-2018'!D40 -> 1.516213443 | BA38: =W38*'III. GDP shares, 1310-2018'!E40 -> 0 | BB38: =X38*'III. GDP shares, 1310-2018'!F40 -> 1.000549055 | BC38: =Y38*'III. GDP shares, 1310-2018'!G40 -> 0 | BD38: =Z38*'III. GDP shares, 1310-2018'!H40 -> 0 | BE38: =AA38*'III. GDP shares, 1310-2018'!I40 -> 0 | BF38: =AB38*'III. GDP shares, 1310-2018'!J40 -> 0 | BI38: 16.44513041 | BJ38: 10.59634874 | BL38: 3.60256259 | BM38: 5.562375414 | BN38: =AVERAGE(BL35:BL41) -> 0.09544698658 | BO38: 0.3580854933 | BR38: 4.0442245
A39: ='[1]Nominal weighted'!B39 -> 1345 | C39: 5.800380928 | D39: 46.35148537 | F39: 5.655032238 | L39: 4.930660123 | M39: 30.40707293 | O39: 8.702889825 | U39: -0.3578180017 | V39: -11.64513616 | X39: 2.633692399 | AE39: 5.442562926 | AF39: 34.70634921 | AH39: 8.288724637 | AO39: =AE39*'III. GDP shares, 1310-2018'!C41 -> 2.732762936 | AP39: =AF39*'III. GDP shares, 1310-2018'!D41 -> 4.451159334 | AQ39: =AG39*'III. GDP shares, 1310-2018'!E41 -> 0 | AR39: =AH39*'III. GDP shares, 1310-2018'!F41 -> 3.063831002 | AS39: =AI39*'III. GDP shares, 1310-2018'!G41 -> 0 | AT39: =AJ39*'III. GDP shares, 1310-2018'!H41 -> 0 | AU39: =AK39*'III. GDP shares, 1310-2018'!I41 -> 0 | AV39: =AL39*'III. GDP shares, 1310-2018'!J41 -> 0 | AY39: =U39*'III. GDP shares, 1310-2018'!C41 -> -0.1796638433 | AZ39: =V39*'III. GDP shares, 1310-2018'!D41 -> -1.493512216 | BA39: =W39*'III. GDP shares, 1310-2018'!E41 -> 0 | BB39: =X39*'III. GDP shares, 1310-2018'!F41 -> 0.9735138725 | BC39: =Y39*'III. GDP shares, 1310-2018'!G41 -> 0 | BD39: =Z39*'III. GDP shares, 1310-2018'!H41 -> 0 | BE39: =AA39*'III. GDP shares, 1310-2018'!I41 -> 0 | BF39: =AB39*'III. GDP shares, 1310-2018'!J41 -> 0 | BI39: 16.14587892 | BJ39: 10.24775327 | BL39: -0.699662187 | BM39: -3.123087255 | BN39: =AVERAGE(BL36:BL42) -> 1.405893572 | BO39: 2.064928913 | BR39: 5.002743908
A40: ='[1]Nominal weighted'!B40 -> 1346 | C40: 5.475547522 | D40: 29.4365291 | F40: 8.605641087 | L40: 2.992124607 | M40: 33.89803895 | O40: 6.866318563 | U40: 0.5284908442 | V40: 5.171936511 | X40: 2.562497433 | AE40: 6.004038366 | AF40: 34.60846561 | AH40: 11.16813852 | AO40: =AE40*'III. GDP shares, 1310-2018'!C42 -> 3.013293797 | AP40: =AF40*'III. GDP shares, 1310-2018'!D42 -> 4.43655707 | AQ40: =AG40*'III. GDP shares, 1310-2018'!E42 -> 0 | AR40: =AH40*'III. GDP shares, 1310-2018'!F42 -> 4.131422043 | AS40: =AI40*'III. GDP shares, 1310-2018'!G42 -> 0 | AT40: =AJ40*'III. GDP shares, 1310-2018'!H42 -> 0 | AU40: =AK40*'III. GDP shares, 1310-2018'!I42 -> 0 | AV40: =AL40*'III. GDP shares, 1310-2018'!J42 -> 0 | AY40: =U40*'III. GDP shares, 1310-2018'!C42 -> 0.2652378425 | AZ40: =V40*'III. GDP shares, 1310-2018'!D42 -> 0.6630051662 | BA40: =W40*'III. GDP shares, 1310-2018'!E42 -> 0 | BB40: =X40*'III. GDP shares, 1310-2018'!F42 -> 0.9479429684 | BC40: =Y40*'III. GDP shares, 1310-2018'!G42 -> 0 | BD40: =Z40*'III. GDP shares, 1310-2018'!H42 -> 0 | BE40: =AA40*'III. GDP shares, 1310-2018'!I42 -> 0 | BF40: =AB40*'III. GDP shares, 1310-2018'!J42 -> 0 | BI40: 17.26021417 | BJ40: 11.58127291 | BL40: 1.876185977 | BM40: 2.754308263 | BN40: =AVERAGE(BL37:BL43) -> 2.549041518 | BO40: 2.103623648 | BR40: 5.931535029
A41: ='[1]Nominal weighted'!B41 -> 1347 | C41: -1.999048648 | D41: 11.93693026 | F41: 6.216313279 | L41: 2.185770693 | M41: 30.67225428 | O41: 7.230306004 | U41: 8.244580563 | V41: 22.57365175 | X41: 3.710726304 | AE41: 6.245531915 | AF41: 34.51058201 | AH41: 9.927039583 | AO41: =AE41*'III. GDP shares, 1310-2018'!C43 -> 3.1330481 | AP41: =AF41*'III. GDP shares, 1310-2018'!D43 -> 4.421968277 | AQ41: =AG41*'III. GDP shares, 1310-2018'!E43 -> 0 | AR41: =AH41*'III. GDP shares, 1310-2018'!F43 -> 3.675188481 | AS41: =AI41*'III. GDP shares, 1310-2018'!G43 -> 0 | AT41: =AJ41*'III. GDP shares, 1310-2018'!H43 -> 0 | AU41: =AK41*'III. GDP shares, 1310-2018'!I43 -> 0 | AV41: =AL41*'III. GDP shares, 1310-2018'!J43 -> 0 | AY41: =U41*'III. GDP shares, 1310-2018'!C43 -> 4.135863497 | AZ41: =V41*'III. GDP shares, 1310-2018'!D43 -> 2.892445335 | BA41: =W41*'III. GDP shares, 1310-2018'!E43 -> 0 | BB41: =X41*'III. GDP shares, 1310-2018'!F43 -> 1.37378505 | BC41: =Y41*'III. GDP shares, 1310-2018'!G43 -> 0 | BD41: =Z41*'III. GDP shares, 1310-2018'!H43 -> 0 | BE41: =AA41*'III. GDP shares, 1310-2018'!I43 -> 0 | BF41: =AB41*'III. GDP shares, 1310-2018'!J43 -> 0 | BI41: 16.8943845 | BJ41: 11.23020486 | BL41: 8.402093881 | BM41: 11.50965287 | BN41: =AVERAGE(BL38:BL44) -> 3.198396004 | BO41: 3.286480241 | BR41: 1.298588034
A42: ='[1]Nominal weighted'!B42 -> 1348 | C42: 8.961027049 | D42: 34.62254943 | F42: 6.076336281 | L42: 1.38262818 | M42: 29.53114374 | O42: 7.528268303 | U42: -3.109037802 | V42: -0.2098510132 | X42: 3.55317584 | AE42: 5.851989247 | AF42: 34.41269841 | AH42: 9.629512121 | AO42: =AE42*'III. GDP shares, 1310-2018'!C44 -> 2.934275273 | AP42: =AF42*'III. GDP shares, 1310-2018'!D44 -> 4.407392938 | AQ42: =AG42*'III. GDP shares, 1310-2018'!E44 -> 0 | AR42: =AH42*'III. GDP shares, 1310-2018'!F44 -> 3.56783415 | AS42: =AI42*'III. GDP shares, 1310-2018'!G44 -> 0 | AT42: =AJ42*'III. GDP shares, 1310-2018'!H44 -> 0 | AU42: =AK42*'III. GDP shares, 1310-2018'!I44 -> 0 | AV42: =AL42*'III. GDP shares, 1310-2018'!J44 -> 0 | AY42: =U42*'III. GDP shares, 1310-2018'!C44 -> -1.558918234 | AZ42: =V42*'III. GDP shares, 1310-2018'!D44 -> -0.02687658673 | BA42: =W42*'III. GDP shares, 1310-2018'!E44 -> 0 | BB42: =X42*'III. GDP shares, 1310-2018'!F44 -> 1.316488514 | BC42: =Y42*'III. GDP shares, 1310-2018'!G44 -> 0 | BD42: =Z42*'III. GDP shares, 1310-2018'!H44 -> 0 | BE42: =AA42*'III. GDP shares, 1310-2018'!I44 -> 0 | BF42: =AB42*'III. GDP shares, 1310-2018'!J44 -> 0 | BI42: 16.63139993 | BJ42: 10.90950236 | BL42: -0.2693063072 | BM42: 0.07809567504 | BN42: =AVERAGE(BL39:BL45) -> 3.622386292 | BO42: 3.803209942 | BR42: 6.744539143
A43: ='[1]Nominal weighted'!B43 -> 1349 | C43: -3.614832755 | D43: 54.74826739 | F43: 8.927043049 | L43: 1.426340666 | M43: 25.79146986 | O43: 7.895070252 | U43: 9.129569597 | V43: -20.43345258 | X43: 0.7453012694 | AE43: 5.514736842 | AF43: 34.31481481 | AH43: 9.672344318 | AO43: =AE43*'III. GDP shares, 1310-2018'!C45 -> 2.763897442 | AP43: =AF43*'III. GDP shares, 1310-2018'!D45 -> 4.392831034 | AQ43: =AG43*'III. GDP shares, 1310-2018'!E45 -> 0 | AR43: =AH43*'III. GDP shares, 1310-2018'!F45 -> 3.586510054 | AS43: =AI43*'III. GDP shares, 1310-2018'!G45 -> 0 | AT43: =AJ43*'III. GDP shares, 1310-2018'!H45 -> 0 | AU43: =AK43*'III. GDP shares, 1310-2018'!I45 -> 0 | AV43: =AL43*'III. GDP shares, 1310-2018'!J45 -> 0 | AY43: =U43*'III. GDP shares, 1310-2018'!C45 -> 4.575593501 | AZ43: =V43*'III. GDP shares, 1310-2018'!D45 -> -2.61580035 | BA43: =W43*'III. GDP shares, 1310-2018'!E45 -> 0 | BB43: =X43*'III. GDP shares, 1310-2018'!F45 -> 0.2763580791 | BC43: =Y43*'III. GDP shares, 1310-2018'!G45 -> 0 | BD43: =Z43*'III. GDP shares, 1310-2018'!H45 -> 0 | BE43: =AA43*'III. GDP shares, 1310-2018'!I45 -> 0 | BF43: =AB43*'III. GDP shares, 1310-2018'!J45 -> 0 | BI43: 16.50063199 | BJ43: 10.74323853 | BL43: 2.236151229 | BM43: -3.519527237 | BN43: =AVERAGE(BL40:BL46) -> 4.047405085 | BO43: 4.964235355 | BR43: 1.498455916
A44: ='[1]Nominal weighted'!B44 -> 1350 | C44: -2.902279772 | D44: 14.62246796 | F44: 9.050662103 | L44: 0.09515705829 | M44: 29.43634618 | O44: 7.847444823 | U44: 8.914157945 | V44: 19.59446325 | X44: 0.7220106598 | AE44: 6.011878173 | AF44: 34.21693122 | AH44: 9.772672763 | AO44: =AE44*'III. GDP shares, 1310-2018'!C46 -> 3.011668667 | AP44: =AF44*'III. GDP shares, 1310-2018'!D46 -> 4.378282546 | AQ44: =AG44*'III. GDP shares, 1310-2018'!E46 -> 0 | AR44: =AH44*'III. GDP shares, 1310-2018'!F46 -> 3.626544517 | AS44: =AI44*'III. GDP shares, 1310-2018'!G46 -> 0 | AT44: =AJ44*'III. GDP shares, 1310-2018'!H46 -> 0 | AU44: =AK44*'III. GDP shares, 1310-2018'!I46 -> 0 | AV44: =AL44*'III. GDP shares, 1310-2018'!J46 -> 0 | AY44: =U44*'III. GDP shares, 1310-2018'!C46 -> 4.465574551 | AZ44: =V44*'III. GDP shares, 1310-2018'!D46 -> 2.507241106 | BA44: =W44*'III. GDP shares, 1310-2018'!E46 -> 0 | BB44: =X44*'III. GDP shares, 1310-2018'!F46 -> 0.2679311855 | BC44: =Y44*'III. GDP shares, 1310-2018'!G46 -> 0 | BD44: =Z44*'III. GDP shares, 1310-2018'!H46 -> 0 | BE44: =AA44*'III. GDP shares, 1310-2018'!I46 -> 0 | BF44: =AB44*'III. GDP shares, 1310-2018'!J46 -> 0 | BI44: 16.66716072 | BJ44: 11.01649573 | BL44: 7.240746843 | BM44: 9.743543952 | BN44: =AVERAGE(BL41:BL47) -> 4.173286536 | BO44: 4.093964664 | BR44: 1.904707447
A45: ='[1]Nominal weighted'!B45 -> 1351 | C45: -2.042397063 | D45: 14.99977667 | F45: 8.166850083 | L45: 1.6856325 | M45: 33.314795 | O45: 8.155096648 | U45: 7.719583812 | V45: 19.11927095 | X45: 0.6995952069 | AE45: 5.677186749 | AF45: 34.11904762 | AH45: 8.86644529 | AO45: =AE45*'III. GDP shares, 1310-2018'!C47 -> 2.842694442 | AP45: =AF45*'III. GDP shares, 1310-2018'!D47 -> 4.363747457 | AQ45: =AG45*'III. GDP shares, 1310-2018'!E47 -> 0 | AR45: =AH45*'III. GDP shares, 1310-2018'!F47 -> 3.292819838 | AS45: =AI45*'III. GDP shares, 1310-2018'!G47 -> 0 | AT45: =AJ45*'III. GDP shares, 1310-2018'!H47 -> 0 | AU45: =AK45*'III. GDP shares, 1310-2018'!I47 -> 0 | AV45: =AL45*'III. GDP shares, 1310-2018'!J47 -> 0 | AY45: =U45*'III. GDP shares, 1310-2018'!C47 -> 3.865368354 | AZ45: =V45*'III. GDP shares, 1310-2018'!D47 -> 2.445310635 | BA45: =W45*'III. GDP shares, 1310-2018'!E47 -> 0 | BB45: =X45*'III. GDP shares, 1310-2018'!F47 -> 0.2598156195 | BC45: =Y45*'III. GDP shares, 1310-2018'!G47 -> 0 | BD45: =Z45*'III. GDP shares, 1310-2018'!H47 -> 0 | BE45: =AA45*'III. GDP shares, 1310-2018'!I47 -> 0 | BF45: =AB45*'III. GDP shares, 1310-2018'!J47 -> 0 | BI45: 16.22089322 | BJ45: 10.49926174 | BL45: 6.570494608 | BM45: 9.179483323 | BN45: =AVERAGE(BL42:BL48) -> 2.738203115 | BO45: 2.111893697 | BR45: 2.010330307
A46: ='[1]Nominal weighted'!B46 -> 1352 | C46: 6.106368327 | D46: 20.1737682 | F46: 8.222645883 | L46: 1.946501694 | M46: 32.57151788 | O46: 8.662839005 | U46: 0.561126998 | V46: 13.84739582 | X46: 0.6037490969 | AE46: 6.667495325 | AF46: 34.02116402 | AH46: 8.82639498 | AO46: =AE46*'III. GDP shares, 1310-2018'!C48 -> 3.337027554 | AP46: =AF46*'III. GDP shares, 1310-2018'!D48 -> 4.349225746 | AQ46: =AG46*'III. GDP shares, 1310-2018'!E48 -> 0 | AR46: =AH46*'III. GDP shares, 1310-2018'!F48 -> 3.280499594 | AS46: =AI46*'III. GDP shares, 1310-2018'!G48 -> 0 | AT46: =AJ46*'III. GDP shares, 1310-2018'!H48 -> 0 | AU46: =AK46*'III. GDP shares, 1310-2018'!I48 -> 0 | AV46: =AL46*'III. GDP shares, 1310-2018'!J48 -> 0 | AY46: =U46*'III. GDP shares, 1310-2018'!C48 -> 0.2808395301 | AZ46: =V46*'III. GDP shares, 1310-2018'!D48 -> 1.770234857 | BA46: =W46*'III. GDP shares, 1310-2018'!E48 -> 0 | BB46: =X46*'III. GDP shares, 1310-2018'!F48 -> 0.2243949735 | BC46: =Y46*'III. GDP shares, 1310-2018'!G48 -> 0 | BD46: =Z46*'III. GDP shares, 1310-2018'!H48 -> 0 | BE46: =AA46*'III. GDP shares, 1310-2018'!I48 -> 0 | BF46: =AB46*'III. GDP shares, 1310-2018'!J48 -> 0 | BI46: 16.50501811 | BJ46: 10.96675289 | BL46: 2.27546936 | BM46: 5.004090639 | BN46: =AVERAGE(BL43:BL49) -> 2.612973839 | BO46: 2.148458181 | BR46: 6.112292645
A47: ='[1]Nominal weighted'!B47 -> 1353 | C47: -3.84273773 | D47: 54.95066337 | F47: 8.27226308 | L47: 3.55648635 | M47: 28.84242792 | O47: 8.778761713 | U47: 10.50054163 | V47: -21.02738295 | X47: 0.5140815903 | AE47: 6.657803901 | AF47: 33.92328042 | AH47: 8.786344671 | AO47: =AE47*'III. GDP shares, 1310-2018'!C49 -> 3.330644168 | AP47: =AF47*'III. GDP shares, 1310-2018'!D49 -> 4.334717397 | AQ47: =AG47*'III. GDP shares, 1310-2018'!E49 -> 0 | AR47: =AH47*'III. GDP shares, 1310-2018'!F49 -> 3.268153836 | AS47: =AI47*'III. GDP shares, 1310-2018'!G49 -> 0 | AT47: =AJ47*'III. GDP shares, 1310-2018'!H49 -> 0 | AU47: =AK47*'III. GDP shares, 1310-2018'!I49 -> 0 | AV47: =AL47*'III. GDP shares, 1310-2018'!J49 -> 0 | AY47: =U47*'III. GDP shares, 1310-2018'!C49 -> 5.253018603 | AZ47: =V47*'III. GDP shares, 1310-2018'!D49 -> -2.68687938 | BA47: =W47*'III. GDP shares, 1310-2018'!E49 -> 0 | BB47: =X47*'III. GDP shares, 1310-2018'!F49 -> 0.1912169149 | BC47: =Y47*'III. GDP shares, 1310-2018'!G49 -> 0 | BD47: =Z47*'III. GDP shares, 1310-2018'!H49 -> 0 | BE47: =AA47*'III. GDP shares, 1310-2018'!I49 -> 0 | BF47: =AB47*'III. GDP shares, 1310-2018'!J49 -> 0 | BI47: 16.45580966 | BJ47: 10.9335154 | BL47: 2.757356137 | BM47: -3.337586577 | BN47: =AVERAGE(BL44:BL50) -> 2.354475121 | BO47: 2.871811081 | BR47: 1.154562487
A48: ='[1]Nominal weighted'!B48 -> 1354 | C48: 9.134279447 | D48: 39.08607195 | F48: 8.369876055 | L48: 5.391491852 | M48: 31.05750419 | O48: 8.92815132 | U48: -2.261166971 | V48: -5.260675126 | X48: 0.4273104008 | AE48: 6.873112477 | AF48: 33.82539683 | AH48: 8.797186456 | AO48: =AE48*'III. GDP shares, 1310-2018'!C50 -> 3.436773773 | AP48: =AF48*'III. GDP shares, 1310-2018'!D50 -> 4.32022239 | AQ48: =AG48*'III. GDP shares, 1310-2018'!E50 -> 0 | AR48: =AH48*'III. GDP shares, 1310-2018'!F50 -> 3.274727035 | AS48: =AI48*'III. GDP shares, 1310-2018'!G50 -> 0 | AT48: =AJ48*'III. GDP shares, 1310-2018'!H50 -> 0 | AU48: =AK48*'III. GDP shares, 1310-2018'!I50 -> 0 | AV48: =AL48*'III. GDP shares, 1310-2018'!J50 -> 0 | AY48: =U48*'III. GDP shares, 1310-2018'!C50 -> -1.130655052 | AZ48: =V48*'III. GDP shares, 1310-2018'!D50 -> -0.6719000691 | BA48: =W48*'III. GDP shares, 1310-2018'!E50 -> 0 | BB48: =X48*'III. GDP shares, 1310-2018'!F50 -> 0.1590650521 | BC48: =Y48*'III. GDP shares, 1310-2018'!G50 -> 0 | BD48: =Z48*'III. GDP shares, 1310-2018'!H50 -> 0 | BE48: =AA48*'III. GDP shares, 1310-2018'!I50 -> 0 | BF48: =AB48*'III. GDP shares, 1310-2018'!J50 -> 0 | BI48: 16.49856525 | BJ48: 11.0317232 | BL48: -1.643490069 | BM48: -2.364843899 | BN48: =AVERAGE(BL45:BL51) -> 1.204986976 | BO48: 1.525888301 | BR48: 7.683090807
A49: ='[1]Nominal weighted'!B49 -> 1355 | C49: 10.7871114 | D49: 29.41960963 | F49: 9.630532783 | L49: 7.142339474 | M49: 33.53798411 | O49: 8.825503195 | U49: -3.648690348 | V49: 4.3079036 | X49: 0.3429279526 | AE49: 7.138421053 | AF49: 33.72751323 | AH49: 9.973460735 | AO49: =AE49*'III. GDP shares, 1310-2018'!C51 -> 3.567795914 | AP49: =AF49*'III. GDP shares, 1310-2018'!D51 -> 4.305740707 | AQ49: =AG49*'III. GDP shares, 1310-2018'!E51 -> 0 | AR49: =AH49*'III. GDP shares, 1310-2018'!F51 -> 3.71546926 | AS49: =AI49*'III. GDP shares, 1310-2018'!G51 -> 0 | AT49: =AJ49*'III. GDP shares, 1310-2018'!H51 -> 0 | AU49: =AK49*'III. GDP shares, 1310-2018'!I51 -> 0 | AV49: =AL49*'III. GDP shares, 1310-2018'!J51 -> 0 | AY49: =U49*'III. GDP shares, 1310-2018'!C51 -> -1.823622117 | AZ49: =V49*'III. GDP shares, 1310-2018'!D51 -> 0.5499580051 | BA49: =W49*'III. GDP shares, 1310-2018'!E51 -> 0 | BB49: =X49*'III. GDP shares, 1310-2018'!F51 -> 0.1277528733 | BC49: =Y49*'III. GDP shares, 1310-2018'!G51 -> 0 | BD49: =Z49*'III. GDP shares, 1310-2018'!H51 -> 0 | BE49: =AA49*'III. GDP shares, 1310-2018'!I51 -> 0 | BF49: =AB49*'III. GDP shares, 1310-2018'!J51 -> 0 | BI49: 16.94646501 | BJ49: 11.58900588 | BL49: -1.145911239 | BM49: 0.3340470682 | BN49: =AVERAGE(BL46:BL52) -> 0.1887586801 | BO49: 0.2235431742 | BR49: 8.979134417
A50: ='[1]Nominal weighted'!B50 -> 1356 | C50: 7.65505984 | D50: 28.64463764 | F50: 9.738502004 | L50: 7.534285825 | M50: 36.19719963 | O50: 8.309100252 | U50: -0.6136312684 | V50: 4.984991986 | X50: 0.2604684671 | AE50: 7.041428571 | AF50: 33.62962963 | AH50: 9.998970471 | AO50: =AE50*'III. GDP shares, 1310-2018'!C52 -> 3.517702127 | AP50: =AF50*'III. GDP shares, 1310-2018'!D52 -> 4.291272329 | AQ50: =AG50*'III. GDP shares, 1310-2018'!E52 -> 0 | AR50: =AH50*'III. GDP shares, 1310-2018'!F52 -> 3.727854804 | AS50: =AI50*'III. GDP shares, 1310-2018'!G52 -> 0 | AT50: =AJ50*'III. GDP shares, 1310-2018'!H52 -> 0 | AU50: =AK50*'III. GDP shares, 1310-2018'!I52 -> 0 | AV50: =AL50*'III. GDP shares, 1310-2018'!J52 -> 0 | AY50: =U50*'III. GDP shares, 1310-2018'!C52 -> -0.3065531371 | AZ50: =V50*'III. GDP shares, 1310-2018'!D52 -> 0.6361044831 | BA50: =W50*'III. GDP shares, 1310-2018'!E52 -> 0 | BB50: =X50*'III. GDP shares, 1310-2018'!F52 -> 0.09710886028 | BC50: =Y50*'III. GDP shares, 1310-2018'!G52 -> 0 | BD50: =Z50*'III. GDP shares, 1310-2018'!H52 -> 0 | BE50: =AA50*'III. GDP shares, 1310-2018'!I52 -> 0 | BF50: =AB50*'III. GDP shares, 1310-2018'!J52 -> 0 | BI50: 16.89000956 | BJ50: 11.53682926 | BL50: 0.4266602062 | BM50: 1.543943062 | BN50: =AVERAGE(BL47:BL53) -> -0.2645232964 | BO50: -0.7480929014 | BR50: 7.455001209
A51: ='[1]Nominal weighted'!B51 -> 1357 | C51: 9.942758743 | D51: 30.12800185 | F51: 10.09638935 | L51: =AVERAGE(C48:C54) -> 8.423819533 | M51: =AVERAGE(D48:D54) -> 32.97441098 | O51: =AVERAGE(F48:F54) -> 7.862759975 | U51: -2.616989512 | V51: 3.403744185 | X51: 0.1794987925 | AE51: 7.325769231 | AF51: 33.53174603 | AH51: 10.27588814 | AO51: =AE51*'III. GDP shares, 1310-2018'!C53 -> 3.658070314 | AP51: =AF51*'III. GDP shares, 1310-2018'!D53 -> 4.276817239 | AQ51: =AG51*'III. GDP shares, 1310-2018'!E53 -> 0 | AR51: =AH51*'III. GDP shares, 1310-2018'!F53 -> 3.834055684 | AS51: =AI51*'III. GDP shares, 1310-2018'!G53 -> 0 | AT51: =AJ51*'III. GDP shares, 1310-2018'!H53 -> 0 | AU51: =AK51*'III. GDP shares, 1310-2018'!I53 -> 0 | AV51: =AL51*'III. GDP shares, 1310-2018'!J53 -> 0 | AY51: =U51*'III. GDP shares, 1310-2018'!C53 -> -1.30677494 | AZ51: =V51*'III. GDP shares, 1310-2018'!D53 -> 0.4341316374 | BA51: =W51*'III. GDP shares, 1310-2018'!E53 -> 0 | BB51: =X51*'III. GDP shares, 1310-2018'!F53 -> 0.0669731274 | BC51: =Y51*'III. GDP shares, 1310-2018'!G53 -> 0 | BD51: =Z51*'III. GDP shares, 1310-2018'!H53 -> 0 | BE51: =AA51*'III. GDP shares, 1310-2018'!I53 -> 0 | BF51: =AB51*'III. GDP shares, 1310-2018'!J53 -> 0 | BI51: 17.0444678 | BJ51: 11.76894324 | BL51: -0.8056701749 | BM51: 0.3220844887 | BN51: =AVERAGE(BL48:BL54) -> -0.2048699332 | BO51: 0.08353087519 | BR51: 8.73192781
A52: ='[1]Nominal weighted'!B52 -> 1358 | C52: 10.21353629 | D52: 32.3631361 | F52: 7.448313206 | L52: 9.757109714 | M52: 32.21272697 | O52: 7.53052706 | U52: -2.787645348 | V52: 1.070726337 | X52: 1.906121325 | AE52: 7.425890944 | AF52: 33.43386243 | AH52: 9.354434531 | AO52: =AE52*'III. GDP shares, 1310-2018'!C54 -> 3.70636346 | AP52: =AF52*'III. GDP shares, 1310-2018'!D54 -> 4.262375418 | AQ52: =AG52*'III. GDP shares, 1310-2018'!E54 -> 0 | AR52: =AH52*'III. GDP shares, 1310-2018'!F54 -> 3.492941937 | AS52: =AI52*'III. GDP shares, 1310-2018'!G54 -> 0 | AT52: =AJ52*'III. GDP shares, 1310-2018'!H54 -> 0 | AU52: =AK52*'III. GDP shares, 1310-2018'!I54 -> 0 | AV52: =AL52*'III. GDP shares, 1310-2018'!J54 -> 0 | AY52: =U52*'III. GDP shares, 1310-2018'!C54 -> -1.391351817 | AZ52: =V52*'III. GDP shares, 1310-2018'!D54 -> 0.1365034515 | BA52: =W52*'III. GDP shares, 1310-2018'!E54 -> 0 | BB52: =X52*'III. GDP shares, 1310-2018'!F54 -> 0.7117449045 | BC52: =Y52*'III. GDP shares, 1310-2018'!G54 -> 0 | BD52: =Z52*'III. GDP shares, 1310-2018'!H54 -> 0 | BE52: =AA52*'III. GDP shares, 1310-2018'!I54 -> 0 | BF52: =AB52*'III. GDP shares, 1310-2018'!J54 -> 0 | BI52: 16.73806264 | BJ52: 11.46168082 | BL52: -0.5431034608 | BM52: 0.06306743804 | BN52: =AVERAGE(BL49:BL55) -> -0.6944570672 | BO52: -0.06381785826 | BR52: 7.87891231
A53: ='[1]Nominal weighted'!B53 -> 1359 | C53: 8.849992782 | D53: 38.78827688 | F53: 4.607825282 | L53: 9.885322535 | M53: 33.35268012 | O53: 7.336709022 | U53: -1.798980123 | V53: -5.452298045 | X53: 1.859192496 | AE53: 7.051012658 | AF53: 33.33597884 | AH53: 6.467017778 | AO53: =AE53*'III. GDP shares, 1310-2018'!C55 -> 3.517642081 | AP53: =AF53*'III. GDP shares, 1310-2018'!D55 -> 4.247946848 | AQ53: =AG53*'III. GDP shares, 1310-2018'!E55 -> 0 | AR53: =AH53*'III. GDP shares, 1310-2018'!F55 -> 2.416640756 | AS53: =AI53*'III. GDP shares, 1310-2018'!G55 -> 0 | AT53: =AJ53*'III. GDP shares, 1310-2018'!H55 -> 0 | AU53: =AK53*'III. GDP shares, 1310-2018'!I55 -> 0 | AV53: =AL53*'III. GDP shares, 1310-2018'!J55 -> 0 | AY53: =U53*'III. GDP shares, 1310-2018'!C55 -> -0.8974835945 | AZ53: =V53*'III. GDP shares, 1310-2018'!D55 -> -0.6947770278 | BA53: =W53*'III. GDP shares, 1310-2018'!E55 -> 0 | BB53: =X53*'III. GDP shares, 1310-2018'!F55 -> 0.6947561477 | BC53: =Y53*'III. GDP shares, 1310-2018'!G55 -> 0 | BD53: =Z53*'III. GDP shares, 1310-2018'!H55 -> 0 | BE53: =AA53*'III. GDP shares, 1310-2018'!I55 -> 0 | BF53: =AB53*'III. GDP shares, 1310-2018'!J55 -> 0 | BI53: 15.61800309 | BJ53: 10.18222969 | BL53: -0.8975044746 | BM53: -1.797361891 | BN53: =AVERAGE(BL50:BL56) -> -1.010794253 | BO53: -0.5969938907 | BR53: 6.137010284
A54: ='[1]Nominal weighted'!B54 -> 1360 | C54: 2.383998225 | D54: 32.39114285 | F54: 5.147881144 | L54: 9.056903937 | M54: 31.71743557 | O54: 7.186713881 | U54: 4.789660312 | V54: 0.8469523929 | X54: 1.814726874 | AE54: 7.173658537 | AF54: 33.23809524 | AH54: 6.962608018 | AO54: =AE54*'III. GDP shares, 1310-2018'!C56 -> 3.577187139 | AP54: =AF54*'III. GDP shares, 1310-2018'!D56 -> 4.233531511 | AQ54: =AG54*'III. GDP shares, 1310-2018'!E56 -> 0 | AR54: =AH54*'III. GDP shares, 1310-2018'!F56 -> 2.603836061 | AS54: =AI54*'III. GDP shares, 1310-2018'!G56 -> 0 | AT54: =AJ54*'III. GDP shares, 1310-2018'!H56 -> 0 | AU54: =AK54*'III. GDP shares, 1310-2018'!I56 -> 0 | AV54: =AL54*'III. GDP shares, 1310-2018'!J56 -> 0 | AY54: =U54*'III. GDP shares, 1310-2018'!C56 -> 2.388392364 | AZ54: =V54*'III. GDP shares, 1310-2018'!D56 -> 0.107876207 | BA54: =W54*'III. GDP shares, 1310-2018'!E56 -> 0 | BB54: =X54*'III. GDP shares, 1310-2018'!F56 -> 0.6786611084 | BC54: =Y54*'III. GDP shares, 1310-2018'!G56 -> 0 | BD54: =Z54*'III. GDP shares, 1310-2018'!H56 -> 0 | BE54: =AA54*'III. GDP shares, 1310-2018'!I56 -> 0 | BF54: =AB54*'III. GDP shares, 1310-2018'!J56 -> 0 | BI54: 15.79145393 | BJ54: 10.41455471 | BL54: 3.174929679 | BM54: 2.483779859 | BN54: =AVERAGE(BL51:BL57) -> -0.5160698513 | BO54: 0.1025366094 | BR54: 3.113969729
A55: ='[1]Nominal weighted'!B55 -> 1361 | C55: 18.46731072 | D55: 33.75428384 | F55: 6.044245647 | L55: 8.226881215 | M55: 31.1239902 | O55: 6.994747516 | U55: -11.34731072 | V55: -0.6140721963 | X55: 1.772527814 | AE55: 7.12 | AF55: 33.14021164 | AH55: 7.816773461 | AO55: =AE55*'III. GDP shares, 1310-2018'!C57 -> 3.548802672 | AP55: =AF55*'III. GDP shares, 1310-2018'!D57 -> 4.219129388 | AQ55: =AG55*'III. GDP shares, 1310-2018'!E57 -> 0 | AR55: =AH55*'III. GDP shares, 1310-2018'!F57 -> 2.925514847 | AS55: =AI55*'III. GDP shares, 1310-2018'!G57 -> 0 | AT55: =AJ55*'III. GDP shares, 1310-2018'!H57 -> 0 | AU55: =AK55*'III. GDP shares, 1310-2018'!I57 -> 0 | AV55: =AL55*'III. GDP shares, 1310-2018'!J57 -> 0 | AY55: =U55*'III. GDP shares, 1310-2018'!C57 -> -5.655809915 | AZ55: =V55*'III. GDP shares, 1310-2018'!D57 -> -0.07817844007 | BA55: =W55*'III. GDP shares, 1310-2018'!E57 -> 0 | BB55: =X55*'III. GDP shares, 1310-2018'!F57 -> 0.6633883486 | BC55: =Y55*'III. GDP shares, 1310-2018'!G57 -> 0 | BD55: =Z55*'III. GDP shares, 1310-2018'!H57 -> 0 | BE55: =AA55*'III. GDP shares, 1310-2018'!I57 -> 0 | BF55: =AB55*'III. GDP shares, 1310-2018'!J57 -> 0 | BI55: 16.0256617 | BJ55: 10.69344691 | BL55: -5.070600007 | BM55: -3.396285033 | BN55: =AVERAGE(BL52:BL58) -> -0.1198354948 | BO55: 0.477908237 | BR55: 11.46673909
A56: ='[1]Nominal weighted'!B56 -> 1362 | C56: 11.68460115 | D56: 37.39928166 | F56: 8.273806517 | L56: 8.52626274 | M56: 32.45832244 | O56: 7.106324136 | U56: -5.009045591 | V56: -4.356953623 | X56: -0.8285562629 | AE56: 6.675555556 | AF56: 33.04232804 | AH56: 7.445250254 | AO56: =AE56*'III. GDP shares, 1310-2018'!C58 -> 3.325755067 | AP56: =AF56*'III. GDP shares, 1310-2018'!D58 -> 4.204740461 | AQ56: =AG56*'III. GDP shares, 1310-2018'!E58 -> 0 | AR56: =AH56*'III. GDP shares, 1310-2018'!F58 -> 2.788602485 | AS56: =AI56*'III. GDP shares, 1310-2018'!G58 -> 0 | AT56: =AJ56*'III. GDP shares, 1310-2018'!H58 -> 0 | AU56: =AK56*'III. GDP shares, 1310-2018'!I58 -> 0 | AV56: =AL56*'III. GDP shares, 1310-2018'!J58 -> 0 | AY56: =U56*'III. GDP shares, 1310-2018'!C58 -> -2.495501478 | AZ56: =V56*'III. GDP shares, 1310-2018'!D58 -> -0.5544360906 | BA56: =W56*'III. GDP shares, 1310-2018'!E58 -> 0 | BB56: =X56*'III. GDP shares, 1310-2018'!F58 -> -0.3103339679 | BC56: =Y56*'III. GDP shares, 1310-2018'!G58 -> 0 | BD56: =Z56*'III. GDP shares, 1310-2018'!H58 -> 0 | BE56: =AA56*'III. GDP shares, 1310-2018'!I58 -> 0 | BF56: =AB56*'III. GDP shares, 1310-2018'!J58 -> 0 | BI56: 15.72104462 | BJ56: 10.31909801 | BL56: -3.360271536 | BM56: -3.398185159 | BN56: =AVERAGE(BL53:BL59) -> -0.6366712797 | BO56: -0.257842819 | BR56: 8.920192997
A57: ='[1]Nominal weighted'!B57 -> 1363 | C57: 1.856129655 | D57: 17.19792583 | F57: 8.68853602 | L57: 13.04495376 | M57: 32.78071144 | O57: 7.812411755 | U57: 4.43940226 | V57: 15.74651861 | X57: -0.8639511852 | AE57: 6.295531915 | AF57: 32.94444444 | AH57: 7.824584835 | AO57: =AE57*'III. GDP shares, 1310-2018'!C59 -> 3.134991422 | AP57: =AF57*'III. GDP shares, 1310-2018'!D59 -> 4.190364712 | AQ57: =AG57*'III. GDP shares, 1310-2018'!E59 -> 0 | AR57: =AH57*'III. GDP shares, 1310-2018'!F59 -> 2.932922478 | AS57: =AI57*'III. GDP shares, 1310-2018'!G59 -> 0 | AT57: =AJ57*'III. GDP shares, 1310-2018'!H59 -> 0 | AU57: =AK57*'III. GDP shares, 1310-2018'!I59 -> 0 | AV57: =AL57*'III. GDP shares, 1310-2018'!J59 -> 0 | AY57: =U57*'III. GDP shares, 1310-2018'!C59 -> 2.210692947 | AZ57: =V57*'III. GDP shares, 1310-2018'!D59 -> 2.002876571 | BA57: =W57*'III. GDP shares, 1310-2018'!E59 -> 0 | BB57: =X57*'III. GDP shares, 1310-2018'!F59 -> -0.3238385044 | BC57: =Y57*'III. GDP shares, 1310-2018'!G59 -> 0 | BD57: =Z57*'III. GDP shares, 1310-2018'!H59 -> 0 | BE57: =AA57*'III. GDP shares, 1310-2018'!I59 -> 0 | BF57: =AB57*'III. GDP shares, 1310-2018'!J59 -> 0 | BI57: 15.68818706 | BJ57: 10.25827861 | BL57: 3.889731014 | BM57: 6.440656562 | BN57: =AVERAGE(BL54:BL60) -> -3.15223549 | BO57: -2.0822448 | BR57: 4.181059457
A58: ='[1]Nominal weighted'!B58 -> 1364 | C58: 4.13259969 | D58: 25.97388422 | F58: 8.752624794 | L58: 10.18828995 | M58: 32.50928106 | O58: 8.308199781 | U58: 2.87728795 | V58: 6.872676627 | X58: -0.900906932 | AE58: 7.00988764 | AF58: 32.84656085 | AH58: 7.851717862 | AO58: =AE58*'III. GDP shares, 1310-2018'!C60 -> 3.489121998 | AP58: =AF58*'III. GDP shares, 1310-2018'!D60 -> 4.176002124 | AQ58: =AG58*'III. GDP shares, 1310-2018'!E60 -> 0 | AR58: =AH58*'III. GDP shares, 1310-2018'!F60 -> 2.94533962 | AS58: =AI58*'III. GDP shares, 1310-2018'!G60 -> 0 | AT58: =AJ58*'III. GDP shares, 1310-2018'!H60 -> 0 | AU58: =AK58*'III. GDP shares, 1310-2018'!I60 -> 0 | AV58: =AL58*'III. GDP shares, 1310-2018'!J60 -> 0 | AY58: =U58*'III. GDP shares, 1310-2018'!C60 -> 1.432149729 | AZ58: =V58*'III. GDP shares, 1310-2018'!D60 -> 0.8737691695 | BA58: =W58*'III. GDP shares, 1310-2018'!E60 -> 0 | BB58: =X58*'III. GDP shares, 1310-2018'!F60 -> -0.3379485772 | BC58: =Y58*'III. GDP shares, 1310-2018'!G60 -> 0 | BD58: =Z58*'III. GDP shares, 1310-2018'!H60 -> 0 | BE58: =AA58*'III. GDP shares, 1310-2018'!I60 -> 0 | BF58: =AB58*'III. GDP shares, 1310-2018'!J60 -> 0 | BI58: 15.90272212 | BJ58: 10.61046374 | BL58: 1.967970321 | BM58: 2.949685882 | BN58: =AVERAGE(BL55:BL61) -> -1.920348201 | BO58: -1.245552063 | BR58: 5.340260467
A59: ='[1]Nominal weighted'!B59 -> 1365 | C59: 12.30920696 | D59: 41.7034618 | F59: 8.229349551 | L59: 6.560956968 | M59: 30.98466595 | O59: 8.761727805 | U59: -5.367228941 | V59: -8.954784555 | X59: -0.9395563649 | AE59: 6.941978022 | AF59: 32.74867725 | AH59: 7.289793186 | AO59: =AE59*'III. GDP shares, 1310-2018'!C61 -> 3.453739636 | AP59: =AF59*'III. GDP shares, 1310-2018'!D61 -> 4.161652677 | AQ59: =AG59*'III. GDP shares, 1310-2018'!E61 -> 0 | AR59: =AH59*'III. GDP shares, 1310-2018'!F61 -> 2.736634257 | AS59: =AI59*'III. GDP shares, 1310-2018'!G61 -> 0 | AT59: =AJ59*'III. GDP shares, 1310-2018'!H61 -> 0 | AU59: =AK59*'III. GDP shares, 1310-2018'!I61 -> 0 | AV59: =AL59*'III. GDP shares, 1310-2018'!J61 -> 0 | AY59: =U59*'III. GDP shares, 1310-2018'!C61 -> -2.67027802 | AZ59: =V59*'III. GDP shares, 1310-2018'!D61 -> -1.13796056 | BA59: =W59*'III. GDP shares, 1310-2018'!E61 -> 0 | BB59: =X59*'III. GDP shares, 1310-2018'!F61 -> -0.3527153745 | BC59: =Y59*'III. GDP shares, 1310-2018'!G61 -> 0 | BD59: =Z59*'III. GDP shares, 1310-2018'!H61 -> 0 | BE59: =AA59*'III. GDP shares, 1310-2018'!I61 -> 0 | BF59: =AB59*'III. GDP shares, 1310-2018'!J61 -> 0 | BI59: 15.66014949 | BJ59: 10.35202657 | BL59: -4.160953955 | BM59: -5.087189954 | BN59: =AVERAGE(BL56:BL62) -> -0.1027386579 | BO59: 0.2930990779 | BR59: 9.213367287
A60: ='[1]Nominal weighted'!B60 -> 1366 | C60: 40.48082995 | D60: 41.04499987 | F60: 9.55043861 | L60: 6.430744041 | M60: 30.2838659 | O60: 8.964424931 | U60: -34.3302744 | V60: -8.394206215 | X60: -0.9800466563 | AE60: 6.150555556 | AF60: 32.65079365 | AH60: 8.570391954 | AO60: =AE60*'III. GDP shares, 1310-2018'!C62 -> 3.058595597 | AP60: =AF60*'III. GDP shares, 1310-2018'!D62 -> 4.147316354 | AQ60: =AG60*'III. GDP shares, 1310-2018'!E62 -> 0 | AR60: =AH60*'III. GDP shares, 1310-2018'!F62 -> 3.219827012 | AS60: =AI60*'III. GDP shares, 1310-2018'!G62 -> 0 | AT60: =AJ60*'III. GDP shares, 1310-2018'!H62 -> 0 | AU60: =AK60*'III. GDP shares, 1310-2018'!I62 -> 0 | AV60: =AL60*'III. GDP shares, 1310-2018'!J62 -> 0 | AY60: =U60*'III. GDP shares, 1310-2018'!C62 -> -17.07202304 | AZ60: =V60*'III. GDP shares, 1310-2018'!D62 -> -1.066235299 | BA60: =W60*'III. GDP shares, 1310-2018'!E62 -> 0 | BB60: =X60*'III. GDP shares, 1310-2018'!F62 -> -0.3681956104 | BC60: =Y60*'III. GDP shares, 1310-2018'!G62 -> 0 | BD60: =Z60*'III. GDP shares, 1310-2018'!H62 -> 0 | BE60: =AA60*'III. GDP shares, 1310-2018'!I62 -> 0 | BF60: =AB60*'III. GDP shares, 1310-2018'!J62 -> 0 | BI60: 15.79058039 | BJ60: 10.42573896 | BL60: -18.50645394 | BM60: -14.56817576 | BN60: =AVERAGE(BL57:BL63) -> 0.04604836954 | BO60: 0.5385412715 | BR60: 23.71864126
A61: ='[1]Nominal weighted'!B61 -> 1367 | C61: -17.6126485 | D61: 30.49113018 | F61: 8.618397325 | L61: 4.807603814 | M61: 26.7909291 | O61: 9.138552939 | U61: 23.9826485 | V61: 2.061779873 | X61: -1.022541322 | AE61: 6.37 | AF61: 32.55291005 | AH61: 7.595856003 | AO61: =AE61*'III. GDP shares, 1310-2018'!C63 -> 3.166274692 | AP61: =AF61*'III. GDP shares, 1310-2018'!D63 -> 4.132993137 | AQ61: =AG61*'III. GDP shares, 1310-2018'!E63 -> 0 | AR61: =AH61*'III. GDP shares, 1310-2018'!F63 -> 2.85586931 | AS61: =AI61*'III. GDP shares, 1310-2018'!G63 -> 0 | AT61: =AJ61*'III. GDP shares, 1310-2018'!H63 -> 0 | AU61: =AK61*'III. GDP shares, 1310-2018'!I63 -> 0 | AV61: =AL61*'III. GDP shares, 1310-2018'!J63 -> 0 | AY61: =U61*'III. GDP shares, 1310-2018'!C63 -> 11.92082464 | AZ61: =V61*'III. GDP shares, 1310-2018'!D63 -> 0.2617683658 | BA61: =W61*'III. GDP shares, 1310-2018'!E63 -> 0 | BB61: =X61*'III. GDP shares, 1310-2018'!F63 -> -0.3844523092 | BC61: =Y61*'III. GDP shares, 1310-2018'!G63 -> 0 | BD61: =Z61*'III. GDP shares, 1310-2018'!H63 -> 0 | BE61: =AA61*'III. GDP shares, 1310-2018'!I63 -> 0 | BF61: =AB61*'III. GDP shares, 1310-2018'!J63 -> 0 | BI61: 15.50625535 | BJ61: 10.15513714 | BL61: 11.7981407 | BM61: 8.340629016 | BN61: =AVERAGE(BL58:BL64) -> 1.308156115 | BO61: 2.226721663 | BR61: -5.514228333
A62: ='[1]Nominal weighted'!B62 -> 1368 | C62: -6.924020131 | D62: 23.08197809 | F62: 9.218941814 | L62: 6.854704119 | M62: 31.39622959 | O62: 9.407721933 | U62: 13.8169931 | V62: 9.373048367 | X62: -1.067222608 | AE62: 6.892972973 | AF62: 32.45502646 | AH62: 8.151719206 | AO62: =AE62*'III. GDP shares, 1310-2018'!C64 -> 3.424658473 | AP62: =AF62*'III. GDP shares, 1310-2018'!D64 -> 4.118683008 | AQ62: =AG62*'III. GDP shares, 1310-2018'!E64 -> 0 | AR62: =AH62*'III. GDP shares, 1310-2018'!F64 -> 3.067185326 | AS62: =AI62*'III. GDP shares, 1310-2018'!G64 -> 0 | AT62: =AJ62*'III. GDP shares, 1310-2018'!H64 -> 0 | AU62: =AK62*'III. GDP shares, 1310-2018'!I64 -> 0 | AV62: =AL62*'III. GDP shares, 1310-2018'!J64 -> 0 | AY62: =U62*'III. GDP shares, 1310-2018'!C64 -> 6.864742207 | AZ62: =V62*'III. GDP shares, 1310-2018'!D64 -> 1.189480313 | BA62: =W62*'III. GDP shares, 1310-2018'!E64 -> 0 | BB62: =X62*'III. GDP shares, 1310-2018'!F64 -> -0.4015557259 | BC62: =Y62*'III. GDP shares, 1310-2018'!G64 -> 0 | BD62: =Z62*'III. GDP shares, 1310-2018'!H64 -> 0 | BE62: =AA62*'III. GDP shares, 1310-2018'!I64 -> 0 | BF62: =AB62*'III. GDP shares, 1310-2018'!J64 -> 0 | BI62: 15.83323954 | BJ62: 10.61052681 | BL62: 7.652666795 | BM62: 7.374272954 | BN62: =AVERAGE(BL59:BL65) -> -0.3023789742 | BO62: -0.02530863496 | BR62: 0.02865731753
A63: ='[1]Nominal weighted'!B63 -> 1369 | C63: 10.77311066 | D63: 32.49368134 | F63: 9.692686403 | L63: 11.0051033 | M63: 31.29808604 | O63: 9.969592766 | U63: -3.789436623 | V63: -0.1365384851 | X63: -1.114294303 | AE63: 6.983674033 | AF63: 32.35714286 | AH63: 8.5783921 | AO63: =AE63*'III. GDP shares, 1310-2018'!C65 -> 3.46813726 | AP63: =AF63*'III. GDP shares, 1310-2018'!D65 -> 4.104385949 | AQ63: =AG63*'III. GDP shares, 1310-2018'!E65 -> 0 | AR63: =AH63*'III. GDP shares, 1310-2018'!F65 -> 3.230169778 | AS63: =AI63*'III. GDP shares, 1310-2018'!G65 -> 0 | AT63: =AJ63*'III. GDP shares, 1310-2018'!H65 -> 0 | AU63: =AK63*'III. GDP shares, 1310-2018'!I65 -> 0 | AV63: =AL63*'III. GDP shares, 1310-2018'!J65 -> 0 | AY63: =U63*'III. GDP shares, 1310-2018'!C65 -> -1.881858501 | AZ63: =V63*'III. GDP shares, 1310-2018'!D65 -> -0.0173194105 | BA63: =W63*'III. GDP shares, 1310-2018'!E65 -> 0 | BB63: =X63*'III. GDP shares, 1310-2018'!F65 -> -0.4195844326 | BC63: =Y63*'III. GDP shares, 1310-2018'!G65 -> 0 | BD63: =Z63*'III. GDP shares, 1310-2018'!H65 -> 0 | BE63: =AA63*'III. GDP shares, 1310-2018'!I65 -> 0 | BF63: =AB63*'III. GDP shares, 1310-2018'!J65 -> 0 | BI63: 15.97306966 | BJ63: 10.80269299 | BL63: -2.318762344 | BM63: -1.680089804 | BN63: =AVERAGE(BL60:BL66) -> -2.288499123 | BO63: -1.348639253 | BR63: 8.999749972
A64: ='[1]Nominal weighted'!B64 -> 1370 | C64: -9.505851934 | D64: -7.252631786 | F64: 9.907432078 | L64: 7.210759402 | M64: 28.6170742 | O64: 10.43640888 | U64: 16.42585193 | V64: 39.51189104 | X64: -1.163985074 | AE64: 6.92 | AF64: 32.25925926 | AH64: 8.743447004 | AO64: =AE64*'III. GDP shares, 1310-2018'!C66 -> 3.434947689 | AP64: =AF64*'III. GDP shares, 1310-2018'!D66 -> 4.090101942 | AQ64: =AG64*'III. GDP shares, 1310-2018'!E66 -> 0 | AR64: =AH64*'III. GDP shares, 1310-2018'!F66 -> 3.294808976 | AS64: =AI64*'III. GDP shares, 1310-2018'!G66 -> 0 | AT64: =AJ64*'III. GDP shares, 1310-2018'!H66 -> 0 | AU64: =AK64*'III. GDP shares, 1310-2018'!I66 -> 0 | AV64: =AL64*'III. GDP shares, 1310-2018'!J66 -> 0 | AY64: =U64*'III. GDP shares, 1310-2018'!C66 -> 8.153459847 | AZ64: =V64*'III. GDP shares, 1310-2018'!D66 -> 5.009651989 | BA64: =W64*'III. GDP shares, 1310-2018'!E66 -> 0 | BB64: =X64*'III. GDP shares, 1310-2018'!F66 -> -0.4386266043 | BC64: =Y64*'III. GDP shares, 1310-2018'!G66 -> 0 | BD64: =Z64*'III. GDP shares, 1310-2018'!H66 -> 0 | BE64: =AA64*'III. GDP shares, 1310-2018'!I66 -> 0 | BF64: =AB64*'III. GDP shares, 1310-2018'!J66 -> 0 | BI64: 15.97423542 | BJ64: 10.81985861 | BL64: 12.72448523 | BM64: 18.2579193 | BN64: =AVERAGE(BL61:BL67) -> 0.02657379659 | BO64: 0.856775082 | BR64: -0.9850765774
A65: ='[1]Nominal weighted'!B65 -> 1371 | C65: 18.46230182 | D65: 58.21098765 | F65: 10.63680775 | L65: 0.2089002249 | M65: 30.57823808 | O65: 10.73985644 | U65: -11.17741418 | V65: -26.04961199 | X65: -1.216552434 | AE65: 7.28488764 | AF65: 32.16137566 | AH65: 9.420255316 | AO65: =AE65*'III. GDP shares, 1310-2018'!C67 -> 3.61442067 | AP65: =AF65*'III. GDP shares, 1310-2018'!D67 -> 4.07583097 | AQ65: =AG65*'III. GDP shares, 1310-2018'!E67 -> 0 | AR65: =AH65*'III. GDP shares, 1310-2018'!F67 -> 3.552530271 | AS65: =AI65*'III. GDP shares, 1310-2018'!G67 -> 0 | AT65: =AJ65*'III. GDP shares, 1310-2018'!H67 -> 0 | AU65: =AK65*'III. GDP shares, 1310-2018'!I67 -> 0 | AV65: =AL65*'III. GDP shares, 1310-2018'!J67 -> 0 | AY65: =U65*'III. GDP shares, 1310-2018'!C67 -> -5.54571036 | AZ65: =V65*'III. GDP shares, 1310-2018'!D67 -> -3.301283391 | BA65: =W65*'III. GDP shares, 1310-2018'!E67 -> 0 | BB65: =X65*'III. GDP shares, 1310-2018'!F67 -> -0.4587815516 | BC65: =Y65*'III. GDP shares, 1310-2018'!G67 -> 0 | BD65: =Z65*'III. GDP shares, 1310-2018'!H67 -> 0 | BE65: =AA65*'III. GDP shares, 1310-2018'!I67 -> 0 | BF65: =AB65*'III. GDP shares, 1310-2018'!J67 -> 0 | BI65: 16.28883954 | BJ65: 11.24278191 | BL65: -9.305775302 | BM65: -12.8145262 | BN65: =AVERAGE(BL62:BL68) -> 3.372320702 | BO65: 2.613827775 | BR65: 13.17144285
A66: ='[1]Nominal weighted'!B66 -> 1372 | C66: 41.36200124 | D66: 41.01645692 | F66: 12.16244538 | L66: -2.632362142 | M66: 29.21136719 | O66: 10.8520674 | U66: -34.26144568 | V66: -8.952964855 | X66: 0.162897686 | AE66: 7.100555556 | AF66: 32.06349206 | AH66: 12.32534307 | AO66: =AE66*'III. GDP shares, 1310-2018'!C68 -> 3.521357075 | AP66: =AF66*'III. GDP shares, 1310-2018'!D68 -> 4.061573014 | AQ66: =AG66*'III. GDP shares, 1310-2018'!E68 -> 0 | AR66: =AH66*'III. GDP shares, 1310-2018'!F68 -> 4.651586915 | AS66: =AI66*'III. GDP shares, 1310-2018'!G68 -> 0 | AT66: =AJ66*'III. GDP shares, 1310-2018'!H68 -> 0 | AU66: =AK66*'III. GDP shares, 1310-2018'!I68 -> 0 | AV66: =AL66*'III. GDP shares, 1310-2018'!J68 -> 0 | AY66: =U66*'III. GDP shares, 1310-2018'!C68 -> -16.9911753 | AZ66: =V66*'III. GDP shares, 1310-2018'!D68 -> -1.134097321 | BA66: =W66*'III. GDP shares, 1310-2018'!E68 -> 0 | BB66: =X66*'III. GDP shares, 1310-2018'!F68 -> 0.06147761893 | BC66: =Y66*'III. GDP shares, 1310-2018'!G68 -> 0 | BD66: =Z66*'III. GDP shares, 1310-2018'!H68 -> 0 | BE66: =AA66*'III. GDP shares, 1310-2018'!I68 -> 0 | BF66: =AB66*'III. GDP shares, 1310-2018'!J68 -> 0 | BI66: 17.16313023 | BJ66: 12.234517 | BL66: -18.063795 | BM66: -14.35050428 | BN66: =AVERAGE(BL63:BL69) -> 5.130189425 | BO66: 4.03712657 | BR66: 25.10264167
A67: ='[1]Nominal weighted'!B67 -> 1373 | C67: 13.92042266 | D67: 22.27791701 | F67: 12.81815144 | L67: 3.443915127 | M67: 29.31800308 | O67: 11.02979636 | U67: -7.23716965 | V67: 9.687691457 | X67: 0.1586519683 | AE67: 6.683253012 | AF67: 31.96560847 | AH67: 12.97680341 | AO67: =AE67*'III. GDP shares, 1310-2018'!C69 -> 3.312894654 | AP67: =AF67*'III. GDP shares, 1310-2018'!D69 -> 4.047328056 | AQ67: =AG67*'III. GDP shares, 1310-2018'!E69 -> 0 | AR67: =AH67*'III. GDP shares, 1310-2018'!F69 -> 4.901131049 | AS67: =AI67*'III. GDP shares, 1310-2018'!G69 -> 0 | AT67: =AJ67*'III. GDP shares, 1310-2018'!H69 -> 0 | AU67: =AK67*'III. GDP shares, 1310-2018'!I69 -> 0 | AV67: =AL67*'III. GDP shares, 1310-2018'!J69 -> 0 | AY67: =U67*'III. GDP shares, 1310-2018'!C69 -> -3.58747164 | AZ67: =V67*'III. GDP shares, 1310-2018'!D69 -> 1.226607824 | BA67: =W67*'III. GDP shares, 1310-2018'!E69 -> 0 | BB67: =X67*'III. GDP shares, 1310-2018'!F69 -> 0.05992031037 | BC67: =Y67*'III. GDP shares, 1310-2018'!G69 -> 0 | BD67: =Z67*'III. GDP shares, 1310-2018'!H69 -> 0 | BE67: =AA67*'III. GDP shares, 1310-2018'!I69 -> 0 | BF67: =AB67*'III. GDP shares, 1310-2018'!J69 -> 0 | BI67: 17.20855496 | BJ67: 12.26135376 | BL67: -2.300943506 | BM67: 0.869724592 | BN67: =AVERAGE(BL64:BL70) -> 1.986575806 | BO67: 1.974803239 | BR67: 11.74157703
A68: ='[1]Nominal weighted'!B68 -> 1374 | C68: -66.62566274 | D68: 44.21927731 | F68: 10.74253021 | L68: 7.837920774 | M68: 37.98114374 | O68: 11.89915242 | U68: 74.11709131 | V68: -12.35155244 | X68: 0.1544547274 | AE68: 7.491428571 | AF68: 31.86772487 | AH68: 10.89698494 | AO68: =AE68*'III. GDP shares, 1310-2018'!C70 -> 3.711816035 | AP68: =AF68*'III. GDP shares, 1310-2018'!D70 -> 4.033096079 | AQ68: =AG68*'III. GDP shares, 1310-2018'!E70 -> 0 | AR68: =AH68*'III. GDP shares, 1310-2018'!F70 -> 4.11870668 | AS68: =AI68*'III. GDP shares, 1310-2018'!G70 -> 0 | AT68: =AJ68*'III. GDP shares, 1310-2018'!H70 -> 0 | AU68: =AK68*'III. GDP shares, 1310-2018'!I70 -> 0 | AV68: =AL68*'III. GDP shares, 1310-2018'!J70 -> 0 | AY68: =U68*'III. GDP shares, 1310-2018'!C70 -> 36.7231704 | AZ68: =V68*'III. GDP shares, 1310-2018'!D70 -> -1.563180238 | BA68: =W68*'III. GDP shares, 1310-2018'!E70 -> 0 | BB68: =X68*'III. GDP shares, 1310-2018'!F70 -> 0.05837887465 | BC68: =Y68*'III. GDP shares, 1310-2018'!G70 -> 0 | BD68: =Z68*'III. GDP shares, 1310-2018'!H70 -> 0 | BE68: =AA68*'III. GDP shares, 1310-2018'!I70 -> 0 | BF68: =AB68*'III. GDP shares, 1310-2018'!J70 -> 0 | BI68: 16.75204613 | BJ68: 11.86361879 | BL68: 35.21836904 | BM68: 20.63999786 | BN68: =AVERAGE(BL65:BL71) -> -1.226673841 | BO68: -2.329205365 | BR68: -28.95102656
A69: ='[1]Nominal weighted'!B69 -> 1375 | C69: -26.8128567 | D69: 13.51388188 | F69: 10.00441851 | L69: 6.400243826 | M69: 35.03987416 | O69: 12.61671457 | U69: 33.60582967 | V69: 18.25595939 | X69: 0.1503045008 | AE69: 6.792972973 | AF69: 31.76984127 | AH69: 10.15472301 | AO69: =AE69*'III. GDP shares, 1310-2018'!C71 -> 3.541595724 | AP69: =AF69*'III. GDP shares, 1310-2018'!D71 -> 4.149871913 | AQ69: =AG69*'III. GDP shares, 1310-2018'!E71 -> 0 | AR69: =AH69*'III. GDP shares, 1310-2018'!F71 -> 3.533999313 | AS69: =AI69*'III. GDP shares, 1310-2018'!G71 -> 0 | AT69: =AJ69*'III. GDP shares, 1310-2018'!H71 -> 0 | AU69: =AK69*'III. GDP shares, 1310-2018'!I71 -> 0 | AV69: =AL69*'III. GDP shares, 1310-2018'!J71 -> 0 | AY69: =U69*'III. GDP shares, 1310-2018'!C71 -> 17.52079144 | AZ69: =V69*'III. GDP shares, 1310-2018'!D71 -> 2.384648147 | BA69: =W69*'III. GDP shares, 1310-2018'!E71 -> 0 | BB69: =X69*'III. GDP shares, 1310-2018'!F71 -> 0.05230827095 | BC69: =Y69*'III. GDP shares, 1310-2018'!G71 -> 0 | BD69: =Z69*'III. GDP shares, 1310-2018'!H71 -> 0 | BE69: =AA69*'III. GDP shares, 1310-2018'!I71 -> 0 | BF69: =AB69*'III. GDP shares, 1310-2018'!J71 -> 0 | BI69: =AVERAGE(AE69:AL69) -> 16.23917908 | BJ69: =SUM(AO69:AV69) -> 11.22546695 | BL69: =SUM(AY69:BF69) -> 19.95774785 | BM69: =AVERAGE(U69:AB69) -> 17.33736452 | BN69: =AVERAGE(BL66:BL72) -> 0.02774473178 | BO69: -0.7906181405 | BR69: =((AO69+SUM(AQ69:AV69))-((AY69+(SUM(BA69:BF69))))) -> -10.49750467
A70: ='[1]Nominal weighted'!B70 -> 1376 | C70: 53.30705154 | D70: 33.24013258 | F70: 10.93678915 | L70: 3.839698477 | M70: 34.30774075 | O70: 13.21701675 | U70: -45.27533983 | V70: -1.568174904 | X70: -1.50554464 | AE70: 8.031711712 | AF70: 31.67195767 | AH70: 9.431244509 | AO70: =AE70*'III. GDP shares, 1310-2018'!C72 -> 4.185672747 | AP70: =AF70*'III. GDP shares, 1310-2018'!D72 -> 4.135353276 | AQ70: =AG70*'III. GDP shares, 1310-2018'!E72 -> 0 | AR70: =AH70*'III. GDP shares, 1310-2018'!F72 -> 3.284793177 | AS70: =AI70*'III. GDP shares, 1310-2018'!G72 -> 0 | AT70: =AJ70*'III. GDP shares, 1310-2018'!H72 -> 0 | AU70: =AK70*'III. GDP shares, 1310-2018'!I72 -> 0 | AV70: =AL70*'III. GDP shares, 1310-2018'!J72 -> 0 | AY70: =U70*'III. GDP shares, 1310-2018'!C72 -> -23.59494001 | AZ70: =V70*'III. GDP shares, 1310-2018'!D72 -> -0.2047539118 | BA70: =W70*'III. GDP shares, 1310-2018'!E72 -> 0 | BB70: =X70*'III. GDP shares, 1310-2018'!F72 -> -0.5243637524 | BC70: =Y70*'III. GDP shares, 1310-2018'!G72 -> 0 | BD70: =Z70*'III. GDP shares, 1310-2018'!H72 -> 0 | BE70: =AA70*'III. GDP shares, 1310-2018'!I72 -> 0 | BF70: =AB70*'III. GDP shares, 1310-2018'!J72 -> 0 | BI70: 16.37830463 | BJ70: 11.6058192 | BL70: -24.32405767 | BM70: -16.11635312 | BN70: =AVERAGE(BL67:BL73) -> 1.544968874 | BO70: 0.3921766972 | BR70: 31.58976969
A71: ='[1]Nominal weighted'!B71 -> 1377 | C71: 21.2521876 | D71: 53.38935285 | F71: 15.9929245 | L71: 4.765424473 | M71: 32.7206112 | O71: 13.50155515 | U71: -12.25673715 | V71: -21.81527878 | X71: -1.538406843 | AE71: 8.99545045 | AF71: 31.57407407 | AH71: 14.45451766 | AO71: =AE71*'III. GDP shares, 1310-2018'!C73 -> 4.685956055 | AP71: =AF71*'III. GDP shares, 1310-2018'!D73 -> 4.120846795 | AQ71: =AG71*'III. GDP shares, 1310-2018'!E73 -> 0 | AR71: =AH71*'III. GDP shares, 1310-2018'!F73 -> 5.038284929 | AS71: =AI71*'III. GDP shares, 1310-2018'!G73 -> 0 | AT71: =AJ71*'III. GDP shares, 1310-2018'!H73 -> 0 | AU71: =AK71*'III. GDP shares, 1310-2018'!I73 -> 0 | AV71: =AL71*'III. GDP shares, 1310-2018'!J73 -> 0 | AY71: =U71*'III. GDP shares, 1310-2018'!C73 -> -6.3848422 | AZ71: =V71*'III. GDP shares, 1310-2018'!D73 -> -2.847191066 | BA71: =W71*'III. GDP shares, 1310-2018'!E73 -> 0 | BB71: =X71*'III. GDP shares, 1310-2018'!F73 -> -0.5362290317 | BC71: =Y71*'III. GDP shares, 1310-2018'!G73 -> 0 | BD71: =Z71*'III. GDP shares, 1310-2018'!H73 -> 0 | BE71: =AA71*'III. GDP shares, 1310-2018'!I73 -> 0 | BF71: =AB71*'III. GDP shares, 1310-2018'!J73 -> 0 | BI71: 18.3413474 | BJ71: 13.84508778 | BL71: -9.768262299 | BM71: -11.87014092 | BN71: =AVERAGE(BL68:BL74) -> 1.570332404 | BO71: 0.7655901894 | BR71: 16.64531222
A72: ='[1]Nominal weighted'!B72 -> 1378 | C72: 8.398563185 | D72: 37.62210059 | F72: 15.65974281 | L72: 10.6156708 | M72: 30.65562098 | O72: 14.20271608 | U72: 1.585626004 | V72: -6.145910115 | X72: -1.572962784 | AE72: 9.984189189 | AF72: 31.47619048 | AH72: 14.08678002 | AO72: =AE72*'III. GDP shares, 1310-2018'!C74 -> 5.198838311 | AP72: =AF72*'III. GDP shares, 1310-2018'!D74 -> 4.106352456 | AQ72: =AG72*'III. GDP shares, 1310-2018'!E74 -> 0 | AR72: =AH72*'III. GDP shares, 1310-2018'!F74 -> 4.9139462 | AS72: =AI72*'III. GDP shares, 1310-2018'!G74 -> 0 | AT72: =AJ72*'III. GDP shares, 1310-2018'!H74 -> 0 | AU72: =AK72*'III. GDP shares, 1310-2018'!I74 -> 0 | AV72: =AL72*'III. GDP shares, 1310-2018'!J74 -> 0 | AY72: =U72*'III. GDP shares, 1310-2018'!C74 -> 0.8256467363 | AZ72: =V72*'III. GDP shares, 1310-2018'!D74 -> -0.8017893117 | BA72: =W72*'III. GDP shares, 1310-2018'!E74 -> 0 | BB72: =X72*'III. GDP shares, 1310-2018'!F74 -> -0.5487027185 | BC72: =Y72*'III. GDP shares, 1310-2018'!G74 -> 0 | BD72: =Z72*'III. GDP shares, 1310-2018'!H74 -> 0 | BE72: =AA72*'III. GDP shares, 1310-2018'!I74 -> 0 | BF72: =AB72*'III. GDP shares, 1310-2018'!J74 -> 0 | BI72: 18.5157199 | BJ72: 14.21913697 | BL72: -0.5248452939 | BM72: -2.044415632 | BN72: =AVERAGE(BL69:BL75) -> -0.6762804489 | BO72: -0.373906634 | BR72: 9.835840494
A73: ='[1]Nominal weighted'!B73 -> 1379 | C73: =AE73-U73 -> 23.4381838 | D73: =AF73-V73 -> 35.89152305 | F73: =AH73-X73 -> 16.36456062 | L73: 16.14554006 | M73: 34.29480962 | O73: 14.91079528 | U73: -12.09025587 | V73: -4.513216171 | X73: -1.609349218 | AE73: 11.34792793 | AF73: 31.37830688 | AH73: 14.7552114 | AO73: =AE73*'III. GDP shares, 1310-2018'!C75 -> 5.906474957 | AP73: =AF73*'III. GDP shares, 1310-2018'!D75 -> 4.091870244 | AQ73: =AG73*'III. GDP shares, 1310-2018'!E75 -> 0 | AR73: =AH73*'III. GDP shares, 1310-2018'!F75 -> 5.151136943 | AS73: =AI73*'III. GDP shares, 1310-2018'!G75 -> 0 | AT73: =AJ73*'III. GDP shares, 1310-2018'!H75 -> 0 | AU73: =AK73*'III. GDP shares, 1310-2018'!I75 -> 0 | AV73: =AL73*'III. GDP shares, 1310-2018'!J75 -> 0 | AY73: =U73*'III. GDP shares, 1310-2018'!C75 -> -6.292848701 | AZ73: =V73*'III. GDP shares, 1310-2018'!D75 -> -0.5885433853 | BA73: =W73*'III. GDP shares, 1310-2018'!E75 -> 0 | BB73: =X73*'III. GDP shares, 1310-2018'!F75 -> -0.5618339165 | BC73: =Y73*'III. GDP shares, 1310-2018'!G75 -> 0 | BD73: =Z73*'III. GDP shares, 1310-2018'!H75 -> 0 | BE73: =AA73*'III. GDP shares, 1310-2018'!I75 -> 0 | BF73: =AB73*'III. GDP shares, 1310-2018'!J75 -> 0 | BI73: 19.16048207 | BJ73: 15.14948214 | BL73: -7.443226002 | BM73: -6.070940419 | BN73: =AVERAGE(BL70:BL76) -> -3.977239583 | BO73: -3.444380522 | BR73: 17.91229452
A74: ='[1]Nominal weighted'!B74 -> 1380 | C74: 20.40050463 | D74: 11.16801012 | F74: 14.80992027 | L74: 7.775572397 | M74: 34.12516155 | O74: 15.40002307 | U74: -8.013837968 | V74: 20.11241316 | X74: -1.647718084 | AE74: 12.38666667 | AF74: 31.28042328 | AH74: 13.16220219 | AO74: =AE74*'III. GDP shares, 1310-2018'!C76 -> 6.44443153 | AP74: =AF74*'III. GDP shares, 1310-2018'!D76 -> 4.077400143 | AQ74: =AG74*'III. GDP shares, 1310-2018'!E76 -> 0 | AR74: =AH74*'III. GDP shares, 1310-2018'!F76 -> 4.598589733 | AS74: =AI74*'III. GDP shares, 1310-2018'!G76 -> 0 | AT74: =AJ74*'III. GDP shares, 1310-2018'!H76 -> 0 | AU74: =AK74*'III. GDP shares, 1310-2018'!I76 -> 0 | AV74: =AL74*'III. GDP shares, 1310-2018'!J76 -> 0 | AY74: =U74*'III. GDP shares, 1310-2018'!C76 -> -4.169372719 | AZ74: =V74*'III. GDP shares, 1310-2018'!D76 -> 2.621651106 | BA74: =W74*'III. GDP shares, 1310-2018'!E76 -> 0 | BB74: =X74*'III. GDP shares, 1310-2018'!F76 -> -0.5756771818 | BC74: =Y74*'III. GDP shares, 1310-2018'!G76 -> 0 | BD74: =Z74*'III. GDP shares, 1310-2018'!H76 -> 0 | BE74: =AA74*'III. GDP shares, 1310-2018'!I76 -> 0 | BF74: =AB74*'III. GDP shares, 1310-2018'!J76 -> 0 | BI74: 18.94309738 | BJ74: 15.12042141 | BL74: -2.123398794 | BM74: 3.483619037 | BN74: =AVERAGE(BL71:BL77) -> 0.4763433798 | BO74: -0.576058153 | BR74: 15.78807116
A75: ='[1]Nominal weighted'!B75 -> 1381 | C75: -25.67393843 | D75: 29.7643458 | F75: 15.65065671 | L75: 5.188422622 | M75: 30.79553497 | O75: 15.0745554 | U75: 38.2606051 | V75: 1.418193881 | X75: -1.688238679 | AE75: 12.58666667 | AF75: 31.18253968 | AH75: 13.96241804 | AO75: =AE75*'III. GDP shares, 1310-2018'!C77 -> 6.545748807 | AP75: =AF75*'III. GDP shares, 1310-2018'!D77 -> 4.062942137 | AQ75: =AG75*'III. GDP shares, 1310-2018'!E77 -> 0 | AR75: =AH75*'III. GDP shares, 1310-2018'!F77 -> 4.881964821 | AS75: =AI75*'III. GDP shares, 1310-2018'!G77 -> 0 | AT75: =AJ75*'III. GDP shares, 1310-2018'!H77 -> 0 | AU75: =AK75*'III. GDP shares, 1310-2018'!I77 -> 0 | AV75: =AL75*'III. GDP shares, 1310-2018'!J77 -> 0 | AY75: =U75*'III. GDP shares, 1310-2018'!C77 -> 19.8975882 | AZ75: =V75*'III. GDP shares, 1310-2018'!D77 -> 0.1847841689 | BA75: =W75*'III. GDP shares, 1310-2018'!E77 -> 0 | BB75: =X75*'III. GDP shares, 1310-2018'!F77 -> -0.5902933015 | BC75: =Y75*'III. GDP shares, 1310-2018'!G77 -> 0 | BD75: =Z75*'III. GDP shares, 1310-2018'!H77 -> 0 | BE75: =AA75*'III. GDP shares, 1310-2018'!I77 -> 0 | BF75: =AB75*'III. GDP shares, 1310-2018'!J77 -> 0 | BI75: 19.24387479 | BJ75: 15.49065576 | BL75: 19.49207907 | BM75: 12.6635201 | BN75: =AVERAGE(BL72:BL78) -> 2.265240426 | BO75: 1.376471839 | BR75: -7.879581272
A76: ='[1]Nominal weighted'!B76 -> 1382 | C76: 11.8962281 | D76: 38.98820234 | F76: 14.96097288 | L76: 5.065690753 | M76: 30.38351036 | O76: 14.81907491 | U76: -3.074757514 | V76: -7.903546253 | X76: -1.489554311 | AE76: 8.821470588 | AF76: 31.08465608 | AH76: 13.47141857 | AO76: =AE76*'III. GDP shares, 1310-2018'!C78 -> 4.585726105 | AP76: =AF76*'III. GDP shares, 1310-2018'!D78 -> 4.048496213 | AQ76: =AG76*'III. GDP shares, 1310-2018'!E78 -> 0 | AR76: =AH76*'III. GDP shares, 1310-2018'!F78 -> 4.713947008 | AS76: =AI76*'III. GDP shares, 1310-2018'!G78 -> 0 | AT76: =AJ76*'III. GDP shares, 1310-2018'!H78 -> 0 | AU76: =AK76*'III. GDP shares, 1310-2018'!I78 -> 0 | AV76: =AL76*'III. GDP shares, 1310-2018'!J78 -> 0 | AY76: =U76*'III. GDP shares, 1310-2018'!C78 -> -1.598372477 | AZ76: =V76*'III. GDP shares, 1310-2018'!D78 -> -1.029365646 | BA76: =W76*'III. GDP shares, 1310-2018'!E78 -> 0 | BB76: =X76*'III. GDP shares, 1310-2018'!F78 -> -0.5212279651 | BC76: =Y76*'III. GDP shares, 1310-2018'!G78 -> 0 | BD76: =Z76*'III. GDP shares, 1310-2018'!H78 -> 0 | BE76: =AA76*'III. GDP shares, 1310-2018'!I78 -> 0 | BF76: =AB76*'III. GDP shares, 1310-2018'!J78 -> 0 | BI76: 17.79251508 | BJ76: 13.34816933 | BL76: -3.148966088 | BM76: -4.155952693 | BN76: =AVERAGE(BL73:BL79) -> 2.342817878 | BO76: 1.504132199 | BR76: 11.41927356
A77: ='[1]Nominal weighted'!B77 -> 1383 | C77: -5.282722109 | D77: 32.05259611 | F77: 14.36138367 | L77: 2.61784792 | M77: 28.79242676 | O77: 13.57317072 | U77: 14.48556525 | V77: -1.065823619 | X77: -1.534031252 | AE77: 9.202843137 | AF77: 30.98677249 | AH77: 12.82735242 | AO77: =AE77*'III. GDP shares, 1310-2018'!C79 -> 4.78197976 | AP77: =AF77*'III. GDP shares, 1310-2018'!D79 -> 4.034062355 | AQ77: =AG77*'III. GDP shares, 1310-2018'!E79 -> 0 | AR77: =AH77*'III. GDP shares, 1310-2018'!F79 -> 4.492056457 | AS77: =AI77*'III. GDP shares, 1310-2018'!G79 -> 0 | AT77: =AJ77*'III. GDP shares, 1310-2018'!H79 -> 0 | AU77: =AK77*'III. GDP shares, 1310-2018'!I79 -> 0 | AV77: =AL77*'III. GDP shares, 1310-2018'!J79 -> 0 | AY77: =U77*'III. GDP shares, 1310-2018'!C79 -> 7.526986909 | AZ77: =V77*'III. GDP shares, 1310-2018'!D79 -> -0.1387559463 | BA77: =W77*'III. GDP shares, 1310-2018'!E79 -> 0 | BB77: =X77*'III. GDP shares, 1310-2018'!F79 -> -0.5372078948 | BC77: =Y77*'III. GDP shares, 1310-2018'!G79 -> 0 | BD77: =Z77*'III. GDP shares, 1310-2018'!H79 -> 0 | BE77: =AA77*'III. GDP shares, 1310-2018'!I79 -> 0 | BF77: =AB77*'III. GDP shares, 1310-2018'!J79 -> 0 | BI77: 17.67232268 | BJ77: 13.30809857 | BL77: 6.851023067 | BM77: 3.961903458 | BN77: =AVERAGE(BL74:BL80) -> 3.91727098 | BO77: 2.965172258 | BR77: 2.284257203
A78: ='[1]Nominal weighted'!B78 -> 1384 | C78: 3.142139171 | D78: 30.08196679 | F78: 13.7146508 | L78: 5.227617897 | M78: 32.53370027 | O78: 12.64847573 | P78: =AVERAGE(G75:G81) -> 20.62602502 | U78: 6.167076515 | V78: 0.8069220999 | X78: -1.581291543 | AE78: 9.309215686 | AF78: 30.88888889 | AH78: 12.13335926 | AO78: =AE78*'III. GDP shares, 1310-2018'!C80 -> 4.835233763 | AP78: =AF78*'III. GDP shares, 1310-2018'!D80 -> 4.019640547 | AQ78: =AG78*'III. GDP shares, 1310-2018'!E80 -> 0 | AR78: =AH78*'III. GDP shares, 1310-2018'!F80 -> 4.252315778 | AS78: =AI78*'III. GDP shares, 1310-2018'!G80 -> 0 | AT78: =AJ78*'III. GDP shares, 1310-2018'!H80 -> 0 | AU78: =AK78*'III. GDP shares, 1310-2018'!I80 -> 0 | AV78: =AL78*'III. GDP shares, 1310-2018'!J80 -> 0 | AY78: =U78*'III. GDP shares, 1310-2018'!C80 -> 3.203197519 | AZ78: =V78*'III. GDP shares, 1310-2018'!D80 -> 0.1050065868 | BA78: =W78*'III. GDP shares, 1310-2018'!E80 -> 0 | BB78: =X78*'III. GDP shares, 1310-2018'!F80 -> -0.5541870831 | BC78: =Y78*'III. GDP shares, 1310-2018'!G80 -> 0 | BD78: =Z78*'III. GDP shares, 1310-2018'!H80 -> 0 | BE78: =AA78*'III. GDP shares, 1310-2018'!I80 -> 0 | BF78: =AB78*'III. GDP shares, 1310-2018'!J80 -> 0 | BI78: 17.44382128 | BJ78: 13.10719009 | BL78: 2.754017022 | BM78: 1.797569024 | BN78: =AVERAGE(BL75:BL81) -> 2.669849022 | BO78: 1.199549413 | BR78: 6.438539105
A79: ='[1]Nominal weighted'!B79 -> 1385 | C79: 7.539440106 | D79: 34.73792829 | F79: 13.87137938 | L79: 5.940001076 | M79: 33.66761942 | O79: 11.86503754 | P79: =AVERAGE(G76:G82) -> 16.04491805 | U79: 2.126148129 | V79: -3.946922996 | X79: -1.631604487 | AE79: 9.665588235 | AF79: 30.79100529 | AH79: 12.23977489 | AO79: =AE79*'III. GDP shares, 1310-2018'!C81 -> 5.01823987 | AP79: =AF79*'III. GDP shares, 1310-2018'!D81 -> 4.005230775 | AQ79: =AG79*'III. GDP shares, 1310-2018'!E81 -> 0 | AR79: =AH79*'III. GDP shares, 1310-2018'!F81 -> 4.292928078 | AS79: =AI79*'III. GDP shares, 1310-2018'!G81 -> 0 | AT79: =AJ79*'III. GDP shares, 1310-2018'!H81 -> 0 | AU79: =AK79*'III. GDP shares, 1310-2018'!I81 -> 0 | AV79: =AL79*'III. GDP shares, 1310-2018'!J81 -> 0 | AY79: =U79*'III. GDP shares, 1310-2018'!C81 -> 1.103866733 | AZ79: =V79*'III. GDP shares, 1310-2018'!D81 -> -0.5134076429 | BA79: =W79*'III. GDP shares, 1310-2018'!E81 -> 0 | BB79: =X79*'III. GDP shares, 1310-2018'!F81 -> -0.5722622168 | BC79: =Y79*'III. GDP shares, 1310-2018'!G81 -> 0 | BD79: =Z79*'III. GDP shares, 1310-2018'!H81 -> 0 | BE79: =AA79*'III. GDP shares, 1310-2018'!I81 -> 0 | BF79: =AB79*'III. GDP shares, 1310-2018'!J81 -> 0 | BI79: 17.56545614 | BJ79: 13.31639872 | BL79: 0.01819687353 | BM79: -1.150793118 | BN79: =AVERAGE(BL76:BL82) -> 1.61708511 | BO79: 0.473553765 | BR79: 8.779563432
A80: ='[1]Nominal weighted'!B80 -> 1386 | C80: 6.303283967 | D80: 24.75393791 | F80: 7.64323133 | L80: -0.5280454549 | M80: 33.39898274 | O80: 10.86781413 | P80: =AVERAGE(G77:G83) -> 17.41665673 | U80: 3.058382699 | V80: 5.939183778 | X80: 3.471453522 | AE80: 9.361666667 | AF80: 30.69312169 | AH80: 11.11468485 | AO80: =AE80*'III. GDP shares, 1310-2018'!C82 -> 4.858420718 | AP80: =AF80*'III. GDP shares, 1310-2018'!D82 -> 3.990833023 | AQ80: =AG80*'III. GDP shares, 1310-2018'!E82 -> 0 | AR80: =AH80*'III. GDP shares, 1310-2018'!F82 -> 3.901328561 | AS80: =AI80*'III. GDP shares, 1310-2018'!G82 -> 0 | AT80: =AJ80*'III. GDP shares, 1310-2018'!H82 -> 0 | AU80: =AK80*'III. GDP shares, 1310-2018'!I82 -> 0 | AV80: =AL80*'III. GDP shares, 1310-2018'!J82 -> 0 | AY80: =U80*'III. GDP shares, 1310-2018'!C82 -> 1.587207748 | AZ80: =V80*'III. GDP shares, 1310-2018'!D82 -> 0.7722346065 | BA80: =W80*'III. GDP shares, 1310-2018'!E82 -> 0 | BB80: =X80*'III. GDP shares, 1310-2018'!F82 -> 1.218503354 | BC80: =Y80*'III. GDP shares, 1310-2018'!G82 -> 0 | BD80: =Z80*'III. GDP shares, 1310-2018'!H82 -> 0 | BE80: =AA80*'III. GDP shares, 1310-2018'!I82 -> 0 | BF80: =AB80*'III. GDP shares, 1310-2018'!J82 -> 0 | BI80: 17.05649107 | BJ80: 12.7505823 | BL80: 3.577945709 | BM80: 4.15634 | BN80: =AVERAGE(BL77:BL83) -> 4.010069449 | BO80: 2.304415434 | BR80: 5.954038177
A81: ='[1]Nominal weighted'!B81 -> 1387 | C81: 38.66889447 | D81: 37.35692467 | F81: 8.337055336 | G81: =AI81-Y81 -> 20.62602502 | L81: 4.224986675 | M81: 29.20835119 | O81: 10.19445265 | P81: =AVERAGE(G78:G84) -> 17.50328489 | U81: -29.75735701 | V81: -6.76168657 | X81: 3.142105081 | Y81: -2.126025025 | AE81: 8.911537468 | AF81: 30.5952381 | AH81: 11.47916042 | AI81: 18.5 | AO81: =AE81*'III. GDP shares, 1310-2018'!C83 -> 3.083863771 | AP81: =AF81*'III. GDP shares, 1310-2018'!D83 -> 2.652631571 | AQ81: =AG81*'III. GDP shares, 1310-2018'!E83 -> 0 | AR81: =AH81*'III. GDP shares, 1310-2018'!F83 -> 2.689935454 | AS81: =AI81*'III. GDP shares, 1310-2018'!G83 -> 6.158912429 | AT81: =AJ81*'III. GDP shares, 1310-2018'!H83 -> 0 | AU81: =AK81*'III. GDP shares, 1310-2018'!I83 -> 0 | AV81: =AL81*'III. GDP shares, 1310-2018'!J83 -> 0 | AY81: =U81*'III. GDP shares, 1310-2018'!C83 -> -10.29762098 | AZ81: =V81*'III. GDP shares, 1310-2018'!D83 -> -0.5862436244 | BA81: =W81*'III. GDP shares, 1310-2018'!E83 -> 0 | BB81: =X81*'III. GDP shares, 1310-2018'!F83 -> 0.7362959964 | BC81: =Y81*'III. GDP shares, 1310-2018'!G83 -> -0.7077838891 | BD81: =Z81*'III. GDP shares, 1310-2018'!H83 -> 0 | BE81: =AA81*'III. GDP shares, 1310-2018'!I83 -> 0 | BF81: =AB81*'III. GDP shares, 1310-2018'!J83 -> 0 | BI81: 17.37148399 | BJ81: 14.58534323 | BL81: -10.8553525 | BM81: -8.87574088 | BN81: =AVERAGE(BL78:BL84) -> 2.489362248 | BO81: 2.09977711 | BR81: 22.20182053
A82: ='[1]Nominal weighted'!B82 -> 1388 | C82: -20.68725618 | D82: 37.70177982 | F82: 10.16658941 | G82: 11.46381107 | L82: 5.274990899 | M82: 26.76258731 | O82: 9.211905819 | P82: =AVERAGE(G79:G85) -> 17.28854004 | U82: 29.19866445 | V82: -7.204425323 | X82: 1.295774194 | Y82: 7.036188933 | AE82: 8.511408269 | AF82: 30.4973545 | AH82: 11.4623636 | AI82: 18.5 | AO82: =AE82*'III. GDP shares, 1310-2018'!C84 -> 2.94457893 | AP82: =AF82*'III. GDP shares, 1310-2018'!D84 -> 2.643409793 | AQ82: =AG82*'III. GDP shares, 1310-2018'!E84 -> 0 | AR82: =AH82*'III. GDP shares, 1310-2018'!F84 -> 2.688439649 | AS82: =AI82*'III. GDP shares, 1310-2018'!G84 -> 6.157199972 | AT82: =AJ82*'III. GDP shares, 1310-2018'!H84 -> 0 | AU82: =AK82*'III. GDP shares, 1310-2018'!I84 -> 0 | AV82: =AL82*'III. GDP shares, 1310-2018'!J84 -> 0 | AY82: =U82*'III. GDP shares, 1310-2018'!C84 -> 10.10147433 | AZ82: =V82*'III. GDP shares, 1310-2018'!D84 -> -0.6244557524 | BA82: =W82*'III. GDP shares, 1310-2018'!E84 -> 0 | BB82: =X82*'III. GDP shares, 1310-2018'!F84 -> 0.3039173106 | BC82: =Y82*'III. GDP shares, 1310-2018'!G84 -> 2.3417958 | BD82: =Z82*'III. GDP shares, 1310-2018'!H84 -> 0 | BE82: =AA82*'III. GDP shares, 1310-2018'!I84 -> 0 | BF82: =AB82*'III. GDP shares, 1310-2018'!J84 -> 0 | BI82: 17.24278159 | BJ82: 14.43362834 | BL82: 12.12273169 | BM82: 7.581550563 | BN82: =AVERAGE(BL79:BL85) -> 2.239762958 | BO82: 2.42189896 | BR82: -0.9569688883
A83: ='[1]Nominal weighted'!B83 -> 1389 | C83: -33.38009761 | D83: 37.10774561 | F83: 7.98040896 | G83: 20.16013409 | L83: 7.162352584 | M83: 28.80008575 | O83: 8.273415023 | P83: =AVERAGE(G80:G86) -> 17.11930347 | U83: 41.76637668 | V83: -6.708274709 | X83: 1.256684978 | Y83: -1.674471004 | AE83: 8.38627907 | AF83: 30.3994709 | AH83: 9.237093938 | AI83: 18.48566308 | AO83: =AE83*'III. GDP shares, 1310-2018'!C85 -> 2.900483176 | AP83: =AF83*'III. GDP shares, 1310-2018'!D85 -> 2.634193141 | AQ83: =AG83*'III. GDP shares, 1310-2018'!E85 -> 0 | AR83: =AH83*'III. GDP shares, 1310-2018'!F85 -> 2.168479253 | AS83: =AI83*'III. GDP shares, 1310-2018'!G85 -> 6.150718157 | AT83: =AJ83*'III. GDP shares, 1310-2018'!H85 -> 0 | AU83: =AK83*'III. GDP shares, 1310-2018'!I85 -> 0 | AV83: =AL83*'III. GDP shares, 1310-2018'!J85 -> 0 | AY83: =U83*'III. GDP shares, 1310-2018'!C85 -> 14.44534243 | AZ83: =V83*'III. GDP shares, 1310-2018'!D85 -> -0.5812894338 | BA83: =W83*'III. GDP shares, 1310-2018'!E85 -> 0 | BB83: =X83*'III. GDP shares, 1310-2018'!F85 -> 0.2950165194 | BC83: =Y83*'III. GDP shares, 1310-2018'!G85 -> -0.5571452408 | BD83: =Z83*'III. GDP shares, 1310-2018'!H85 -> 0 | BE83: =AA83*'III. GDP shares, 1310-2018'!I85 -> 0 | BF83: =AB83*'III. GDP shares, 1310-2018'!J85 -> 0 | BI83: 16.62712675 | BJ83: 13.85387373 | BL83: 13.60192428 | BM83: 8.660078987 | BN83: =AVERAGE(BL80:BL86) -> 1.432218582 | BO83: 1.504087402 | BR83: -2.963533126
A84: ='[1]Nominal weighted'!B84 -> 1390 | C84: 27.9885028 | D84: 2.718175243 | F84: 9.647853318 | G84: 17.76316936 | L84: 8.913351592 | M84: 31.46570181 | O84: 8.098135689 | P84: =AVERAGE(G81:G87) -> 17.44997524 | U84: -19.3935028 | V84: 27.58341206 | X84: 1.219674717 | Y84: 0.7081568016 | AE84: 8.595 | AF84: 30.3015873 | AH84: 10.86752804 | AI84: 18.47132616 | AO84: =AE84*'III. GDP shares, 1310-2018'!C86 -> 2.971845436 | AP84: =AF84*'III. GDP shares, 1310-2018'!D86 -> 2.624981612 | AQ84: =AG84*'III. GDP shares, 1310-2018'!E86 -> 0 | AR84: =AH84*'III. GDP shares, 1310-2018'!F86 -> 2.55354729 | AS84: =AI84*'III. GDP shares, 1310-2018'!G86 -> 6.144239945 | AT84: =AJ84*'III. GDP shares, 1310-2018'!H86 -> 0 | AU84: =AK84*'III. GDP shares, 1310-2018'!I86 -> 0 | AV84: =AL84*'III. GDP shares, 1310-2018'!J86 -> 0 | AY84: =U84*'III. GDP shares, 1310-2018'!C86 -> -6.705583802 | AZ84: =V84*'III. GDP shares, 1310-2018'!D86 -> 2.389510118 | BA84: =W84*'III. GDP shares, 1310-2018'!E86 -> 0 | BB84: =X84*'III. GDP shares, 1310-2018'!F86 -> 0.2865874428 | BC84: =Y84*'III. GDP shares, 1310-2018'!G86 -> 0.2355589019 | BD84: =Z84*'III. GDP shares, 1310-2018'!H86 -> 0 | BE84: =AA84*'III. GDP shares, 1310-2018'!I86 -> 0 | BF84: =AB84*'III. GDP shares, 1310-2018'!J86 -> 0 | BI84: 17.05886038 | BJ84: 14.29461428 | BL84: -3.793927339 | BM84: 2.529435195 | BN84: =AVERAGE(BL81:BL87) -> 0.1979619018 | BO84: 0.0309883015 | BR84: 17.85307013
A85: ='[1]Nominal weighted'!B85 -> 1391 | C85: 10.49216874 | D85: 12.96161966 | F85: 6.836822999 | G85: 16.42956064 | L85: 8.338922887 | M85: 29.95604252 | O85: 8.23936646 | P85: =AVERAGE(G82:G88) -> 15.45927053 | U85: -2.115910683 | V85: 17.24208404 | X85: 1.184580548 | Y85: -0.1010660153 | AE85: 8.376258057 | AF85: 30.2037037 | AH85: 8.021403548 | AI85: 16.32849462 | AO85: =AE85*'III. GDP shares, 1310-2018'!C87 -> 2.895407642 | AP85: =AF85*'III. GDP shares, 1310-2018'!D87 -> 2.615775201 | AQ85: =AG85*'III. GDP shares, 1310-2018'!E87 -> 0 | AR85: =AH85*'III. GDP shares, 1310-2018'!F87 -> 1.886497146 | AS85: =AI85*'III. GDP shares, 1310-2018'!G87 -> 5.42994672 | AT85: =AJ85*'III. GDP shares, 1310-2018'!H87 -> 0 | AU85: =AK85*'III. GDP shares, 1310-2018'!I87 -> 0 | AV85: =AL85*'III. GDP shares, 1310-2018'!J87 -> 0 | AY85: =U85*'III. GDP shares, 1310-2018'!C87 -> -0.7314034403 | AZ85: =V85*'III. GDP shares, 1310-2018'!D87 -> 1.493241236 | BA85: =W85*'III. GDP shares, 1310-2018'!E87 -> 0 | BB85: =X85*'III. GDP shares, 1310-2018'!F87 -> 0.2785931179 | BC85: =Y85*'III. GDP shares, 1310-2018'!G87 -> -0.03360892053 | BD85: =Z85*'III. GDP shares, 1310-2018'!H87 -> 0 | BE85: =AA85*'III. GDP shares, 1310-2018'!I87 -> 0 | BF85: =AB85*'III. GDP shares, 1310-2018'!J87 -> 0 | BI85: 15.73246498 | BJ85: 12.82762671 | BL85: 1.006821993 | BM85: 4.052421973 | BN85: =AVERAGE(BL82:BL88) -> 1.029047745 | BO85: 0.8827718067 | BR85: 10.69827075
A86: ='[1]Nominal weighted'!B86 -> 1392 | C86: 20.7509719 | D86: 49.00041732 | F86: 7.301943809 | G86: 16.27312066 | L86: 8.518747826 | M86: 28.38792399 | O86: 8.070189807 | P86: =AVERAGE(G83:G89) -> 18.05073743 | U86: -12.85012084 | V86: -18.89459721 | X86: 0.388783102 | Y86: 1.054038839 | AE86: 7.900851064 | AF86: 30.10582011 | AH86: 7.690726911 | AI86: 17.3271595 | AO86: =AE86*'III. GDP shares, 1310-2018'!C88 -> 2.730315953 | AP86: =AF86*'III. GDP shares, 1310-2018'!D88 -> 2.606573904 | AQ86: =AG86*'III. GDP shares, 1310-2018'!E88 -> 0 | AR86: =AH86*'III. GDP shares, 1310-2018'!F88 -> 1.810361293 | AS86: =AI86*'III. GDP shares, 1310-2018'!G88 -> 5.760446635 | AT86: =AJ86*'III. GDP shares, 1310-2018'!H88 -> 0 | AU86: =AK86*'III. GDP shares, 1310-2018'!I88 -> 0 | AV86: =AL86*'III. GDP shares, 1310-2018'!J88 -> 0 | AY86: =U86*'III. GDP shares, 1310-2018'!C88 -> -4.440646917 | AZ86: =V86*'III. GDP shares, 1310-2018'!D88 -> -1.635901758 | BA86: =W86*'III. GDP shares, 1310-2018'!E88 -> 0 | BB86: =X86*'III. GDP shares, 1310-2018'!F88 -> 0.09151773134 | BC86: =Y86*'III. GDP shares, 1310-2018'!G88 -> 0.3504171865 | BD86: =Z86*'III. GDP shares, 1310-2018'!H88 -> 0 | BE86: =AA86*'III. GDP shares, 1310-2018'!I88 -> 0 | BF86: =AB86*'III. GDP shares, 1310-2018'!J88 -> 0 | BI86: 15.75613939 | BJ86: 12.90769778 | BL86: -5.634613756 | BM86: -7.575474028 | BN86: =AVERAGE(BL83:BL89) -> 0.1218522426 | BO86: 0.4689047665 | BR86: 14.29983588
A87: ='[1]Nominal weighted'!B87 -> 1393 | C87: 18.56027703 | D87: 43.41325036 | F87: 6.41627599 | G87: 19.43400584 | L87: 13.92478975 | M87: 27.22915112 | O87: 8.13483395 | P87: =AVERAGE(G84:G90) -> 17.64661242 | U87: -10.48266833 | V87: -13.40531385 | X87: 0.3747488495 | Y87: -1.108181472 | AE87: 8.077608696 | AF87: 30.00793651 | AH87: 6.79102484 | AI87: 18.32582437 | AO87: =AE87*'III. GDP shares, 1310-2018'!C89 -> 2.790623451 | AP87: =AF87*'III. GDP shares, 1310-2018'!D89 -> 2.597377717 | AQ87: =AG87*'III. GDP shares, 1310-2018'!E89 -> 0 | AR87: =AH87*'III. GDP shares, 1310-2018'!F89 -> 1.600017348 | AS87: =AI87*'III. GDP shares, 1310-2018'!G89 -> 6.090763016 | AT87: =AJ87*'III. GDP shares, 1310-2018'!H89 -> 0 | AU87: =AK87*'III. GDP shares, 1310-2018'!I89 -> 0 | AV87: =AL87*'III. GDP shares, 1310-2018'!J89 -> 0 | AY87: =U87*'III. GDP shares, 1310-2018'!C89 -> -3.621514879 | AZ87: =V87*'III. GDP shares, 1310-2018'!D89 -> -1.160315154 | BA87: =W87*'III. GDP shares, 1310-2018'!E89 -> 0 | BB87: =X87*'III. GDP shares, 1310-2018'!F89 -> 0.08829369272 | BC87: =Y87*'III. GDP shares, 1310-2018'!G89 -> -0.368314712 | BD87: =Z87*'III. GDP shares, 1310-2018'!H89 -> 0 | BE87: =AA87*'III. GDP shares, 1310-2018'!I89 -> 0 | BF87: =AB87*'III. GDP shares, 1310-2018'!J89 -> 0 | BI87: 15.8005986 | BJ87: 13.07878153 | BL87: -5.061851052 | BM87: -6.155353701 | BN87: =AVERAGE(BL84:BL90) -> -1.645267236 | BO87: -0.6160273856 | BR87: 14.38293971
A88: ='[1]Nominal weighted'!B88 -> 1394 | C88: 34.64789354 | D88: 26.78930962 | F88: 9.325670733 | G88: 6.691092055 | L88: 7.098706958 | M88: 28.57588714 | O88: 8.127003076 | P88: =AVERAGE(G85:G91) -> 17.98715745 | U88: -27.76824442 | V88: 3.120743291 | X88: 0.3610785575 | Y88: 12.63339719 | AE88: 6.879649123 | AF88: 29.91005291 | AH88: 9.686749291 | AI88: 19.32448925 | AO88: =AE88*'III. GDP shares, 1310-2018'!C90 -> 2.376096904 | AP88: =AF88*'III. GDP shares, 1310-2018'!D90 -> 2.588186635 | AQ88: =AG88*'III. GDP shares, 1310-2018'!E90 -> 0 | AR88: =AH88*'III. GDP shares, 1310-2018'!F90 -> 2.284327509 | AS88: =AI88*'III. GDP shares, 1310-2018'!G90 -> 6.420896018 | AT88: =AJ88*'III. GDP shares, 1310-2018'!H90 -> 0 | AU88: =AK88*'III. GDP shares, 1310-2018'!I90 -> 0 | AV88: =AL88*'III. GDP shares, 1310-2018'!J90 -> 0 | AY88: =U88*'III. GDP shares, 1310-2018'!C90 -> -9.59061115 | AZ88: =V88*'III. GDP shares, 1310-2018'!D90 -> 0.2700451952 | BA88: =W88*'III. GDP shares, 1310-2018'!E90 -> 0 | BB88: =X88*'III. GDP shares, 1310-2018'!F90 -> 0.08514948174 | BC88: =Y88*'III. GDP shares, 1310-2018'!G90 -> 4.197664874 | BD88: =Z88*'III. GDP shares, 1310-2018'!H90 -> 0 | BE88: =AA88*'III. GDP shares, 1310-2018'!I90 -> 0 | BF88: =AB88*'III. GDP shares, 1310-2018'!J90 -> 0 | BI88: 16.45023514 | BJ88: 13.66950707 | BL88: -5.037751598 | BM88: -2.913256344 | BN88: =AVERAGE(BL85:BL91) -> 0.3409332851 | BO88: 0.5375948749 | BR88: 16.38911722
A89: ='[1]Nominal weighted'!B89 -> 1395 | C89: -19.42848161 | D89: 26.72495016 | F89: 8.982352842 | G89: 29.60407934 | L89: 8.461331742 | M89: 31.25087011 | O89: 8.37434445 | P89: =AVERAGE(G86:G92) -> 18.20534856 | U89: 25.93158486 | V89: 3.087219156 | X89: 0.3477546646 | Y89: -10.62863355 | AE89: 6.50310325 | AF89: 29.81216931 | AH89: 9.330107506 | AI89: 18.97544579 | AO89: =AE89*'III. GDP shares, 1310-2018'!C91 -> 2.245421999 | AP89: =AF89*'III. GDP shares, 1310-2018'!D91 -> 2.579000654 | AQ89: =AG89*'III. GDP shares, 1310-2018'!E91 -> 0 | AR89: =AH89*'III. GDP shares, 1310-2018'!F91 -> 2.202202886 | AS89: =AI89*'III. GDP shares, 1310-2018'!G91 -> 6.303170639 | AT89: =AJ89*'III. GDP shares, 1310-2018'!H91 -> 0 | AU89: =AK89*'III. GDP shares, 1310-2018'!I91 -> 0 | AV89: =AL89*'III. GDP shares, 1310-2018'!J91 -> 0 | AY89: =U89*'III. GDP shares, 1310-2018'!C91 -> 8.953779277 | AZ89: =V89*'III. GDP shares, 1310-2018'!D91 -> 0.2670701397 | BA89: =W89*'III. GDP shares, 1310-2018'!E91 -> 0 | BB89: =X89*'III. GDP shares, 1310-2018'!F91 -> 0.0820811899 | BC89: =Y89*'III. GDP shares, 1310-2018'!G91 -> -3.530567434 | BD89: =Z89*'III. GDP shares, 1310-2018'!H91 -> 0 | BE89: =AA89*'III. GDP shares, 1310-2018'!I91 -> 0 | BF89: =AB89*'III. GDP shares, 1310-2018'!J91 -> 0 | BI89: 16.15520646 | BJ89: 13.32979618 | BL89: 5.772363173 | BM89: 4.684481282 | BN89: =AVERAGE(BL86:BL92) -> -0.4704412516 | BO89: -0.5796474081 | BR89: 5.245502491
A90: ='[1]Nominal weighted'!B90 -> 1396 | C90: 4.46219584 | D90: 28.9963355 | F90: 8.432917956 | G90: 17.33125903 | L90: 5.57412326 | M90: 29.12233204 | O90: 8.774035124 | P90: =AVERAGE(G87:G93) -> 18.69795109 | U90: 1.914361537 | V90: 0.7179502182 | X90: 0.3347606369 | Y90: 1.295143297 | AE90: 6.376557377 | AF90: 29.71428571 | AH90: 8.767678593 | AI90: 18.62640233 | AO90: =AE90*'III. GDP shares, 1310-2018'!C92 -> 2.201116825 | AP90: =AF90*'III. GDP shares, 1310-2018'!D92 -> 2.56981977 | AQ90: =AG90*'III. GDP shares, 1310-2018'!E92 -> 0 | AR90: =AH90*'III. GDP shares, 1310-2018'!F92 -> 2.071310005 | AS90: =AI90*'III. GDP shares, 1310-2018'!G92 -> 6.185510581 | AT90: =AJ90*'III. GDP shares, 1310-2018'!H92 -> 0 | AU90: =AK90*'III. GDP shares, 1310-2018'!I92 -> 0 | AV90: =AL90*'III. GDP shares, 1310-2018'!J92 -> 0 | AY90: =U90*'III. GDP shares, 1310-2018'!C92 -> 0.6608163527 | AZ90: =V90*'III. GDP shares, 1310-2018'!D92 -> 0.06209143583 | BA90: =W90*'III. GDP shares, 1310-2018'!E92 -> 0 | BB90: =X90*'III. GDP shares, 1310-2018'!F92 -> 0.07908513631 | BC90: =Y90*'III. GDP shares, 1310-2018'!G92 -> 0.4300950031 | BD90: =Z90*'III. GDP shares, 1310-2018'!H92 -> 0 | BE90: =AA90*'III. GDP shares, 1310-2018'!I92 -> 0 | BF90: =AB90*'III. GDP shares, 1310-2018'!J92 -> 0 | BI90: 15.871231 | BJ90: 13.02775718 | BL90: 1.232087928 | BM90: 1.065553922 | BN90: =AVERAGE(BL87:BL93) -> 0.4739944848 | BO90: 0.4789542362 | BR90: 9.287940919
A91: ='[1]Nominal weighted'!B91 -> 1397 | C91: -19.79407673 | D91: 12.14532736 | F91: 9.5930372 | G91: 20.14698456 | L91: 7.517605438 | M91: 26.72338728 | N91: =AVERAGE(E88:E94) -> 17.2726774 | O91: 9.58971822 | P91: =AVERAGE(G88:G94) -> 18.12947491 | U91: 26.49563411 | V91: 17.47107476 | X91: 0.3220808923 | Y91: -1.869625685 | AE91: 6.701557377 | AF91: 29.61640212 | AH91: 9.915118092 | AI91: 18.27735887 | AO91: =AE91*'III. GDP shares, 1310-2018'!C93 -> 2.31266162 | AP91: =AF91*'III. GDP shares, 1310-2018'!D93 -> 2.560643979 | AQ91: =AG91*'III. GDP shares, 1310-2018'!E93 -> 0 | AR91: =AH91*'III. GDP shares, 1310-2018'!F93 -> 2.344485819 | AS91: =AI91*'III. GDP shares, 1310-2018'!G93 -> 6.067915789 | AT91: =AJ91*'III. GDP shares, 1310-2018'!H93 -> 0 | AU91: =AK91*'III. GDP shares, 1310-2018'!I93 -> 0 | AV91: =AL91*'III. GDP shares, 1310-2018'!J93 -> 0 | AY91: =U91*'III. GDP shares, 1310-2018'!C93 -> 9.143462131 | AZ91: =V91*'III. GDP shares, 1310-2018'!D93 -> 1.510554935 | BA91: =W91*'III. GDP shares, 1310-2018'!E93 -> 0 | BB91: =X91*'III. GDP shares, 1310-2018'!F93 -> 0.07615785083 | BC91: =Y91*'III. GDP shares, 1310-2018'!G93 -> -0.6206986083 | BD91: =Z91*'III. GDP shares, 1310-2018'!H93 -> 0 | BE91: =AA91*'III. GDP shares, 1310-2018'!I93 -> 0 | BF91: =AB91*'III. GDP shares, 1310-2018'!J93 -> 0 | BI91: 16.12760911 | BJ91: 13.28570721 | BL91: 10.10947631 | BM91: 10.60479102 | BN91: =AVERAGE(BL88:BL94) -> -0.04578302304 | BO91: 0.6517982047 | BR91: 2.126141854
A92: ='[1]Nominal weighted'!B92 -> 1398 | C92: 20.03054223 | D92: 31.68650045 | F92: 8.568212622 | G92: 17.95689844 | L92: 0.5565027731 | M92: 26.07848102 | N92: 18.06189611 | O92: 10.05320527 | P92: =AVERAGE(G89:G95) -> 19.62919531 | U92: -13.1862318 | V92: -2.167981934 | X92: 0.3097007306 | Y92: -0.02858303075 | AE92: 6.844310435 | AF92: 29.51851852 | AH92: 8.877913353 | AI92: 17.92831541 | AO92: =AE92*'III. GDP shares, 1310-2018'!C94 -> 2.361269822 | AP92: =AF92*'III. GDP shares, 1310-2018'!D94 -> 2.551473276 | AQ92: =AG92*'III. GDP shares, 1310-2018'!E94 -> 0 | AR92: =AH92*'III. GDP shares, 1310-2018'!F94 -> 2.10111244 | AS92: =AI92*'III. GDP shares, 1310-2018'!G94 -> 5.95038621 | AT92: =AJ92*'III. GDP shares, 1310-2018'!H94 -> 0 | AU92: =AK92*'III. GDP shares, 1310-2018'!I94 -> 0 | AV92: =AL92*'III. GDP shares, 1310-2018'!J94 -> 0 | AY92: =U92*'III. GDP shares, 1310-2018'!C94 -> -4.549216683 | AZ92: =V92*'III. GDP shares, 1310-2018'!D94 -> -0.1873924656 | BA92: =W92*'III. GDP shares, 1310-2018'!E94 -> 0 | BB92: =X92*'III. GDP shares, 1310-2018'!F94 -> 0.07329605864 | BC92: =Y92*'III. GDP shares, 1310-2018'!G94 -> -0.00948667335 | BD92: =Z92*'III. GDP shares, 1310-2018'!H94 -> 0 | BE92: =AA92*'III. GDP shares, 1310-2018'!I94 -> 0 | BF92: =AB92*'III. GDP shares, 1310-2018'!J94 -> 0 | BI92: 15.79226443 | BJ92: 12.96424175 | BL92: -4.672799763 | BM92: -3.768274008 | BN92: =AVERAGE(BL89:BL95) -> 1.739431606 | BO92: 1.812239374 | BR92: 14.89817577
A93: ='[1]Nominal weighted'!B93 -> 1399 | C93: 0.5405125284 | D93: 34.10065081 | F93: 10.09977852 | G93: 19.72133837 | L93: 4.543619712 | M93: 24.63735716 | N93: 18.03798367 | O93: 10.15012551 | P93: =AVERAGE(G90:G96) -> 18.47089341 | U93: 5.771550964 | V93: -4.680015891 | X93: 0.2976062703 | Y93: -2.050191414 | AE93: 6.312063492 | AF93: 29.42063492 | AH93: 10.39738479 | AI93: 17.67114695 | AO93: =AE93*'III. GDP shares, 1310-2018'!C95 -> 2.177042333 | AP93: =AF93*'III. GDP shares, 1310-2018'!D95 -> 2.542307657 | AQ93: =AG93*'III. GDP shares, 1310-2018'!E95 -> 0 | AR93: =AH93*'III. GDP shares, 1310-2018'!F95 -> 2.462921779 | AS93: =AI93*'III. GDP shares, 1310-2018'!G95 -> 5.863406537 | AT93: =AJ93*'III. GDP shares, 1310-2018'!H95 -> 0 | AU93: =AK93*'III. GDP shares, 1310-2018'!I95 -> 0 | AV93: =AL93*'III. GDP shares, 1310-2018'!J95 -> 0 | AY93: =U93*'III. GDP shares, 1310-2018'!C95 -> 1.990618565 | AZ93: =V93*'III. GDP shares, 1310-2018'!D95 -> -0.4044114027 | BA93: =W93*'III. GDP shares, 1310-2018'!E95 -> 0 | BB93: =X93*'III. GDP shares, 1310-2018'!F95 -> 0.07049666616 | BC93: =Y93*'III. GDP shares, 1310-2018'!G95 -> -0.6802674309 | BD93: =Z93*'III. GDP shares, 1310-2018'!H95 -> 0 | BE93: =AA93*'III. GDP shares, 1310-2018'!I95 -> 0 | BF93: =AB93*'III. GDP shares, 1310-2018'!J95 -> 0 | BI93: 15.95030754 | BJ93: 13.04567831 | BL93: 0.9764363979 | BM93: -0.1652625179 | BN93: =AVERAGE(BL90:BL96) -> 0.6936137421 | BO93: 1.246801145 | BR93: 9.122522848
A94: ='[1]Nominal weighted'!B94 -> 1400 | C94: 32.16465227 | D94: 26.62063706 | E94: =AG94-W94 -> 17.2726774 | F94: 12.12605767 | G94: 15.45467256 | I94: =AK94-AA94 -> 4 | L94: 6.286766536 | M94: 26.31911171 | N94: 17.57831406 | O94: 10.74376274 | P94: =AVERAGE(G91:G97) -> 18.03200272 | U94: -25.99227132 | V94: 2.702114268 | W94: 0.01303688076 | X94: -3.409415371 | Y94: 1.959305936 | AE94: 6.172380952 | AF94: 29.32275132 | AG94: 17.29 | AH94: 8.716642295 | AI94: 17.41397849 | AK94: 4 | AO94: =AE94*'III. GDP shares, 1310-2018'!C96 -> 2.083563826 | AP94: =AF94*'III. GDP shares, 1310-2018'!D96 -> 2.479929604 | AQ94: =AG94*'III. GDP shares, 1310-2018'!E96 -> 0.3631461969 | AR94: =AH94*'III. GDP shares, 1310-2018'!F96 -> 2.023215833 | AS94: =AI94*'III. GDP shares, 1310-2018'!G96 -> 5.655120239 | AT94: =AJ94*'III. GDP shares, 1310-2018'!H96 -> 0 | AU94: =AK94*'III. GDP shares, 1310-2018'!I96 -> 0 | AV94: =AL94*'III. GDP shares, 1310-2018'!J96 -> 0 | AY94: =U94*'III. GDP shares, 1310-2018'!C96 -> -8.774013902 | AZ94: =V94*'III. GDP shares, 1310-2018'!D96 -> 0.2285274357 | BA94: =W94*'III. GDP shares, 1310-2018'!E96 -> 0.0002738847577 | BB94: =X94*'III. GDP shares, 1310-2018'!F96 -> -0.7913578333 | BC94: =Y94*'III. GDP shares, 1310-2018'!G96 -> 0.636276808 | BD94: =Z94*'III. GDP shares, 1310-2018'!H96 -> 0 | BE94: =AA94*'III. GDP shares, 1310-2018'!I96 -> 0 | BF94: =AB94*'III. GDP shares, 1310-2018'!J96 -> 0 | BI94: 13.81857789 | BJ94: 12.6049757 | BL94: -8.700293607 | BM94: -4.945445921 | BN94: =AVERAGE(BL91:BL97) -> -0.06963667661 | BO94: 0.4683512631 | BR94: 19.05386714
